Workbook

Sheet Calculations

Sheet Inputs
A1: 1 | D1: 2 | I1: 3 | P1: 4 | V1: 5 - A | AH1: 5 - B | AZ1: 6 | BO1: 7 | BR1: 8
A2: Information | D2: Balance Sheet | I2: Income Statement | P2: Debt Structure | V2: Assets, and Depreciation Schedules | AE2: End of Test Year | AF2: =B8 -> 2023-12-31 | AH2: CIAC and Amortization Schedules | AQ2: End of Test Year | AR2: =+AF2 -> 2023-12-31 | AZ2: Usage Data (All Metered Customers) (REQUIRED: Use three letter month codes) | BO2: Federal Income Tax Rate | BR2: Conversion Factor
A3: (a) | B3: (b) | D3: (c) | E3: (d) | F3: (e) | G3: (f) | I3: (g) | J3: (h) | K3: (i) | N3: (j) | P3: (k) | Q3: (l) | R3: (m) | S3: (n) | T3: (o) | V3: (p) | W3: (q) | X3: (r) | Y3: (s) | Z3: (t) | AA3: (u) | AB3: (v) | AC3: (w) | AD3: (x) | AE3: (y) | AF3: (z) | AH3: (p) | AI3: (q) | AJ3: (r) | AK3: (s) | AL3: (t) | AM3: (u) | AN3: (v) | AO3: (w) | AP3: (x) | AQ3: (y) | AR3: (z) | AZ3: (aa) | BA3: (ab) | BB3: (ac) | BC3: (ad) | BD3: (ae) | BE3: (af) | BF3: (ag) | BG3: (ah) | BH3: (ai) | BI3: (aj) | BJ3: (ak) | BK3: (al) | BL3: (am) | BM3: (an) | BO3: (ao) | BP3: (ap) | BR3: (aq) | BS3: (ar)
A4: Description | B4: Company Information | D4: Description | E4: Values | F4: Description | G4: Values | I4: Description | J4: Company End of Year | K4: Restating Adjustments | M4: Explanation | N4: Pro Forma Adjustments | O4: (Check) | P4: Year | Q4: Description | R4: Note Category | S4: Principal Balance | T4: Interest Rate | V4: Asset Category | W4: Asset Description | X4: Date in Service | Y4: Original Cost | Z4: Salvage Value | AA4: Service Life | AB4: Service Time | AC4: Depreciation | AD4: Acc. Depn (Beg) | AE4: Acc. Depn (End) | AF4: Rate Base | AH4: Asset Category | AI4: Asset Description | AJ4: Date in Service | AK4: Original Cost | AL4: Salvage Value | AM4: Service Life | AN4: Service Time | AO4: Amortization | AP4: Acc. Amort. | AQ4: Acc. Amort. | AR4: Net CIAC | AZ4: Meter Size | BA4: Meter ID | BB4: Jan | BC4: =INDEX($AW$8:$AW$19,MATCH(BB$4,$AX$8:$AX$19,0)) -> Feb | BD4: Mar | BE4: Apr | BF4: May | BG4: Jun | BH4: Jul | BI4: Aug | BJ4: Sep | BK4: Oct | BL4: Nov | BM4: Dec | BO4: Federal Income Tax (FIT) | BP4: Suggested FIT Rate | BR4: Conversion Factor (CF) | BS4: Suggested CF
A5: List | B5: Mixed | D5: List | E5: $ | F5: List | G5: $ | I5: List | J5: $ | K5: $ | L5: # | N5: $ | P5: #### | Q5: List Loans and Notes | R5: Drop-Down List | S5: $ | T5: % | V5: Drop-Down | W5: List | X5: mm/dd/yy | Y5: $ | Z5: $ | AA5: Yrs | AB5: Yrs | AC5: Annual | AD5: Beginning | AE5: Ending | AF5: $ | AH5: Drop-Down | AI5: List | AJ5: mm/dd/yy | AK5: $ | AL5: $ | AM5: Yrs | AN5: Yrs | AO5: Annual | AP5: Beginning | AQ5: Ending | AR5: $ | AT5: Used by Asset Type Look Up Col V & AH | AW5: Months Index | AZ5: Drop-Down List | BA5: =SUM(BB5:BM5) -> 1396500 | BB5: =SUM(BB8:BB2008) -> 42900 | BC5: =SUM(BC8:BC2008) -> 41100 | BD5: 47700 | BE5: 76300 | BF5: 169000 | BG5: 198800 | BH5: 231900 | BI5: 220600 | BJ5: 167300 | BK5: 90700 | BL5: 56300 | BM5: 53900 | BO5: Drop-Down | BP5: % | BR5: Input | BS5: %
A6: Company's Full Legal Name | B6: Community Water Service of Dungeness Heights LLC | D6: ASSETS | F6: LIABILITIES | I6: REVENUES | S6: =SUM(S8:S36) -> 0 | Y6: =SUMIFS($Y$8:$Y$1008,$X$8:$X$1008,"<="&Endof_TestYear) -> 374301.45 | Z6: =SUMIFS(Z8:Z1008,$X$8:$X$1008,"<="&Endof_TestYear) -> 0 | AB6: =+Y6-AE6-AF6-Z6 -> -8.731149137e-11 | AC6: =SUMIFS(AC8:AC1008,$X$8:$X$1008,"<="&Endof_TestYear) -> 11804.47063 | AD6: =SUMIFS(AD8:AD1008,$X$8:$X$1008,"<="&Endof_TestYear) -> 230540.2937 | AE6: =SUMIFS(AE8:AE1008,$X$8:$X$1008,"<="&Endof_TestYear) -> 242344.7644 | AF6: =SUMIFS(AF8:AF1008,$X$8:$X$1008,"<="&Endof_TestYear) -> 131956.6856 | AK6: =SUMIFS(AK8:AK1008,$AJ$8:$AJ$1008,"<="&Endof_TestYear) -> 9700 | AL6: =SUMIFS(AL8:AL1008,$AJ$8:$AJ$1008,"<="&Endof_TestYear) -> 0 | AN6: =+AK6-AQ6-AR6-AL6 -> 9.094947018e-13 | AO6: =SUMIFS(AO8:AO1008,$AJ$8:$AJ$1008,"<="&Endof_TestYear) -> 791.6666667 | AP6: =SUMIFS(AP8:AP1008,$AJ$8:$AJ$1008,"<="&Endof_TestYear) -> 4391.666667 | AQ6: =SUMIFS(AQ8:AQ1008,$AJ$8:$AJ$1008,"<="&Endof_TestYear) -> 5183.333333 | AR6: =SUMIFS(AR8:AR1008,$AJ$8:$AJ$1008,"<="&Endof_TestYear) -> 4516.666667 | AZ6: =COUNTA(AZ8:AZ1006) -> 136 | BA6: =COUNTA(BA8:BA1006) -> 136 | BB6: =COUNTIFS(BB8:BB2008, ">-999999999999999", BB8:BB2008, ">=0") -> 136 | BC6: 136 | BD6: 136 | BE6: 136 | BF6: 136 | BG6: 136 | BH6: 136 | BI6: 136 | BJ6: 134 | BK6: 136 | BL6: 136 | BM6: 136 | BO6: 0.21 | BP6: ='Int Sync, NTG, Rev Req'!I52 -> 0.21 | BR6: 0.19755 | BS6: ='Int Sync, NTG, Rev Req'!G52/'Int Sync, NTG, Rev Req'!G40 -> 0.1975491
A7: UTC Docket Number UW- | BB7: DO NOT ENTER ZERO and ENTER TO THE NEAREST CUBIC FOOT OR GALLON | BO7: Average | BP7: Sum
A8: Test Period Ending | B8: 2023-12-31 | D8: Cash | E8: 8446.42 | F8: Customer Deposits | I8: Metered Sales | J8: 68345.92 | V8: Mains, Tanks and Reservoirs (50) | W8: water system | X8: 1972-07-01 | Y8: 26206 | AA8: 40 | AB8: =IF(Y8<>"",IF((TestEOY-X8)/365>AA8,AA8,ROUNDUP(((TestEOY-X8)/365),0)),"") -> 40 | AC8: =IFERROR(IF(AB8>=AA8,0,IF(AA8>AB8,SLN(Y8,Z8,AA8),0)),"") -> 0 | AD8: =AE8-AC8 -> 26206 | AE8: =IFERROR(IF(OR(AA8=0,AA8=""), 0, IF(AB8>=AA8, +Y8, (+AC8*AB8))), "") -> 26206 | AF8: =IFERROR(IF(AE8>Y8,0,(+Y8-AE8))-Z8,"") -> 0 | AI8: ciac | AJ8: 2012-02-02 | AK8: 1200 | AM8: 15 | AN8: =IF(AK8<>"",IF((TestEOY-AJ8)/365>AM8,AM8,ROUNDUP(((TestEOY-AJ8)/365),0)),"") -> 12 | AO8: =IFERROR(IF(AN8>=AM8,0,IF(AM8>AN8,SLN(AK8,AL8,AM8),0)),"") -> 80 | AP8: =AQ8-AO8 -> 880 | AQ8: =IFERROR(IF(OR(AM8=0,AM8=""), 0, IF(AN8>=AM8, +AK8, (+AO8*AN8))), "") -> 960 | AR8: =IFERROR(IF(AQ8>AK8,0,(+AK8-AQ8))-AL8,"") -> 240 | AT8: Land, Water Rights, and Organization (0) | AU8: 0 | AW8: Jan | AX8: Dec | AZ8: 0.75 | BA8: 331331BB | BB8: 1300 | BC8: 800 | BD8: 1000 | BE8: 800 | BF8: 1000 | BG8: 1000 | BH8: 2200 | BI8: 1100 | BJ8: 800 | BK8: 800 | BL8: 800 | BM8: 900 | BO8: =AVERAGE(BB8:BM8) -> 1041.666667 | BP8: =SUM(BB8:BM8) -> 12500
A9: Billing Cycle | B9: Monthly | D9: Special Funds (Facility Charges, Surcharges) | F9: Accounts Payable | G9: -14190.71 | I9: Un-Metered Sales | V9: Plant, Other (40) | W9: water system | X9: 1977-07-01 | Y9: 10703 | AA9: =IFERROR(INDEX($AU$8:$AU$23,MATCH(V9,$AT$8:$AT$23,0)),"") -> 40 | AB9: =IF(Y9>1,IF((TestEOY-X9)/365>AA9,AA9,ROUNDUP(((TestEOY-X9)/365),0)),"") -> 40 | AC9: =IFERROR(IF(AB9>=AA9,0,IF(AA9>AB9,SLN(Y9,Z9,AA9),0)),"") -> 0 | AD9: =AE9-AC9 -> 10703 | AE9: =IFERROR(IF(OR(AA9=0,AA9=""), 0, IF(AB9>=AA9, +Y9, (+AC9*AB9))), "") -> 10703 | AF9: =IFERROR(IF(AE9>Y9,0,(+Y9-AE9))-Z9,"") -> 0 | AI9: 211 Brigadoon, 683 Brigadoon | AJ9: 2015-02-02 | AK9: 2400 | AM9: 15 | AN9: 9 | AO9: =IFERROR(IF(AN9>=AM9,0,IF(AM9>AN9,SLN(AK9,AL9,AM9),0)),"") -> 160 | AP9: =AQ9-AO9 -> 1280 | AQ9: =IFERROR(IF(OR(AM9=0,AM9=""), 0, IF(AN9>=AM9, +AK9, (+AO9*AN9))), "") -> 1440 | AR9: =IFERROR(IF(AQ9>AK9,0,(+AK9-AQ9))-AL9,"") -> 960 | AT9: Equipment (IT) (5) | AU9: 5 | AW9: Feb | AX9: Jan | AZ9: 0.75 | BA9: 353353BB | BB9: 700 | BC9: 700 | BD9: 1000 | BE9: 1300 | BF9: 2900 | BG9: 1900 | BH9: 3300 | BI9: 3100 | BJ9: 1600 | BK9: 800 | BL9: 900 | BM9: 800 | BO9: 1583.333333 | BP9: 19000
A10: Most Common Meter Size | B10: 0.75 | D10: Investments | F10: Notes Payable | I10: Ready-to-Serve | O10: =+J10+J8 -> 68345.92 | V10: Plant, Other (40) | W10: water system | X10: 1978-07-01 | Y10: 20000 | AA10: 40 | AB10: 40 | AC10: 0 | AD10: 20000 | AE10: 20000 | AF10: 0 | AI10: 711 Brigadoon | AJ10: 2016-04-15 | AK10: 1200 | AM10: 15 | AN10: 8 | AO10: 80 | AP10: 560 | AQ10: 640 | AR10: 560 | AT10: Water System Plan (6) | AU10: 6 | AW10: Mar | AX10: Feb | AZ10: 0.75 | BA10: 102102LD | BB10: 400 | BC10: 400 | BD10: 200 | BE10: 1100 | BF10: 2500 | BG10: 2200 | BH10: 3200 | BI10: 2600 | BJ10: 1600 | BK10: 400 | BL10: 400 | BM10: 300 | BO10: 1275 | BP10: 15300
A11: Customer Count - Un-metered | B11: 0 | D11: Accounts Receivable | E11: 2581.52 | F11: Accrued Taxes | I11: Fire Protection / Irrigation | V11: Plant, Other (40) | W11: water system | X11: 1991-07-01 | Y11: 75125 | AA11: 40 | AB11: 33 | AC11: 1878.125 | AD11: 60100 | AE11: 61978.125 | AF11: 13146.875 | AI11: 310 Eberly | AJ11: 2016-06-16 | AK11: 500 | AM11: 15 | AN11: 8 | AO11: 33.33333333 | AP11: 233.3333333 | AQ11: 266.6666667 | AR11: 233.3333333 | AT11: Transportation (7) | AU11: 7 | AW11: Apr | AX11: Mar | AZ11: 0.75 | BA11: 9090LV | BB11: 400 | BC11: 300 | BD11: 400 | BE11: 500 | BF11: 1600 | BG11: 1300 | BH11: 1300 | BI11: 1400 | BJ11: 600 | BK11: 300 | BL11: 200 | BM11: 0 | BO11: 691.6666667 | BP11: 8300
A12: Customer Count - Ready To Serve | D12: Notes Receivable | F12: Accrued Interest | I12: Jobbing / Service Connections | V12: Plant, Other (40) | W12: water system | X12: 1998-07-01 | Y12: 75062 | AA12: 40 | AB12: 26 | AC12: 1876.55 | AD12: 46913.75 | AE12: 48790.3 | AF12: 26271.7 | AI12: 51 Brittany Ln. | AJ12: 2016-11-09 | AK12: 500 | AM12: 15 | AN12: 8 | AO12: =IFERROR(IF(AN12>=AM12,0,IF(AM12>AN12,SLN(AK12,AL12,AM12),0)),"") -> 33.33333333 | AP12: 233.3333333 | AQ12: =IFERROR(IF(OR(AM12=0,AM12=""), 0, IF(AN12>=AM12, +AK12, (+AO12*AN12))), "") -> 266.6666667 | AR12: =IFERROR(IF(AQ12>AK12,0,(+AK12-AQ12))-AL12,"") -> 233.3333333 | AT12: Equipment (10) | AU12: 10 | AW12: May | AX12: Apr | AZ12: 0.75 | BA12: 25520L | BB12: 500 | BC12: 400 | BD12: 600 | BE12: 1700 | BF12: 2000 | BG12: 2700 | BH12: 3300 | BI12: 3500 | BJ12: 2700 | BK12: 1100 | BL12: 500 | BM12: 300 | BO12: 1608.333333 | BP12: 19300
A13: Customer Count - Metered | B13: 136 | D13: Rents Receivable | F13: Accrued Dividends | G13: 14881.89 | I13: Other Income, Ancillary Charges | V13: Plant, Other (40) | W13: water system | X13: 2001-12-28 | Y13: 26311 | AA13: 40 | AB13: 23 | AC13: 657.775 | AD13: 14471.05 | AE13: 15128.825 | AF13: 11182.175 | AI13: 170 Moonlight | AJ13: 2017-06-01 | AK13: 1200 | AM13: 15 | AN13: 7 | AO13: 80 | AP13: 480 | AQ13: 560 | AR13: 640 | AT13: Tank Cleaning/Amortizable Maintenance (10) | AU13: 10 | AW13: Jun | AX13: May | AZ13: 0.75 | BA13: 1010MP | BB13: 300 | BC13: 400 | BD13: 400 | BE13: 500 | BF13: 1300 | BG13: 1400 | BH13: 1400 | BI13: 1300 | BJ13: 800 | BK13: 300 | BL13: 400 | BM13: 300 | BO13: 733.3333333 | BP13: 8800
A14: Customer Count - Total (calculated) | B14: =SUM(B11:B13) -> 136 | D14: Uncollectable Accounts | F14: Unearned Revenues | I14: OPERATING REVENUE | J14: =SUM(J8:J13) -> 68345.92 | K14: =SUM(K8:K13) -> 0 | N14: =SUM(N8:N13) -> 0 | V14: Equipment (Laboratory, Office, and Shop) (15) | W14: water system | X14: 2010-12-22 | Y14: 570 | AA14: 15 | AB14: 14 | AC14: 38 | AD14: 494 | AE14: 532 | AF14: 38 | AI14: 235 Brigadoon | AJ14: 2020-02-01 | AK14: 500 | AM14: 5 | AN14: 4 | AO14: 100 | AP14: 300 | AQ14: 400 | AR14: 100 | AT14: Equipment (Laboratory, Office, and Shop) (15) | AU14: 15 | AW14: Jul | AX14: Jun | AZ14: 0.75 | BA14: 6363LD | BB14: 500 | BC14: 300 | BD14: 600 | BE14: 1100 | BF14: 1900 | BG14: 2800 | BH14: 2800 | BI14: 1400 | BJ14: 2200 | BK14: 700 | BL14: 500 | BM14: 300 | BO14: 1258.333333 | BP14: 15100
A15: Current Monthly Rate Design (Most Common Meter Size) | D15: Plant Materials and Supplies | F15: Operating Reserves | V15: Equipment (Laboratory, Office, and Shop) (15) | W15: water system | X15: 2010-09-09 | Y15: 1160 | AA15: 15 | AB15: 14 | AC15: 77.33333333 | AD15: 1005.333333 | AE15: 1082.666667 | AF15: 77.33333333 | AI15: 146 Balmoral | AJ15: 2021-08-15 | AK15: 500 | AM15: 5 | AN15: 3 | AO15: 100 | AP15: 200 | AQ15: 300 | AR15: 200 | AT15: Facility and Connection Charges (20) | AU15: 20 | AW15: Aug | AX15: Jul | AZ15: 0.75 | BA15: 8181LD | BB15: 100 | BC15: 200 | BD15: 200 | BE15: 1900 | BF15: 2900 | BG15: 3600 | BH15: 3700 | BI15: 3500 | BJ15: 3600 | BK15: 600 | BL15: 200 | BM15: 200 | BO15: 1725 | BP15: 20700
A16: Base | B16: 25 | D16: Prepayments | F16: Other Deferred Credits | I16: EXPENSES | V16: Equipment (Laboratory, Office, and Shop) (15) | W16: well pump | X16: 2011-12-22 | Y16: 11491.02 | AA16: 15 | AB16: 13 | AC16: 766.068 | AD16: 9192.816 | AE16: 9958.884 | AF16: 1532.136 | AI16: 152 Christian | AJ16: 2021-08-15 | AK16: 1200 | AM16: 12 | AN16: 3 | AO16: 100 | AP16: 200 | AQ16: 300 | AR16: 900 | AT16: Meters (20) | AU16: 20 | AW16: Sep | AX16: Aug | AZ16: 0.75 | BA16: 8383LD | BB16: 400 | BC16: 400 | BD16: 500 | BE16: 1400 | BF16: 5200 | BG16: 3500 | BH16: 5700 | BI16: 4700 | BJ16: 2700 | BK16: 2700 | BL16: 700 | BM16: 400 | BO16: 2358.333333 | BP16: 28300
A17: Rate 1 | B17: 1.5 | D17: Accrued Interest | F17: Current Liabilities (other) | I17: Salary and Wages - Employees | J17: 6304.89 | V17: Pumping and Water Treatment (20) | W17: pipe for well pump | X17: 2011-12-21 | Y17: 1255.07 | AA17: 20 | AB17: 13 | AC17: 62.7535 | AD17: 753.042 | AE17: 815.7955 | AF17: 439.2745 | AI17: lot 20 Brittany Blvd. | AJ17: 2022-06-20 | AK17: 500 | AM17: 20 | AN17: 2 | AO17: 25 | AP17: 25 | AQ17: 50 | AR17: 450 | AT17: Pumping and Water Treatment (20) | AU17: 20 | AW17: Oct | AX17: Sep | AZ17: 0.75 | BA17: 9393LD | BB17: 200 | BC17: 100 | BD17: 200 | BE17: 200 | BF17: 1000 | BG17: 1300 | BH17: 1700 | BI17: 2300 | BJ17: 1900 | BK17: 800 | BL17: 100 | BM17: 100 | BO17: 825 | BP17: 9900
A18: Rate 2 | B18: 1.75 | D18: Accrued Dividends | F18: Total Current Liabilities | G18: =SUM(G8:G17) -> 691.18 | I18: Salary and Wages - Officers | J18: 14003.81 | V18: Equipment (Laboratory, Office, and Shop) (15) | W18: meters fittings and install | X18: 2011-07-02 | Y18: 1320.25 | AA18: 15 | AB18: 13 | AC18: 88.01666667 | AD18: 1056.2 | AE18: 1144.216667 | AF18: 176.0333333 | AM18: =IFERROR(INDEX($AU$8:$AU$23,MATCH(AH18,$AT$8:$AT$23,0)),"") ->  | AO18: 0 | AP18: 0 | AQ18: 0 | AR18: 0 | AT18: Tanks and Wells (25) | AU18: 25 | AW18: Nov | AX18: Oct | AZ18: 0.75 | BA18: 113113LV | BB18: 100 | BC18: 100 | BD18: 100 | BE18: 200 | BF18: 800 | BG18: 2000 | BH18: 1600 | BI18: 2200 | BJ18: 1100 | BK18: 500 | BL18: 100 | BM18: 100 | BO18: 741.6666667 | BP18: 8900
A19: Rate 3 | B19: 3 | D19: Accrued Revenues | I19: Employee Pensions and Benefits | J19: 3779 | V19: Equipment (10) | W19: pump supply | X19: 2011-06-30 | Y19: 1603.31 | AA19: 10 | AB19: 10 | AC19: 0 | AD19: 1603.31 | AE19: 1603.31 | AF19: 0 | AO19: 0 | AP19: 0 | AQ19: 0 | AR19: 0 | AT19: Service Connection (30) | AU19: 30 | AW19: Dec | AX19: Nov | AZ19: 0.75 | BA19: 111111LV | BB19: 300 | BC19: 200 | BD19: 400 | BE19: 300 | BF19: 1500 | BG19: 1400 | BH19: 1600 | BI19: 1800 | BJ19: 1100 | BK19: 500 | BL19: 300 | BM19: 300 | BO19: 808.3333333 | BP19: 9700
A20: Usage Per | B20: 100 | D20: Other Deferred Debits (Income Taxes) | F20: Bonds | I20: Purchased Power/Water | J20: 4952.07 | V20: Equipment (IT) (5) | W20: work truck | X20: 2011-02-08 | Y20: 5500 | AA20: 5 | AB20: 5 | AC20: 0 | AD20: 5500 | AE20: 5500 | AF20: 0 | AO20: 0 | AP20: 0 | AQ20: 0 | AR20: 0 | AT20: Acquisition Adjustment (35) | AU20: 35 | AZ20: 0.75 | BA20: 110110LD | BB20: 300 | BC20: 300 | BD20: 200 | BE20: 800 | BF20: 3900 | BG20: 4600 | BH20: 5400 | BI20: 4600 | BJ20: 2200 | BK20: 600 | BL20: 500 | BM20: 400 | BO20: 1983.333333 | BP20: 23800
A21: Allowance | D21: Current Assets (other) | F21: Advances | I21: Chemicals & Testing | J21: 2332.93 | V21: Meters (20) | W21: home depot fergusons and Coop : 2 meter sets, utility box gate valves , landscape fabric for Brittany meter set | X21: 2012-03-28 | Y21: 441.69 | AA21: 20 | AB21: 12 | AC21: 22.0845 | AD21: 242.9295 | AE21: 265.014 | AF21: 176.676 | AO21: 0 | AP21: 0 | AQ21: 0 | AR21: 0 | AT21: Plant, Structures, and Improvements (35) | AU21: 35 | AZ21: 0.75 | BA21: 2121LD | BB21: 500 | BC21: 400 | BD21: 500 | BE21: 1800 | BF21: 2500 | BG21: 3600 | BH21: 4500 | BI21: 3600 | BJ21: 3700 | BK21: 700 | BL21: 700 | BM21: 400 | BO21: 1908.333333 | BP21: 22900
A22: Block 1 | B22: 750 | D22: Total Current Assets | E22: =SUM(E8:E21) -> 11027.94 | F22: Contributions In Aid of Construction (CIAC) | G22: 9700 | I22: Material & Supplies | J22: 1233.2 | V22: Meters (20) | W22: 761 Brigadoon meter set,Brittany Rd. new boxes meter set and piping | X22: 2013-01-07 | Y22: 1007.93 | AA22: 20 | AB22: 11 | AC22: 50.3965 | AD22: 503.965 | AE22: 554.3615 | AF22: 453.5685 | AO22: 0 | AP22: 0 | AQ22: 0 | AR22: 0 | AT22: Plant, Other (40) | AU22: 40 | AZ22: 0.75 | BA22: 6363KG | BB22: 300 | BC22: 400 | BD22: 300 | BE22: 400 | BF22: 400 | BG22: 500 | BH22: 800 | BI22: 600 | BJ22: 500 | BK22: 500 | BL22: 500 | BM22: 400 | BO22: 466.6666667 | BP22: 5600
A23: Block 2 | B23: 1500 | F23: Accumulated Amortization (CIAC) | G23: 5183.28 | H23: Check | I23: Contractual Engineer | V23: Pumping and Water Treatment (20) | W23: new air compressor for pressure tanks | X23: 2014-01-12 | Y23: 248.3 | AA23: 20 | AB23: 10 | AC23: 12.415 | AD23: 111.735 | AE23: 124.15 | AF23: 124.15 | AO23: 0 | AP23: 0 | AQ23: 0 | AR23: 0 | AT23: Mains, Tanks and Reservoirs (50) | AU23: 50 | AZ23: 0.75 | BA23: 2094 | BB23: 100 | BC23: 200 | BD23: 200 | BE23: 200 | BF23: 200 | BG23: 300 | BH23: 300 | BI23: 100 | BJ23: 400 | BK23: 200 | BL23: 200 | BM23: 0 | BO23: 200 | BP23: 2400
A24: Block 3 (Over) | B24: =B23+1 -> 1501 | D24: Utility Plant | E24: 252888.45 | F24: Long-Term Debt (other) | H24: =+G24-S6 -> 0 | I24: Contractual Accounting | V24: Service Connection (30) | W24: new piping on Brigadoon | X24: 2014-07-20 | Y24: 1393.75 | AA24: 30 | AB24: 10 | AC24: 46.45833333 | AD24: 418.125 | AE24: 464.5833333 | AF24: 929.1666667 | AO24: 0 | AP24: 0 | AQ24: 0 | AR24: 0 | AZ24: 0.75 | BA24: 6262KG | BB24: 400 | BC24: 400 | BD24: 400 | BE24: 400 | BF24: 2900 | BG24: 2400 | BH24: 600 | BI24: 400 | BJ24: 500 | BK24: 1000 | BL24: 400 | BM24: 500 | BO24: 858.3333333 | BP24: 10300
A25: Current Other Monthly Rates | D25: Utility Plant Sold | F25: Total Long-Term Liabilities | G25: =(G22-ABS(G23))+G20+G21+G24 -> 4516.72 | I25: Contractual Legal | V25: Service Connection (30) | W25: 172 Christian meter and box | X25: 2014-10-06 | Y25: 713.02 | AA25: 30 | AB25: 10 | AC25: 23.76733333 | AD25: 213.906 | AE25: 237.6733333 | AF25: 475.3466667 | AO25: 0 | AP25: 0 | AQ25: 0 | AR25: 0 | AZ25: 0.75 | BA25: 7272KG | BB25: 200 | BC25: 100 | BD25: 100 | BE25: 100 | BF25: 200 | BG25: 200 | BH25: 100 | BI25: 200 | BJ25: 100 | BK25: 200 | BL25: 100 | BM25: 100 | BO25: 141.6666667 | BP25: 1700
A26: Un-Metered | B26: 25 | D26: Accumulated Depreciation | E26: 116497.77 | I26: Contractual Operations | V26: Service Connection (30) | W26: 161 Christian meter and box | X26: 2014-10-13 | Y26: 705.53 | AA26: 30 | AB26: 10 | AC26: 23.51766667 | AD26: 211.659 | AE26: 235.1766667 | AF26: 470.3533333 | AO26: 0 | AP26: 0 | AQ26: 0 | AR26: 0 | AT26: Utility Plant in Service | AW26: =+AF6 -> 131956.6856 | AZ26: 0.75 | BA26: 123K123 | BB26: 400 | BC26: 500 | BD26: 500 | BE26: 1900 | BF26: 1500 | BG26: 2100 | BH26: 1200 | BI26: 1500 | BJ26: 1400 | BK26: 900 | BL26: 300 | BM26: 500 | BO26: 1058.333333 | BP26: 12700
A27: Ready To Serve | B27: 25 | D27: Construction Work in Process | F27: Total Liabilities | G27: =G25+G18 -> 5207.9 | I27: Jobbing | V27: Service Connection (30) | W27: 151 Christian meter and box | X27: 2014-10-13 | Y27: 774.64 | AA27: 30 | AB27: 10 | AC27: 25.82133333 | AD27: 232.392 | AE27: 258.2133333 | AF27: 516.4266667 | AO27: 0 | AP27: 0 | AQ27: 0 | AR27: 0 | AT27: CIAC | AW27: =-AR6 -> -4516.666667 | AZ27: 0.75 | BA27: 133K133 | BB27: 200 | BC27: 100 | BD27: 200 | BE27: 400 | BF27: 1200 | BG27: 1300 | BH27: 1300 | BI27: 1200 | BJ27: 1100 | BK27: 800 | BL27: 200 | BM27: 100 | BO27: 675 | BP27: 8100
A28: Surcharge | B28: 0 | D28: Accumulated Depreciation | I28: Rental of Building, Property, and Equipment | V28: Service Connection (30) | W28: 132 Christian meter and box | X28: 2014-10-22 | Y28: 680.76 | AA28: 30 | AB28: 10 | AC28: 22.692 | AD28: 204.228 | AE28: 226.92 | AF28: 453.84 | AO28: 0 | AP28: 0 | AQ28: 0 | AR28: 0 | AT28: Net Rate Base | AW28: =SUM(AW26:AW27) -> 127440.019 | AZ28: 0.75 | BA28: 124124KG | BB28: 100 | BC28: 200 | BD28: 100 | BE28: 400 | BF28: 1200 | BG28: 2200 | BH28: 2800 | BI28: 2900 | BJ28: 2700 | BK28: 1800 | BL28: 200 | BM28: 200 | BO28: 1233.333333 | BP28: 14800
A29: Surcharge | B29: 0 | D29: Utility Plant Leased to Others | F29: EQUITY | I29: Transportation | J29: 1942.74 | V29: Service Connection (30) | W29: 142 Christian meter and box | X29: 2014-10-22 | Y29: 751.98 | AA29: 30 | AB29: 10 | AC29: 25.066 | AD29: 225.594 | AE29: 250.66 | AF29: 501.32 | AO29: 0 | AP29: 0 | AQ29: 0 | AR29: 0 | AT29: From ROR Proforma Results | AW29: =PFIS!I59 -> 127440.019 | AX29: check # | AZ29: 0.75 | BA29: 190190KG | BB29: 500 | BC29: 500 | BD29: 400 | BE29: 400 | BF29: 400 | BG29: 400 | BH29: 400 | BI29: 300 | BJ29: 400 | BK29: 500 | BL29: 500 | BM29: 500 | BO29: 433.3333333 | BP29: 5200
A30: Service Connection Charge | B30: 0 | D30: Accumulated Depreciation | F30: Common Stock | I30: Insurance - Vehicle, General Liability | J30: 2175.71 | V30: Service Connection (30) | W30: 133 Christian meter and box | X30: 2014-11-03 | Y30: 705.25 | AA30: 30 | AB30: 10 | AC30: 23.50833333 | AD30: 211.575 | AE30: 235.0833333 | AF30: 470.1666667 | AO30: 0 | AP30: 0 | AQ30: 0 | AR30: 0 | AW30: =AW28-AW29 -> 0 | AX30: check # diff. | AZ30: 0.75 | BA30: 240240BL | BB30: 300 | BC30: 400 | BD30: 300 | BE30: 700 | BF30: 2100 | BG30: 1700 | BH30: 3100 | BI30: 2000 | BJ30: 1100 | BK30: 400 | BL30: 300 | BM30: 300 | BO30: 1058.333333 | BP30: 12700
A31: Facilities Charge | B31: 0 | D31: Utility Plant Acquisition Adjustment | F31: Preferred Stock | I31: Regulatory Commission Expenses - Fees | V31: Service Connection (30) | W31: 102 Christian meter and box | X31: 2014-11-03 | Y31: 656.14 | AA31: 30 | AB31: 10 | AC31: 21.87133333 | AD31: 196.842 | AE31: 218.7133333 | AF31: 437.4266667 | AO31: 0 | AP31: 0 | AQ31: 0 | AR31: 0 | AZ31: 0.75 | BA31: 235235BL | BB31: 100 | BC31: 100 | BD31: 200 | BE31: 100 | BF31: 200 | BG31: 100 | BH31: 200 | BI31: 200 | BJ31: 200 | BK31: 200 | BL31: 100 | BM31: 200 | BO31: 158.3333333 | BP31: 1900
A32: Other | B32: 0 | D32: Accumulated Amortization | F32: Capital Stock | I32: Regulatory Commission Expenses - Amort. Rate Case | V32: Service Connection (30) | W32: 12 Christian meter and box | X32: 2014-11-10 | Y32: 795.89 | AA32: 30 | AB32: 10 | AC32: 26.52966667 | AD32: 238.767 | AE32: 265.2966667 | AF32: 530.5933333 | AO32: 0 | AP32: 0 | AQ32: 0 | AR32: 0 | AZ32: 0.75 | BA32: 251251BL | BB32: 100 | BC32: 100 | BD32: 200 | BE32: 100 | BF32: 600 | BG32: 1800 | BH32: 1800 | BI32: 1800 | BJ32: 1400 | BK32: 100 | BL32: 100 | BM32: 200 | BO32: 691.6666667 | BP32: 8300
D33: Non-Utility Plant | E33: 26356.54 | F33: Proprietary Capital | I33: Travel, Education, CCR, and Public Relations | J33: 180.91 | V33: Service Connection (30) | W33: 81 Christian meter and box | X33: 2014-10-27 | Y33: 710.55 | AA33: 30 | AB33: 10 | AC33: 23.685 | AD33: 213.165 | AE33: 236.85 | AF33: 473.7 | AO33: 0 | AP33: 0 | AQ33: 0 | AR33: 0 | AZ33: 0.75 | BA33: 250250BL | BB33: 500 | BC33: 400 | BD33: 500 | BE33: 600 | BF33: 800 | BG33: 2100 | BH33: 2500 | BI33: 2500 | BJ33: 2500 | BK33: 2200 | BL33: 1100 | BM33: 300 | BO33: 1333.333333 | BP33: 16000
A34: PROPOSED - Monthly Rate Design (Most Common Meter Size) | D34: Accumulated Depreciation | E34: 5183.28 | F34: Other Paid In Capital | G34: 173379.52 | I34: Office, Postage, Phone, and Bank Charges | J34: 1685.68 | V34: Service Connection (30) | W34: 61 Christian meter and box | X34: 2014-10-27 | Y34: 657.73 | AA34: 30 | AB34: 10 | AC34: 21.92433333 | AD34: 197.319 | AE34: 219.2433333 | AF34: 438.4866667 | AO34: 0 | AP34: 0 | AQ34: 0 | AR34: 0 | AZ34: 0.75 | BA34: 280280BL | BB34: 200 | BC34: 200 | BD34: 300 | BE34: 700 | BF34: 1800 | BG34: 1500 | BH34: 1700 | BI34: 1600 | BJ34: 1500 | BK34: 900 | BL34: 200 | BM34: 200 | BO34: 900 | BP34: 10800
A35: Base | B35: 27.5 | D35: Utility Plant (other) | F35: Retained Earnings | G35: -9995.54 | I35: Bad Debt | V35: Service Connection (30) | W35: 23 Karie Ct. meter and box | X35: 2015-01-01 | Y35: 656.93 | AA35: 30 | AB35: 10 | AC35: 21.89766667 | AD35: 197.079 | AE35: 218.9766667 | AF35: 437.9533333 | AO35: 0 | AP35: 0 | AQ35: 0 | AR35: 0 | AZ35: 0.75 | BA35: 290290BL | BB35: 200 | BC35: 100 | BD35: 200 | BE35: 100 | BF35: 100 | BG35: 200 | BH35: 200 | BI35: 200 | BJ35: 100 | BK35: 100 | BL35: 200 | BM35: 200 | BO35: 158.3333333 | BP35: 1900
A36: Rate 1 | B36: 1.75 | D36: Net Utility Plant | E36: =(E24-ABS(E26))+(E27-ABS(E28))+(E29-ABS(E30))+(E31-ABS(E32))+(E33-ABS(E34))+E35-E25 -> 157563.94 | F36: Total Equity | G36: =SUM(G30:G35) -> 163383.98 | I36: Repairs | J36: 242.65 | V36: Service Connection (30) | W36: 260 Brigadoon Ct. meter and box | X36: 2015-01-01 | Y36: 767.6 | AA36: 30 | AB36: 10 | AC36: 25.58666667 | AD36: 230.28 | AE36: 255.8666667 | AF36: 511.7333333 | AO36: 0 | AP36: 0 | AQ36: 0 | AR36: 0 | AZ36: 0.75 | BA36: 271271BL | BB36: 200 | BC36: 300 | BD36: 200 | BE36: 500 | BF36: 2900 | BG36: 1800 | BH36: 1900 | BI36: 1800 | BJ36: 1100 | BK36: 600 | BL36: 300 | BM36: 300 | BO36: 991.6666667 | BP36: 11900
A37: Rate 2 | B37: 2.25 | I37: Net Depreciation/Amortization | O37: =+J37/E24 -> 0 | V37: Service Connection (30) | W37: 41 Karie Ct. meter and box | X37: 2015-01-01 | Y37: 646.11 | AA37: 30 | AB37: 10 | AC37: 21.537 | AD37: 193.833 | AE37: 215.37 | AF37: 430.74 | AO37: 0 | AP37: 0 | AQ37: 0 | AR37: 0 | AZ37: 0.75 | BA37: 291291BL | BB37: 500 | BC37: 500 | BD37: 600 | BE37: 600 | BF37: 1200 | BG37: 1300 | BH37: 1300 | BI37: 1200 | BJ37: 800 | BK37: 700 | BL37: 700 | BM37: 700 | BO37: 841.6666667 | BP37: 10100
A38: Rate 3 | B38: 3.25 | D38: TOTAL ASSETS | E38: =ROUND(E36+E22, 0) -> 168592 | F38: TOTAL LIABILITIES & EQUITY | G38: =ROUND(G36+G27, 0) -> 168592 | I38: Utility Excise Tax | J38: 3462.72 | O38: =+J38/J14 -> 0.05066461904 | V38: Service Connection (30) | W38: 33 Karie Ct. meter and box | X38: 2015-01-01 | Y38: 764.5 | AA38: 30 | AB38: 10 | AC38: 25.48333333 | AD38: 229.35 | AE38: 254.8333333 | AF38: 509.6666667 | AO38: 0 | AP38: 0 | AQ38: 0 | AR38: 0 | AZ38: 0.75 | BA38: 310310BL | BB38: 0 | BC38: 0 | BD38: 0 | BE38: 200 | BF38: 400 | BG38: 1100 | BH38: 1800 | BI38: 1800 | BJ38: 2200 | BK38: 2700 | BL38: 1700 | BM38: 1300 | BO38: 1100 | BP38: 13200
A39: Usage Per | B39: 100 | I39: Property Tax | J39: 575.16 | V39: Meters (20) | W39: new water meters for 111, 131, 301, 341 Moonlight, 201, 800 Brigadoon, 62 Balmoral | X39: 2015-01-19 | Y39: 638.91 | AA39: 20 | AB39: 9 | AC39: 31.9455 | AD39: 255.564 | AE39: 287.5095 | AF39: 351.4005 | AO39: 0 | AP39: 0 | AQ39: 0 | AR39: 0 | AZ39: 0.75 | BA39: 301301BL | BB39: 300 | BC39: 200 | BD39: 300 | BE39: 500 | BF39: 2800 | BG39: 3900 | BH39: 4100 | BI39: 3800 | BJ39: 3300 | BK39: 700 | BL39: 100 | BM39: 300 | BO39: 1691.666667 | BP39: 20300
A40: Allowance | D40: =IF(E38=G38, "Balanced", "Does Not Balance - Assets should equal Liabilities plus Equity") -> Balanced | I40: Payroll Tax (ESD, L&I, Workman's Comp) | J40: 3458.93 | V40: Meters (20) | W40: new water meters for 62 Knight Glen, 191 Moonlight,771 Brigadoon, 686 Brigadoon | X40: 2015-02-02 | Y40: 363.57 | AA40: 20 | AB40: 9 | AC40: 18.1785 | AD40: 145.428 | AE40: 163.6065 | AF40: 199.9635 | AO40: 0 | AP40: 0 | AQ40: 0 | AR40: 0 | AZ40: 0.75 | BA40: 321321BL | BB40: 300 | BC40: 300 | BD40: 500 | BE40: 700 | BF40: 1100 | BG40: 900 | BH40: 1000 | BI40: 1000 | BJ40: 900 | BK40: 700 | BL40: 400 | BM40: 200 | BO40: 666.6666667 | BP40: 8000
A41: Block 1 | B41: 500 | I41: Other Licenses (DOH, DOE, County or City) | J41: 654.95 | V41: Service Connection (30) | W41: 353 463 Brigadoon : setters and meters | X41: 2015-02-02 | Y41: 1469.59 | AA41: 30 | AB41: 9 | AC41: 48.98633333 | AD41: 391.8906667 | AE41: 440.877 | AF41: 1028.713 | AO41: 0 | AP41: 0 | AQ41: 0 | AR41: 0 | AZ41: 0.75 | BA41: 221221BL | BB41: 0 | BC41: 0 | BD41: 400 | BE41: 200 | BF41: 400 | BG41: 0 | BH41: 0 | BI41: 0 | BJ41: 500 | BK41: 400 | BL41: 400 | BM41: 400 | BO41: 225 | BP41: 2700
A42: Block 2 | B42: 1000 | F42: Balance Sheet out of Balance | I42: Miscellaneous | J42: 2918.69 | O42: Monthly | V42: Service Connection (30) | W42: 180,192 and 331 Brigadoon: setters and meters | X42: 2015-02-16 | Y42: 1778.14 | AA42: 30 | AB42: 9 | AC42: 59.27133333 | AD42: 474.1706667 | AE42: 533.442 | AF42: 1244.698 | AO42: 0 | AP42: 0 | AQ42: 0 | AR42: 0 | AZ42: 0.75 | BA42: 220220BL | BB42: 400 | BC42: 300 | BD42: 400 | BE42: 800 | BF42: 1500 | BG42: 1900 | BH42: 2200 | BI42: 2200 | BJ42: 1800 | BK42: 800 | BL42: 500 | BM42: 300 | BO42: 1091.666667 | BP42: 13100
A43: Block 3 (Over) | B43: =B42+1 -> 1001 | F43: =+E38-G38 -> 0 | I43: OPERATING EXPENSES | J43: =SUM(J17:J42) -> 49904.04 | K43: =SUM(K17:K42) -> 0 | N43: =SUM(N17:N42) -> 0 | O43: =+J43/12/B14 -> 30.57845588 | V43: Service Connection (30) | W43: 481, 483 and 390 Brigadoon : setters and meters | X43: 2015-02-23 | Y43: 1849.18 | AA43: 30 | AB43: 9 | AC43: 61.63933333 | AD43: 493.1146667 | AE43: 554.754 | AF43: 1294.426 | AO43: 0 | AP43: 0 | AQ43: 0 | AR43: 0 | AZ43: 0.75 | BA43: 200200BL | BB43: 200 | BC43: 200 | BD43: 300 | BE43: 200 | BF43: 400 | BG43: 400 | BH43: 400 | BI43: 500 | BJ43: 300 | BK43: 300 | BL43: 300 | BM43: 200 | BO43: 308.3333333 | BP43: 3700
A44: PROPOSED - Other Monthly Rates | V44: Service Connection (30) | W44: 412 Brigadoon meter and setter install | X44: 2015-03-02 | Y44: 702.97 | AA44: 30 | AB44: 9 | AC44: 23.43233333 | AD44: 187.4586667 | AE44: 210.891 | AF44: 492.079 | AO44: 0 | AP44: 0 | AQ44: 0 | AR44: 0 | AZ44: 0.75 | BA44: 31813181BL | BB44: 200 | BC44: 200 | BD44: 200 | BE44: 300 | BF44: 1300 | BG44: 1100 | BH44: 1300 | BI44: 1100 | BJ44: 1000 | BK44: 200 | BL44: 300 | BM44: 200 | BO44: 616.6666667 | BP44: 7400
A45: Un-Metered | B45: 27.5 | I45: Operating Income before Interest &Taxes | J45: =J14-J43 -> 18441.88 | V45: Tanks and Wells (25) | W45: 3 meters at 180 150 and 271 Brittany, 181 Brittany and 90 Moonlight meter setter and meter install | X45: 2015-03-09 | Y45: 1716.36 | AA45: 25 | AB45: 9 | AC45: 68.6544 | AD45: 549.2352 | AE45: 617.8896 | AF45: 1098.4704 | AO45: 0 | AP45: 0 | AQ45: 0 | AR45: 0 | AZ45: 0.75 | BA45: 181181BL | BB45: 200 | BC45: 200 | BD45: 300 | BE45: 200 | BF45: 1200 | BG45: 1500 | BH45: 1500 | BI45: 1400 | BJ45: 1500 | BK45: 1200 | BL45: 200 | BM45: 200 | BO45: 800 | BP45: 9600
A46: Ready To Serve | B46: 27.5 | D46: Balance Sheet - Section 2 | F46: Asset Listing - Section 5 - A | I46: Interest Expense | V46: Service Connection (30) | W46: Penninsula Water main piping replacement Christian Ln. | X46: 2015-01-28 | Y46: 597.1 | AA46: 30 | AB46: 9 | AC46: 19.90333333 | AD46: 159.2266667 | AE46: 179.13 | AF46: 417.97 | AO46: 0 | AP46: 0 | AQ46: 0 | AR46: 0 | AZ46: 0.75 | BA46: 180180BL | BB46: 400 | BC46: 400 | BD46: 400 | BE46: 500 | BF46: 1200 | BG46: 1500 | BH46: 1500 | BI46: 1500 | BJ46: 4500 | BK46: 2200 | BL46: 400 | BM46: 400 | BO46: 1241.666667 | BP46: 14900
A47: Surcharge | D47: =D24 -> Utility Plant | E47: =E24 -> 252888.45 | G47: =Y6 -> 374301.45 | I47: Federal Income Tax (FIT) | V47: Service Connection (30) | W47: 533, 553 Brigadoon and 62 Balmoral: setters and meters | X47: 2015-03-16 | Y47: 1847.29 | AA47: 30 | AB47: 9 | AC47: 61.57633333 | AD47: 492.6106667 | AE47: 554.187 | AF47: 1293.103 | AO47: 0 | AP47: 0 | AQ47: 0 | AR47: 0 | AZ47: 0.75 | BA47: 150150 BL | BB47: 600 | BC47: 600 | BD47: 600 | BE47: 1800 | BF47: 2400 | BG47: 2700 | BH47: 2500 | BI47: 2500 | BJ47: 1100 | BK47: 700 | BL47: 400 | BM47: 500 | BO47: 1366.666667 | BP47: 16400
A48: Surcharge | D48: =D26 -> Accumulated Depreciation | E48: =-E26 -> -116497.77 | G48: =-AE6 -> -242344.7644 | I48: TOTAL OPERATING EXPENSE | J48: =+J43+J46+J47 -> 49904.04 | V48: Equipment (IT) (5) | W48: generator coolant heater | X48: 2015-03-26 | Y48: 116.84 | AA48: 5 | AB48: 5 | AC48: 0 | AD48: 116.84 | AE48: 116.84 | AF48: 0 | AO48: 0 | AP48: 0 | AQ48: 0 | AR48: 0 | AZ48: 0.75 | BA48: 21392139BL | BB48: 300 | BC48: 400 | BD48: 500 | BE48: 400 | BF48: 1000 | BG48: 1200 | BH48: 1500 | BI48: 1300 | BJ48: 900 | BK48: 500 | BL48: 500 | BM48: 400 | BO48: 741.6666667 | BP48: 8900
A49: Service Connection Charge | D49: Net Utility Plant EOTY | E49: =SUM(E47:E48) -> 136390.68 | G49: =SUM(G47:G48) -> 131956.6856 | I49: NET INCOME (LOSS) | J49: =+J14-J48 -> 18441.88 | V49: Service Connection (30) | W49: 130 Brigadoon and open space meters, setters and box's | X49: 2015-03-30 | Y49: 1341.17 | AA49: 30 | AB49: 9 | AC49: 44.70566667 | AD49: 357.6453333 | AE49: 402.351 | AF49: 938.819 | AO49: 0 | AP49: 0 | AQ49: 0 | AR49: 0 | AZ49: 0.75 | BA49: 10061BL | BB49: 200 | BC49: 100 | BD49: 200 | BE49: 100 | BF49: 200 | BG49: 400 | BH49: 200 | BI49: 200 | BJ49: 200 | BK49: 200 | BL49: 100 | BM49: 100 | BO49: 183.3333333 | BP49: 2200
A50: Facilities Charge | F50: Difference = Balance Sheet to Asset Listing | V50: Equipment (IT) (5) | W50: mechanical seal replacement booster pump 1 | X50: 2015-04-06 | Y50: 234.68 | AA50: 5 | AB50: 5 | AC50: 0 | AD50: 234.68 | AE50: 234.68 | AF50: 0 | AO50: 0 | AP50: 0 | AQ50: 0 | AR50: 0 | AZ50: 0.75 | BA50: 131131BL | BB50: 0 | BC50: 0 | BD50: 0 | BE50: 200 | BF50: 200 | BG50: 300 | BH50: 300 | BI50: 300 | BJ50: 200 | BK50: 200 | BL50: 100 | BM50: 0 | BO50: 150 | BP50: 1800
A51: Other | F51: =G49-E49 -> -4433.994367 | V51: Service Connection (30) | W51: 102 and 90 Lighthouse View Ln. meters, setters and box's | X51: 2015-04-13 | Y51: 1237.25 | AA51: 30 | AB51: 9 | AC51: 41.24166667 | AD51: 329.9333333 | AE51: 371.175 | AF51: 866.075 | AO51: 0 | AP51: 0 | AQ51: 0 | AR51: 0 | AZ51: 0.75 | BA51: 101101BL | BB51: 200 | BC51: 100 | BD51: 200 | BE51: 200 | BF51: 200 | BG51: 100 | BH51: 200 | BI51: 100 | BJ51: 200 | BK51: 100 | BL51: 100 | BM51: 200 | BO51: 158.3333333 | BP51: 1900
I52: RATE BASE | V52: Service Connection (30) | W52: 653 and 663 Brigadoon meters and setters | X52: 2015-04-20 | Y52: 1220.31 | AA52: 30 | AB52: 9 | AC52: 40.677 | AD52: 325.416 | AE52: 366.093 | AF52: 854.217 | AO52: 0 | AP52: 0 | AQ52: 0 | AR52: 0 | AZ52: 0.75 | BA52: 110110BL | BB52: 200 | BC52: 200 | BD52: 200 | BE52: 400 | BF52: 200 | BG52: 400 | BH52: 600 | BI52: 700 | BJ52: 400 | BK52: 400 | BL52: 300 | BM52: 300 | BO52: 358.3333333 | BP52: 4300
A53: Contact Name | B53: Colin Jackson | D53: Balance Sheet - Section 2 | F53: CIAC Listing Section 5 - B | I53: Utility Plant in Service (UPIS) | J53: =E24-ABS(E25) -> 252888.45 | V53: Service Connection (30) | W53: 45 Ebely (church) , 280 Eberly, 151 Brittany meters and setters | X53: 2015-04-27 | Y53: 2154.2 | AA53: 30 | AB53: 9 | AC53: 71.80666667 | AD53: 574.4533333 | AE53: 646.26 | AF53: 1507.94 | AO53: 0 | AP53: 0 | AQ53: 0 | AR53: 0 | AZ53: 0.75 | BA53: 9090BL | BB53: 200 | BC53: 100 | BD53: 200 | BE53: 200 | BF53: 300 | BG53: 300 | BH53: 300 | BI53: 300 | BJ53: 200 | BK53: 200 | BL53: 200 | BM53: 100 | BO53: 216.6666667 | BP53: 2600
A54: Contact Email | B54: cwsdh.co@gmail.com | D54: Contributions In Aid of Construction (CIAC) | E54: =-G22 -> -9700 | G54: =-AK6 -> -9700 | I54: Accumulated Depreciation | J54: =-ABS(E26) -> -116497.77 | V54: Service Connection (30) | W54: 200, 210 and 240 Brittany meters and setters | X54: 2015-05-18 | Y54: 1726.75 | AA54: 30 | AB54: 9 | AC54: 57.55833333 | AD54: 460.4666667 | AE54: 518.025 | AF54: 1208.725 | AO54: 0 | AP54: 0 | AQ54: 0 | AR54: 0 | AZ54: 0.75 | BA54: 3986BL | BB54: 600 | BC54: 500 | BD54: 500 | BE54: 700 | BF54: 700 | BG54: 1200 | BH54: 1200 | BI54: 1200 | BJ54: 1700 | BK54: 1000 | BL54: 600 | BM54: 500 | BO54: 866.6666667 | BP54: 10400
A55: Contact Phone | B55: 360 339 2600 | D55: Accumulated Amortization (CIAC) | E55: =G23 -> 5183.28 | G55: =+AQ6 -> 5183.333333 | I55: Net Acquisition Adjustment | J55: =(E31-ABS(E32)) -> 0 | V55: Service Connection (30) | W55: 40 and 50 Brittany meters and setters | X55: 2015-05-11 | Y55: 1302.68 | AA55: 30 | AB55: 9 | AC55: 43.42266667 | AD55: 347.3813333 | AE55: 390.804 | AF55: 911.876 | AO55: 0 | AP55: 0 | AQ55: 0 | AR55: 0 | AZ55: 0.75 | BA55: 7171BL | BB55: 300 | BC55: 300 | BD55: 400 | BE55: 300 | BF55: 300 | BG55: 300 | BH55: 500 | BI55: 100 | BJ55: 300 | BK55: 400 | BL55: 300 | BM55: 400 | BO55: 325 | BP55: 3900
D56: Net CIAC EOTY | E56: =SUM(E54:E55) -> -4516.72 | G56: =SUM(G54:G55) -> -4516.666667 | I56: Contributions In Aid of Construction (CIAC) Plant in Service | J56: =-ABS(G22) -> -9700 | V56: Service Connection (30) | W56: 33 Brittany meters and setters | X56: 2015-06-08 | Y56: 703.62 | AA56: 30 | AB56: 9 | AC56: 23.454 | AD56: 187.632 | AE56: 211.086 | AF56: 492.534 | AO56: 0 | AP56: 0 | AQ56: 0 | AR56: 0 | AZ56: 0.75 | BA56: 5151BL | BB56: 500 | BC56: 500 | BD56: 700 | BE56: 1000 | BF56: 2500 | BG56: 1600 | BH56: 2500 | BI56: 2200 | BJ56: 1400 | BK56: 800 | BL56: 700 | BM56: 600 | BO56: 1250 | BP56: 15000
F57: Difference = Balance Sheet to CIAC Listing | I57: Accumulated Amortization | J57: =ABS(G23) -> 5183.28 | V57: Service Connection (30) | W57: 90,110,71 and 91 Brittany meters and setters | X57: 2015-06-01 | Y57: 2176.53 | AA57: 30 | AB57: 9 | AC57: 72.551 | AD57: 580.408 | AE57: 652.959 | AF57: 1523.571 | AO57: 0 | AP57: 0 | AQ57: 0 | AR57: 0 | AZ57: 0.75 | BA57: 3333BL | BB57: 500 | BC57: 500 | BD57: 600 | BE57: 800 | BF57: 1600 | BG57: 1700 | BH57: 2500 | BI57: 2000 | BJ57: 1400 | BK57: 600 | BL57: 600 | BM57: 600 | BO57: 1116.666667 | BP57: 13400
F58: =G56-E56 -> 0.05333333333 | I58: NET RATE BASE | J58: =J53+J54+J55-ABS(J56)+ABS(J57) -> 131873.96 | K58: =K53+K54+K55-ABS(K56)+ABS(K57) -> 0 | N58: 0 | V58: Service Connection (30) | W58: 101,131 and 120 Brittany meters and setters | X58: 2015-06-15 | Y58: 1824.33 | AA58: 30 | AB58: 9 | AC58: 60.811 | AD58: 486.488 | AE58: 547.299 | AF58: 1277.031 | AO58: 0 | AP58: 0 | AQ58: 0 | AR58: 0 | AZ58: 0.75 | BA58: 403403BL | BB58: 200 | BC58: 300 | BD58: 400 | BE58: 300 | BF58: 600 | BG58: 700 | BH58: 1500 | BI58: 900 | BJ58: 400 | BK58: 400 | BL58: 300 | BM58: 300 | BO58: 525 | BP58: 6300
V59: Service Connection (30) | W59: 623 and 613 Brigadoon meters and setters | X59: 2015-06-22 | Y59: 1215.02 | AA59: 30 | AB59: 9 | AC59: 40.50066667 | AD59: 324.0053333 | AE59: 364.506 | AF59: 850.514 | AO59: 0 | AP59: 0 | AQ59: 0 | AR59: 0 | AZ59: 0.75 | BA59: 4040BL | BB59: 300 | BC59: 300 | BD59: 100 | BE59: 100 | BF59: 0 | BG59: 100 | BH59: 100 | BI59: 0 | BK59: 100 | BL59: 0 | BM59: 100 | BO59: 109.0909091 | BP59: 1200
D60: Income Statement - Section 3 | F60: Difference = Asset Listing to CIAC Listing | V60: Service Connection (30) | W60: 603 & 573 Brigadoon meters and setters | X60: 2015-06-29 | Y60: 1261.66 | AA60: 30 | AB60: 9 | AC60: 42.05533333 | AD60: 336.4426667 | AE60: 378.498 | AF60: 883.162 | AO60: 0 | AP60: 0 | AQ60: 0 | AR60: 0 | AZ60: 0.75 | BA60: 6161BB | BB60: 200 | BC60: 200 | BD60: 200 | BE60: 200 | BF60: 800 | BG60: 500 | BH60: 700 | BI60: 500 | BJ60: 400 | BK60: 200 | BL60: 300 | BM60: 300 | BO60: 375 | BP60: 4500
D61: =I37 -> Net Depreciation/Amortization | E61: =J37 -> 0 | F61: Annual Depreciation | G61: =AC6 -> 11804.47063 | V61: Service Connection (30) | W61: 503 Brigadoon meter and setter | X61: 2015-07-14 | Y61: 787.34 | AA61: 30 | AB61: 9 | AC61: 26.24466667 | AD61: 209.9573333 | AE61: 236.202 | AF61: 551.138 | AO61: 0 | AP61: 0 | AQ61: 0 | AR61: 0 | AZ61: 0.75 | BA61: 390390BB | BB61: 0 | BC61: 0 | BD61: 0 | BE61: 0 | BF61: 100 | BG61: 600 | BH61: 1300 | BI61: 1200 | BJ61: 400 | BK61: 100 | BL61: 0 | BM61: 1900 | BO61: 466.6666667 | BP61: 5600
F62: Annual Amortization | G62: =AO6 -> 791.6666667 | V62: Service Connection (30) | W62: 452 and 432 Brigadoon meters and setters | X62: 2015-07-21 | Y62: 1296.59 | AA62: 30 | AB62: 9 | AC62: 43.21966667 | AD62: 345.7573333 | AE62: 388.977 | AF62: 907.613 | AO62: 0 | AP62: 0 | AQ62: 0 | AR62: 0 | AZ62: 0.75 | BA62: 432432BB | BB62: 600 | BC62: 500 | BD62: 600 | BE62: 700 | BF62: 1900 | BG62: 2800 | BH62: 2800 | BI62: 2300 | BJ62: 1300 | BK62: 800 | BL62: 600 | BM62: 500 | BO62: 1283.333333 | BP62: 15400
E63: =SUM(E61:E62) -> 0 | F63: Net | G63: =SUM(G61:G62) -> 12596.1373 | V63: Service Connection (30) | W63: 502 and 492 Brigadoon meters and setters | X63: 2015-07-20 | Y63: 1269.31 | AA63: 30 | AB63: 9 | AC63: 42.31033333 | AD63: 338.4826667 | AE63: 380.793 | AF63: 888.517 | AO63: 0 | AP63: 0 | AQ63: 0 | AR63: 0 | AZ63: 0.75 | BA63: 452452BB | BB63: 700 | BC63: 600 | BD63: 800 | BE63: 1000 | BF63: 900 | BG63: 600 | BH63: 800 | BI63: 500 | BJ63: 500 | BK63: 400 | BL63: 400 | BM63: 400 | BO63: 633.3333333 | BP63: 7600
F64: Difference = Balance Sheet to CIAC Listing | V64: Service Connection (30) | W64: 111 and 113 Lighthouse View | X64: 2015-08-10 | Y64: 1280.11 | AA64: 30 | AB64: 9 | AC64: 42.67033333 | AD64: 341.3626667 | AE64: 384.033 | AF64: 896.077 | AO64: 0 | AP64: 0 | AQ64: 0 | AR64: 0 | AZ64: 0.75 | BA64: 463463BB | BB64: 600 | BC64: 600 | BD64: 600 | BE64: 800 | BF64: 1000 | BG64: 300 | BH64: 1100 | BI64: 1100 | BJ64: 600 | BK64: 2300 | BL64: 500 | BM64: 700 | BO64: 850 | BP64: 10200
F65: =E63+G63 -> 12596.1373 | V65: Service Connection (30) | W65: 93 Lighthouse View | X65: 2015-08-11 | Y65: 757.71 | AA65: 30 | AB65: 9 | AC65: 25.257 | AD65: 202.056 | AE65: 227.313 | AF65: 530.397 | AO65: 0 | AP65: 0 | AQ65: 0 | AR65: 0 | AZ65: 0.75 | BA65: 472472BB | BB65: 0 | BC65: 0 | BD65: 0 | BE65: 0 | BF65: 0 | BG65: 0 | BH65: 0 | BI65: 0 | BK65: 0 | BL65: 0 | BM65: 0 | BO65: 0 | BP65: 0
V66: Service Connection (30) | W66: 63,83,110,Lighthouse View | X66: 2015-08-17 | Y66: 1645.61 | AA66: 30 | AB66: 9 | AC66: 54.85366667 | AD66: 438.8293333 | AE66: 493.683 | AF66: 1151.927 | AO66: 0 | AP66: 0 | AQ66: 0 | AR66: 0 | AZ66: 0.75 | BA66: 17051705BB | BB66: 300 | BC66: 200 | BD66: 200 | BE66: 300 | BF66: 1800 | BG66: 1600 | BH66: 2400 | BI66: 3000 | BJ66: 2100 | BK66: 600 | BL66: 400 | BM66: 300 | BO66: 1100 | BP66: 13200
V67: Service Connection (30) | W67: 683 Brigadoon meter and extension | X67: 2015-08-18 | Y67: 143.91 | AA67: 30 | AB67: 9 | AC67: 4.797 | AD67: 38.376 | AE67: 43.173 | AF67: 100.737 | AO67: 0 | AP67: 0 | AQ67: 0 | AR67: 0 | AZ67: 0.75 | BA67: 483483BB | BB67: 200 | BC67: 200 | BD67: 200 | BE67: 300 | BF67: 1000 | BG67: 1100 | BH67: 400 | BI67: 400 | BJ67: 400 | BK67: 200 | BL67: 200 | BM67: 100 | BO67: 391.6666667 | BP67: 4700
E68: =E49 -> 136390.68 | G68: =G49 -> 131956.6856 | V68: Service Connection (30) | W68: 81 Lighthouse View meter and extension | X68: 2015-08-18 | Y68: 738.78 | AA68: 30 | AB68: 9 | AC68: 24.626 | AD68: 197.008 | AE68: 221.634 | AF68: 517.146 | AO68: 0 | AP68: 0 | AQ68: 0 | AR68: 0 | AZ68: 0.75 | BA68: 492492BB | BB68: 500 | BC68: 500 | BD68: 700 | BE68: 900 | BF68: 1900 | BG68: 2100 | BH68: 2100 | BI68: 2100 | BJ68: 1700 | BK68: 800 | BL68: 400 | BM68: 200 | BO68: 1158.333333 | BP68: 13900
E69: =E56 -> -4516.72 | G69: =G56 -> -4516.666667 | V69: Service Connection (30) | W69: 472 Brigadoon meter and extension | X69: 2015-08-24 | Y69: 519.79 | AA69: 30 | AB69: 9 | AC69: 17.32633333 | AD69: 138.6106667 | AE69: 155.937 | AF69: 363.853 | AO69: 0 | AP69: 0 | AQ69: 0 | AR69: 0 | AZ69: 0.75 | BA69: 502502BB | BB69: 300 | BC69: 300 | BD69: 200 | BE69: 300 | BF69: 500 | BG69: 500 | BH69: 600 | BI69: 500 | BJ69: 500 | BK69: 300 | BL69: 600 | BM69: 400 | BO69: 416.6666667 | BP69: 5000
E70: =SUM(E68:E69) -> 131873.96 | G70: =SUM(G68:G69) -> 127440.019 | V70: Service Connection (30) | W70: 211 Brigadoon meter | X70: 2015-09-01 | Y70: 117.4 | AA70: 30 | AB70: 9 | AC70: 3.913333333 | AD70: 31.30666667 | AE70: 35.22 | AF70: 82.18 | AO70: 0 | AP70: 0 | AQ70: 0 | AR70: 0 | AZ70: 0.75 | BA70: 503503BB | BB70: 500 | BC70: 500 | BD70: 400 | BE70: 700 | BF70: 3500 | BG70: 3400 | BH70: 3900 | BI70: 3600 | BJ70: 2600 | BK70: 3500 | BL70: 500 | BM70: 500 | BO70: 1966.666667 | BP70: 23600
D71: check | E71: =PFIS!C66 -> 131873.96 | F71: check | G71: =PFIS!F66 -> 127440.019 | V71: Equipment (10) | W71: chlorine meter | X71: 2015-11-01 | Y71: 200.63 | AA71: 10 | AB71: 9 | AC71: 20.063 | AD71: 160.504 | AE71: 180.567 | AF71: 20.063 | AO71: 0 | AP71: 0 | AQ71: 0 | AR71: 0 | AZ71: 0.75 | BA71: 533533BB | BB71: 0 | BC71: 100 | BD71: 0 | BE71: 0 | BF71: 0 | BG71: 200 | BH71: 1000 | BI71: 700 | BJ71: 100 | BK71: 0 | BL71: 100 | BM71: 0 | BO71: 183.3333333 | BP71: 2200
V72: Equipment (10) | W72: scanner | X72: 2015-11-01 | Y72: 229 | AA72: 10 | AB72: =IF(Y72>1,IF((TestEOY-X72)/365>AA72,AA72,ROUNDUP(((TestEOY-X72)/365),0)),"") -> 9 | AC72: 22.9 | AD72: 183.2 | AE72: 206.1 | AF72: 22.9 | AN72: =IF(AK72<>"",IF((TestEOY-AJ72)/365>AM72,AM72,ROUNDUP(((TestEOY-AJ72)/365),0)),"") ->  | AO72: 0 | AP72: 0 | AQ72: 0 | AR72: 0 | AZ72: 0.75 | BA72: 211211BB | BB72: 0 | BC72: 0 | BD72: 100 | BE72: 0 | BF72: 0 | BG72: 200 | BH72: 800 | BI72: 500 | BJ72: 200 | BK72: 0 | BL72: 0 | BM72: 200 | BO72: =AVERAGE(BB72:BM72) -> 166.6666667 | BP72: =SUM(BB72:BM72) -> 2000
V73: Pumping and Water Treatment (20) | W73: insulate supply to well storage tank and build up walls | X73: 2015-10-06 | Y73: 382.49 | AA73: =IFERROR(INDEX($AU$8:$AU$23,MATCH(V73,$AT$8:$AT$23,0)),"") -> 20 | AB73: 9 | AC73: =IFERROR(IF(AB73>=AA73,0,IF(AA73>AB73,SLN(Y73,Z73,AA73),0)),"") -> 19.1245 | AD73: =AE73-AC73 -> 152.996 | AE73: =IFERROR(IF(OR(AA73=0,AA73=""), 0, IF(AB73>=AA73, +Y73, (+AC73*AB73))), "") -> 172.1205 | AF73: =IFERROR(IF(AE73>Y73,0,(+Y73-AE73))-Z73,"") -> 210.3695 | AO73: 0 | AP73: =AQ73-AO73 -> 0 | AQ73: 0 | AR73: 0 | AZ73: 0.75 | BA73: 136136BB | BB73: 0 | BC73: 0 | BD73: 100 | BE73: 0 | BF73: 400 | BG73: 1900 | BH73: 2100 | BI73: 1700 | BJ73: 1400 | BK73: 1000 | BL73: 1700 | BM73: 2800 | BO73: 1091.666667 | BP73: 13100
V74: Equipment (Laboratory, Office, and Shop) (15) | W74: electrical switching for well pumps to feed distribution | X74: 2015-09-28 | Y74: 594.4 | AA74: =IFERROR(INDEX($AU$8:$AU$23,MATCH(V74,$AT$8:$AT$23,0)),"") -> 15 | AB74: 9 | AC74: 39.62666667 | AD74: 317.0133333 | AE74: 356.64 | AF74: 237.76 | AO74: 0 | AP74: 0 | AQ74: 0 | AR74: 0 | AZ74: 0.75 | BA74: 603603BB | BB74: 500 | BC74: 600 | BD74: 400 | BE74: 700 | BF74: 1400 | BG74: 2200 | BH74: 3400 | BI74: 2400 | BJ74: 1500 | BK74: 400 | BL74: 500 | BM74: 500 | BO74: 1208.333333 | BP74: 14500
V75: Pumping and Water Treatment (20) | W75: new 2"check valv, 2" gate valve, 2" ball valve, mech seal replacement and pressure tank sight glass | X75: 2015-09-14 | Y75: 1089.35 | AA75: =IFERROR(INDEX($AU$8:$AU$23,MATCH(V75,$AT$8:$AT$23,0)),"") -> 20 | AB75: 9 | AC75: 54.4675 | AD75: 435.74 | AE75: 490.2075 | AF75: 599.1425 | AO75: 0 | AP75: 0 | AQ75: 0 | AR75: 0 | AZ75: 0.75 | BA75: 613613BB | BB75: 200 | BC75: 100 | BD75: 200 | BE75: 100 | BF75: 1000 | BG75: 1000 | BH75: 1400 | BI75: 1000 | BJ75: 600 | BK75: 200 | BL75: 100 | BM75: 200 | BO75: 508.3333333 | BP75: 6100
V76: Equipment (Laboratory, Office, and Shop) (15) | W76: storage tank depth gauge | X76: 2016-01-01 | Y76: 287.11 | AA76: 15 | AB76: 9 | AC76: 19.14066667 | AD76: 153.1253333 | AE76: 172.266 | AF76: 114.844 | AM76: =IFERROR(INDEX($AU$8:$AU$23,MATCH(AH76,$AT$8:$AT$23,0)),"") ->  | AO76: =IFERROR(IF(AN76>=AM76,0,IF(AM76>AN76,SLN(AK76,AL76,AM76),0)),"") -> 0 | AP76: 0 | AQ76: =IFERROR(IF(OR(AM76=0,AM76=""), 0, IF(AN76>=AM76, +AK76, (+AO76*AN76))), "") -> 0 | AR76: =IFERROR(IF(AQ76>AK76,0,(+AK76-AQ76))-AL76,"") -> 0 | AZ76: 0.75 | BA76: 623623BB | BB76: 700 | BC76: 700 | BD76: 800 | BE76: 900 | BF76: 1400 | BG76: 1400 | BH76: 1300 | BI76: 1200 | BJ76: 1100 | BK76: 900 | BL76: 900 | BM76: 800 | BO76: 1008.333333 | BP76: 12100
V77: Equipment (IT) (5) | W77: computer 20% home use, 80% buisness use $999 total | X77: 2016-03-18 | Y77: 799.2 | AA77: 5 | AB77: 5 | AC77: 0 | AD77: 799.2 | AE77: 799.2 | AF77: 0 | AO77: 0 | AP77: 0 | AQ77: 0 | AR77: 0 | AZ77: 0.75 | BA77: 653653BB | BB77: 300 | BC77: 300 | BD77: 400 | BE77: 800 | BF77: 1400 | BG77: 1300 | BH77: 1300 | BI77: 1300 | BJ77: 1300 | BK77: 1200 | BL77: 500 | BM77: 500 | BO77: 883.3333333 | BP77: 10600
V78: Equipment (IT) (5) | W78: Samsung Laser Printer 80% buisness, 20% home 53.80 total | X78: 2016-03-10 | Y78: 43.04 | AA78: 5 | AB78: 5 | AC78: 0 | AD78: 43.04 | AE78: 43.04 | AF78: 0 | AO78: 0 | AP78: 0 | AQ78: 0 | AR78: 0 | AZ78: 0.75 | BA78: 663663BB | BB78: 500 | BC78: 400 | BD78: 700 | BE78: 1300 | BF78: 1600 | BG78: 1200 | BH78: 1100 | BI78: 1600 | BJ78: 1200 | BK78: 1000 | BL78: 500 | BM78: 400 | BO78: 958.3333333 | BP78: 11500
V79: Equipment (IT) (5) | W79: Power PDF software | X79: 2016-03-03 | Y79: 53.99 | AA79: 5 | AB79: 5 | AC79: 0 | AD79: 53.99 | AE79: 53.99 | AF79: 0 | AO79: 0 | AP79: 0 | AQ79: 0 | AR79: 0 | AZ79: 0.75 | BA79: 686686BB | BB79: 700 | BC79: 800 | BD79: 900 | BE79: 800 | BF79: 900 | BG79: 800 | BH79: 600 | BI79: 800 | BJ79: 1200 | BK79: 1300 | BL79: 1100 | BM79: 1100 | BO79: 916.6666667 | BP79: 11000
V80: Pumping and Water Treatment (20) | W80: pressure tank #1 blow off and drain | X80: 2016-03-28 | Y80: 299.98 | AA80: 20 | AB80: 8 | AC80: 14.999 | AD80: 104.993 | AE80: 119.992 | AF80: 179.988 | AO80: 0 | AP80: 0 | AQ80: 0 | AR80: 0 | AZ80: 0.75 | BA80: 683683BB | BB80: 400 | BC80: 100 | BD80: 500 | BE80: 300 | BF80: 300 | BG80: 500 | BH80: 1000 | BI80: 900 | BJ80: 600 | BK80: 600 | BL80: 500 | BM80: 300 | BO80: 500 | BP80: 6000
V81: Pumping and Water Treatment (20) | W81: new water hook up (meter) 711 Brigadoon | X81: 2016-04-13 | Y81: 144.99 | AA81: 20 | AB81: 8 | AC81: 7.2495 | AD81: 50.7465 | AE81: 57.996 | AF81: 86.994 | AO81: 0 | AP81: 0 | AQ81: 0 | AR81: 0 | AZ81: 0.75 | BA81: 711711BB | BB81: 0 | BC81: 300 | BD81: 300 | BE81: 500 | BF81: 800 | BG81: 500 | BH81: 500 | BI81: 700 | BJ81: 700 | BK81: 600 | BL81: 600 | BM81: 200 | BO81: 475 | BP81: 5700
V82: Service Connection (30) | W82: operating nut for ground stop at pumphouse | X82: 2016-02-08 | Y82: 326.76 | AA82: 30 | AB82: 8 | AC82: 10.892 | AD82: 76.244 | AE82: 87.136 | AF82: 239.624 | AO82: 0 | AP82: 0 | AQ82: 0 | AR82: 0 | AZ82: 0.75 | BA82: 741741BB | BB82: 400 | BC82: 400 | BD82: 500 | BE82: 500 | BF82: 900 | BG82: 1000 | BH82: 1000 | BI82: 900 | BJ82: 500 | BK82: 500 | BL82: 400 | BM82: 400 | BO82: 616.6666667 | BP82: 7400
V83: Service Connection (30) | W83: blow offs on air valves at Brittany and Brigadoon | X83: 2016-05-09 | Y83: 255.49 | AA83: 30 | AB83: 8 | AC83: 8.516333333 | AD83: 59.61433333 | AE83: 68.13066667 | AF83: 187.3593333 | AO83: 0 | AP83: 0 | AQ83: 0 | AR83: 0 | AZ83: 0.75 | BA83: 700700BB | BB83: 400 | BC83: 400 | BD83: 500 | BE83: 600 | BF83: 1200 | BG83: 2500 | BH83: 1600 | BI83: 8000 | BJ83: 1700 | BK83: 500 | BL83: 600 | BM83: 700 | BO83: 1558.333333 | BP83: 18700
V84: Service Connection (30) | W84: water main at 180 Brigadoon | X84: 2016-06-06 | Y84: 2448.76 | AA84: 30 | AB84: 8 | AC84: 81.62533333 | AD84: 571.3773333 | AE84: 653.0026667 | AF84: 1795.757333 | AO84: 0 | AP84: 0 | AQ84: 0 | AR84: 0 | AZ84: 0.75 | BA84: 761761BB | BB84: 200 | BC84: 200 | BD84: 0 | BE84: 100 | BF84: 400 | BG84: 500 | BH84: 700 | BI84: 800 | BJ84: 800 | BK84: 800 | BL84: 400 | BM84: 300 | BO84: 433.3333333 | BP84: 5200
V85: Service Connection (30) | W85: 310 Eberle meter and setter | X85: 2016-06-20 | Y85: 577.27 | AA85: 30 | AB85: 8 | AC85: 19.24233333 | AD85: 134.6963333 | AE85: 153.9386667 | AF85: 423.3313333 | AO85: 0 | AP85: 0 | AQ85: 0 | AR85: 0 | AZ85: 0.75 | BA85: 711711BB | BB85: 200 | BC85: 100 | BD85: 400 | BE85: 700 | BF85: 800 | BG85: 1200 | BH85: 1200 | BI85: 1100 | BJ85: 700 | BK85: 400 | BL85: 200 | BM85: 100 | BO85: 591.6666667 | BP85: 7100
V86: Service Connection (30) | W86: 618061 valve install, well pump distribution | X86: 2016-08-16 | Y86: 1125.02 | AA86: 30 | AB86: 8 | AC86: 37.50066667 | AD86: 262.5046667 | AE86: 300.0053333 | AF86: 825.0146667 | AO86: 0 | AP86: 0 | AQ86: 0 | AR86: 0 | AZ86: 0.75 | BA86: 800800BB | BB86: 200 | BC86: 200 | BD86: 200 | BE86: 300 | BF86: 1600 | BG86: 2100 | BH86: 3800 | BI86: 1900 | BJ86: 500 | BK86: 300 | BL86: 300 | BM86: 200 | BO86: 966.6666667 | BP86: 11600
V87: Equipment (IT) (5) | W87: 6190423 tank clean out | X87: 2016-09-03 | Y87: 728.05 | AA87: 5 | AB87: 5 | AC87: 0 | AD87: 728.05 | AE87: 728.05 | AF87: 0 | AO87: 0 | AP87: 0 | AQ87: 0 | AR87: 0 | AZ87: 0.75 | BA87: 801801BB | BB87: 400 | BC87: 400 | BD87: 400 | BE87: 400 | BF87: 1100 | BG87: 1600 | BH87: 1900 | BI87: 1700 | BJ87: 1600 | BK87: 700 | BL87: 400 | BM87: 400 | BO87: 916.6666667 | BP87: 11000
V88: Tanks and Wells (25) | W88: 618003 dig out and install blowoff at open space Brig | X88: 2016-08-15 | Y88: 415.75 | AA88: 25 | AB88: 8 | AC88: 16.63 | AD88: 116.41 | AE88: 133.04 | AF88: 282.71 | AO88: 0 | AP88: 0 | AQ88: 0 | AR88: 0 | AZ88: 0.75 | BA88: 328328BB | BB88: 300 | BC88: 200 | BD88: 200 | BE88: 1000 | BF88: 4800 | BG88: 5800 | BH88: 6500 | BI88: 6000 | BJ88: 4800 | BK88: 300 | BL88: 300 | BM88: 300 | BO88: 2541.666667 | BP88: 30500
V89: Tanks and Wells (25) | W89: 614111 51 Brittany service install | X89: 2016-11-14 | Y89: 736.07 | AA89: 25 | AB89: 8 | AC89: 29.4428 | AD89: 206.0996 | AE89: 235.5424 | AF89: 500.5276 | AO89: 0 | AP89: 0 | AQ89: 0 | AR89: 0 | AZ89: 0.75 | BA89: 341341MD | BB89: 300 | BC89: 300 | BD89: 200 | BE89: 400 | BF89: 2100 | BG89: 3600 | BH89: 3900 | BI89: 3600 | BJ89: 3800 | BK89: 3500 | BL89: 3700 | BM89: 1800 | BO89: 2266.666667 | BP89: 27200
V90: Pumping and Water Treatment (20) | W90: 618211 Fire hydrant repair | X90: 2016-11-14 | Y90: 388.42 | AA90: 20 | AB90: 8 | AC90: 19.421 | AD90: 135.947 | AE90: 155.368 | AF90: 233.052 | AO90: 0 | AP90: 0 | AQ90: 0 | AR90: 0 | AZ90: 0.75 | BA90: 301301MD | BB90: 500 | BC90: 500 | BD90: 600 | BE90: 600 | BF90: 1500 | BG90: 3300 | BH90: 3700 | BI90: 3300 | BJ90: 3200 | BK90: 1000 | BL90: 800 | BM90: 900 | BO90: 1658.333333 | BP90: 19900
V91: Pumping and Water Treatment (20) | W91: 613201 dig out valve near street on well property | X91: 2016-10-17 | Y91: 363.77 | AA91: 20 | AB91: 8 | AC91: 18.1885 | AD91: 127.3195 | AE91: 145.508 | AF91: 218.262 | AO91: 0 | AP91: 0 | AQ91: 0 | AR91: 0 | AZ91: 0.75 | BA91: 142142BC | BB91: 600 | BC91: 1200 | BD91: 700 | BE91: 400 | BF91: 400 | BG91: 1000 | BH91: 1300 | BI91: 1400 | BJ91: 1300 | BK91: 600 | BL91: 500 | BM91: 400 | BO91: 816.6666667 | BP91: 9800
V92: Equipment (10) | W92: incubator | X92: 2016-12-11 | Y92: 350 | AA92: 10 | AB92: 8 | AC92: 35 | AD92: 245 | AE92: 280 | AF92: 70 | AO92: 0 | AP92: 0 | AQ92: 0 | AR92: 0 | AZ92: 0.75 | BA92: 260260MD | BB92: 200 | BC92: 200 | BD92: 200 | BE92: 200 | BF92: 400 | BG92: 700 | BH92: 800 | BI92: 500 | BJ92: 700 | BK92: 100 | BL92: 100 | BM92: 100 | BO92: 350 | BP92: 4200
V93: Equipment (Laboratory, Office, and Shop) (15) | W93: 610930 ventilation fan | X93: 2016-09-20 | Y93: 422.69 | AA93: 15 | AB93: 8 | AC93: 28.17933333 | AD93: 197.2553333 | AE93: 225.4346667 | AF93: 197.2553333 | AO93: 0 | AP93: 0 | AQ93: 0 | AR93: 0 | AZ93: 0.75 | BA93: 230230MD | BB93: 100 | BC93: 100 | BD93: 200 | BE93: 100 | BF93: 400 | BG93: 400 | BH93: 700 | BI93: 800 | BJ93: 300 | BK93: 200 | BL93: 100 | BM93: 200 | BO93: 300 | BP93: 3600
V94: Equipment (Laboratory, Office, and Shop) (15) | W94: screen on storage tank drain | X94: 2016-09-04 | Y94: 78.91 | AA94: 15 | AB94: 8 | AC94: 5.260666667 | AD94: 36.82466667 | AE94: 42.08533333 | AF94: 36.82466667 | AO94: 0 | AP94: 0 | AQ94: 0 | AR94: 0 | AZ94: 0.75 | BA94: 221221MD | BB94: 100 | BC94: 200 | BD94: 100 | BE94: 200 | BF94: 500 | BG94: 600 | BH94: 300 | BI94: 500 | BJ94: 400 | BK94: 200 | BL94: 200 | BM94: 100 | BO94: 283.3333333 | BP94: 3400
V95: Equipment (Laboratory, Office, and Shop) (15) | W95: 710103 chlorine expanse tank access ports | X95: 2017-02-03 | Y95: 213.53 | AA95: 15 | AB95: 7 | AC95: 14.23533333 | AD95: 85.412 | AE95: 99.64733333 | AF95: 113.8826667 | AO95: 0 | AP95: 0 | AQ95: 0 | AR95: 0 | AZ95: 0.75 | BA95: 211211MD | BB95: 200 | BC95: 200 | BD95: 300 | BE95: 300 | BF95: 800 | BG95: 900 | BH95: 1100 | BI95: 1700 | BJ95: 1600 | BK95: 1400 | BL95: 200 | BM95: 200 | BO95: 741.6666667 | BP95: 8900
V96: Facility and Connection Charges (20) | W96: 716230 chain gate | X96: 2017-03-13 | Y96: 364.87 | AA96: 20 | AB96: 7 | AC96: 18.2435 | AD96: 109.461 | AE96: 127.7045 | AF96: 237.1655 | AO96: 0 | AP96: 0 | AQ96: 0 | AR96: 0 | AZ96: 0.75 | BA96: 220220MD | BB96: 200 | BC96: 200 | BD96: 300 | BE96: 600 | BF96: 800 | BG96: 900 | BH96: 1100 | BI96: 1000 | BJ96: 800 | BK96: 500 | BL96: 200 | BM96: 200 | BO96: 566.6666667 | BP96: 6800
V97: Tanks and Wells (25) | W97: 710510 363 Brig valve replacement | X97: 2017-05-09 | Y97: 397.34 | AA97: 25 | AB97: 7 | AC97: 15.8936 | AD97: 95.3616 | AE97: 111.2552 | AF97: 286.0848 | AO97: 0 | AP97: 0 | AQ97: 0 | AR97: 0 | AZ97: 0.75 | BA97: 200200MD | BB97: 300 | BC97: 500 | BD97: 700 | BE97: 900 | BF97: 1300 | BG97: 1200 | BH97: 1300 | BI97: 1200 | BJ97: 900 | BK97: 600 | BL97: 700 | BM97: 500 | BO97: 841.6666667 | BP97: 10100
V98: Tanks and Wells (25) | W98: 7112b40 Replace leaking meter setter at 251 Brittany | X98: 2017-05-11 | Y98: 361.2 | AA98: 25 | AB98: 7 | AC98: 14.448 | AD98: 86.688 | AE98: 101.136 | AF98: 260.064 | AO98: 0 | AP98: 0 | AQ98: 0 | AR98: 0 | AZ98: 0.75 | BA98: 191191MD | BB98: 500 | BC98: 400 | BD98: 500 | BE98: 500 | BF98: 800 | BG98: 1400 | BH98: 1600 | BI98: 1500 | BJ98: 900 | BK98: 800 | BL98: 600 | BM98: 1100 | BO98: 883.3333333 | BP98: 10600
V99: Tanks and Wells (25) | W99: 711350 church meter leak | X99: 2017-05-30 | Y99: 473.42 | AA99: 25 | AB99: 7 | AC99: 18.9368 | AD99: 113.6208 | AE99: 132.5576 | AF99: 340.8624 | AO99: 0 | AP99: 0 | AQ99: 0 | AR99: 0 | AZ99: 0.75 | BA99: 161161MD | BB99: 200 | BC99: 100 | BD99: 200 | BE99: 300 | BF99: 700 | BG99: 300 | BH99: 400 | BI99: 300 | BJ99: 300 | BK99: 100 | BL99: 100 | BM99: 200 | BO99: 266.6666667 | BP99: 3200
V100: Equipment (Laboratory, Office, and Shop) (15) | W100: 716070 open space water meter replacement | X100: 2017-06-12 | Y100: 117.4 | AA100: 15 | AB100: 7 | AC100: 7.826666667 | AD100: 46.96 | AE100: 54.78666667 | AF100: 62.61333333 | AO100: 0 | AP100: 0 | AQ100: 0 | AR100: 0 | AZ100: 0.75 | BA100: 161161MD | BB100: 100 | BC100: 0 | BD100: 100 | BE100: 0 | BF100: 0 | BG100: 0 | BH100: 800 | BI100: 900 | BJ100: 500 | BK100: 600 | BL100: 0 | BM100: 0 | BO100: 250 | BP100: 3000
V101: Tanks and Wells (25) | W101: 713070 air vacuum valve replace | X101: 2017-07-03 | Y101: 992.76 | AA101: 25 | AB101: 7 | AC101: 39.7104 | AD101: 238.2624 | AE101: 277.9728 | AF101: 714.7872 | AO101: 0 | AP101: 0 | AQ101: 0 | AR101: 0 | AZ101: 0.75 | BA101: 140140MD | BB101: 700 | BC101: 600 | BD101: 700 | BE101: 700 | BF101: 1600 | BG101: 2800 | BH101: 1900 | BI101: 2100 | BJ101: 1400 | BK101: 900 | BL101: 600 | BM101: 600 | BO101: 1216.666667 | BP101: 14600
V102: Facility and Connection Charges (20) | W102: 710132 pumphouse lights | X102: 2017-10-23 | Y102: 319.48 | AA102: 20 | AB102: 7 | AC102: 15.974 | AD102: 95.844 | AE102: 111.818 | AF102: 207.662 | AO102: 0 | AP102: 0 | AQ102: 0 | AR102: 0 | AZ102: 0.75 | BA102: 130130 MD | BB102: 800 | BC102: 600 | BD102: 800 | BE102: 900 | BF102: 2100 | BG102: 2300 | BH102: 3500 | BI102: 3000 | BJ102: 300 | BK102: 800 | BL102: 800 | BM102: 600 | BO102: 1375 | BP102: 16500
V103: Tanks and Wells (25) | W103: 710211 4" bypass valve | X103: 2017-11-22 | Y103: 498.92 | AA103: 25 | AB103: 7 | AC103: 19.9568 | AD103: 119.7408 | AE103: 139.6976 | AF103: 359.2224 | AO103: 0 | AP103: 0 | AQ103: 0 | AR103: 0 | AZ103: 0.75 | BA103: 131131MD | BB103: 300 | BC103: 400 | BD103: 500 | BE103: 400 | BF103: 1300 | BG103: 1200 | BH103: 1300 | BI103: 1300 | BJ103: 600 | BK103: 400 | BL103: 400 | BM103: 400 | BO103: 708.3333333 | BP103: 8500
V104: Equipment (10) | W104: chlorination engineering retainer | X104: 2017-12-16 | Y104: 1000 | AA104: 10 | AB104: 7 | AC104: 100 | AD104: 600 | AE104: 700 | AF104: 300 | AO104: 0 | AP104: 0 | AQ104: 0 | AR104: 0 | AZ104: 0.75 | BA104: 111111MD | BB104: 200 | BC104: 600 | BD104: 600 | BE104: 900 | BF104: 1400 | BG104: 1200 | BH104: 1600 | BI104: 1300 | BJ104: 900 | BK104: 500 | BL104: 400 | BM104: 500 | BO104: 841.6666667 | BP104: 10100
V105: Equipment (IT) (5) | W105: generator battery | X105: 2018-01-26 | Y105: 239.52 | AA105: 5 | AB105: 5 | AC105: 0 | AD105: 239.52 | AE105: 239.52 | AF105: 0 | AO105: 0 | AP105: 0 | AQ105: 0 | AR105: 0 | AZ105: 0.75 | BA105: 120120MD | BB105: 600 | BC105: 500 | BD105: 200 | BE105: 600 | BF105: 1200 | BG105: 1300 | BH105: 1400 | BI105: 1500 | BJ105: 800 | BK105: 600 | BL105: 300 | BM105: 500 | BO105: 791.6666667 | BP105: 9500
V106: Pumping and Water Treatment (20) | W106: 251 Brittany pipe replace | X106: 2018-01-26 | Y106: 286.33 | AA106: 20 | AB106: 6 | AC106: 14.3165 | AD106: 71.5825 | AE106: 85.899 | AF106: 200.431 | AO106: 0 | AP106: 0 | AQ106: 0 | AR106: 0 | AZ106: 0.75 | BA106: 110110MD | BB106: 600 | BC106: 600 | BD106: 600 | BE106: 600 | BF106: 1400 | BG106: 1900 | BH106: 1900 | BI106: 1500 | BJ106: 800 | BK106: 700 | BL106: 800 | BM106: 700 | BO106: 1008.333333 | BP106: 12100
V107: Equipment (IT) (5) | W107: pressure tank compressor | X107: 2018-02-05 | Y107: 366.27 | AA107: 5 | AB107: 5 | AC107: 0 | AD107: 366.27 | AE107: 366.27 | AF107: 0 | AO107: 0 | AP107: 0 | AQ107: 0 | AR107: 0 | AZ107: 0.75 | BA107: 9090MD | BB107: 200 | BC107: 300 | BD107: 400 | BE107: 500 | BF107: 600 | BG107: 1000 | BH107: 800 | BI107: 500 | BJ107: 300 | BK107: 100 | BL107: 300 | BM107: 300 | BO107: 441.6666667 | BP107: 5300
V108: Equipment (10) | W108: chlorination design 2nd payment | X108: 2018-02-20 | Y108: 1500 | AA108: 10 | AB108: 6 | AC108: 150 | AD108: 750 | AE108: 900 | AF108: 600 | AO108: 0 | AP108: 0 | AQ108: 0 | AR108: 0 | AZ108: 0.75 | BA108: 5050MD | BB108: 200 | BC108: 100 | BD108: 300 | BE108: 200 | BF108: 200 | BG108: 400 | BH108: 300 | BI108: 300 | BJ108: 400 | BK108: 200 | BL108: 200 | BM108: 200 | BO108: 250 | BP108: 3000
V109: Equipment (10) | W109: chlorination design DOH review | X109: 2018-03-13 | Y109: 696 | AA109: 10 | AB109: 6 | AC109: 69.6 | AD109: 348 | AE109: 417.6 | AF109: 278.4 | AO109: 0 | AP109: 0 | AQ109: 0 | AR109: 0 | AZ109: 0.75 | BA109: 141141BB | BB109: 300 | BC109: 300 | BD109: 200 | BE109: 1200 | BF109: 3100 | BG109: 4500 | BH109: 3000 | BI109: 3500 | BJ109: 1600 | BK109: 200 | BL109: 200 | BM109: 400 | BO109: 1541.666667 | BP109: 18500
V110: Equipment (10) | W110: chlorine design engineering rework | X110: 2018-03-22 | Y110: 357.5 | AA110: 10 | AB110: 6 | AC110: 35.75 | AD110: 178.75 | AE110: 214.5 | AF110: 143 | AO110: 0 | AP110: 0 | AQ110: 0 | AR110: 0 | AZ110: 0.75 | BA110: 1416BB | BB110: 100 | BC110: 200 | BD110: 200 | BE110: 300 | BF110: 1700 | BG110: 2500 | BH110: 3000 | BI110: 2700 | BJ110: 400 | BK110: 200 | BL110: 200 | BM110: 2700 | BO110: 1183.333333 | BP110: 14200
V111: Equipment (10) | W111: 813042 dig our Balmoral blow off | X111: 2018-03-24 | Y111: 217 | AA111: 10 | AB111: 6 | AC111: 21.7 | AD111: 108.5 | AE111: 130.2 | AF111: 86.8 | AO111: 0 | AP111: 0 | AQ111: 0 | AR111: 0 | AZ111: 0.75 | BA111: 8181BB | BB111: 300 | BC111: 300 | BD111: 300 | BE111: 400 | BF111: 700 | BG111: 800 | BH111: 800 | BI111: 400 | BJ111: 500 | BK111: 300 | BL111: 300 | BM111: 400 | BO111: 458.3333333 | BP111: 5500
V112: Equipment (Laboratory, Office, and Shop) (15) | W112: generator seperator and lamp assembly | X112: 2018-04-30 | Y112: 534.08 | AA112: 15 | AB112: 6 | AC112: 35.60533333 | AD112: 178.0266667 | AE112: 213.632 | AF112: 320.448 | AO112: 0 | AP112: 0 | AQ112: 0 | AR112: 0 | AZ112: 0.75 | BA112: 6262BC | BB112: 400 | BC112: 400 | BD112: 400 | BE112: 700 | BF112: 1700 | BG112: 1200 | BH112: 4700 | BI112: 4100 | BJ112: 2400 | BK112: 800 | BL112: 300 | BM112: 400 | BO112: 1458.333333 | BP112: 17500
V113: Equipment (10) | W113: 815190 chlorine pump system install | X113: 2018-09-21 | Y113: 4119.07 | AA113: 10 | AB113: 6 | AC113: 411.907 | AD113: 2059.535 | AE113: 2471.442 | AF113: 1647.628 | AO113: 0 | AP113: 0 | AQ113: 0 | AR113: 0 | AZ113: 0.75 | BA113: 6464BC | BB113: 400 | BC113: 300 | BD113: 500 | BE113: 700 | BF113: 900 | BG113: 1300 | BH113: 1100 | BI113: 1000 | BJ113: 900 | BK113: 500 | BL113: 300 | BM113: 100 | BO113: 666.6666667 | BP113: 8000
V114: Equipment (10) | W114: new level control, valve replacement | X114: 2019-02-07 | Y114: 2323.16 | AA114: 10 | AB114: 5 | AC114: 232.316 | AD114: 929.264 | AE114: 1161.58 | AF114: 1161.58 | AO114: 0 | AP114: 0 | AQ114: 0 | AR114: 0 | AZ114: 0.75 | BA114: 808080BM | BB114: 200 | BC114: 200 | BD114: 200 | BE114: 300 | BF114: 700 | BG114: 800 | BH114: 800 | BI114: 800 | BJ114: 1000 | BK114: 300 | BL114: 200 | BM114: 100 | BO114: 466.6666667 | BP114: 5600
V115: Equipment (IT) (5) | W115: 917250 add redundant compressor | X115: 2019-06-20 | Y115: 401.65 | AA115: 5 | AB115: 5 | AC115: 0 | AD115: 401.65 | AE115: 401.65 | AF115: 0 | AO115: 0 | AP115: 0 | AQ115: 0 | AR115: 0 | AZ115: 0.75 | BA115: 1010BC | BB115: 100 | BC115: 300 | BD115: 300 | BE115: 700 | BF115: 2700 | BG115: 2200 | BH115: 2200 | BI115: 2300 | BJ115: 1700 | BK115: 600 | BL115: 500 | BM115: 500 | BO115: 1175 | BP115: 14100
V116: Equipment (IT) (5) | W116: laptop computer for monthly meter read | X116: 2019-07-24 | Y116: 871.99 | AA116: 5 | AB116: 5 | AC116: 0 | AD116: 871.99 | AE116: 871.99 | AF116: 0 | AO116: 0 | AP116: 0 | AQ116: 0 | AR116: 0 | AZ116: 0.75 | BA116: 146146BC | BB116: 0 | BC116: 0 | BD116: 0 | BE116: 100 | BF116: 0 | BG116: 100 | BH116: 0 | BI116: 100 | BJ116: 200 | BK116: 300 | BL116: 200 | BM116: 400 | BO116: 116.6666667 | BP116: 1400
V117: Equipment (IT) (5) | W117: overhead light for sampling area | X117: 2019-09-02 | Y117: 499.75 | AA117: 5 | AB117: 5 | AC117: 0 | AD117: 499.75 | AE117: 499.75 | AF117: 0 | AO117: 0 | AP117: 0 | AQ117: 0 | AR117: 0 | AZ117: 0.75 | BA117: 130130BB | BB117: 100 | BC117: 200 | BD117: 200 | BE117: 400 | BF117: 1300 | BG117: 1800 | BH117: 1800 | BI117: 2200 | BJ117: 2200 | BK117: 1000 | BL117: 200 | BM117: 200 | BO117: 966.6666667 | BP117: 11600
V118: Equipment (10) | W118: 220 Moonlight extension box | X118: 2019-03-04 | Y118: 70.71 | AA118: 10 | AB118: 5 | AC118: 7.071 | AD118: 28.284 | AE118: 35.355 | AF118: 35.355 | AO118: 0 | AP118: 0 | AQ118: 0 | AR118: 0 | AZ118: 0.75 | BA118: 1212CL | BB118: 400 | BC118: 500 | BD118: 600 | BE118: 2300 | BF118: 4300 | BG118: 4600 | BH118: 5100 | BI118: 6400 | BJ118: 6200 | BK118: 1600 | BL118: 1400 | BM118: 600 | BO118: 2833.333333 | BP118: 34000
W119: sanitary survey | X119: 2019-09-02 | Y119: 918 | AA119: 3 | AB119: 3 | AC119: 0 | AD119: 918 | AE119: 918 | AF119: 0 | AO119: 0 | AP119: 0 | AQ119: 0 | AR119: 0 | AZ119: 0.75 | BA119: 6161CL | BB119: 0 | BC119: 0 | BD119: 0 | BE119: 0 | BF119: 1400 | BG119: 1700 | BH119: 2100 | BI119: 1700 | BJ119: 1800 | BK119: 400 | BL119: 0 | BM119: 0 | BO119: 758.3333333 | BP119: 9100
V120: Equipment (10) | W120: Midwest differential meter | X120: 2020-01-24 | Y120: 946.99 | AA120: 10 | AB120: 4 | AC120: 94.699 | AD120: 284.097 | AE120: 378.796 | AF120: 568.194 | AO120: 0 | AP120: 0 | AQ120: 0 | AR120: 0 | AZ120: 0.75 | BA120: 102102CL | BB120: 400 | BC120: 400 | BD120: 400 | BE120: 400 | BF120: 400 | BG120: 600 | BH120: 1600 | BI120: 1600 | BJ120: 1000 | BK120: 700 | BL120: 500 | BM120: 400 | BO120: 700 | BP120: 8400
V121: Pumping and Water Treatment (20) | W121: water service and dcva at 235 Brittany | X121: 2020-02-06 | Y121: 1044.46 | AA121: 20 | AB121: 4 | AC121: 52.223 | AD121: 156.669 | AE121: 208.892 | AF121: 835.568 | AO121: 0 | AP121: 0 | AQ121: 0 | AR121: 0 | AZ121: 0.75 | BA121: 818181CL | BB121: 300 | BC121: 200 | BD121: 300 | BE121: 1500 | BF121: 2600 | BG121: 4000 | BH121: 2100 | BI121: 1100 | BJ121: 600 | BK121: 300 | BL121: 200 | BM121: 200 | BO121: 1116.666667 | BP121: 13400
V122: Equipment (Laboratory, Office, and Shop) (15) | W122: 2 replacement meters 20 Karie & 230 Moonlight | X122: 2020-03-06 | Y122: 270.36 | AA122: 15 | AB122: 4 | AC122: 18.024 | AD122: 54.072 | AE122: 72.096 | AF122: 198.264 | AO122: 0 | AP122: 0 | AQ122: 0 | AR122: 0 | AZ122: 0.75 | BA122: 4141KC | BB122: 400 | BC122: 400 | BD122: 400 | BE122: 400 | BF122: 600 | BG122: 500 | BH122: 700 | BI122: 600 | BJ122: 500 | BK122: 400 | BL122: 300 | BM122: 300 | BO122: 458.3333333 | BP122: 5500
V123: Equipment (10) | W123: overhead security light at pumphouse | X123: 2020-03-16 | Y123: 246.78 | AA123: 10 | AB123: 4 | AC123: 24.678 | AD123: 74.034 | AE123: 98.712 | AF123: 148.068 | AO123: 0 | AP123: 0 | AQ123: 0 | AR123: 0 | AZ123: 0.75 | BA123: 133133CL | BB123: 300 | BC123: 100 | BD123: 200 | BE123: 200 | BF123: 200 | BG123: 200 | BH123: 200 | BI123: 200 | BJ123: 200 | BK123: 300 | BL123: 200 | BM123: 100 | BO123: 200 | BP123: 2400
V124: Equipment (10) | W124: pressure gauge, horn for Silverado | X124: 2020-03-05 | Y124: 237.07 | AA124: 10 | AB124: 4 | AC124: 23.707 | AD124: 71.121 | AE124: 94.828 | AF124: 142.242 | AO124: 0 | AP124: 0 | AQ124: 0 | AR124: 0 | AZ124: 0.75 | BA124: 132132CL | BB124: 400 | BC124: 400 | BD124: 300 | BE124: 400 | BF124: 700 | BG124: 700 | BH124: 1400 | BI124: 1300 | BJ124: 800 | BK124: 400 | BL124: 400 | BM124: 500 | BO124: 641.6666667 | BP124: 7700
V125: Equipment (10) | W125: Replaced 6 older outdated gallon meters with new cubic foot meters | X125: 2020-06-26 | Y125: 645.83 | AA125: 10 | AB125: 4 | AC125: 64.583 | AD125: 193.749 | AE125: 258.332 | AF125: 387.498 | AO125: 0 | AP125: 0 | AQ125: 0 | AR125: 0 | AZ125: 0.75 | BA125: 142142CL | BB125: 200 | BC125: 200 | BD125: 200 | BE125: 200 | BF125: 400 | BG125: 400 | BH125: 700 | BI125: 500 | BJ125: 400 | BK125: 200 | BL125: 300 | BM125: 300 | BO125: 333.3333333 | BP125: 4000
... 156 more rows

Sheet Output
A1: 9 | E1: 10
A2: Revenue Requirement | E2: Monthly Rates (Proposed Rate Design) | O2: For conditional formatting
A3: List | B3: $ | C3: % | E3: 5/8-inch | J3: 3/4-inch
A4: Metered Sales | B4: =PFIS!K9 -> 10445.81024 | C4: =PFIS!N9 -> 0.1528373638 | E4: Base | F4: ='Rate Design'!$S10 -> 18.66666667 | G4: Allowance | H4: ='Rate Design'!$R10 -> 0 | J4: Base | K4: ='Rate Design'!$S11 -> 28 | L4: Allowance | M4: ='Rate Design'!$R11 -> 0 | O4: =Most_Common_Meter_Size -> 0.75
A5: Un-Metered Sales | B5: =PFIS!K10 -> 0 | C5: =PFIS!N10 ->  | E5: Rate 1 | F5: ='Rate Design'!$U$10 -> 1.75 | G5: Block 1 | H5: ='Rate Design'!$T10 -> 333.3333333 | J5: Rate 1 | K5: ='Rate Design'!$U$10 -> 1.75 | L5: Block 1 | M5: ='Rate Design'!$T11 -> 500
A6: Ready-to-Serve | B6: =PFIS!K11 -> 0 | C6: =PFIS!N11 -> 
A7: Total Water Sales Revenue | B7: =SUM(B4:B6) -> 10445.81024 | C7: =SUM(PFIS!K9:K11)/SUM(PFIS!I9:I11) -> 0.1528373638 | E7: Rate 2 | F7: ='Rate Design'!$W$10 -> 2.25 | G7: Block 2 | H7: ='Rate Design'!$V10 -> 666.6666667 | J7: Rate 2 | K7: ='Rate Design'!$W$10 -> 2.25 | L7: Block 2 | M7: ='Rate Design'!$V11 -> 1000
A8: Net Change Company | B8: =PFIS!K15 -> 10445.81024 | C8: =PFIS!N16 -> 0.1528373638
A9: Other Income, Ancillary Charges | B9: =PFIS!L14-PFIS!C14 -> 0 | C9: =IF(PFIS!C14<>0,B9/PFIS!C14,"N/A") -> N/A | E9: Rate 3 | F9: ='Rate Design'!$Y$10 -> 3.25 | G9: Block 3 | H9: =+H7+1 -> 667.6666667 | J9: Rate 3 | K9: ='Rate Design'!$Y$10 -> 3.25 | L9: Block 3 | M9: =+M7+1 -> 1001
E11: 1-inch | J11: 1 1/2-inch
E12: Base | F12: ='Rate Design'!$S12 -> 46.66666667 | G12: Allowance | H12: ='Rate Design'!$R12 -> 0 | J12: Base | K12: ='Rate Design'!$S13 -> 93.33333333 | L12: Allowance | M12: ='Rate Design'!$R13 -> 0
A13: Version date: | B13: 2022-02-01 | E13: Rate 1 | F13: ='Rate Design'!$U$10 -> 1.75 | G13: Block 1 | H13: ='Rate Design'!$T12 -> 833.3333333 | J13: Rate 1 | K13: ='Rate Design'!$U$10 -> 1.75 | L13: Block 1 | M13: ='Rate Design'!$T13 -> 1666.666667
A15: Information for filing | E15: Rate 2 | F15: ='Rate Design'!$W$10 -> 2.25 | G15: Block 2 | H15: ='Rate Design'!$V12 -> 1666.666667 | J15: Rate 2 | K15: ='Rate Design'!$W$10 -> 2.25 | L15: Block 2 | M15: ='Rate Design'!$V13 -> 3333.333333
A16: WAC 480-07-530
A17: Please see section 3 of GRCW manual for instructions on filng a general rate case along with Water Rate Case Checklist. | E17: Rate 3 | F17: ='Rate Design'!$Y$10 -> 3.25 | G17: Block 3 | H17: =+H15+1 -> 1667.666667 | J17: Rate 3 | K17: ='Rate Design'!$Y$10 -> 3.25 | L17: Block 3 | M17: =+M15+1 -> 3334.333333
E19: 2-inch | J19: 3-inch
E20: Base | F20: ='Rate Design'!$S14 -> 149.3333333 | G20: Allowance | H20: ='Rate Design'!$R14 -> 0 | J20: Base | K20: ='Rate Design'!$S15 -> 280 | L20: Allowance | M20: ='Rate Design'!$R15 -> 0
E21: Rate 1 | F21: ='Rate Design'!$U$10 -> 1.75 | G21: Block 1 | H21: ='Rate Design'!$T14 -> 2666.666667 | J21: Rate 1 | K21: ='Rate Design'!$U$10 -> 1.75 | L21: Block 1 | M21: ='Rate Design'!$T15 -> 5000
E23: Rate 2 | F23: ='Rate Design'!$W$10 -> 2.25 | G23: Block 2 | H23: ='Rate Design'!$V14 -> 5333.333333 | J23: Rate 2 | K23: ='Rate Design'!$W$10 -> 2.25 | L23: Block 2 | M23: ='Rate Design'!$V15 -> 10000
E25: Rate 3 | F25: ='Rate Design'!$Y$10 -> 3.25 | G25: Block 3 | H25: =+H23+1 -> 5334.333333 | J25: Rate 3 | K25: ='Rate Design'!$Y$10 -> 3.25 | L25: Block 3 | M25: =+M23+1 -> 10001
E27: 4-inch | J27: 6-inch
E28: Base | F28: ='Rate Design'!$S16 -> 466.6666667 | G28: Allowance | H28: ='Rate Design'!$R16 -> 0 | J28: Base | K28: ='Rate Design'!$S17 -> 933.3333333 | L28: Allowance | M28: ='Rate Design'!$R17 -> 0
E29: Rate 1 | F29: ='Rate Design'!$U$10 -> 1.75 | G29: Block 1 | H29: ='Rate Design'!$T16 -> 8333.333333 | J29: Rate 1 | K29: ='Rate Design'!$U$10 -> 1.75 | L29: Block 1 | M29: ='Rate Design'!$T17 -> 16666.66667
E31: Rate 2 | F31: ='Rate Design'!$W$10 -> 2.25 | G31: Block 2 | H31: ='Rate Design'!$V16 -> 16666.66667 | J31: Rate 2 | K31: ='Rate Design'!$W$10 -> 2.25 | L31: Block 2 | M31: ='Rate Design'!$V17 -> 33333.33333
E33: Rate 3 | F33: ='Rate Design'!$Y$10 -> 3.25 | G33: Block 3 | H33: =+H31+1 -> 16667.66667 | J33: Rate 3 | K33: ='Rate Design'!$Y$10 -> 3.25 | L33: Block 3 | M33: =+M31+1 -> 33334.33333
E35: Unmetered | J35: RTS
E36: Base | F36: ='Rate Design'!$S19 -> 25 | J36: Base | K36: ='Rate Design'!$S18 -> 28

Sheet PFIS
B1: =Inputs!B6 -> Community Water Service of Dungeness Heights LLC
B2: ="UW-"&Inputs!B7 -> UW-
B3: ="For Test Year Ended "&TEXT(Inputs!B8,"mmmm dd, yyyy") -> For Test Year Ended December 31, 2023
B4: Pro Forma Income Statement (Results of Operations)
B5: (a) | C5: (b) | E5: (c) | F5: (d) | H5: (e) | I5: (f) | K5: (g) | L5: (h)
A6: Line No. | B6: Description | C6: Company End of Year | E6: Total Restating Adjustment | F6: Restated Results | H6: Total Pro Forma Adjustment | I6: Pro Forma Results | K6: Revised Revenue (Staff) | L6: Results of Revised Rates
A7: 1 | B7: Source | C7: Input | E7: Schedule 1 | F7: (b) + (c) | H7: Schedule 1 | I7: (d) + (e) | K7: Schedule 5 | L7: (f) + (g)
A8: =1+A7 -> 2 | B8: REVENUES
A9: =1+A8 -> 3 | B9: =+Inputs!I8 -> Metered Sales | C9: =Inputs!J8 -> 68345.92 | E9: =Inputs!K8 -> 0 | F9: =E9+C9 -> 68345.92 | H9: =Inputs!N8 -> 0 | I9: =+H9+F9 -> 68345.92 | K9: ='Rate Design'!AC44-(PFIS!I9+'Rate Design'!C10) -> 10445.81024 | L9: =+K9+I9 -> 78791.73024 | N9: =IF(OR(K9=0, I9=0), "", (K9/I9)) -> 0.1528373638 | O9: (percentage difference)
A10: 4 | B10: =+Inputs!I9 -> Un-Metered Sales | C10: =Inputs!J9 -> 0 | E10: =Inputs!K9 -> 0 | F10: 0 | H10: =Inputs!N9 -> 0 | I10: =+F10+H10 -> 0 | K10: ='Rate Design'!AC24-PFIS!I10 -> 0 | L10: 0 | O10: (percentage difference)
A11: 5 | B11: =+Inputs!I10 -> Ready-to-Serve | C11: =Inputs!J10 -> 0 | E11: =Inputs!K10 -> 0 | F11: 0 | H11: =Inputs!N10 -> 0 | I11: =F11+H11 -> 0 | K11: ='Rate Design'!AC25-PFIS!I11 -> 0 | L11: 0 | O11: (percentage difference)
A12: 6 | B12: =+Inputs!I11 -> Fire Protection / Irrigation | C12: =Inputs!J11 -> 0 | E12: =Inputs!K11 -> 0 | F12: 0 | H12: =Inputs!N11 -> 0 | I12: =F12+H12 -> 0 | L12: 0 | O12: (percentage difference)
A13: 7 | B13: =+Inputs!I12 -> Jobbing / Service Connections | C13: =Inputs!J12 -> 0 | E13: =-C13 -> 0 | F13: 0 | H13: =Inputs!N12 -> 0 | I13: =F13+H13 -> 0 | L13: 0 | O13: (percentage difference)
A14: 8 | B14: =+Inputs!I13 -> Other Income, Ancillary Charges | C14: =Inputs!J13 -> 0 | E14: =Inputs!K13 -> 0 | F14: 0 | H14: =Inputs!N13 -> 0 | I14: =F14+H14 -> 0 | L14: 0 | O14: (percentage difference)
A15: 9 | B15: OPERATING REVENUE | C15: =SUM(C9:C14) -> 68345.92 | E15: =SUM(E9:E14) -> 0 | F15: =SUM(F9:F14) -> 68345.92 | H15: =SUM(H9:H14) -> 0 | I15: =SUM(I9:I14) -> 68345.92 | K15: =SUM(K9:K14) -> 10445.81024 | L15: =SUM(L9:L14) -> 78791.73024 | N15: ='Int Sync, NTG, Rev Req'!D36 -> 10445.81024 | O15: (number check)
A16: 10 | N16: =K15/I15 -> 0.1528373638 | O16: =IF(N16="", "", "(percentage difference)") -> (percentage difference)
A17: 11 | B17: EXPENSES
A18: 12 | B18: =+Inputs!I17 -> Salary and Wages - Employees | C18: =Inputs!J17 -> 6304.89 | E18: =Inputs!K17 -> 0 | F18: =E18+C18 -> 6304.89 | H18: =Inputs!N17 -> 0 | I18: =F18+H18 -> 6304.89 | L18: =I18+K18 -> 6304.89
A19: 13 | B19: =+Inputs!I18 -> Salary and Wages - Officers | C19: =Inputs!J18 -> 14003.81 | E19: =Inputs!K18 -> 0 | F19: 14003.81 | H19: =Inputs!N18 -> 0 | I19: 14003.81 | L19: 14003.81
A20: 14 | B20: =+Inputs!I19 -> Employee Pensions and Benefits | C20: =Inputs!J19 -> 3779 | E20: =Inputs!K19 -> 0 | F20: 3779 | H20: =Inputs!N19 -> 0 | I20: 3779 | L20: 3779
A21: 15 | B21: =+Inputs!I20 -> Purchased Power/Water | C21: =Inputs!J20 -> 4952.07 | E21: =Inputs!K20 -> 0 | F21: 4952.07 | H21: =Inputs!N20 -> 0 | I21: 4952.07 | L21: 4952.07
A22: 16 | B22: =+Inputs!I21 -> Chemicals & Testing | C22: =Inputs!J21 -> 2332.93 | E22: =Inputs!K21 -> 0 | F22: 2332.93 | H22: =Inputs!N21 -> 0 | I22: 2332.93 | L22: 2332.93
A23: 17 | B23: =+Inputs!I22 -> Material & Supplies | C23: =Inputs!J22 -> 1233.2 | E23: =Inputs!K22 -> 0 | F23: 1233.2 | H23: =Inputs!N22 -> 0 | I23: 1233.2 | L23: 1233.2
A24: 18 | B24: =+Inputs!I23 -> Contractual Engineer | C24: =Inputs!J23 -> 0 | E24: =Inputs!K23 -> 0 | F24: 0 | H24: =Inputs!N23 -> 0 | I24: 0 | L24: 0
A25: 19 | B25: =+Inputs!I24 -> Contractual Accounting | C25: =Inputs!J24 -> 0 | E25: =Inputs!K24 -> 0 | F25: 0 | H25: =Inputs!N24 -> 0 | I25: 0 | L25: 0
A26: 20 | B26: =+Inputs!I25 -> Contractual Legal | C26: =Inputs!J25 -> 0 | E26: =Inputs!K25 -> 0 | F26: 0 | H26: =Inputs!N25 -> 0 | I26: 0 | L26: 0
A27: 21 | B27: =+Inputs!I26 -> Contractual Operations | C27: =Inputs!J26 -> 0 | E27: =Inputs!K26 -> 0 | F27: 0 | H27: =Inputs!N26 -> 0 | I27: 0 | L27: 0
A28: 22 | B28: =+Inputs!I27 -> Jobbing | C28: =Inputs!J27 -> 0 | E28: =-C28 -> 0 | F28: 0 | H28: =Inputs!N27 -> 0 | I28: 0 | L28: 0
A29: 23 | B29: =+Inputs!I28 -> Rental of Building, Property, and Equipment | C29: =Inputs!J28 -> 0 | E29: =Inputs!K28 -> 0 | F29: 0 | H29: =Inputs!N28 -> 0 | I29: 0 | L29: 0
A30: 24 | B30: =+Inputs!I29 -> Transportation | C30: =Inputs!J29 -> 1942.74 | E30: =Inputs!K29 -> 0 | F30: 1942.74 | H30: =Inputs!N29 -> 0 | I30: 1942.74 | L30: 1942.74
A31: 25 | B31: =+Inputs!I30 -> Insurance - Vehicle, General Liability | C31: =Inputs!J30 -> 2175.71 | E31: =Inputs!K30 -> 0 | F31: 2175.71 | H31: =Inputs!N30 -> 0 | I31: 2175.71 | L31: 2175.71
A32: 26 | B32: =+Inputs!I31 -> Regulatory Commission Expenses - Fees | C32: =Inputs!J31 -> 0 | E32: =Inputs!K31 -> 0 | F32: 0 | H32: =(I15*0.2%)-F32 -> 136.69184 | I32: 136.69184 | K32: ='Int Sync, NTG, Rev Req'!G41 -> 41.78324096 | L32: 178.475081
A33: 27 | B33: =+Inputs!I32 -> Regulatory Commission Expenses - Amort. Rate Case | C33: =Inputs!J32 -> 0 | E33: =Inputs!K32 -> 0 | F33: 0 | H33: =Inputs!N32 -> 0 | I33: 0 | L33: 0
A34: 28 | B34: =+Inputs!I33 -> Travel, Education, CCR, and Public Relations | C34: =Inputs!J33 -> 180.91 | E34: =Inputs!K33 -> 0 | F34: 180.91 | H34: =Inputs!N33 -> 0 | I34: 180.91 | L34: 180.91
A35: 29 | B35: =+Inputs!I34 -> Office, Postage, Phone, and Bank Charges | C35: =Inputs!J34 -> 1685.68 | E35: =Inputs!K34 -> 0 | F35: 1685.68 | H35: =Inputs!N34 -> 0 | I35: 1685.68 | L35: 1685.68
A36: 30 | B36: =+Inputs!I35 -> Bad Debt | C36: =Inputs!J35 -> 0 | E36: =(SUM(Inputs!J8:J11)*Bad_Debt_Percent)-PFIS!C36 -> 341.7296 | F36: 341.7296 | H36: =(SUM(I9:I12)*Bad_Debt_Percent)-PFIS!F36 -> 0 | I36: 341.7296 | K36: ='Int Sync, NTG, Rev Req'!G43 -> 52.22905119 | L36: 393.9586512
A37: 31 | B37: =+Inputs!I36 -> Repairs | C37: =Inputs!J36 -> 242.65 | E37: =Inputs!K36 -> 0 | F37: 242.65 | H37: =Inputs!N36 -> 0 | I37: 242.65 | L37: 242.65
A38: 32 | B38: =+Inputs!I37 -> Net Depreciation/Amortization | C38: =Inputs!J37 -> 0 | E38: =Inputs!E64 -> 0 | F38: 0 | H38: =I38-F38 -> 11012.80397 | I38: =SUM(Inputs!AC8:AC2008)-SUM(Inputs!AO8:AO2008) -> 11012.80397 | K38: =IF(I59<=0, -I38, 0) -> 0 | L38: 11012.80397 | N38: =+L38/L54 -> 0.02942228508
A39: 33 | B39: =+Inputs!I38 -> Utility Excise Tax | C39: =Inputs!J38 -> 3462.72 | E39: =Inputs!K38 -> 0 | F39: 3462.72 | H39: =(SUM(I9:I12)*BO_Tax_Rate)-PFIS!F39 -> -25.6036832 | I39: 3437.116317 | K39: =+'Int Sync, NTG, Rev Req'!G44+'Int Sync, NTG, Rev Req'!G42 -> 525.3197969 | L39: 3962.436114 | N39: =+K39/K15 -> 0.05029
A40: 34 | B40: =+Inputs!I39 -> Property Tax | C40: =Inputs!J39 -> 575.16 | E40: =Inputs!K39 -> 0 | F40: 575.16 | H40: =Inputs!N39 -> 0 | I40: 575.16 | L40: 575.16
A41: 35 | B41: =+Inputs!I40 -> Payroll Tax (ESD, L&I, Workman's Comp) | C41: =Inputs!J40 -> 3458.93 | E41: =Inputs!K40 -> 0 | F41: 3458.93 | H41: =Inputs!N40 -> 0 | I41: 3458.93 | L41: 3458.93
A42: 36 | B42: =+Inputs!I41 -> Other Licenses (DOH, DOE, County or City) | C42: =Inputs!J41 -> 654.95 | E42: =Inputs!K41 -> 0 | F42: 654.95 | H42: =Inputs!N41 -> 0 | I42: 654.95 | L42: 654.95
A43: 37 | B43: =+Inputs!I42 -> Miscellaneous | C43: =Inputs!J42 -> 2918.69 | E43: =Inputs!K42 -> 0 | F43: 2918.69 | H43: =Inputs!N42 -> 0 | I43: 2918.69 | L43: 2918.69
A44: 38 | B44: OPERATING EXPENSES | C44: =SUM(C18:C43) -> 49904.04 | E44: =SUM(E18:E43) -> 341.7296 | F44: =SUM(F18:F43) -> 50245.7696 | H44: =SUM(H18:H43) -> 11123.89212 | I44: =SUM(I18:I43) -> 61369.66172 | K44: =SUM(K18:K43) -> 619.3320891 | L44: =SUM(L18:L43) -> 61988.99381
A45: 39
A46: 40 | B46: Operating Income Before Interest & Taxes | C46: =C15-C44 -> 18441.88 | E46: =E15-E44 -> -341.7296 | F46: =F15-F44 -> 18100.1504 | H46: =H15-H44 -> -11123.89212 | I46: =I15-I44 -> 6976.258277 | L46: =L15-L44 -> 16802.73643
A47: 41 | B47: Interest Expense | C47: =Inputs!J46 -> 0 | E47: =Inputs!K46 -> 0 | F47: =+E47+C47 -> 0 | H47: =IF(Inputs!N46<>"",Inputs!N46,Prof_Int_Exp_Adj) -> 5182.560771 | I47: =F47+H47 -> 5182.560771 | L47: =I47+K47 -> 5182.560771 | N47: =Proforma_Interest_Expense -> 5182.560771 | O47: (number check)
A48: 42 | B48: Fed Income Tax - 21% | C48: =Inputs!J47 -> 0 | E48: =Inputs!K47 -> 0 | F48: =+E48+C48 -> 0 | H48: =IF(PFIS!I46-PFIS!I47>0,FIT_Rate,0)*(PFIS!I46-Proforma_Interest_Expense)-PFIS!F48 -> 376.6764761 | I48: =F48+H48 -> 376.6764761 | K48: =+'Int Sync, NTG, Rev Req'!G52 -> 2063.560411 | L48: =I48+K48 -> 2440.236888 | N48: ='Int Sync, NTG, Rev Req'!I50 -> 2440.236888 | O48: (number check)
A49: 43 | B49: TOTAL OPERATING EXPENSE | C49: =+C44+C47+C48 -> 49904.04 | F49: =+F44+F47+F48 -> 50245.7696 | I49: =+I44+I47+I48 -> 66928.89897 | L49: =+L44+L47+L48 -> 69611.79147
A50: 44 | B50: NET INCOME (LOSS) | C50: =+C15-C49 -> 18441.88 | E50: =SUM(E45:E49) -> -341.7296 | F50: =+F15-F49 -> 18100.1504 | H50: =SUM(H45:H49) -> -5564.654876 | I50: =+I15-I49 -> 1417.021029 | K50: =SUM(K45:K49) -> 2063.560411 | L50: =+L15-L49 -> 9179.938767
A51: 45 | B51: NET OPERATING INCOME | C51: =+C46-C48 -> 18441.88 | F51: =+F46-F48 -> 18100.1504 | I51: =+I46-I48 -> 6599.5818 | L51: =+L46-L48 -> 14362.49954 | N51: ='Int Sync, NTG, Rev Req'!D29 -> 14362.49014 | O51: (number check)
A52: 46
A53: 47 | B53: RATE BASE
A54: 48 | B54: Utility Plant in Service (UPIS) | C54: =Inputs!J53 -> 252888.45 | E54: =+F54-C54 -> 121413 | F54: =+Inputs!Y6 -> 374301.45 | H54: =Inputs!N53 -> 0 | I54: =Inputs!Y6+H54 -> 374301.45 | L54: =+K54+I54 -> 374301.45
A55: 49 | B55: Accumulated Depreciation | C55: =Inputs!J54 -> -116497.77 | E55: =F55-C55 -> -125846.9944 | F55: =-Inputs!AE6 -> -242344.7644 | H55: =Inputs!N54 -> 0 | I55: =-Inputs!AE6+H55 -> -242344.7644 | L55: =+K55+I55 -> -242344.7644
A56: 50 | B56: Acquisition Adjustment | C56: =Inputs!J55 -> 0
A57: 51 | B57: Contributions In Aid of Construction (CIAC) Plant in Service | C57: =Inputs!J56 -> -9700 | E57: =F57-C57 -> 0 | F57: =-Inputs!AK6 -> -9700 | H57: =-Inputs!N56 -> 0 | I57: =-Inputs!AK6+H57 -> -9700 | L57: =+K57+I57 -> -9700
A58: 52 | B58: Accumulated Amortization | C58: =Inputs!J57 -> 5183.28 | E58: =F58-C58 -> 0.05333333333 | F58: =Inputs!AQ6 -> 5183.333333 | H58: =Inputs!N57 -> 0 | I58: =Inputs!AQ6+H58 -> 5183.333333 | L58: =+K58+I58 -> 5183.333333
A59: 53 | B59: NET RATE BASE | C59: =SUM(C54:C58) -> 131873.96 | E59: =SUM(E54:E58) -> -4433.941033 | F59: 127440.019 | H59: 0 | I59: 127440.019 | K59: =SUM(K54:K58) -> 0 | L59: =SUM(L54:L58) -> 127440.019 | N59: =Inputs!AF6-Inputs!AR6+Inputs!J55 -> 127440.019 | O59: (number check)
A60: 54
A61: 55 | B61: Rate of Return | C61: =C51/C59 -> 0.1398447427 | F61: =F51/F59 -> 0.1420287799 | I61: =I51/I59 -> 0.05178578796 | L61: =IF(L59<0, 0%, L51/L59) -> 0.1127000738 | N61: =+'Capital Structure'!I53 -> 0.1127 | O61: (number check)
A62: 56 | B62: Customer Count | C62: =Inputs!B13+Inputs!B12+Inputs!B11 -> 136 | E62: =F62-C62 -> 0 | F62: =CustomerCount_Total -> 136 | I62: =+F62+H62 -> 136 | L62: =+K62+I62 -> 136
B64: Net Plant | C64: =SUM(C54:C55) -> 136390.68 | F64: =SUM(F54:F55) -> 131956.6856 | I64: =SUM(I54:I55) -> 131956.6856 | L64: =SUM(L54:L55) -> 131956.6856
B65: Net CIAC | C65: =SUM(C57:C58) -> -4516.72 | F65: =SUM(F57:F58) -> -4516.666667 | I65: =SUM(I57:I58) -> -4516.666667 | L65: =SUM(L57:L58) -> -4516.666667
B66: Net Rate Base | C66: =SUM(C64:C65) -> 131873.96 | F66: =SUM(F64:F65) -> 127440.019 | I66: =SUM(I64:I65) -> 127440.019 | L66: =SUM(L64:L65) -> 127440.019
I74: =I73-I71 -> 0

Sheet Capital Structure
B2: =Inputs!B6 -> Community Water Service of Dungeness Heights LLC
B3: ="UW-"&Inputs!B7 -> UW- | K3: Schedule 4
B4: =PFIS!B3 -> For Test Year Ended December 31, 2023
B5: Capital Structure
B6: (a) | C6: (b) | D6: (c) | E6: (d) | F6: (e) | G6: (f) | H6: (g) | I6: (h) | K6: (i) | L6: (j) | M6: (k)
A7: Line No. | B7: Year | C7: Description | D7: Company Principal | E7: Company Interest Rate | F7: Rate Case Principal | G7: Percent of Total | H7: Regulated Case Interest Rate | I7: Weighted Cost Rate | K7: Prime + 200 Basis Points | L7: Regulated Case Interest Rate | M7: 40/60
K8: =TEXT(Inputs!B8,"yyyy") -> 2023 | M8: Hypothetical
A9: 1 | B9: Debt | K9: =HLOOKUP((ABS(K8)),O53:EV70,16,FALSE)/100 -> 0.1016666667
A10: =1+A9 -> 2 | B10: =Inputs!P8 -> 0 | C10: =Inputs!R8 -> 0 | D10: =Inputs!S8 -> 0 | E10: =Inputs!T8 -> 0 | F10: =IF(B10>0, +D10, 0) -> 0 | G10: =IF(F$31<=0,0,(+F10/F$31)) -> 0 | H10: =IF(AND($B10>0, OR(C10="Loan - Owner", C10="Loan - Other")), (IF(HLOOKUP(B10,$O$53:$EV$70,16,FALSE)/100>=E10,E10,(HLOOKUP(B10,$O$53:$EV$70,16,FALSE)/100))), E10) -> 0 | I10: =(+G10*H10) -> 0
A11: =1+A10 -> 3 | B11: =Inputs!P9 -> 0 | C11: =Inputs!R9 -> 0 | D11: =Inputs!S9 -> 0 | E11: =Inputs!T9 -> 0 | F11: =IF(B11>0, +D11, 0) -> 0 | G11: =IF(F$31<=0,0,(+F11/F$31)) -> 0 | H11: 0 | I11: =(+G11*H11) -> 0
A12: 4 | B12: =Inputs!P10 -> 0 | C12: =Inputs!R10 -> 0 | D12: =Inputs!S10 -> 0 | E12: =Inputs!T10 -> 0 | F12: 0 | G12: 0 | H12: 0 | I12: 0
A13: 5 | B13: =Inputs!P11 -> 0 | C13: =Inputs!R11 -> 0 | D13: =Inputs!S11 -> 0 | E13: =Inputs!T11 -> 0 | F13: =IF(B13>0, +D13, 0) -> 0 | G13: =IF(F$31<=0,0,(+F13/F$31)) -> 0 | H13: =IF(AND($B13>0, OR(C13="Loan - Owner", C13="Loan - Other")), (IF(HLOOKUP(B13,$O$53:$EV$70,16,FALSE)/100>=E13,E13,(HLOOKUP(B13,$O$53:$EV$70,16,FALSE)/100))), E13) -> 0 | I13: =(+G13*H13) -> 0
A14: 6 | B14: =Inputs!P12 -> 0 | C14: =Inputs!R12 -> 0 | D14: =Inputs!S12 -> 0 | E14: =Inputs!T12 -> 0 | F14: 0 | G14: 0 | H14: 0 | I14: 0
A15: 7 | B15: =Inputs!P13 -> 0 | C15: =Inputs!R13 -> 0 | D15: =Inputs!S13 -> 0 | E15: =Inputs!T13 -> 0 | F15: 0 | G15: 0 | H15: 0 | I15: 0
A16: 8 | B16: =Inputs!P14 -> 0 | C16: =Inputs!R14 -> 0 | D16: =Inputs!S14 -> 0 | E16: =Inputs!T14 -> 0 | F16: 0 | G16: 0 | H16: 0 | I16: 0
A17: 9 | B17: =Inputs!P15 -> 0 | C17: =Inputs!R15 -> 0 | D17: =Inputs!S15 -> 0 | E17: =Inputs!T15 -> 0 | F17: 0 | G17: 0 | H17: 0 | I17: 0
A18: 10 | B18: =Inputs!P16 -> 0 | C18: =Inputs!R16 -> 0 | D18: =Inputs!S16 -> 0 | E18: =Inputs!T16 -> 0 | F18: 0 | G18: 0 | H18: 0 | I18: 0
A19: 11 | B19: =Inputs!P17 -> 0 | C19: =Inputs!R17 -> 0 | D19: =Inputs!S17 -> 0 | E19: =Inputs!T17 -> 0 | F19: 0 | G19: 0 | H19: 0 | I19: 0
A20: 12 | B20: =Inputs!P18 -> 0 | C20: =Inputs!R18 -> 0 | D20: =Inputs!S18 -> 0 | E20: =Inputs!T18 -> 0 | F20: 0 | G20: 0 | H20: 0 | I20: 0
A21: 13 | B21: =Inputs!P19 -> 0 | C21: =Inputs!R19 -> 0 | D21: =Inputs!S19 -> 0 | E21: =Inputs!T19 -> 0 | F21: 0 | G21: 0 | H21: 0 | I21: 0
A22: 14 | B22: =Inputs!P20 -> 0 | C22: =Inputs!R20 -> 0 | D22: =Inputs!S20 -> 0 | E22: =Inputs!T20 -> 0 | F22: 0 | G22: 0 | H22: 0 | I22: 0
A23: 15 | B23: =Inputs!P21 -> 0 | C23: =Inputs!R21 -> 0 | D23: =Inputs!S21 -> 0 | E23: =Inputs!T21 -> 0 | F23: 0 | G23: 0 | H23: 0 | I23: 0
A24: 16 | B24: =Inputs!P22 -> 0 | C24: =Inputs!R22 -> 0 | D24: =Inputs!S22 -> 0 | E24: =Inputs!T22 -> 0 | F24: 0 | G24: 0 | H24: 0 | I24: 0
A25: 17 | B25: =Inputs!P23 -> 0 | C25: =Inputs!R23 -> 0 | D25: =Inputs!S23 -> 0 | E25: =Inputs!T23 -> 0 | F25: 0 | G25: 0 | H25: 0 | I25: 0
A26: =1+A25 -> 18 | B26: =Inputs!P24 -> 0 | C26: =Inputs!R24 -> 0 | D26: =Inputs!S24 -> 0 | E26: =Inputs!T24 -> 0 | F26: 0 | G26: 0 | H26: 0 | I26: 0
A27: 19 | B27: =Inputs!P25 -> 0 | C27: =Inputs!R25 -> 0 | D27: =Inputs!S25 -> 0 | E27: =Inputs!T25 -> 0 | F27: 0 | G27: 0 | H27: 0 | I27: 0
A28: 20 | B28: =Inputs!P26 -> 0 | C28: =Inputs!R26 -> 0 | D28: =Inputs!S26 -> 0 | E28: =Inputs!T26 -> 0 | F28: 0 | G28: 0 | H28: 0 | I28: 0
A29: 21 | B29: =Inputs!P27 -> 0 | C29: =Inputs!R27 -> 0 | D29: =Inputs!S27 -> 0 | E29: =Inputs!T27 -> 0 | F29: 0 | G29: 0 | H29: 0 | I29: 0
A30: 22 | B30: =Inputs!P28 -> 0 | C30: =Inputs!R28 -> 0 | D30: =Inputs!S28 -> 0 | E30: =Inputs!T28 -> 0 | F30: 0 | G30: 0 | H30: 0 | I30: 0
A31: 23 | C31: Weighted Cost of Debt | F31: =SUM(F10:F30) -> 0 | G31: =SUM(G10:G30) -> 0 | I31: =SUM(I10:I30) -> 0
A32: 24
A33: 25 | B33: Equity
A34: 26 | C34: Common Stock | D34: =Inputs!G30 -> 0 | F34: =+D34 -> 0 | G34: =+F34/$F$41 -> 0 | H34: 0.12 | I34: =(+G34*H34) -> 0
A35: 27 | C35: Preferred Stock | D35: =Inputs!G31 -> 0 | F35: 0 | G35: =+F35/$F$41 -> 0 | H35: 0.12 | I35: =(+G35*H35) -> 0
A36: 28 | C36: Capital Stock | D36: =Inputs!G32 -> 0 | F36: 0 | G36: 0 | H36: 0.12 | I36: 0
A37: 29 | C37: Proprietary Capital | D37: =Inputs!G33 -> 0 | F37: 0 | G37: 0 | H37: 0.12 | I37: 0
A38: 30 | C38: Other Paid In Capital | D38: =Inputs!G34 -> 173379.52 | F38: 173379.52 | G38: =+F38/$F$41 -> 0.9553425945 | H38: 0.12 | I38: =(+G38*H38) -> 0.1146411113
A39: 31 | C39: Retained Earning | D39: =Inputs!G35 -> -9995.54 | F39: -9995.54 | G39: =+F39/$F$41 -> -0.0550766614 | H39: 0.12 | I39: =(+G39*H39) -> -0.006609199368
A40: 32 | C40: Net Income | D40: =PFIS!C50 -> 18441.88 | F40: =PFIS!F50 -> 18100.1504 | G40: =+F40/$F$41 -> 0.09973406689 | H40: 0.12 | I40: =(+G40*H40) -> 0.01196808803
A41: 33 | C41: Weighted Cost of Equity | D41: =SUM(D34:D40) -> 181825.86 | F41: =SUM(F34:F40) -> 181484.1304 | G41: =SUM(G34:G40) -> 1 | I41: =SUM(I34:I40) -> 0.12
A42: 34 | M42: 40/60
A43: 35 | B43: Regulatory Capital Structure | F43: Amounts | G43: Percentage | H43: Weight | I43: Actual | K43: =+G43 -> Percentage | L43: =+H43 -> Weight | M43: Hypothetical | N43: Only used if Equity > 60%
A44: 36 | B44: 0.4 | E44: Debt | F44: =+F31 -> 0 | G44: =IF(F44>F48,100%,+F44/F48) -> 0 | H44: 0.085 | I44: =+G44*H44 -> 0 | K44: 0.4 | L44: =+H44 -> 0.085 | M44: =IF(G44<40%, ((G44*I31)+((40%-G44)*K9)), +H44*40%) -> 0.04066666667
A45: 37
A46: 38 | B46: 0.6 | E46: Equity | F46: =+F41 -> 181484.1304 | G46: =IF(G44=100%, 0%,+F46/F48) -> 1 | H46: =+I41 -> 0.12 | I46: =+G46*H46 -> 0.12 | K46: 0.6 | L46: =+H46 -> 0.12 | M46: =IF(H46>0, +H46*60%, 12%*60%) -> 0.072
A47: 39
A48: 40 | F48: =SUM(F44:F47) -> 181484.1304 | G48: =SUM(G44:G47) -> 1
A49: 41
A50: 42 | G50: Weighted Average Cost of Capital | I50: =IF(ROUND(SUM(I44:I46),4)<0, 0, ROUND(SUM(I44:I46),4)) -> 0.12 | M50: =ROUND(SUM(M44:M46),4) -> 0.1127
A51: =+A50+1 -> 43 | N51: Source | BF51: Prime Rate | Current Prime Rate - Definition - History (moneycafe.com)
A52: =1+A51 -> 44 | B52: Weighted Cost of Capital for this rate case | N52: Update table September 1, 2023
A53: 45 | H53: Rate Case Overall Cost of Capital | I53: =IF(G46>60%,M50,I50) -> 0.1127 | O53: 2066 | P53: 2065 | Q53: 2064 | R53: 2063 | S53: 2062 | T53: 2061 | U53: 2060 | V53: 2059 | W53: 2058 | X53: 2057 | Y53: 2056 | Z53: 2055 | AA53: 2054 | AB53: 2053 | AC53: 2052 | AD53: 2051 | AE53: 2050 | AF53: 2049 | AG53: 2048 | AH53: 2047 | AI53: 2046 | AJ53: 2045 | AK53: 2044 | AL53: 2043 | AM53: 2042 | AN53: 2041 | AO53: 2040 | AP53: 2039 | AQ53: 2038 | AR53: 2037 | AS53: 2036 | AT53: 2035 | AU53: 2034 | AV53: 2033 | AW53: 2032 | AX53: 2031 | AY53: 2030 | AZ53: 2029 | BA53: 2028 | BB53: 2027 | BC53: 2026 | BD53: 2025 | BE53: 2024 | BF53: 2023 | BG53: 2022 | BH53: 2021 | BI53: 2020 | BJ53: 2019 | BK53: 2018 | BL53: 2017 | BM53: 2016 | BN53: 2015 | BO53: 2014 | BP53: 2013 | BQ53: 2012 | BR53: 2011 | BS53: 2010 | BT53: 2009 | BU53: 2008 | BV53: 2007 | BW53: 2006 | BX53: 2005 | BY53: 2004 | BZ53: 2003 | CA53: 2002 | CB53: 2001 | CC53: 2000 | CD53: 1999 | CE53: 1998 | CF53: 1997 | CG53: 1996 | CH53: 1995 | CI53: 1994 | CJ53: 1993 | CK53: 1992 | CL53: 1991 | CM53: 1990 | CN53: 1989 | CO53: 1988 | CP53: 1987 | CQ53: 1986 | CR53: 1985 | CS53: 1984 | CT53: 1983 | CU53: 1982 | CV53: 1981 | CW53: 1980 | CX53: 1979 | CY53: 1978 | CZ53: 1977 | DA53: 1976 | DB53: 1975 | DC53: 1974 | DD53: 1973 | DE53: 1972 | DF53: 1971 | DG53: 1970 | DH53: 1969 | DI53: 1968 | DJ53: 1967 | DK53: 1966 | DL53: 1965 | DM53: 1964 | DN53: 1963 | DO53: 1962 | DP53: 1961 | DQ53: 1960 | DR53: 1959 | DS53: 1958 | DT53: 1957 | DU53: 1956 | DV53: 1955 | DW53: 1954 | DX53: 1953 | DY53: 1952 | DZ53: 1951 | EA53: 1950 | EB53: 1949 | EC53: 1948 | ED53: 1947 | EE53: 1946 | EF53: 1945 | EG53: 1944 | EH53: 1943 | EI53: 1942 | EJ53: 1941 | EK53: 1940 | EL53: 1939 | EM53: 1938 | EN53: 1937 | EO53: 1936 | EP53: 1935 | EQ53: 1934 | ER53: 1933 | ES53: 1932 | ET53: 1931 | EU53: 1930 | EV53: 1929
A54: 46 | H54: Rate Case Overall Cost of Debt | I54: =IF(G46>60%,M44,I44) -> 0.04066666667 | N54: Jan | O54: 0 | P54: 0 | Q54: 0 | R54: 0 | S54: 0 | T54: 0 | U54: 0 | V54: 0 | W54: 0 | X54: 0 | Y54: 0 | Z54: 0 | AA54: 0 | AB54: 0 | AC54: 0 | AD54: 0 | AE54: 0 | AF54: 0 | AG54: 0 | AH54: 0 | AI54: 0 | AJ54: 0 | AK54: 0 | AL54: 0 | AM54: 0 | AN54: 0 | AO54: 0 | AP54: 0 | AQ54: 0 | AR54: 0 | AS54: 0 | AT54: 0 | AU54: 0 | AV54: 0 | AW54: 0 | AX54: 0 | AY54: 0 | AZ54: 0 | BA54: 0 | BB54: 0 | BC54: 0 | BE54: 8.5 | BF54: 7.5 | BG54: 3.25 | BH54: 3.25 | BI54: 4.75 | BJ54: 5.5 | BK54: 4.5 | BL54: 3.75 | BM54: 3.5 | BN54: 3.25 | BO54: 3.25 | BP54: 3.25 | BQ54: 3.25 | BR54: 3.25 | BS54: 3.25 | BT54: 3.25 | BU54: 7.25 | BV54: 8.25 | BW54: 7.25 | BX54: 5.25 | BY54: 4 | BZ54: 4.25 | CA54: 4.75 | CB54: 9.5 | CC54: 8.5 | CD54: 7.75 | CE54: 8.5 | CF54: 8.25 | CG54: 8.5 | CH54: 8.5 | CI54: 6 | CJ54: 6 | CK54: 6.5 | CL54: 9.5 | CM54: 10 | CN54: 10.5 | CO54: 8.75 | CP54: 7.5 | CQ54: 9.5 | CR54: 10.5 | CS54: 11 | CT54: 11 | CU54: 15.75 | CV54: 20 | CW54: 15.25 | CX54: 11.75 | CY54: 8 | CZ54: 6.25 | DA54: 6.75 | DB54: 9.5 | DC54: 9.5 | DD54: 6 | DE54: 4.75 | DF54: 6 | DG54: 8.5 | DH54: 7 | DI54: 6 | DJ54: 5.75 | DK54: 5 | DL54: 4.5 | DM54: 4.5 | DN54: 4.5 | DO54: 4.5 | DP54: 4.5 | DQ54: 5 | DR54: 4 | DS54: 4 | DT54: 4 | DU54: 3.5 | DV54: 3 | DW54: 3.25 | DX54: 3 | DY54: 3 | DZ54: 2.5 | EA54: 2 | EB54: 2 | EC54: 1.75 | ED54: 1.5 | EE54: 1.5 | EF54: 1.5 | EG54: 1.5 | EH54: 1.5 | EI54: 1.5 | EJ54: 1.5 | EK54: 1.5 | EL54: 1.5 | EM54: 1.5 | EN54: 1.5 | EO54: 1.5 | EP54: 1.5 | EQ54: 1.5 | ER54: 4 | ES54: 3.25 | ET54: 2.75 | EU54: 6 | EV54: 5.5 | EW54: Jan
A55: 47 | N55: Feb | O55: 0 | P55: 0 | Q55: 0 | R55: 0 | S55: 0 | T55: 0 | U55: 0 | V55: 0 | W55: 0 | X55: 0 | Y55: 0 | Z55: 0 | AA55: 0 | AB55: 0 | AC55: 0 | AD55: 0 | AE55: 0 | AF55: 0 | AG55: 0 | AH55: 0 | AI55: 0 | AJ55: 0 | AK55: 0 | AL55: 0 | AM55: 0 | AN55: 0 | AO55: 0 | AP55: 0 | AQ55: 0 | AR55: 0 | AS55: 0 | AT55: 0 | AU55: 0 | AV55: 0 | AW55: 0 | AX55: 0 | AY55: 0 | AZ55: 0 | BA55: 0 | BB55: 0 | BC55: 0 | BE55: 8.5 | BF55: 7.5 | BG55: 3.25 | BH55: 3.25 | BI55: 4.75 | BJ55: 5.5 | BK55: 4.5 | BL55: 3.75 | BM55: 3.5 | BN55: 3.25 | BO55: 3.25 | BP55: 3.25 | BQ55: 3.25 | BR55: 3.25 | BS55: 3.25 | BT55: 3.25 | BU55: 6 | BV55: 8.25 | BW55: 7.5 | BX55: 5.25 | BY55: 4 | BZ55: 4.25 | CA55: 4.75 | CB55: 8.5 | CC55: 8.5 | CD55: 7.75 | CE55: 8.5 | CF55: 8.25 | CG55: 8.25 | CH55: 9 | CI55: 6 | CJ55: 6 | CK55: 6.5 | CL55: 9 | CM55: 10 | CN55: 11.5 | CO55: 8.5 | CP55: 7.5 | CQ55: 9.5 | CR55: 10.5 | CS55: 11 | CT55: 10.5 | CU55: 16.5 | CV55: 19 | CW55: 16.75 | CX55: 11.75 | CY55: 8 | CZ55: 6.25 | DA55: 6.75 | DB55: 8.5 | DC55: 8.75 | DD55: 6.25 | DE55: 4.75 | DF55: 5.75 | DG55: 8.5 | DH55: 7 | DI55: 6 | DJ55: 5.75 | DK55: 5 | DL55: 4.5 | DM55: 4.5 | DN55: 4.5 | DO55: 4.5 | DP55: 4.5 | DQ55: 5 | DR55: 4 | DS55: 4 | DT55: 4 | DU55: 3.5 | DV55: 3 | DW55: 3.25 | DX55: 3 | DY55: 3 | DZ55: 2.5 | EA55: 2 | EB55: 2 | EC55: 1.75 | ED55: 1.5 | EE55: 1.5 | EF55: 1.5 | EG55: 1.5 | EH55: 1.5 | EI55: 1.5 | EJ55: 1.5 | EK55: 1.5 | EL55: 1.5 | EM55: 1.5 | EN55: 1.5 | EO55: 1.5 | EP55: 1.5 | EQ55: 1.5 | ER55: 4 | ES55: 3.5 | ET55: 2.75 | EU55: 4 | EV55: 5.5 | EW55: Feb
N56: Mar | O56: 0 | P56: 0 | Q56: 0 | R56: 0 | S56: 0 | T56: 0 | U56: 0 | V56: 0 | W56: 0 | X56: 0 | Y56: 0 | Z56: 0 | AA56: 0 | AB56: 0 | AC56: 0 | AD56: 0 | AE56: 0 | AF56: 0 | AG56: 0 | AH56: 0 | AI56: 0 | AJ56: 0 | AK56: 0 | AL56: 0 | AM56: 0 | AN56: 0 | AO56: 0 | AP56: 0 | AQ56: 0 | AR56: 0 | AS56: 0 | AT56: 0 | AU56: 0 | AV56: 0 | AW56: 0 | AX56: 0 | AY56: 0 | AZ56: 0 | BA56: 0 | BB56: 0 | BC56: 0 | BF56: 7.75 | BG56: 3.25 | BH56: 3.25 | BI56: 4.75 | BJ56: 5.5 | BK56: 4.5 | BL56: 3.75 | BM56: 3.5 | BN56: 3.25 | BO56: 3.25 | BP56: 3.25 | BQ56: 3.25 | BR56: 3.25 | BS56: 3.25 | BT56: 3.25 | BU56: 6 | BV56: 8.25 | BW56: 7.5 | BX56: 5.5 | BY56: 4 | BZ56: 4.25 | CA56: 4.75 | CB56: 8.5 | CC56: 8.75 | CD56: 7.75 | CE56: 8.5 | CF56: 8.25 | CG56: 8.25 | CH56: 9 | CI56: 6.25 | CJ56: 6 | CK56: 6.5 | CL56: 9 | CM56: 10 | CN56: 11.5 | CO56: 8.5 | CP56: 7.5 | CQ56: 9 | CR56: 10.5 | CS56: 11.5 | CT56: 10.5 | CU56: 16.5 | CV56: 17.5 | CW56: 19.5 | CX56: 11.75 | CY56: 8 | CZ56: 6.25 | DA56: 6.75 | DB56: 8.5 | DC56: 9.25 | DD56: 6.5 | DE56: 4.75 | DF56: 5.25 | DG56: 8 | DH56: 7.5 | DI56: 6 | DJ56: 5.5 | DK56: 5.5 | DL56: 4.5 | DM56: 4.5 | DN56: 4.5 | DO56: 4.5 | DP56: 4.5 | DQ56: 5 | DR56: 4 | DS56: 4 | DT56: 4 | DU56: 3.5 | DV56: 3 | DW56: 3 | DX56: 3 | DY56: 3 | DZ56: 2.5 | EA56: 2 | EB56: 2 | EC56: 1.75 | ED56: 1.5 | EE56: 1.5 | EF56: 1.5 | EG56: 1.5 | EH56: 1.5 | EI56: 1.5 | EJ56: 1.5 | EK56: 1.5 | EL56: 1.5 | EM56: 1.5 | EN56: 1.5 | EO56: 1.5 | EP56: 1.5 | EQ56: 1.5 | ER56: 4 | ES56: 3.75 | ET56: 3 | EU56: 4 | EV56: 5.5 | EW56: Mar
N57: Apr | O57: 0 | P57: 0 | Q57: 0 | R57: 0 | S57: 0 | T57: 0 | U57: 0 | V57: 0 | W57: 0 | X57: 0 | Y57: 0 | Z57: 0 | AA57: 0 | AB57: 0 | AC57: 0 | AD57: 0 | AE57: 0 | AF57: 0 | AG57: 0 | AH57: 0 | AI57: 0 | AJ57: 0 | AK57: 0 | AL57: 0 | AM57: 0 | AN57: 0 | AO57: 0 | AP57: 0 | AQ57: 0 | AR57: 0 | AS57: 0 | AT57: 0 | AU57: 0 | AV57: 0 | AW57: 0 | AX57: 0 | AY57: 0 | AZ57: 0 | BA57: 0 | BB57: 0 | BC57: 0 | BF57: 8 | BG57: 3.5 | BH57: 3.25 | BI57: 3.25 | BJ57: =+BJ56 -> 5.5 | BK57: 4.75 | BL57: 4 | BM57: 3.5 | BN57: 3.25 | BO57: 3.25 | BP57: 3.25 | BQ57: 3.25 | BR57: 3.25 | BS57: 3.25 | BT57: 3.25 | BU57: 5.25 | BV57: 8.25 | BW57: 7.75 | BX57: 5.75 | BY57: 4 | BZ57: 4.25 | CA57: 4.75 | CB57: 8 | CC57: 9 | CD57: 7.75 | CE57: 8.5 | CF57: 8.5 | CG57: 8.5 | CH57: 9 | CI57: 6.75 | CJ57: 6 | CK57: 6.5 | CL57: 9 | CM57: 10 | CN57: 11.5 | CO57: 8.5 | CP57: 7.25 | CQ57: 8.5 | CR57: 10.5 | CS57: 12 | CT57: 10.5 | CU57: 16.5 | CV57: 18 | CW57: 19.5 | CX57: 11.75 | CY57: 8 | CZ57: 6.25 | DA57: 6.75 | DB57: 8.5 | DC57: 10.5 | DD57: 6.75 | DE57: 5 | DF57: 5.38 | DG57: 8 | DH57: 7.5 | DI57: 6.5 | DJ57: 5.5 | DK57: 5.5 | DL57: 4.5 | DM57: 4.5 | DN57: 4.5 | DO57: 4.5 | DP57: 4.5 | DQ57: 5 | DR57: 4 | DS57: 3.5 | DT57: 4 | DU57: 3.75 | DV57: 3 | DW57: 3 | DX57: 3.25 | DY57: 3 | DZ57: 2.5 | EA57: 2 | EB57: 2 | EC57: 1.75 | ED57: 1.5 | EE57: 1.5 | EF57: 1.5 | EG57: 1.5 | EH57: 1.5 | EI57: 1.5 | EJ57: 1.5 | EK57: 1.5 | EL57: 1.5 | EM57: 1.5 | EN57: 1.5 | EO57: 1.5 | EP57: 1.5 | EQ57: 1.5 | ER57: 3 | ES57: 3.75 | ET57: 4.25 | EU57: 4 | EV57: 5.5 | EW57: Apr
C58: Is something on here used to calculate interest expense? | N58: May | O58: 0 | P58: 0 | Q58: 0 | R58: 0 | S58: 0 | T58: 0 | U58: 0 | V58: 0 | W58: 0 | X58: 0 | Y58: 0 | Z58: 0 | AA58: 0 | AB58: 0 | AC58: 0 | AD58: 0 | AE58: 0 | AF58: 0 | AG58: 0 | AH58: 0 | AI58: 0 | AJ58: 0 | AK58: 0 | AL58: 0 | AM58: 0 | AN58: 0 | AO58: 0 | AP58: 0 | AQ58: 0 | AR58: 0 | AS58: 0 | AT58: 0 | AU58: 0 | AV58: 0 | AW58: 0 | AX58: 0 | AY58: 0 | AZ58: 0 | BA58: 0 | BB58: 0 | BC58: 0 | BF58: 8.25 | BG58: 3.5 | BH58: 3.25 | BI58: 3.25 | BJ58: =+BJ57 -> 5.5 | BK58: =+BK57 -> 4.75 | BL58: 4 | BM58: 3.5 | BN58: 3.25 | BO58: 3.25 | BP58: 3.25 | BQ58: 3.25 | BR58: 3.25 | BS58: 3.25 | BT58: 3.25 | BU58: 5 | BV58: 8.25 | BW58: 7.75 | BX58: 5.75 | BY58: 4 | BZ58: 4.25 | CA58: 4.75 | CB58: 7.5 | CC58: 9 | CD58: 7.75 | CE58: 8.5 | CF58: 8.5 | CG58: 8.5 | CH58: 9 | CI58: 7.25 | CJ58: 6 | CK58: 6.5 | CL58: 8.5 | CM58: 10 | CN58: 11.5 | CO58: 9 | CP58: 8.25 | CQ58: 8.5 | CR58: 10 | CS58: 12.5 | CT58: 10.5 | CU58: 16.5 | CV58: 20.5 | CW58: 14 | CX58: 11.75 | CY58: 8.5 | CZ58: 6.75 | DA58: 6.75 | DB58: 7.25 | DC58: 11.5 | DD58: 7.25 | DE58: 5 | DF58: 5.5 | DG58: 8 | DH58: 7.5 | DI58: 6.5 | DJ58: 5.5 | DK58: 5.5 | DL58: 4.5 | DM58: 4.5 | DN58: 4.5 | DO58: 4.5 | DP58: 4.5 | DQ58: 5 | DR58: 4.5 | DS58: 3.5 | DT58: 4 | DU58: 3.75 | DV58: 3 | DW58: 3 | DX58: 3.25 | DY58: 3 | DZ58: 2.5 | EA58: 2 | EB58: 2 | EC58: 1.75 | ED58: 1.5 | EE58: 1.5 | EF58: 1.5 | EG58: 1.5 | EH58: 1.5 | EI58: 1.5 | EJ58: 1.5 | EK58: 1.5 | EL58: 1.5 | EM58: 1.5 | EN58: 1.5 | EO58: 1.5 | EP58: 1.5 | EQ58: 1.5 | ER58: 3 | ES58: 3.75 | ET58: 5 | EU58: 4 | EV58: 5.5 | EW58: May
N59: Jun | O59: 0 | P59: 0 | Q59: 0 | R59: 0 | S59: 0 | T59: 0 | U59: 0 | V59: 0 | W59: 0 | X59: 0 | Y59: 0 | Z59: 0 | AA59: 0 | AB59: 0 | AC59: 0 | AD59: 0 | AE59: 0 | AF59: 0 | AG59: 0 | AH59: 0 | AI59: 0 | AJ59: 0 | AK59: 0 | AL59: 0 | AM59: 0 | AN59: 0 | AO59: 0 | AP59: 0 | AQ59: 0 | AR59: 0 | AS59: 0 | AT59: 0 | AU59: 0 | AV59: 0 | AW59: 0 | AX59: 0 | AY59: 0 | AZ59: 0 | BA59: 0 | BB59: 0 | BC59: 0 | BF59: 8.25 | BG59: 4 | BH59: 3.25 | BI59: 3.25 | BJ59: =+BJ58 -> 5.5 | BK59: =+BK58 -> 4.75 | BL59: 4 | BM59: 3.5 | BN59: 3.25 | BO59: 3.25 | BP59: 3.25 | BQ59: 3.25 | BR59: 3.25 | BS59: 3.25 | BT59: 3.25 | BU59: 5 | BV59: 8.25 | BW59: 8 | BX59: 6 | BY59: 4 | BZ59: 4.25 | CA59: 4.75 | CB59: 7 | CC59: 9.5 | CD59: 7.75 | CE59: 8.5 | CF59: 8.5 | CG59: 8.5 | CH59: 9 | CI59: 7.25 | CJ59: 6 | CK59: 6.5 | CL59: 8.5 | CM59: 10 | CN59: 11 | CO59: 9 | CP59: 8.25 | CQ59: 8.5 | CR59: 9.5 | CS59: 13 | CT59: 10.5 | CU59: 16.5 | CV59: 20 | CW59: 12 | CX59: 11.5 | CY59: 9 | CZ59: 6.75 | DA59: 7.25 | DB59: 7 | DC59: 11.75 | DD59: 7.75 | DE59: 5.25 | DF59: 5.5 | DG59: 8 | DH59: 8.5 | DI59: 6.5 | DJ59: 5.5 | DK59: 5.75 | DL59: 4.5 | DM59: 4.5 | DN59: 4.5 | DO59: 4.5 | DP59: 4.5 | DQ59: 5 | DR59: 4.5 | DS59: 3.5 | DT59: 4 | DU59: 3.75 | DV59: 3 | DW59: 3 | DX59: 3.25 | DY59: 3 | DZ59: 2.5 | EA59: 2 | EB59: 2 | EC59: 1.75 | ED59: 1.5 | EE59: 1.5 | EF59: 1.5 | EG59: 1.5 | EH59: 1.5 | EI59: 1.5 | EJ59: 1.5 | EK59: 1.5 | EL59: 1.5 | EM59: 1.5 | EN59: 1.5 | EO59: 1.5 | EP59: 1.5 | EQ59: 1.5 | ER59: 3 | ES59: 3.75 | ET59: 5 | EU59: 4 | EV59: 5.5 | EW59: Jun
N60: Jul | O60: 0 | P60: 0 | Q60: 0 | R60: 0 | S60: 0 | T60: 0 | U60: 0 | V60: 0 | W60: 0 | X60: 0 | Y60: 0 | Z60: 0 | AA60: 0 | AB60: 0 | AC60: 0 | AD60: 0 | AE60: 0 | AF60: 0 | AG60: 0 | AH60: 0 | AI60: 0 | AJ60: 0 | AK60: 0 | AL60: 0 | AM60: 0 | AN60: 0 | AO60: 0 | AP60: 0 | AQ60: 0 | AR60: 0 | AS60: 0 | AT60: 0 | AU60: 0 | AV60: 0 | AW60: 0 | AX60: 0 | AY60: 0 | AZ60: 0 | BA60: 0 | BB60: 0 | BC60: 0 | BF60: 8.25 | BG60: 4.75 | BH60: 3.25 | BI60: 3.25 | BJ60: 5.25 | BK60: 5 | BL60: 4.25 | BM60: 3.5 | BN60: 3.25 | BO60: 3.25 | BP60: 3.25 | BQ60: 3.25 | BR60: 3.25 | BS60: 3.25 | BT60: 3.25 | BU60: 5 | BV60: 8.25 | BW60: 8.25 | BX60: 6.25 | BY60: 4.25 | BZ60: 4 | CA60: 4.75 | CB60: 6.75 | CC60: 9.5 | CD60: 8 | CE60: 8.5 | CF60: 8.5 | CG60: 8.5 | CH60: 8.75 | CI60: 7.25 | CJ60: 6 | CK60: 6 | CL60: 8.5 | CM60: 10 | CN60: 10.5 | CO60: 9.5 | CP60: 8.25 | CQ60: 8 | CR60: 9.5 | CS60: 13 | CT60: 10.5 | CU60: 15.5 | CV60: 20.5 | CW60: 11 | CX60: 11.75 | CY60: 9 | CZ60: 6.75 | DA60: 7.25 | DB60: 7.5 | DC60: 12 | DD60: 8.75 | DE60: 5.25 | DF60: 6 | DG60: 8 | DH60: 8.5 | DI60: 6.5 | DJ60: 5.5 | DK60: 5.75 | DL60: 4.5 | DM60: 4.5 | DN60: 4.5 | DO60: 4.5 | DP60: 4.5 | DQ60: 5 | DR60: 4.5 | DS60: 3.5 | DT60: 4 | DU60: 3.75 | DV60: 3 | DW60: 3 | DX60: 3.25 | DY60: 3 | DZ60: 2.5 | EA60: 2 | EB60: 2 | EC60: 1.75 | ED60: 1.5 | EE60: 1.5 | EF60: 1.5 | EG60: 1.5 | EH60: 1.5 | EI60: 1.5 | EJ60: 1.5 | EK60: 1.5 | EL60: 1.5 | EM60: 1.5 | EN60: 1.5 | EO60: 1.5 | EP60: 1.5 | EQ60: 1.5 | ER60: 3 | ES60: 3.75 | ET60: 5 | EU60: 4 | EV60: 5.5 | EW60: Jul
N61: Aug | O61: 0 | P61: 0 | Q61: 0 | R61: 0 | S61: 0 | T61: 0 | U61: 0 | V61: 0 | W61: 0 | X61: 0 | Y61: 0 | Z61: 0 | AA61: 0 | AB61: 0 | AC61: 0 | AD61: 0 | AE61: 0 | AF61: 0 | AG61: 0 | AH61: 0 | AI61: 0 | AJ61: 0 | AK61: 0 | AL61: 0 | AM61: 0 | AN61: 0 | AO61: 0 | AP61: 0 | AQ61: 0 | AR61: 0 | AS61: 0 | AT61: 0 | AU61: 0 | AV61: 0 | AW61: 0 | AX61: 0 | AY61: 0 | AZ61: 0 | BA61: 0 | BB61: 0 | BC61: 0 | BF61: 8.5 | BG61: 5.5 | BH61: 3.25 | BI61: 3.25 | BJ61: 5.25 | BK61: 5 | BL61: 4.25 | BM61: 3.5 | BN61: 3.25 | BO61: 3.25 | BP61: 3.25 | BQ61: 3.25 | BR61: 3.25 | BS61: 3.25 | BT61: 3.25 | BU61: 5 | BV61: 8.25 | BW61: 8.25 | BX61: 6.25 | BY61: 4.25 | BZ61: 4 | CA61: 4.75 | CB61: 6.75 | CC61: 9.5 | CD61: 8 | CE61: 8.5 | CF61: 8.5 | CG61: 8.5 | CH61: 8.75 | CI61: 7.75 | CJ61: 6 | CK61: 6 | CL61: 8.5 | CM61: 10 | CN61: 10.5 | CO61: 10 | CP61: 8.25 | CQ61: 7.5 | CR61: 9.5 | CS61: 13 | CT61: 11 | CU61: 14 | CV61: 20.5 | CW61: 11.5 | CX61: 12.25 | CY61: 9.25 | CZ61: 7 | DA61: 7 | DB61: 7.75 | DC61: 12 | DD61: 9.75 | DE61: 5.5 | DF61: 6 | DG61: 8 | DH61: 8.5 | DI61: 6.5 | DJ61: 5.5 | DK61: 6 | DL61: 4.5 | DM61: 4.5 | DN61: 4.5 | DO61: 4.5 | DP61: 4.5 | DQ61: 4.5 | DR61: 4.5 | DS61: 3.5 | DT61: 4.5 | DU61: 4 | DV61: 3.25 | DW61: 3 | DX61: 3.25 | DY61: 3 | DZ61: 2.5 | EA61: 2 | EB61: 2 | EC61: 2 | ED61: 1.5 | EE61: 1.5 | EF61: 1.5 | EG61: 1.5 | EH61: 1.5 | EI61: 1.5 | EJ61: 1.5 | EK61: 1.5 | EL61: 1.5 | EM61: 1.5 | EN61: 1.5 | EO61: 1.5 | EP61: 1.5 | EQ61: 1.5 | ER61: 1.5 | ES61: 4 | ET61: 5 | EU61: 4 | EV61: 5.5 | EW61: Aug
N62: Sep | O62: 0 | P62: 0 | Q62: 0 | R62: 0 | S62: 0 | T62: 0 | U62: 0 | V62: 0 | W62: 0 | X62: 0 | Y62: 0 | Z62: 0 | AA62: 0 | AB62: 0 | AC62: 0 | AD62: 0 | AE62: 0 | AF62: 0 | AG62: 0 | AH62: 0 | AI62: 0 | AJ62: 0 | AK62: 0 | AL62: 0 | AM62: 0 | AN62: 0 | AO62: 0 | AP62: 0 | AQ62: 0 | AR62: 0 | AS62: 0 | AT62: 0 | AU62: 0 | AV62: 0 | AW62: 0 | AX62: 0 | AY62: 0 | AZ62: 0 | BA62: 0 | BB62: 0 | BC62: 0 | BF62: 8.5 | BG62: 5.5 | BH62: 3.25 | BI62: 3.25 | BJ62: 5 | BK62: 5 | BL62: 4.25 | BM62: 3.5 | BN62: 3.25 | BO62: 3.25 | BP62: 3.25 | BQ62: 3.25 | BR62: 3.25 | BS62: 3.25 | BT62: 3.25 | BU62: 5 | BV62: 8.25 | BW62: 8.25 | BX62: 6.5 | BY62: 4.5 | BZ62: 4 | CA62: 4.75 | CB62: 6.5 | CC62: 9.5 | CD62: 8.25 | CE62: 8.5 | CF62: 8.5 | CG62: 8.5 | CH62: 8.75 | CI62: 7.75 | CJ62: 6 | CK62: 6 | CL62: 8 | CM62: 10 | CN62: 10.5 | CO62: 10 | CP62: 8.75 | CQ62: 7.5 | CR62: 9.5 | CS62: 12.75 | CT62: 11 | CU62: 13.5 | CV62: 19.5 | CW62: 13 | CX62: 13.5 | CY62: 9.75 | CZ62: 7.25 | DA62: 7 | DB62: 8 | DC62: 12 | DD62: 10 | DE62: 5.5 | DF62: 6 | DG62: 7.5 | DH62: 8.5 | DI62: 6.25 | DJ62: 5.5 | DK62: 6 | DL62: 4.5 | DM62: 4.5 | DN62: 4.5 | DO62: 4.5 | DP62: 4.5 | DQ62: 4.5 | DR62: 5 | DS62: 4 | DT62: 4.5 | DU62: 4 | DV62: 3.25 | DW62: 3 | DX62: 3.25 | DY62: 3 | DZ62: 2.5 | EA62: 2.25 | EB62: 2 | EC62: 2 | ED62: 1.5 | EE62: 1.5 | EF62: 1.5 | EG62: 1.5 | EH62: 1.5 | EI62: 1.5 | EJ62: 1.5 | EK62: 1.5 | EL62: 1.5 | EM62: 1.5 | EN62: 1.5 | EO62: 1.5 | EP62: 1.5 | EQ62: 1.5 | ER62: 1.5 | ES62: 4 | ET62: 5 | EU62: 4 | EV62: 5.5 | EW62: Sep
N63: Oct | O63: 0 | P63: 0 | Q63: 0 | R63: 0 | S63: 0 | T63: 0 | U63: 0 | V63: 0 | W63: 0 | X63: 0 | Y63: 0 | Z63: 0 | AA63: 0 | AB63: 0 | AC63: 0 | AD63: 0 | AE63: 0 | AF63: 0 | AG63: 0 | AH63: 0 | AI63: 0 | AJ63: 0 | AK63: 0 | AL63: 0 | AM63: 0 | AN63: 0 | AO63: 0 | AP63: 0 | AQ63: 0 | AR63: 0 | AS63: 0 | AT63: 0 | AU63: 0 | AV63: 0 | AW63: 0 | AX63: 0 | AY63: 0 | AZ63: 0 | BA63: 0 | BB63: 0 | BC63: 0 | BF63: 8.5 | BG63: 6.25 | BH63: 3.25 | BI63: 3.25 | BJ63: 5 | BK63: 5.25 | BL63: 4.25 | BM63: 3.5 | BN63: 3.25 | BO63: 3.25 | BP63: 3.25 | BQ63: 3.25 | BR63: 3.25 | BS63: 3.25 | BT63: 3.25 | BU63: 5 | BV63: 7.75 | BW63: 8.25 | BX63: 6.75 | BY63: 4.75 | BZ63: 4 | CA63: 4.75 | CB63: 6 | CC63: 9.5 | CD63: 8.25 | CE63: 8.25 | CF63: 8.5 | CG63: 8.5 | CH63: 8.75 | CI63: 7.75 | CJ63: 6 | CK63: 6 | CL63: 8 | CM63: 10 | CN63: 10.5 | CO63: 10 | CP63: 9 | CQ63: 7.5 | CR63: 9.5 | CS63: 12 | CT63: 11 | CU63: 12 | CV63: 18 | CW63: 14.5 | CX63: 15 | CY63: 10.25 | CZ63: 7.75 | DA63: 6.75 | DB63: 7.75 | DC63: 11.25 | DD63: 9.75 | DE63: 5.75 | DF63: 5.75 | DG63: 7.5 | DH63: 8.5 | DI63: 6.25 | DJ63: 5.5 | DK63: 6 | DL63: 4.5 | DM63: 4.5 | DN63: 4.5 | DO63: 4.5 | DP63: 4.5 | DQ63: 4.5 | DR63: 5 | DS63: 4 | DT63: 4.5 | DU63: 4 | DV63: 3.5 | DW63: 3 | DX63: 3.25 | DY63: 3 | DZ63: 2.75 | EA63: 2.25 | EB63: 2 | EC63: 2 | ED63: 1.5 | EE63: 1.5 | EF63: 1.5 | EG63: 1.5 | EH63: 1.5 | EI63: 1.5 | EJ63: 1.5 | EK63: 1.5 | EL63: 1.5 | EM63: 1.5 | EN63: 1.5 | EO63: 1.5 | EP63: 1.5 | EQ63: 1.5 | ER63: 1.5 | ES63: 4 | ET63: 4 | EU63: 3.5 | EV63: 5.5 | EW63: Oct
N64: Nov | O64: 0 | P64: 0 | Q64: 0 | R64: 0 | S64: 0 | T64: 0 | U64: 0 | V64: 0 | W64: 0 | X64: 0 | Y64: 0 | Z64: 0 | AA64: 0 | AB64: 0 | AC64: 0 | AD64: 0 | AE64: 0 | AF64: 0 | AG64: 0 | AH64: 0 | AI64: 0 | AJ64: 0 | AK64: 0 | AL64: 0 | AM64: 0 | AN64: 0 | AO64: 0 | AP64: 0 | AQ64: 0 | AR64: 0 | AS64: 0 | AT64: 0 | AU64: 0 | AV64: 0 | AW64: 0 | AX64: 0 | AY64: 0 | AZ64: 0 | BA64: 0 | BB64: 0 | BC64: 0 | BF64: 8.5 | BG64: 6.25 | BH64: 3.25 | BI64: 3.25 | BJ64: 4.75 | BK64: 5.25 | BL64: 4.25 | BM64: 3.5 | BN64: 3.25 | BO64: 3.25 | BP64: 3.25 | BQ64: 3.25 | BR64: 3.25 | BS64: 3.25 | BT64: 3.25 | BU64: 4 | BV64: 7.5 | BW64: 8.25 | BX64: 7 | BY64: 4.75 | BZ64: 4 | CA64: 4.75 | CB64: 5.5 | CC64: 9.5 | CD64: 8.25 | CE64: 8 | CF64: 8.5 | CG64: 8.5 | CH64: 8.75 | CI64: 8.5 | CJ64: 6 | CK64: 6 | CL64: 7.5 | CM64: 10 | CN64: 10.5 | CO64: 10.5 | CP64: 8.75 | CQ64: 7.5 | CR64: 9.5 | CS64: 11.25 | CT64: 11 | CU64: 11.5 | CV64: 16 | CW64: 17.75 | CX64: 15.5 | CY64: 11.5 | CZ64: 7.75 | DA64: 6.5 | DB64: 7.5 | DC64: 10.5 | DD64: 9.75 | DE64: 5.75 | DF64: 5.5 | DG64: 7 | DH64: 8.5 | DI64: 6.25 | DJ64: 6 | DK64: 6 | DL64: 4.5 | DM64: 4.5 | DN64: 4.5 | DO64: 4.5 | DP64: 4.5 | DQ64: 4.5 | DR64: 5 | DS64: 4 | DT64: 4.5 | DU64: 4 | DV64: 3.5 | DW64: 3 | DX64: 3.25 | DY64: 3 | DZ64: 2.75 | EA64: 2.25 | EB64: 2 | EC64: 2 | ED64: 1.5 | EE64: 1.5 | EF64: 1.5 | EG64: 1.5 | EH64: 1.5 | EI64: 1.5 | EJ64: 1.5 | EK64: 1.5 | EL64: 1.5 | EM64: 1.5 | EN64: 1.5 | EO64: 1.5 | EP64: 1.5 | EQ64: 1.5 | ER64: 1.5 | ES64: 4 | ET64: 4 | EU64: 3.5 | EV64: 5.5 | EW64: Nov
N65: Dec | O65: 0 | P65: 0 | Q65: 0 | R65: 0 | S65: 0 | T65: 0 | U65: 0 | V65: 0 | W65: 0 | X65: 0 | Y65: 0 | Z65: 0 | AA65: 0 | AB65: 0 | AC65: 0 | AD65: 0 | AE65: 0 | AF65: 0 | AG65: 0 | AH65: 0 | AI65: 0 | AJ65: 0 | AK65: 0 | AL65: 0 | AM65: 0 | AN65: 0 | AO65: 0 | AP65: 0 | AQ65: 0 | AR65: 0 | AS65: 0 | AT65: 0 | AU65: 0 | AV65: 0 | AW65: 0 | AX65: 0 | AY65: 0 | AZ65: 0 | BA65: 0 | BB65: 0 | BC65: 0 | BF65: 8.5 | BG65: 7 | BH65: 3.25 | BI65: 3.25 | BJ65: 4.75 | BK65: 5.25 | BL65: 4.25 | BM65: 3.5 | BN65: 3.25 | BO65: 3.25 | BP65: 3.25 | BQ65: 3.25 | BR65: 3.25 | BS65: 3.25 | BT65: 3.25 | BU65: 4 | BV65: 7.5 | BW65: 8.25 | BX65: 7 | BY65: 5 | BZ65: 4 | CA65: 4.25 | CB65: 5 | CC65: 9.5 | CD65: 8.5 | CE65: 7.75 | CF65: 8.5 | CG65: 8.5 | CH65: 8.5 | CI65: 8.5 | CJ65: 6 | CK65: 6 | CL65: 6.5 | CM65: 10 | CN65: 10.5 | CO65: 10.5 | CP65: 8.75 | CQ65: 7.5 | CR65: 9.5 | CS65: 10.75 | CT65: 11 | CU65: 11.5 | CV65: 15.75 | CW65: 21.5 | CX65: 15.25 | CY65: 11.75 | CZ65: 7.75 | DA65: 6.25 | DB65: 7.25 | DC65: 10.5 | DD65: 9.75 | DE65: 6 | DF65: 5.25 | DG65: 6.75 | DH65: 8.5 | DI65: 6.75 | DJ65: 6 | DK65: 6 | DL65: 5 | DM65: 4.5 | DN65: 4.5 | DO65: 4.5 | DP65: 4.5 | DQ65: 4.5 | DR65: 5 | DS65: 4 | DT65: 4.5 | DU65: 4 | DV65: 3.5 | DW65: 3 | DX65: 3.25 | DY65: 3 | DZ65: 3 | EA65: 2.25 | EB65: 2 | EC65: 2 | ED65: 1.75 | EE65: 1.5 | EF65: 1.5 | EG65: 1.5 | EH65: 1.5 | EI65: 1.5 | EJ65: 1.5 | EK65: 1.5 | EL65: 1.5 | EM65: 1.5 | EN65: 1.5 | EO65: 1.5 | EP65: 1.5 | EQ65: 1.5 | ER65: 1.5 | ES65: 4 | ET65: 4 | EU65: 3.5 | EV65: 6 | EW65: Dec
N66: Prime Rate for Test Period | O66: =IFERROR(SUM(O54:O65)/COUNTIF(O54:O65,">0"),"") ->  | BE66: 8.5 | BF66: 8.166666667 | BG66: 4.666666667 | BH66: 3.25 | BI66: 3.625 | BJ66: 5.25 | BK66: 4.875 | BL66: =IFERROR(SUM(BL54:BL65)/COUNTIF(BL54:BL65,">0"),"") -> 4.0625 | BM66: =IFERROR(SUM(BM54:BM65)/COUNTIF(BM54:BM65,">0"),"") -> 3.5 | BN66: 3.25 | BO66: 3.25 | BP66: 3.25 | BQ66: 3.25 | BR66: 3.25 | BS66: 3.25 | BT66: 3.25 | BU66: 5.208333333 | BV66: 8.083333333 | BW66: 7.9375 | BX66: 6.104166667 | BY66: 4.291666667 | BZ66: 4.125 | CA66: 4.708333333 | CB66: 7.125 | CC66: 9.1875 | CD66: 7.979166667 | CE66: 8.375 | CF66: 8.4375 | CG66: 8.458333333 | CH66: 8.8125 | CI66: 7.25 | CJ66: 6 | CK66: 6.25 | CL66: 8.375 | CM66: 10 | CN66: 10.875 | CO66: 9.395833333 | CP66: 8.166666667 | CQ66: 8.25 | CR66: 9.875 | CS66: 11.97916667 | CT66: 10.75 | CU66: 14.6875 | CV66: 18.77083333 | CW66: 15.52083333 | CX66: 12.79166667 | CY66: 9.25 | CZ66: 6.895833333 | DA66: 6.8125 | DB66: 7.916666667 | DC66: 10.79166667 | DD66: 8.1875 | DE66: 5.270833333 | DF66: 5.656666667 | DG66: 7.8125 | DH66: 8 | DI66: 6.333333333 | DJ66: 5.625 | DK66: 5.666666667 | DL66: 4.541666667 | DM66: 4.5 | DN66: 4.5 | DO66: 4.5 | DP66: 4.5 | DQ66: 4.791666667 | DR66: 4.5 | DS66: 3.791666667 | DT66: 4.208333333 | DU66: 3.791666667 | DV66: 3.166666667 | DW66: 3.041666667 | DX66: 3.1875 | DY66: =IFERROR(SUM(DY54:DY65)/COUNTIF(DY54:DY65,">0"),"") -> 3 | DZ66: 2.583333333 | EA66: 2.083333333 | EB66: 2 | EC66: 1.854166667 | ED66: 1.520833333 | EE66: 1.5 | EF66: 1.5 | EG66: 1.5 | EH66: 1.5 | EI66: 1.5 | EJ66: 1.5 | EK66: 1.5 | EL66: 1.5 | EM66: 1.5 | EN66: 1.5 | EO66: 1.5 | EP66: 1.5 | EQ66: 1.5 | ER66: 2.625 | ES66: 3.791666667 | ET66: 4.145833333 | EU66: 4.041666667 | EV66: 5.541666667
N67: 1 | O67: =IFERROR(O$66+$N$67,"") ->  | BE67: 9.5 | BF67: 9.166666667 | BG67: 5.666666667 | BH67: 4.25 | BI67: 4.625 | BJ67: 6.25 | BK67: 5.875 | BL67: =IFERROR(BL$66+$N$67,"") -> 5.0625 | BM67: =IFERROR(BM$66+$N$67,"") -> 4.5 | BN67: 4.25 | BO67: 4.25 | BP67: 4.25 | BQ67: 4.25 | BR67: 4.25 | BS67: 4.25 | BT67: 4.25 | BU67: 6.208333333 | BV67: 9.083333333 | BW67: 8.9375 | BX67: 7.104166667 | BY67: 5.291666667 | BZ67: 5.125 | CA67: 5.708333333 | CB67: 8.125 | CC67: 10.1875 | CD67: 8.979166667 | CE67: 9.375 | CF67: 9.4375 | CG67: 9.458333333 | CH67: 9.8125 | CI67: 8.25 | CJ67: 7 | CK67: 7.25 | CL67: 9.375 | CM67: 11 | CN67: 11.875 | CO67: 10.39583333 | CP67: 9.166666667 | CQ67: 9.25 | CR67: 10.875 | CS67: 12.97916667 | CT67: 11.75 | CU67: 15.6875 | CV67: 19.77083333 | CW67: 16.52083333 | CX67: 13.79166667 | CY67: 10.25 | CZ67: 7.895833333 | DA67: 7.8125 | DB67: 8.916666667 | DC67: 11.79166667 | DD67: 9.1875 | DE67: 6.270833333 | DF67: 6.656666667 | DG67: 8.8125 | DH67: 9 | DI67: 7.333333333 | DJ67: 6.625 | DK67: 6.666666667 | DL67: 5.541666667 | DM67: 5.5 | DN67: 5.5 | DO67: 5.5 | DP67: 5.5 | DQ67: 5.791666667 | DR67: 5.5 | DS67: 4.791666667 | DT67: 5.208333333 | DU67: 4.791666667 | DV67: 4.166666667 | DW67: 4.041666667 | DX67: 4.1875 | DY67: =IFERROR(DY$66+$N$67,"") -> 4 | DZ67: 3.583333333 | EA67: 3.083333333 | EB67: 3 | EC67: 2.854166667 | ED67: 2.520833333 | EE67: 2.5 | EF67: 2.5 | EG67: 2.5 | EH67: 2.5 | EI67: 2.5 | EJ67: 2.5 | EK67: 2.5 | EL67: 2.5 | EM67: 2.5 | EN67: 2.5 | EO67: 2.5 | EP67: 2.5 | EQ67: 2.5 | ER67: 3.625 | ES67: 4.791666667 | ET67: 5.145833333 | EU67: 5.041666667 | EV67: 6.541666667
N68: 2 | O68: =IFERROR(O$66+$N$68,"") ->  | BE68: 10.5 | BF68: 10.16666667 | BG68: 6.666666667 | BH68: 5.25 | BI68: 5.625 | BJ68: 7.25 | BK68: 6.875 | BL68: =IFERROR(BL$66+$N$68,"") -> 6.0625 | BM68: =IFERROR(BM$66+$N$68,"") -> 5.5 | BN68: 5.25 | BO68: 5.25 | BP68: 5.25 | BQ68: 5.25 | BR68: 5.25 | BS68: 5.25 | BT68: 5.25 | BU68: 7.208333333 | BV68: 10.08333333 | BW68: 9.9375 | BX68: 8.104166667 | BY68: 6.291666667 | BZ68: 6.125 | CA68: 6.708333333 | CB68: 9.125 | CC68: 11.1875 | CD68: 9.979166667 | CE68: 10.375 | CF68: 10.4375 | CG68: 10.45833333 | CH68: 10.8125 | CI68: 9.25 | CJ68: 8 | CK68: 8.25 | CL68: 10.375 | CM68: 12 | CN68: 12.875 | CO68: 11.39583333 | CP68: 10.16666667 | CQ68: 10.25 | CR68: 11.875 | CS68: 13.97916667 | CT68: 12.75 | CU68: 16.6875 | CV68: 20.77083333 | CW68: 17.52083333 | CX68: 14.79166667 | CY68: 11.25 | CZ68: 8.895833333 | DA68: 8.8125 | DB68: 9.916666667 | DC68: 12.79166667 | DD68: 10.1875 | DE68: 7.270833333 | DF68: 7.656666667 | DG68: 9.8125 | DH68: 10 | DI68: 8.333333333 | DJ68: 7.625 | DK68: 7.666666667 | DL68: 6.541666667 | DM68: 6.5 | DN68: 6.5 | DO68: 6.5 | DP68: 6.5 | DQ68: 6.791666667 | DR68: 6.5 | DS68: 5.791666667 | DT68: 6.208333333 | DU68: 5.791666667 | DV68: 5.166666667 | DW68: 5.041666667 | DX68: 5.1875 | DY68: =IFERROR(DY$66+$N$68,"") -> 5 | DZ68: 4.583333333 | EA68: 4.083333333 | EB68: 4 | EC68: 3.854166667 | ED68: 3.520833333 | EE68: 3.5 | EF68: 3.5 | EG68: 3.5 | EH68: 3.5 | EI68: 3.5 | EJ68: 3.5 | EK68: 3.5 | EL68: 3.5 | EM68: 3.5 | EN68: 3.5 | EO68: 3.5 | EP68: 3.5 | EQ68: 3.5 | ER68: 4.625 | ES68: 5.791666667 | ET68: 6.145833333 | EU68: 6.041666667 | EV68: 7.541666667
N69: 2.5 | O69: =IFERROR(O$66+$N$69,"") ->  | BE69: 11 | BF69: 10.66666667 | BG69: 7.166666667 | BH69: 5.75 | BI69: 6.125 | BJ69: 7.75 | BK69: 7.375 | BL69: =IFERROR(BL$66+$N$69,"") -> 6.5625 | BM69: =IFERROR(BM$66+$N$69,"") -> 6 | BN69: 5.75 | BO69: 5.75 | BP69: 5.75 | BQ69: 5.75 | BR69: 5.75 | BS69: 5.75 | BT69: 5.75 | BU69: 7.708333333 | BV69: 10.58333333 | BW69: 10.4375 | BX69: 8.604166667 | BY69: 6.791666667 | BZ69: 6.625 | CA69: 7.208333333 | CB69: 9.625 | CC69: 11.6875 | CD69: 10.47916667 | CE69: 10.875 | CF69: 10.9375 | CG69: 10.95833333 | CH69: 11.3125 | CI69: 9.75 | CJ69: 8.5 | CK69: 8.75 | CL69: 10.875 | CM69: 12.5 | CN69: 13.375 | CO69: 11.89583333 | CP69: 10.66666667 | CQ69: 10.75 | CR69: 12.375 | CS69: 14.47916667 | CT69: 13.25 | CU69: 17.1875 | CV69: 21.27083333 | CW69: 18.02083333 | CX69: 15.29166667 | CY69: 11.75 | CZ69: 9.395833333 | DA69: 9.3125 | DB69: 10.41666667 | DC69: 13.29166667 | DD69: 10.6875 | DE69: 7.770833333 | DF69: 8.156666667 | DG69: 10.3125 | DH69: 10.5 | DI69: 8.833333333 | DJ69: 8.125 | DK69: 8.166666667 | DL69: 7.041666667 | DM69: 7 | DN69: 7 | DO69: 7 | DP69: 7 | DQ69: 7.291666667 | DR69: 7 | DS69: 6.291666667 | DT69: 6.708333333 | DU69: 6.291666667 | DV69: 5.666666667 | DW69: 5.541666667 | DX69: 5.6875 | DY69: =IFERROR(DY$66+$N$69,"") -> 5.5 | DZ69: 5.083333333 | EA69: 4.583333333 | EB69: 4.5 | EC69: 4.354166667 | ED69: 4.020833333 | EE69: 4 | EF69: 4 | EG69: 4 | EH69: 4 | EI69: 4 | EJ69: 4 | EK69: 4 | EL69: 4 | EM69: 4 | EN69: 4 | EO69: 4 | EP69: 4 | EQ69: 4 | ER69: 5.125 | ES69: 6.291666667 | ET69: 6.645833333 | EU69: 6.541666667 | EV69: 8.041666667
N70: 3 | O70: =IFERROR(O$66+$N$70,"") ->  | BE70: 11.5 | BF70: 11.16666667 | BG70: 7.666666667 | BH70: 6.25 | BI70: 6.625 | BJ70: 8.25 | BK70: 7.875 | BL70: =IFERROR(BL$66+$N$70,"") -> 7.0625 | BM70: =IFERROR(BM$66+$N$70,"") -> 6.5 | BN70: 6.25 | BO70: 6.25 | BP70: 6.25 | BQ70: 6.25 | BR70: 6.25 | BS70: 6.25 | BT70: 6.25 | BU70: 8.208333333 | BV70: 11.08333333 | BW70: 10.9375 | BX70: 9.104166667 | BY70: 7.291666667 | BZ70: 7.125 | CA70: 7.708333333 | CB70: 10.125 | CC70: 12.1875 | CD70: 10.97916667 | CE70: 11.375 | CF70: 11.4375 | CG70: 11.45833333 | CH70: 11.8125 | CI70: 10.25 | CJ70: 9 | CK70: 9.25 | CL70: 11.375 | CM70: 13 | CN70: 13.875 | CO70: 12.39583333 | CP70: 11.16666667 | CQ70: 11.25 | CR70: 12.875 | CS70: 14.97916667 | CT70: 13.75 | CU70: 17.6875 | CV70: 21.77083333 | CW70: 18.52083333 | CX70: 15.79166667 | CY70: 12.25 | CZ70: 9.895833333 | DA70: 9.8125 | DB70: 10.91666667 | DC70: 13.79166667 | DD70: 11.1875 | DE70: 8.270833333 | DF70: 8.656666667 | DG70: 10.8125 | DH70: 11 | DI70: 9.333333333 | DJ70: 8.625 | DK70: 8.666666667 | DL70: 7.541666667 | DM70: 7.5 | DN70: 7.5 | DO70: 7.5 | DP70: 7.5 | DQ70: 7.791666667 | DR70: 7.5 | DS70: 6.791666667 | DT70: 7.208333333 | DU70: 6.791666667 | DV70: 6.166666667 | DW70: 6.041666667 | DX70: 6.1875 | DY70: =IFERROR(DY$66+$N$70,"") -> 6 | DZ70: 5.583333333 | EA70: 5.083333333 | EB70: 5 | EC70: 4.854166667 | ED70: 4.520833333 | EE70: 4.5 | EF70: 4.5 | EG70: 4.5 | EH70: 4.5 | EI70: 4.5 | EJ70: 4.5 | EK70: 4.5 | EL70: 4.5 | EM70: 4.5 | EN70: 4.5 | EO70: 4.5 | EP70: 4.5 | EQ70: 4.5 | ER70: 5.625 | ES70: 6.791666667 | ET70: 7.145833333 | EU70: 7.041666667 | EV70: 8.541666667
N71: AWR (UW-980072) 6th Supplemental Order (pg. 6) sets cost of affiliated debt at prime of period plus 200 basis points (also initial Order, under debt cost discussion within the same case).
N72: RVW (UW-010877) sets equity at 12%.
N73: Prime Rate | Current Prime Rate - Definition - History (moneycafe.com)

Sheet Int Sync, NTG, Rev Req
C2: =+Inputs!B6 -> Community Water Service of Dungeness Heights LLC
C3: ="UW-"&+Inputs!B7 -> UW-
C4: =PFIS!B3 -> For Test Year Ended December 31, 2023
C6: Interest Synchronization
B7: Line No. | C7: Description (a) | D7: Interest Results (b) | I7: Check Numbers | K7: Source (b) | L7: Use
B8: 1 | C8: Interest Synchronization
B9: =1+B8 -> 2 | C9: Company Net Proforma Rate Base | D9: =+PFIS!I59 -> 127440.019 | E9: Company Net Rate Base | K9: PFIS - F53
B10: 3 | C10: Weighted Cost of Debt | D10: ='Capital Structure'!I54 -> 0.04066666667 | K10: Capital Structure - I54
B11: 4 | C11: Total Proforma Interest Expense | D11: =+D10*D9 -> 5182.560771 | K11: Ln B2 * Ln B3 | L11: To PFIS - H48 and PFIS - N47 (Check no.)
B12: 5 | C12: Restated Interest Expense from PFIS | D12: =+PFIS!F47 -> 0 | E12: Company Test Period Restated | K12: PFIS - F47
B13: 6 | C13: Proforma Adjustment to Interest Expense | D13: =D11-D12 -> 5182.560771 | E13: Proforma Adjustment to Interst Expense | K13: Ln B4 - Ln B5 | L13: To PFIS - H47
B14: 7 | C14: Tax Effect
B15: 8 | C15: Proforma Operating Income before Interest and Taxes | D15: =+PFIS!I46 -> 6976.258277 | K15: PFIS F 40
B16: 9 | C16: Pro Forma Interest Expense | D16: =D11 -> 5182.560771 | K16: Ln B4
B17: 10 | C17: Proforma Operating Income before Income Taxes | D17: =D15-D16 -> 1793.697505 | K17: Ln D13 - Ln D14 | L17: To Net-to-Gross G49
B18: 11 | C18: Income Tax Rate | D18: =D50 -> 0.21 | I18: Check Number Calculated from PFIS | K18: NTG Ln B12
B19: =1+B18 -> 12 | C19: Income Tax on Proforma Operating Income | D19: =IF(D17>0,+D17*D18,0) -> 376.6764761 | E19: Income tax liability if Income before Taxes is possitive | I19: =IF(PFIS!I46-PFIS!I47>0,Inputs!BO6,0)*(PFIS!I46+(PFIS!I59*-D10))-PFIS!F48 -> 376.6764761 | K19: Ln B10 * Ln B11
B20: 13 | C20: Restated Federal Income Tax from PFIS | D20: =PFIS!F48 -> 0 | K20: PFIS F48
B21: 14 | C21: Proforma Income Tax Effect | D21: =D19-D20 -> 376.6764761 | K21: Ln B12 - Ln B13
B22: 15 | C22: Restated Federal Income Tax from PFIS | D22: =PFIS!F48 -> 0 | I22: Check Number from PFIC - I50 | K22: PFIS F48
B23: 16 | C23: Net Income after Interest and Federal Tax | D23: =D17-D21-D22 -> 1417.021029 | I23: =PFIS!I50 -> 1417.021029 | K23: Ln B10 - Ln B14 - Ln B15
I24: Check Number Difference
C25: Revenue Requirement | I25: =D23-I23 -> -8.640199667e-12
B26: Line No. | C26: Description (a) | D26: Proforma Results (b) | K26: Source (b)
B27: 1 | C27: Net Pro Forma Average Rate Base | D27: =IF(+PFIS!I59<=0, 0, +PFIS!I59) -> 127440.019 | K27: PFIS - I59
B28: =1+B27 -> 2 | C28: Weighted Cost of Capital | D28: =+'Capital Structure'!I53 -> 0.1127 | K28: Sch 4 - I54
B29: 3 | C29: Operating Income Return | D29: =+D27*D28 -> 14362.49014 | K29: Ln C1 * Ln C2 | L29: To PFIS - N51
B30: 4
B31: 5 | C31: Pro Forma Net Operating Income (Loss) | D31: =+PFIS!I51 -> 6599.5818 | K31: PFIS - I51
B32: 6 | I32: Revenue Net-to-Gross - G56
B33: 7 | C33: Operating Income Deficiency (Excess) | D33: =+D29-D31 -> 7762.908337 | I33: =G56 -> 7762.908337 | K33: Ln C3 - Ln C5
B34: 8
B35: 9 | C35: Revenue Conversion Factor | D35: =+'Int Sync, NTG, Rev Req'!E56 -> 0.74316 | K35: Ln D18
B36: 10 | C36: Additional Revenue Requirement (Reduction) | D36: =+D33/D35 -> 10445.81024 | K36: Ln C7 / Ln C9 | L36: To Sch 10.1 - Q8 and PFIS - N15
C38: Net-to-Gross Conversion Factor
B39: Line No. | C39: Description (a) | D39: Rate (b) | E39: Factor (c) | G39: Staff Proposed Revenue (d) | K39: Source (b)
B40: 1 | C40: =C36 -> Additional Revenue Requirement (Reduction) | E40: 1 | G40: =D36 -> 10445.81024 | K40: Revenue Requirement B10 | L40: To PFIS - R16
B41: =1+B40 -> 2 | C41: UTC Regulatory Fee | E41: 0.004 | G41: =G40*E41 -> 41.78324096 | K41: Ln D6 | L41: To PFIS - K32
B42: 3 | C42: City B&O Tax | D42: 0 | E42: =D42*E40 -> 0 | G42: =+G$40*D42 -> 0 | K42: Ln D8 * Ln C8 | L42: To PFIS - K39
B43: 4 | C43: Uncollectible | D43: 0.005 | E43: =D43*E40 -> 0.005 | G43: =+G$40*D43 -> 52.22905119 | K43: Ln D8 * Ln C9 | L43: To PFIS - K36 | N43: Calculation if tax code returns to block rates for corporations.
B44: 5 | C44: Utility B&O Tax | D44: 0.05029 | E44: =D44*E40 -> 0.05029 | G44: =+G$40*D44 -> 525.3197969 | K44: Ln D8 * Ln C10 | L44: To PFIS - K39 | N44: IF(G51>0,INDEX(O51:O58,MATCH(ABS(G51),M51:M58,1))+INDEX(Q51:Q58,MATCH(ABS(G51),M51:M58,1))*(ABS(G51)-INDEX(R51:R58,MATCH(ABS(G51),M51:M58,1))),0)
B45: 6 | C45: Total Revenue Sensitive Expenses | E45: =SUM(E41:E44) -> 0.05929 | G45: =SUM(G41:G44) -> 619.3320891 | K45: Sum Ln D7 thru Ln D10 | N45: NOT USED
B46: 7 | N46: Corporation Tax Rates (IRS)
B47: 8 | C47: Revenue Adjusted for Revenue Sensitive Items | E47: =E40-E45 -> 0.94071 | G47: =+G40-G45 -> 9826.47815 | K47: Ln D8 - Ln D13 | N47: Over- | O47: But not Over- | P47: Tax is- | S47: Of the Amount Over-
B48: 9 | C48: Proforma Operating Income before Income Taxes | G48: =D17 -> 1793.697505 | K48: Interest Sync B10
B49: 10 | C49: Taxable Income after Interest | E49: Conversion | G49: =G47+G48 -> 11620.17566 | I49: Company's Federal Income Tax ($) | K49: Ln D15 + Ln D16 | N49: 0 | O49: 50000 | P49: 0 | Q49: + | R49: 0.21 | S49: 0
B50: 11 | C50: Less: Federal Income Tax (FIT) | D50: =Inputs!BO6 -> 0.21 | E50: =Inputs!BR6 -> 0.19755 | G50: =G49*D50 -> 2440.236888 | I50: =IF(G49>0,INDEX(P49:P56,MATCH(ABS(G49),N49:N56,1))+INDEX(R49:R56,MATCH(ABS(G49),N49:N56,1))*(ABS(G49)-INDEX(S49:S56,MATCH(ABS(G49),N49:N56,1))),0) -> 2440.236888 | K50: (b) (c) PFIS | N50: 50000.01 | O50: 75000 | P50: 7500 | Q50: + | R50: =+R49 -> 0.21 | S50: 50000
B51: 12 | C51: Proforma Results Federal Tax | G51: =+PFIS!I48 -> 376.6764761 | I51: Company's Federal Income Tax (%) | K51: PFIS - I48 | N51: 75000.01 | O51: 100000 | P51: 13750 | Q51: + | R51: =+R50 -> 0.21 | S51: 75000
B52: 13 | C52: Federal Tax Adjustment | G52: =+G50-G51 -> 2063.560411 | I52: =+D50 -> 0.21 | K52: Ln D18 - Ln D19 | L52: To PFIS - K48 | N52: 100000.01 | O52: 335000 | P52: 22250 | Q52: + | R52: 0.21 | S52: 100000
B53: 14 | I53: Conversion Factor (%) | N53: 335000.01 | O53: 10000000 | P53: 113900 | Q53: + | R53: 0.21 | S53: 335000
B54: 15 | C54: Total adjustments | E54: =IF(OR(E50="", E50=0),E45+(E47*D50),E50+E45) -> 0.25684 | I54: =G52/G40 -> 0.1975491 | K54: (c) Ln D13 + Ln D18 | N54: 10000000.01 | O54: 15000000 | P54: 3400000 | Q54: + | R54: 0.21 | S54: 10000000
B55: 16 | N55: 15000000.01 | O55: 18333333 | P55: 5150000 | Q55: + | R55: 0.21 | S55: 15000000
B56: 17 | C56: Revenue Conversion Factor | E56: =IF(OR(E50="", E50=0), E47-(E47*D50), E47-E50) -> 0.74316 | G56: =+G$40*E56 -> 7762.908337 | I56: Check No. | K56: Ln D8 * Ln C24 | L56: To D33 | N56: 18333333.01 | P56: 6416667 | Q56: + | R56: 0.21 | S56: 18333333
B57: 18 | I57: =G40+G44+G49 -> 22591.30569

Sheet Rate Design
B2: =Inputs!B6 -> Community Water Service of Dungeness Heights LLC
B3: ="UW-"&Inputs!B7 -> UW-
B4: =PFIS!B3 -> For Test Year Ended December 31, 2023
B5: Rate Design Report
B7: Revenue | E7: Rate Design Revision - Most common meter size - Enter MONTHLY figures only. | P7: Rate Design
B8: Requirement | C8: =SUM(PFIS!I9:I11)+'Int Sync, NTG, Rev Req'!D36 -> 78791.73024 | E8: Base | G8: Block 1 | I8: Block 2 | K8: Block 3 | P8: Meter | R8: Base | T8: Block 1 | V8: Block 2 | X8: Block 3 | AA8: Customer Count
B9: Generated | C9: =AC30 -> 78267.795 | E9: Allowance | F9: Base_Rate | G9: Block1_UsageMax | H9: Block1_Rate | I9: Block2_UsageMax | J9: Block2_Rate | K9: Block3_UsageMin | L9: Block3_Rate | P9: Size | Q9: Factor | R9: Allowance | S9: Rate | T9: Usage_Max | U9: Rate | V9: Usage_Max | W9: Rate | X9: Usage_Min | Y9: Rate | AA9: No. | AB9: Percent
B10: Difference | C10: =C9-C8 -> -523.9352389 | E10: 0 | F10: 28 | G10: 500 | H10: 1.75 | I10: 1000 | J10: 2.25 | K10: =1+I10 -> 1001 | L10: 3.25 | P10: 0.625 | Q10: =INDEX(Resources!$D$7:$F$21,MATCH(Meter_10.1[[#This Row],[Size]],CapacityFactor_Sch13[Meter_Size],0),MATCH(Most_Common_Meter_Size,Resources!$D$5:$F$5,0)) -> 0.6666666667 | R10: =IF(RateDesign[Allowance]<>"", RateDesign[Allowance]*Meter_10.1[[#This Row],[Factor]], 0) -> 0 | S10: =IF(Most_Common_Meter_Size=Meter_10.1[[#This Row],[Size]], IF(AND(SUM(CustomerCount_10.1[No.])=0, RTS_Count=0), 0, IF(AND(SUM(CustomerCount_10.1[No.])=0, Unmetered_Count>0), Unmetered_Rate_10.1, ROUNDUP(IF(RateDesign[Base_Rate]<>"", RateDesign[Base_Rate], (IF(BaseRate_Percent>0, BaseRate_Percent,40%)-ROUNDUP(Unmetered_Count/CustomerCount_Total, 8))*RevenueRequirement_10.1/12/($Q$10*$AA$10+$AA$11*$Q$11+$Q$12*$AA$12+$AA$13*$Q$13+$Q$14*$AA$14+$AA$15*$Q$15+$Q$16*$AA$16+$AA$17*$Q$17+$Q$18*$AA$18)), 2) )), IF(Most_Common_Meter_Size=P11, $S$11*Meter_10.1[[#This Row],[Factor]], $S$12*Meter_10.1[[#This Row],[Factor]]) ) -> 18.66666667 | T10: =IF(Most_Common_Meter_Size=Meter_10.1[[#This Row],[Size]],ROUND(IF(SUM(CustomerCount_10.1[No.])=0,0,ROUNDDOWN(IF(RateDesign[Block1_UsageMax]>0,RateDesign[Block1_UsageMax],SUMIF(Data_10.2[Meter_Size],Meter_10.1[[#This Row],[Size]],Calculation_10.2[Winter_Use])/SUMIFS(Calculation_10.2[Count_Non-Zero_Winter],Data_10.2[Meter_Size],Meter_10.1[[#This Row],[Size]],Calculation_10.2[Count_Non-Zero_Winter],">0")),0)),1),IF(Most_Common_Meter_Size=P11,T11*Meter_10.1[[#This Row],[Factor]],T12*Meter_10.1[[#This Row],[Factor]])) -> 333.3333333 | U10: =IF(SUM(CustomerCount_10.1[No.])=0,0,(ROUNDDOWN(IF(RateDesign[Block1_Rate]>0,RateDesign[Block1_Rate],((((IF(Block1_Percent>0,Block1_Percent,20%)*RevenueRequirement_10.1)/12)/SUM(CustomerCount_10.1[No.]))/((AVERAGE('Rate Data Calculations'!AW9:BH9)/SUM(CustomerCount_10.1[No.]))/Usage_Unit_10.1))),2))) -> 1.75 | V10: =IF(Most_Common_Meter_Size=Meter_10.1[[#This Row],[Size]],ROUND(IF(SUM(CustomerCount_10.1[No.])=0,0,ROUNDDOWN(IF(RateDesign[Block2_UsageMax]>0,RateDesign[Block2_UsageMax],SUMIF(Data_10.2[Meter_Size],Meter_10.1[[#This Row],[Size]],Calculation_10.2[Summer_Use])/SUMIFS(Calculation_10.2[Count_Non-Zero_Summer],Data_10.2[Meter_Size],Meter_10.1[[#This Row],[Size]],Calculation_10.2[Count_Non-Zero_Summer],">0")),0)),1),IF(Most_Common_Meter_Size=$P11,V11*Meter_10.1[[#This Row],[Factor]],V12*Meter_10.1[[#This Row],[Factor]])) -> 666.6666667 | W10: =IF(SUM(CustomerCount_10.1[No.])=0,0,(ROUNDDOWN(IF(RateDesign[Block2_Rate]>0,RateDesign[Block2_Rate],((((IF(Block2_Percent>0,Block2_Percent,35%)*RevenueRequirement_10.1)/12)/SUM(CustomerCount_10.1[No.]))/((AVERAGE('Rate Data Calculations'!BU9:CF9)/SUM(CustomerCount_10.1[No.]))/Usage_Unit_10.1))),2))) -> 2.25 | X10: =Block2_10.1[[#This Row],[Usage_Max]]+1 -> 667.6666667 | Y10: =IF(SUM(CustomerCount_10.1[No.])=0,0,(ROUNDUP(IF(RateDesign[Block3_Rate]>0,RateDesign[Block3_Rate],((((IF(Block3_Percent>0,Block3_Percent,5%)*RevenueRequirement_10.1)/12)/SUM(CustomerCount_10.1[No.]))/((AVERAGE('Rate Data Calculations'!CS9:DD9)/SUM(CustomerCount_10.1[No.]))/Usage_Unit_10.1))),2))) -> 3.25 | AA10: =COUNTIF('Rate Data Calculations'!$D$11:$D$2011, P10) -> 0 | AB10: =AA10/$AA$20 -> 0
I11: Block 1 - 2 diff. | J11: =W10-U10 -> 0.5 | K11: Block 2 - 3 diff. | L11: =Y10-W10 -> 1 | P11: 0.75 | Q11: =INDEX(Resources!$D$7:$F$21,MATCH(Meter_10.1[[#This Row],[Size]],CapacityFactor_Sch13[Meter_Size],0),MATCH(Most_Common_Meter_Size,Resources!$D$5:$F$5,0)) -> 1 | R11: =IF(RateDesign[Allowance]<>"", RateDesign[Allowance]*Meter_10.1[[#This Row],[Factor]], 0) -> 0 | S11: =IF(Most_Common_Meter_Size=Meter_10.1[[#This Row],[Size]], IF(AND(SUM(CustomerCount_10.1[No.])=0, RTS_Count=0), 0, IF(AND(SUM(CustomerCount_10.1[No.])=0, Unmetered_Count>0), Unmetered_Rate_10.1, ROUNDUP(IF(RateDesign[Base_Rate]<>"", RateDesign[Base_Rate], (IF(BaseRate_Percent>0, BaseRate_Percent,40%)-ROUNDUP(Unmetered_Count/CustomerCount_Total, 8))*RevenueRequirement_10.1/12/($Q$10*$AA$10+$AA$11*$Q$11+$Q$12*$AA$12+$AA$13*$Q$13+$Q$14*$AA$14+$AA$15*$Q$15+$Q$16*$AA$16+$AA$17*$Q$17+$Q$18*$AA$18)), 2) )), IF(Most_Common_Meter_Size=P10, S10*Meter_10.1[[#This Row],[Factor]], S12*Meter_10.1[[#This Row],[Factor]]) ) -> 28 | T11: =IF(Most_Common_Meter_Size=Meter_10.1[[#This Row],[Size]],ROUND(IF(SUM(CustomerCount_10.1[No.])=0,0,ROUNDDOWN(IF(RateDesign[Block1_UsageMax]>0,RateDesign[Block1_UsageMax],SUMIF(Data_10.2[Meter_Size],Meter_10.1[[#This Row],[Size]],Calculation_10.2[Winter_Use])/SUMIFS(Calculation_10.2[Count_Non-Zero_Winter],Data_10.2[Meter_Size],Meter_10.1[[#This Row],[Size]],Calculation_10.2[Count_Non-Zero_Winter],">0")),0)),1),IF(Most_Common_Meter_Size=P10,T10*Meter_10.1[[#This Row],[Factor]],T12*Meter_10.1[[#This Row],[Factor]])) -> 500 | U11: =U10 -> 1.75 | V11: =IF(Most_Common_Meter_Size=Meter_10.1[[#This Row],[Size]],ROUND(IF(SUM(CustomerCount_10.1[No.])=0,0,ROUNDDOWN(IF(RateDesign[Block2_UsageMax]>0,RateDesign[Block2_UsageMax],SUMIF(Data_10.2[Meter_Size],Meter_10.1[[#This Row],[Size]],Calculation_10.2[Summer_Use])/SUMIFS(Calculation_10.2[Count_Non-Zero_Summer],Data_10.2[Meter_Size],Meter_10.1[[#This Row],[Size]],Calculation_10.2[Count_Non-Zero_Summer],">0")),0)),1),IF(Most_Common_Meter_Size=P10,V10*Meter_10.1[[#This Row],[Factor]],V12*Meter_10.1[[#This Row],[Factor]])) -> 1000 | W11: =W10 -> 2.25 | X11: =Block2_10.1[[#This Row],[Usage_Max]]+1 -> 1001 | Y11: =Y10 -> 3.25 | AA11: =COUNTIF('Rate Data Calculations'!$D$11:$D$2011, P11) -> 135 | AB11: 0.9926470588
E12: Block Effective % | F12: =AD26 -> 0.5770444919 | H12: =AD27 -> 0.1397743904 | J12: =AD28 -> 0.08313764301 | L12: =AD29 -> 0.2000434747 | P12: 1 | Q12: =INDEX(Resources!$D$7:$F$21,MATCH(Meter_10.1[[#This Row],[Size]],CapacityFactor_Sch13[Meter_Size],0),MATCH(Most_Common_Meter_Size,Resources!$D$5:$F$5,0)) -> 1.666666667 | R12: =IF(RateDesign[Allowance]<>"", RateDesign[Allowance]*Meter_10.1[[#This Row],[Factor]], 0) -> 0 | S12: =IF(Most_Common_Meter_Size=Meter_10.1[[#This Row],[Size]], IF(AND(SUM(CustomerCount_10.1[No.])=0, RTS_Count=0), 0, IF(AND(SUM(CustomerCount_10.1[No.])=0, Unmetered_Count>0), Unmetered_Rate_10.1, ROUNDUP(IF(RateDesign[Base_Rate]<>"", RateDesign[Base_Rate], (IF(BaseRate_Percent>0, BaseRate_Percent,40%)-ROUNDUP(Unmetered_Count/CustomerCount_Total, 8))*RevenueRequirement_10.1/12/($Q$10*$AA$10+$AA$11*$Q$11+$Q$12*$AA$12+$AA$13*$Q$13+$Q$14*$AA$14+$AA$15*$Q$15+$Q$16*$AA$16+$AA$17*$Q$17+$Q$18*$AA$18)), 2) )), IF(Most_Common_Meter_Size=P10, S10*Meter_10.1[[#This Row],[Factor]], S11*Meter_10.1[[#This Row],[Factor]]) ) -> 46.66666667 | T12: =IF(Most_Common_Meter_Size=Meter_10.1[[#This Row],[Size]],ROUND(IF(SUM(CustomerCount_10.1[No.])=0,0,ROUNDDOWN(IF(RateDesign[Block1_UsageMax]>0,RateDesign[Block1_UsageMax],SUMIF(Data_10.2[Meter_Size],Meter_10.1[[#This Row],[Size]],Calculation_10.2[Winter_Use])/SUMIFS(Calculation_10.2[Count_Non-Zero_Winter],Data_10.2[Meter_Size],Meter_10.1[[#This Row],[Size]],Calculation_10.2[Count_Non-Zero_Winter],">0")),0)),1),IF(Most_Common_Meter_Size=P10,T10*Meter_10.1[[#This Row],[Factor]],T11*Meter_10.1[[#This Row],[Factor]])) -> 833.3333333 | U12: =U11 -> 1.75 | V12: =IF(Most_Common_Meter_Size=Meter_10.1[[#This Row],[Size]],ROUND(IF(SUM(CustomerCount_10.1[No.])=0,0,ROUNDDOWN(IF(RateDesign[Block2_UsageMax]>0,RateDesign[Block2_UsageMax],SUMIF(Data_10.2[Meter_Size],Meter_10.1[[#This Row],[Size]],Calculation_10.2[Summer_Use])/SUMIFS(Calculation_10.2[Count_Non-Zero_Summer],Data_10.2[Meter_Size],Meter_10.1[[#This Row],[Size]],Calculation_10.2[Count_Non-Zero_Summer],">0")),0)),1),IF(Most_Common_Meter_Size=P10,V10*Meter_10.1[[#This Row],[Factor]],V11*Meter_10.1[[#This Row],[Factor]])) -> 1666.666667 | W12: =W11 -> 2.25 | X12: =Block2_10.1[[#This Row],[Usage_Max]]+1 -> 1667.666667 | Y12: =Y11 -> 3.25 | AA12: =COUNTIF('Rate Data Calculations'!$D$11:$D$2011, P12) -> 0 | AB12: 0 | BS12: =IF(Data_10.2[[#This Row],[Meter_ID]]<>"", IF(OR(Usage_10.2[[#This Row],[Jan_Usage]]="",Usage_10.2[[#This Row],[Jan_Usage]]=0), 0, Block2Usage_10.2[[#This Row],[Jan_Blk_2_-_Usage]]/Usage_Unit_10.1*INDEX(Block2_10.1[Rate],MATCH(Data_10.2[[#This Row],[Meter_Size]],Meter_10.1[Size],0)) ), "") -> 4.5 | DC12: =IF(Data_10.2[[#This Row],[Meter_ID]]<>"", IF(OR(Usage_10.2[[#This Row],[Jan_Usage]]="",Usage_10.2[[#This Row],[Jan_Usage]]=0), 0, INDEX(Base_10.1[Allowance],MATCH(Data_10.2[[#This Row],[Meter_Size]],'Rate Design'!$P$10:$P$19,0)) ), "") -> 0
E13: Cumulative % | H13: =F12+H12 -> 0.7168188823 | J13: =H13+J12 -> 0.7999565253 | L13: =J13+L12 -> 1 | P13: 1.5 | Q13: =INDEX(Resources!$D$7:$F$21,MATCH(Meter_10.1[[#This Row],[Size]],CapacityFactor_Sch13[Meter_Size],0),MATCH(Most_Common_Meter_Size,Resources!$D$5:$F$5,0)) -> 3.333333333 | R13: =IF(RateDesign[Allowance]<>"", RateDesign[Allowance]*Meter_10.1[[#This Row],[Factor]], 0) -> 0 | S13: =Meter_10.1[[#This Row],[Factor]]*INDEX(Base_10.1[Rate],MATCH(Most_Common_Meter_Size,Meter_10.1[Size],0)) -> 93.33333333 | T13: =Meter_10.1[[#This Row],[Factor]]*INDEX(Block1_10.1[Usage_Max],MATCH(Most_Common_Meter_Size,Meter_10.1[Size],0)) -> 1666.666667 | U13: 1.75 | V13: =Meter_10.1[[#This Row],[Factor]]*INDEX(Block2_10.1[Usage_Max],MATCH(Most_Common_Meter_Size,Meter_10.1[Size],0)) -> 3333.333333 | W13: 2.25 | X13: =Block2_10.1[[#This Row],[Usage_Max]]+1 -> 3334.333333 | Y13: 3.25 | AA13: =COUNTIF('Rate Data Calculations'!$D$11:$D$2011, P13) -> 0 | AB13: 0
P14: 2 | Q14: =INDEX(Resources!$D$7:$F$21,MATCH(Meter_10.1[[#This Row],[Size]],CapacityFactor_Sch13[Meter_Size],0),MATCH(Most_Common_Meter_Size,Resources!$D$5:$F$5,0)) -> 5.333333333 | R14: =IF(RateDesign[Allowance]<>"", RateDesign[Allowance]*Meter_10.1[[#This Row],[Factor]], 0) -> 0 | S14: =Meter_10.1[[#This Row],[Factor]]*INDEX(Base_10.1[Rate],MATCH(Most_Common_Meter_Size,Meter_10.1[Size],0)) -> 149.3333333 | T14: =Meter_10.1[[#This Row],[Factor]]*INDEX(Block1_10.1[Usage_Max],MATCH(Most_Common_Meter_Size,Meter_10.1[Size],0)) -> 2666.666667 | U14: 1.75 | V14: =Meter_10.1[[#This Row],[Factor]]*INDEX(Block2_10.1[Usage_Max],MATCH(Most_Common_Meter_Size,Meter_10.1[Size],0)) -> 5333.333333 | W14: 2.25 | X14: =Block2_10.1[[#This Row],[Usage_Max]]+1 -> 5334.333333 | Y14: 3.25 | AA14: =COUNTIF('Rate Data Calculations'!$D$11:$D$2011, P14) -> 1 | AB14: 0.007352941176
P15: 3 | Q15: =INDEX(Resources!$D$7:$F$21,MATCH(Meter_10.1[[#This Row],[Size]],CapacityFactor_Sch13[Meter_Size],0),MATCH(Most_Common_Meter_Size,Resources!$D$5:$F$5,0)) -> 10 | R15: =IF(RateDesign[Allowance]<>"", RateDesign[Allowance]*Meter_10.1[[#This Row],[Factor]], 0) -> 0 | S15: =Meter_10.1[[#This Row],[Factor]]*INDEX(Base_10.1[Rate],MATCH(Most_Common_Meter_Size,Meter_10.1[Size],0)) -> 280 | T15: =Meter_10.1[[#This Row],[Factor]]*INDEX(Block1_10.1[Usage_Max],MATCH(Most_Common_Meter_Size,Meter_10.1[Size],0)) -> 5000 | U15: 1.75 | V15: =Meter_10.1[[#This Row],[Factor]]*INDEX(Block2_10.1[Usage_Max],MATCH(Most_Common_Meter_Size,Meter_10.1[Size],0)) -> 10000 | W15: 2.25 | X15: =Block2_10.1[[#This Row],[Usage_Max]]+1 -> 10001 | Y15: 3.25 | AA15: =COUNTIF('Rate Data Calculations'!$D$11:$D$2011, P15) -> 0 | AB15: 0
P16: 4 | Q16: =INDEX(Resources!$D$7:$F$21,MATCH(Meter_10.1[[#This Row],[Size]],CapacityFactor_Sch13[Meter_Size],0),MATCH(Most_Common_Meter_Size,Resources!$D$5:$F$5,0)) -> 16.66666667 | R16: =IF(RateDesign[Allowance]<>"", RateDesign[Allowance]*Meter_10.1[[#This Row],[Factor]], 0) -> 0 | S16: =Meter_10.1[[#This Row],[Factor]]*INDEX(Base_10.1[Rate],MATCH(Most_Common_Meter_Size,Meter_10.1[Size],0)) -> 466.6666667 | T16: =Meter_10.1[[#This Row],[Factor]]*INDEX(Block1_10.1[Usage_Max],MATCH(Most_Common_Meter_Size,Meter_10.1[Size],0)) -> 8333.333333 | U16: 1.75 | V16: =Meter_10.1[[#This Row],[Factor]]*INDEX(Block2_10.1[Usage_Max],MATCH(Most_Common_Meter_Size,Meter_10.1[Size],0)) -> 16666.66667 | W16: 2.25 | X16: =Block2_10.1[[#This Row],[Usage_Max]]+1 -> 16667.66667 | Y16: 3.25 | AA16: =COUNTIF('Rate Data Calculations'!$D$11:$D$2011, P16) -> 0 | AB16: 0
E17: Effective % | F17: Rate | P17: 6 | Q17: =INDEX(Resources!$D$7:$F$21,MATCH(Meter_10.1[[#This Row],[Size]],CapacityFactor_Sch13[Meter_Size],0),MATCH(Most_Common_Meter_Size,Resources!$D$5:$F$5,0)) -> 33.33333333 | R17: =IF(RateDesign[Allowance]<>"", RateDesign[Allowance]*Meter_10.1[[#This Row],[Factor]], 0) -> 0 | S17: =Meter_10.1[[#This Row],[Factor]]*INDEX(Base_10.1[Rate],MATCH(Most_Common_Meter_Size,Meter_10.1[Size],0)) -> 933.3333333 | T17: =Meter_10.1[[#This Row],[Factor]]*INDEX(Block1_10.1[Usage_Max],MATCH(Most_Common_Meter_Size,Meter_10.1[Size],0)) -> 16666.66667 | U17: 1.75 | V17: =Meter_10.1[[#This Row],[Factor]]*INDEX(Block2_10.1[Usage_Max],MATCH(Most_Common_Meter_Size,Meter_10.1[Size],0)) -> 33333.33333 | W17: 2.25 | X17: =Block2_10.1[[#This Row],[Usage_Max]]+1 -> 33334.33333 | Y17: 3.25 | AA17: =COUNTIF('Rate Data Calculations'!$D$11:$D$2011, P17) -> 0 | AB17: 0
D18: Ready-to-Serve | E18: =AD25 -> 0 | H18: =H13+E18 -> 0.7168188823 | J18: =H18+J12 -> 0.7999565253 | L18: =J18+L12 -> 1 | P18: RTS | Q18: 1 | R18: =IF(RateDesign[Allowance]<>"", RateDesign[Allowance]*Meter_10.1[[#This Row],[Factor]], 0) -> 0 | S18: =Meter_10.1[[#This Row],[Factor]]*INDEX(Base_10.1[Rate],MATCH(Most_Common_Meter_Size,Meter_10.1[Size],0)) -> 28 | AA18: =Inputs!B12 -> 0 | AB18: 0
D19: Unmetered | E19: =AD24 -> 0 | F19: 25 | H19: =H18+E19 -> 0.7168188823 | J19: =J18+E19 -> 0.7999565253 | L19: =L18+E19 -> 1 | P19: Unmetered | Q19: 1 | R19: =IF(RateDesign[Allowance]<>"", RateDesign[Allowance]*Meter_10.1[[#This Row],[Factor]], 0) -> 0 | S19: =IF(RateDesign_Unmetered>0,RateDesign_Unmetered,INDEX(P36:P43,MATCH(Most_Common_Meter_Size,AA36:AA43,0))) -> 25 | AA19: =Inputs!B11 -> 0 | AB19: 0
D20: Current | E20: =+Inputs!B21 -> 0 | F20: =+Inputs!B16 -> 25 | G20: =+Inputs!B22 -> 750 | H20: =+Inputs!B17 -> 1.5 | I20: =+Inputs!B23 -> 1500 | J20: =+H20 -> 1.5 | K20: =1+I20 -> 1501 | L20: =+J20 -> 1.5 | AA20: =SUM(AA10:AA19) -> 136 | AB20: =SUM(AB10:AB19) -> 1
D21: Proposed | E21: =Inputs!B40 -> 0 | F21: =Inputs!B35 -> 27.5 | G21: =Inputs!B41 -> 500 | H21: =Inputs!B36 -> 1.75 | I21: =Inputs!B42 -> 1000 | J21: =Inputs!B37 -> 2.25 | K21: =Inputs!B43 -> 1001 | L21: =Inputs!B38 -> 3.25
D22: Revised | E22: =INDEX(R10:R19,MATCH(MAX($AA$10:$AA$17),$AA$10:$AA$17,0)) -> 0 | F22: =INDEX(S10:S17,MATCH(MAX($AA$10:$AA$17),$AA$10:$AA$17,0)) -> 28 | G22: 500 | H22: 1.75 | I22: 1000 | J22: 2.25 | K22: 1001 | L22: 3.25 | P22: Revenue (Breakdown)
E23: Base % | G23: Block 1 % | I23: Block 2 % | K23: Block 3 % | P23: Source | Q23: Jan | R23: Feb | S23: Mar | T23: Apr | U23: May | V23: Jun | W23: Jul | X23: Aug | Y23: Sep | Z23: Oct | AA23: Nov | AB23: Dec | AC23: Total | AD23: % | AE23: Percentage Splits
P24: Unmetered | Q24: =IF(OR(Q$26>0, $AA$19>0),($S$19*$AA$19), 0) -> 0 | R24: 0 | S24: 0 | T24: 0 | U24: 0 | V24: 0 | W24: 0 | X24: 0 | Y24: 0 | Z24: 0 | AA24: 0 | AB24: 0 | AC24: =SUM(Q24:AB24) -> 0 | AD24: =+AC24/AC$30 -> 0
P25: RTS | Q25: =IF(OR(Q$26>0, $AA$18>0), ($S$18*$AA$18), 0) -> 0 | R25: 0 | S25: 0 | T25: 0 | U25: 0 | V25: 0 | W25: 0 | X25: 0 | Y25: 0 | Z25: 0 | AA25: 0 | AB25: 0 | AC25: 0 | AD25: 0
E26: Usage Per | G26: Billing | I26: Most Common Meter Size | P26: Base | Q26: ='Rate Data Calculations'!AK9 -> 3621.333333 | R26: ='Rate Data Calculations'!AL9 -> 3621.333333 | S26: ='Rate Data Calculations'!AM9 -> 3705.333333 | T26: ='Rate Data Calculations'!AN9 -> 3733.333333 | U26: ='Rate Data Calculations'!AO9 -> 3761.333333 | V26: ='Rate Data Calculations'!AP9 -> 3845.333333 | W26: ='Rate Data Calculations'!AQ9 -> 3845.333333 | X26: ='Rate Data Calculations'!AR9 -> 3845.333333 | Y26: ='Rate Data Calculations'!AS9 -> 3873.333333 | Z26: ='Rate Data Calculations'!AT9 -> 3845.333333 | AA26: ='Rate Data Calculations'!AU9 -> 3761.333333 | AB26: ='Rate Data Calculations'!AV9 -> 3705.333333 | AC26: 45164 | AD26: 0.5770444919 | AE26: =SUM(AD24:AD26) -> 0.5770444919
E27: =Inputs!B20 -> 100 | G27: =Inputs!B9 -> Monthly | I27: =Inputs!B10 -> 0.75 | J27: =INDEX(P10:P19,MATCH(MAX(AA10:AA17),AA10:AA17,0)) -> 0.75 | P27: Block 1 | Q27: ='Rate Data Calculations'!BI9 -> 696.5 | R27: ='Rate Data Calculations'!BJ9 -> 672 | S27: ='Rate Data Calculations'!BK9 -> 749 | T27: ='Rate Data Calculations'!BL9 -> 883.75 | U27: ='Rate Data Calculations'!BM9 -> 1068.666667 | V27: ='Rate Data Calculations'!BN9 -> 1101.916667 | W27: ='Rate Data Calculations'!BO9 -> 1126.416667 | X27: ='Rate Data Calculations'!BP9 -> 1117.666667 | Y27: ='Rate Data Calculations'!BQ9 -> 1082.666667 | Z27: ='Rate Data Calculations'!BR9 -> 931 | AA27: ='Rate Data Calculations'!BS9 -> 777 | AB27: ='Rate Data Calculations'!BT9 -> 733.25 | AC27: 10939.83333 | AD27: 0.1397743904 | AF27: =AE26+AD27 -> 0.7168188823
I28: Company Selected | J28: Calculated | P28: Block 2 | Q28: ='Rate Data Calculations'!CG9 -> 63 | R28: ='Rate Data Calculations'!CH9 -> 56.25 | S28: ='Rate Data Calculations'!CI9 -> 110.25 | T28: ='Rate Data Calculations'!CJ9 -> 375.75 | U28: ='Rate Data Calculations'!CK9 -> 957 | V28: ='Rate Data Calculations'!CL9 -> 1051.5 | W28: ='Rate Data Calculations'!CM9 -> 1162.5 | X28: ='Rate Data Calculations'!CN9 -> 1105.5 | Y28: ='Rate Data Calculations'!CO9 -> 862.5 | Z28: ='Rate Data Calculations'!CP9 -> 459 | AA28: ='Rate Data Calculations'!CQ9 -> 162 | AB28: ='Rate Data Calculations'!CR9 -> 141.75 | AC28: 6507 | AD28: 0.08313764301 | AG28: =AF27+AD28 -> 0.7999565253
P29: Block 3 | Q29: ='Rate Data Calculations'!DE9 -> 9.7175 | R29: ='Rate Data Calculations'!DF9 -> 6.4675 | S29: ='Rate Data Calculations'!DG9 -> 0 | T29: ='Rate Data Calculations'!DH9 -> 295.295 | U29: ='Rate Data Calculations'!DI9 -> 2123.42 | V29: ='Rate Data Calculations'!DJ9 -> 2893.28 | W29: ='Rate Data Calculations'!DK9 -> 3762.871667 | X29: ='Rate Data Calculations'!DL9 -> 3494.335 | Y29: ='Rate Data Calculations'!DM9 -> 2178.8 | Z29: ='Rate Data Calculations'!DN9 -> 555.1975 | AA29: ='Rate Data Calculations'!DO9 -> 152.555 | AB29: ='Rate Data Calculations'!DP9 -> 185.0225 | AC29: 15656.96167 | AD29: 0.2000434747 | AE29: =SUM(AD27:AD29) -> 0.4229555081 | AH29: =AG28+AD29 -> 1
B30: RTS | D30: =+Inputs!B27 -> 25 | F30: =Inputs!B46 -> 27.5 | G30: =+F30-D30 -> 2.5 | H30: =IFERROR(G30/D30,"N/A") -> 0.1 | J30: =S18 -> 28 | K30: =+J30-D30 -> 3 | L30: =IFERROR(K30/D30,"N/A") -> 0.12 | P30: Total | Q30: =SUM(Q24:Q29) -> 4390.550833 | R30: 4356.050833 | S30: 4564.583333 | T30: 5288.128333 | U30: 7910.42 | V30: 8892.03 | W30: 9897.121667 | X30: 9562.835 | Y30: 7997.3 | Z30: 5790.530833 | AA30: 4852.888333 | AB30: 4765.355833 | AC30: 78267.795 | AD30: 1
C31: Current | E31: Proposed | G31: Proposed Effect | I31: Revised | K31: Revised Effect | P31: % | Q31: =Q30/$AC$30 -> 0.0560965188 | R31: 0.05565572447 | S31: 0.05832007064 | T31: 0.0675645498 | U31: 0.1010686452 | V31: 0.1136103298 | W31: 0.1264520313 | X31: 0.1221809686 | Y31: 0.1021786803 | Z31: 0.07398356927 | AA31: 0.0620036419 | AB31: 0.06088527003 | AC31: =SUM(Q31:AB31) -> 1
B32: Base | D32: =+F20 -> 25 | F32: 27.5 | G32: =+F32-D32 -> 2.5 | H32: =IFERROR(G32/D32,"N/A") -> 0.1 | J32: =F22 -> 28 | K32: =+J32-D32 -> 3 | L32: =IFERROR(K32/D32,"N/A") -> 0.12
B33: Annual Average | C33: =INDEX(AH50:AH57,MATCH(J27,P50:P57,0)) -> 884.4415752 | E33: =Annual_Average -> 884.4415752 | I33: =Annual_Average -> 884.4415752
B34: Allowance | C34: =Current_Allowance -> 0 | D34: 0 | E34: =Proposed_Allowance -> 0 | F34: 0 | G34: =+F34-D34 -> 0 | H34: =IFERROR(G34/D34,"N/A") -> N/A | I34: =Revised_Allowance -> 0 | J34: =+I34/100*H22 -> 0 | K34: =+J34-D34 -> 0 | L34: =IFERROR(K34/D34,"N/A") -> N/A | P34: Revenue (Meter Size) | AF34: Averages (Per Meter)
B35: Usage 1 | C35: =IF(Current_Allowance>=Annual_Average, 0, IF(Annual_Average>=Current_Block1_UsageMax, Current_Block1_UsageMax-Current_Allowance, Annual_Average-Current_Allowance) ) -> 750 | D35: =+C35/100*H20 -> 11.25 | E35: 500 | F35: =+C35/100*H21 -> 13.125 | G35: =+F35-D35 -> 1.875 | H35: =IFERROR(G35/D35,"N/A") -> 0.1666666667 | I35: =IF(Revised_Allowance>=Annual_Average, 0, IF(Annual_Average>=Revised_Block1_UsageMax, Revised_Block1_UsageMax-Revised_Allowance, Annual_Average-Revised_Allowance) ) -> 500 | J35: =+I35/100*H22 -> 8.75 | K35: =+J35-D35 -> -2.5 | L35: =IFERROR(K35/D35,"N/A") -> -0.2222222222 | P35: Meter Size | Q35: Jan | R35: Feb | S35: Mar | T35: Apr | U35: May | V35: Jun | W35: Jul | X35: Aug | Y35: Sep | Z35: Oct | AA35: Nov | AB35: Dec | AC35: Total | AD35: % | AF35: Winter | AG35: Summer | AH35: Annual
B36: Usage 2 | C36: =IF(Current_Block1_UsageMax>=Annual_Average, 0, IF(Annual_Average>=Current_Block2_UsageMax, Current_Block2_UsageMax-Current_Block1_UsageMax, Annual_Average-Current_Block1_UsageMax) ) -> 134.4415752 | D36: =+C36/100*H20 -> 2.016623628 | E36: 1000 | F36: =+C36/100*J21 -> 3.024935442 | G36: =+F36-D36 -> 1.008311814 | H36: =IFERROR(G36/D36,"N/A") -> 0.5 | I36: =IF(Revised_Block1_UsageMax>=Annual_Average, 0, IF(Annual_Average>=Revised_Block2_UsageMax, Revised_Block2_UsageMax-Revised_Block1_UsageMax, Annual_Average-Revised_Block1_UsageMax) ) -> 384.4415752 | J36: =+I36/100*J22 -> 8.649935442 | K36: =+J36-D36 -> 6.633311814 | L36: =IFERROR(K36/D36,"N/A") -> 3.289315726 | P36: 0.625 | Q36: =SUMIF(Data_10.2[[Meter_Size]:[Meter_Size]],$P36, Monthly_Bill_10.2[Jan_Monthly_Bill]) -> 0 | R36: =SUMIF(Data_10.2[[Meter_Size]:[Meter_Size]],$P36, Monthly_Bill_10.2[Feb_Monthly_Bill]) -> 0 | S36: =SUMIF(Data_10.2[[Meter_Size]:[Meter_Size]],$P36, Monthly_Bill_10.2[Mar_Monthly_Bill]) -> 0 | T36: =SUMIF(Data_10.2[[Meter_Size]:[Meter_Size]],$P36, Monthly_Bill_10.2[Apr_Monthly_Bill]) -> 0 | U36: =SUMIF(Data_10.2[[Meter_Size]:[Meter_Size]],$P36, Monthly_Bill_10.2[May_Monthly_Bill]) -> 0 | V36: =SUMIF(Data_10.2[[Meter_Size]:[Meter_Size]],$P36, Monthly_Bill_10.2[Jun_Monthly_Bill]) -> 0 | W36: =SUMIF(Data_10.2[[Meter_Size]:[Meter_Size]],$P36, Monthly_Bill_10.2[Jul_Monthly_Bill]) -> 0 | X36: =SUMIF(Data_10.2[[Meter_Size]:[Meter_Size]],$P36, Monthly_Bill_10.2[Aug_Monthly_Bill]) -> 0 | Y36: =SUMIF(Data_10.2[[Meter_Size]:[Meter_Size]],$P36, Monthly_Bill_10.2[Sep_Monthly_Bill]) -> 0 | Z36: =SUMIF(Data_10.2[[Meter_Size]:[Meter_Size]],$P36, Monthly_Bill_10.2[Oct_Monthly_Bill]) -> 0 | AA36: =SUMIF(Data_10.2[[Meter_Size]:[Meter_Size]],$P36, Monthly_Bill_10.2[Nov_Monthly_Bill]) -> 0 | AB36: =SUMIF(Data_10.2[[Meter_Size]:[Meter_Size]],$P36, Monthly_Bill_10.2[Dec_Monthly_Bill]) -> 0 | AC36: =SUM(Q36:AB36) -> 0 | AD36: =+AC36/$AC$44 -> 0 | AF36: =IF($AA10=0,0,AVERAGE(RevenueMeterSize_10.1[[#This Row],[Jan]:[Apr]],RevenueMeterSize_10.1[[#This Row],[Nov]:[Dec]])/$AA10) -> 0 | AG36: =IF($AA10=0,0,AVERAGE(RevenueMeterSize_10.1[[#This Row],[May]:[Oct]])/$AA10) -> 0 | AH36: =IF($AA10=0,0,AVERAGE(RevenueMeterSize_10.1[[#This Row],[Jan]:[Dec]])/$AA10) -> 0
B37: Usage 3 | C37: =IF(Annual_Average>=Current_Block3_UsageMin, Annual_Average-Current_Block2_UsageMax, 0) -> 0 | D37: =+C37/100*H22 -> 0 | E37: =IF(Annual_Average>=Proposed_Block3_UsageMin, Annual_Average-Proposed_Block2_UsageMax, 0) -> 0 | F37: =+C37/100*L21 -> 0 | H37: =IFERROR(G37/D37,"N/A") -> N/A | I37: =IF(Annual_Average>=Revised_Block3_UsageMin, Annual_Average-Revised_Block2_UsageMax, 0) -> 0 | J37: =+I37/100*Revised_Block3_Rate -> 0 | L37: =IFERROR(K37/D37,"N/A") -> N/A | P37: 0.75 | Q37: =SUMIF(Data_10.2[[Meter_Size]:[Meter_Size]],$P37, Monthly_Bill_10.2[Jan_Monthly_Bill]) -> 4223.7175 | R37: =SUMIF(Data_10.2[[Meter_Size]:[Meter_Size]],$P37, Monthly_Bill_10.2[Feb_Monthly_Bill]) -> 4197.9675 | S37: =SUMIF(Data_10.2[[Meter_Size]:[Meter_Size]],$P37, Monthly_Bill_10.2[Mar_Monthly_Bill]) -> 4403 | T37: =SUMIF(Data_10.2[[Meter_Size]:[Meter_Size]],$P37, Monthly_Bill_10.2[Apr_Monthly_Bill]) -> 5110.795 | U37: =SUMIF(Data_10.2[[Meter_Size]:[Meter_Size]],$P37, Monthly_Bill_10.2[May_Monthly_Bill]) -> 7702.42 | V37: =SUMIF(Data_10.2[[Meter_Size]:[Meter_Size]],$P37, Monthly_Bill_10.2[Jun_Monthly_Bill]) -> 8670.53 | W37: =SUMIF(Data_10.2[[Meter_Size]:[Meter_Size]],$P37, Monthly_Bill_10.2[Jul_Monthly_Bill]) -> 9609.7375 | X37: =SUMIF(Data_10.2[[Meter_Size]:[Meter_Size]],$P37, Monthly_Bill_10.2[Aug_Monthly_Bill]) -> 9318.835 | Y37: =SUMIF(Data_10.2[[Meter_Size]:[Meter_Size]],$P37, Monthly_Bill_10.2[Sep_Monthly_Bill]) -> 7798.3 | Z37: =SUMIF(Data_10.2[[Meter_Size]:[Meter_Size]],$P37, Monthly_Bill_10.2[Oct_Monthly_Bill]) -> 5627.1975 | AA37: =SUMIF(Data_10.2[[Meter_Size]:[Meter_Size]],$P37, Monthly_Bill_10.2[Nov_Monthly_Bill]) -> 4693.055 | AB37: =SUMIF(Data_10.2[[Meter_Size]:[Meter_Size]],$P37, Monthly_Bill_10.2[Dec_Monthly_Bill]) -> 4609.0225 | AC37: 75964.5775 | AD37: 0.9705726027 | AF37: =IF($AA11=0,0,AVERAGE(RevenueMeterSize_10.1[[#This Row],[Jan]:[Apr]],RevenueMeterSize_10.1[[#This Row],[Nov]:[Dec]])/$AA11) -> 33.6266142 | AG37: =IF($AA11=0,0,AVERAGE(RevenueMeterSize_10.1[[#This Row],[May]:[Oct]])/$AA11) -> 60.15681481 | AH37: =IF($AA11=0,0,AVERAGE(RevenueMeterSize_10.1[[#This Row],[Jan]:[Dec]])/$AA11) -> 46.89171451
B38: Average Bill | D38: =SUM(D32:D37) -> 38.26662363 | F38: =SUM(F32:F37) -> 43.64993544 | G38: =+F38-D38 -> 5.383311814 | H38: =IFERROR(G38/D38,"N/A") -> 0.1406790384 | J38: =SUM(J32:J37) -> 45.39993544 | K38: =+J38-D38 -> 7.133311814 | L38: =IFERROR(K38/D38,"N/A") -> 0.1864107971 | P38: 1 | Q38: =SUMIF(Data_10.2[[Meter_Size]:[Meter_Size]],$P38, Monthly_Bill_10.2[Jan_Monthly_Bill]) -> 0 | R38: =SUMIF(Data_10.2[[Meter_Size]:[Meter_Size]],$P38, Monthly_Bill_10.2[Feb_Monthly_Bill]) -> 0 | S38: =SUMIF(Data_10.2[[Meter_Size]:[Meter_Size]],$P38, Monthly_Bill_10.2[Mar_Monthly_Bill]) -> 0 | T38: =SUMIF(Data_10.2[[Meter_Size]:[Meter_Size]],$P38, Monthly_Bill_10.2[Apr_Monthly_Bill]) -> 0 | U38: =SUMIF(Data_10.2[[Meter_Size]:[Meter_Size]],$P38, Monthly_Bill_10.2[May_Monthly_Bill]) -> 0 | V38: =SUMIF(Data_10.2[[Meter_Size]:[Meter_Size]],$P38, Monthly_Bill_10.2[Jun_Monthly_Bill]) -> 0 | W38: =SUMIF(Data_10.2[[Meter_Size]:[Meter_Size]],$P38, Monthly_Bill_10.2[Jul_Monthly_Bill]) -> 0 | X38: =SUMIF(Data_10.2[[Meter_Size]:[Meter_Size]],$P38, Monthly_Bill_10.2[Aug_Monthly_Bill]) -> 0 | Y38: =SUMIF(Data_10.2[[Meter_Size]:[Meter_Size]],$P38, Monthly_Bill_10.2[Sep_Monthly_Bill]) -> 0 | Z38: =SUMIF(Data_10.2[[Meter_Size]:[Meter_Size]],$P38, Monthly_Bill_10.2[Oct_Monthly_Bill]) -> 0 | AA38: =SUMIF(Data_10.2[[Meter_Size]:[Meter_Size]],$P38, Monthly_Bill_10.2[Nov_Monthly_Bill]) -> 0 | AB38: =SUMIF(Data_10.2[[Meter_Size]:[Meter_Size]],$P38, Monthly_Bill_10.2[Dec_Monthly_Bill]) -> 0 | AC38: 0 | AD38: 0 | AF38: =IF($AA12=0,0,AVERAGE(RevenueMeterSize_10.1[[#This Row],[Jan]:[Apr]],RevenueMeterSize_10.1[[#This Row],[Nov]:[Dec]])/$AA12) -> 0 | AG38: =IF($AA12=0,0,AVERAGE(RevenueMeterSize_10.1[[#This Row],[May]:[Oct]])/$AA12) -> 0 | AH38: =IF($AA12=0,0,AVERAGE(RevenueMeterSize_10.1[[#This Row],[Jan]:[Dec]])/$AA12) -> 0
E39: Average Bill Increase | F39: =F38-D38 -> 5.383311814 | J39: =+J38-D38 -> 7.133311814 | P39: 1.5 | Q39: =SUMIF(Data_10.2[[Meter_Size]:[Meter_Size]],$P39, Monthly_Bill_10.2[Jan_Monthly_Bill]) -> 0 | R39: =SUMIF(Data_10.2[[Meter_Size]:[Meter_Size]],$P39, Monthly_Bill_10.2[Feb_Monthly_Bill]) -> 0 | S39: =SUMIF(Data_10.2[[Meter_Size]:[Meter_Size]],$P39, Monthly_Bill_10.2[Mar_Monthly_Bill]) -> 0 | T39: =SUMIF(Data_10.2[[Meter_Size]:[Meter_Size]],$P39, Monthly_Bill_10.2[Apr_Monthly_Bill]) -> 0 | U39: =SUMIF(Data_10.2[[Meter_Size]:[Meter_Size]],$P39, Monthly_Bill_10.2[May_Monthly_Bill]) -> 0 | V39: =SUMIF(Data_10.2[[Meter_Size]:[Meter_Size]],$P39, Monthly_Bill_10.2[Jun_Monthly_Bill]) -> 0 | W39: =SUMIF(Data_10.2[[Meter_Size]:[Meter_Size]],$P39, Monthly_Bill_10.2[Jul_Monthly_Bill]) -> 0 | X39: =SUMIF(Data_10.2[[Meter_Size]:[Meter_Size]],$P39, Monthly_Bill_10.2[Aug_Monthly_Bill]) -> 0 | Y39: =SUMIF(Data_10.2[[Meter_Size]:[Meter_Size]],$P39, Monthly_Bill_10.2[Sep_Monthly_Bill]) -> 0 | Z39: =SUMIF(Data_10.2[[Meter_Size]:[Meter_Size]],$P39, Monthly_Bill_10.2[Oct_Monthly_Bill]) -> 0 | AA39: =SUMIF(Data_10.2[[Meter_Size]:[Meter_Size]],$P39, Monthly_Bill_10.2[Nov_Monthly_Bill]) -> 0 | AB39: =SUMIF(Data_10.2[[Meter_Size]:[Meter_Size]],$P39, Monthly_Bill_10.2[Dec_Monthly_Bill]) -> 0 | AC39: 0 | AD39: 0 | AF39: =IF($AA13=0,0,AVERAGE(RevenueMeterSize_10.1[[#This Row],[Jan]:[Apr]],RevenueMeterSize_10.1[[#This Row],[Nov]:[Dec]])/$AA13) -> 0 | AG39: =IF($AA13=0,0,AVERAGE(RevenueMeterSize_10.1[[#This Row],[May]:[Oct]])/$AA13) -> 0 | AH39: =IF($AA13=0,0,AVERAGE(RevenueMeterSize_10.1[[#This Row],[Jan]:[Dec]])/$AA13) -> 0
E40: Percent Increase | F40: =+F39/D38 -> 0.1406790384 | J40: =+J39/D38 -> 0.1864107971 | P40: 2 | Q40: =SUMIF(Data_10.2[[Meter_Size]:[Meter_Size]],$P40, Monthly_Bill_10.2[Jan_Monthly_Bill]) -> 166.8333333 | R40: =SUMIF(Data_10.2[[Meter_Size]:[Meter_Size]],$P40, Monthly_Bill_10.2[Feb_Monthly_Bill]) -> 158.0833333 | S40: =SUMIF(Data_10.2[[Meter_Size]:[Meter_Size]],$P40, Monthly_Bill_10.2[Mar_Monthly_Bill]) -> 161.5833333 | T40: =SUMIF(Data_10.2[[Meter_Size]:[Meter_Size]],$P40, Monthly_Bill_10.2[Apr_Monthly_Bill]) -> 177.3333333 | U40: =SUMIF(Data_10.2[[Meter_Size]:[Meter_Size]],$P40, Monthly_Bill_10.2[May_Monthly_Bill]) -> 208 | V40: =SUMIF(Data_10.2[[Meter_Size]:[Meter_Size]],$P40, Monthly_Bill_10.2[Jun_Monthly_Bill]) -> 221.5 | W40: =SUMIF(Data_10.2[[Meter_Size]:[Meter_Size]],$P40, Monthly_Bill_10.2[Jul_Monthly_Bill]) -> 287.3841667 | X40: =SUMIF(Data_10.2[[Meter_Size]:[Meter_Size]],$P40, Monthly_Bill_10.2[Aug_Monthly_Bill]) -> 244 | Y40: =SUMIF(Data_10.2[[Meter_Size]:[Meter_Size]],$P40, Monthly_Bill_10.2[Sep_Monthly_Bill]) -> 199 | Z40: =SUMIF(Data_10.2[[Meter_Size]:[Meter_Size]],$P40, Monthly_Bill_10.2[Oct_Monthly_Bill]) -> 163.3333333 | AA40: =SUMIF(Data_10.2[[Meter_Size]:[Meter_Size]],$P40, Monthly_Bill_10.2[Nov_Monthly_Bill]) -> 159.8333333 | AB40: =SUMIF(Data_10.2[[Meter_Size]:[Meter_Size]],$P40, Monthly_Bill_10.2[Dec_Monthly_Bill]) -> 156.3333333 | AC40: 2303.2175 | AD40: 0.02942739731 | AF40: =IF($AA14=0,0,AVERAGE(RevenueMeterSize_10.1[[#This Row],[Jan]:[Apr]],RevenueMeterSize_10.1[[#This Row],[Nov]:[Dec]])/$AA14) -> 163.3333333 | AG40: =IF($AA14=0,0,AVERAGE(RevenueMeterSize_10.1[[#This Row],[May]:[Oct]])/$AA14) -> 220.53625 | AH40: =IF($AA14=0,0,AVERAGE(RevenueMeterSize_10.1[[#This Row],[Jan]:[Dec]])/$AA14) -> 191.9347917
P41: 3 | Q41: =SUMIF(Data_10.2[[Meter_Size]:[Meter_Size]],$P41, Monthly_Bill_10.2[Jan_Monthly_Bill]) -> 0 | R41: =SUMIF(Data_10.2[[Meter_Size]:[Meter_Size]],$P41, Monthly_Bill_10.2[Feb_Monthly_Bill]) -> 0 | S41: =SUMIF(Data_10.2[[Meter_Size]:[Meter_Size]],$P41, Monthly_Bill_10.2[Mar_Monthly_Bill]) -> 0 | T41: =SUMIF(Data_10.2[[Meter_Size]:[Meter_Size]],$P41, Monthly_Bill_10.2[Apr_Monthly_Bill]) -> 0 | U41: =SUMIF(Data_10.2[[Meter_Size]:[Meter_Size]],$P41, Monthly_Bill_10.2[May_Monthly_Bill]) -> 0 | V41: =SUMIF(Data_10.2[[Meter_Size]:[Meter_Size]],$P41, Monthly_Bill_10.2[Jun_Monthly_Bill]) -> 0 | W41: =SUMIF(Data_10.2[[Meter_Size]:[Meter_Size]],$P41, Monthly_Bill_10.2[Jul_Monthly_Bill]) -> 0 | X41: =SUMIF(Data_10.2[[Meter_Size]:[Meter_Size]],$P41, Monthly_Bill_10.2[Aug_Monthly_Bill]) -> 0 | Y41: =SUMIF(Data_10.2[[Meter_Size]:[Meter_Size]],$P41, Monthly_Bill_10.2[Sep_Monthly_Bill]) -> 0 | Z41: =SUMIF(Data_10.2[[Meter_Size]:[Meter_Size]],$P41, Monthly_Bill_10.2[Oct_Monthly_Bill]) -> 0 | AA41: =SUMIF(Data_10.2[[Meter_Size]:[Meter_Size]],$P41, Monthly_Bill_10.2[Nov_Monthly_Bill]) -> 0 | AB41: =SUMIF(Data_10.2[[Meter_Size]:[Meter_Size]],$P41, Monthly_Bill_10.2[Dec_Monthly_Bill]) -> 0 | AC41: 0 | AD41: 0 | AF41: =IF($AA15=0,0,AVERAGE(RevenueMeterSize_10.1[[#This Row],[Jan]:[Apr]],RevenueMeterSize_10.1[[#This Row],[Nov]:[Dec]])/$AA15) -> 0 | AG41: =IF($AA15=0,0,AVERAGE(RevenueMeterSize_10.1[[#This Row],[May]:[Oct]])/$AA15) -> 0 | AH41: =IF($AA15=0,0,AVERAGE(RevenueMeterSize_10.1[[#This Row],[Jan]:[Dec]])/$AA15) -> 0
P42: 4 | Q42: =SUMIF(Data_10.2[[Meter_Size]:[Meter_Size]],$P42, Monthly_Bill_10.2[Jan_Monthly_Bill]) -> 0 | R42: =SUMIF(Data_10.2[[Meter_Size]:[Meter_Size]],$P42, Monthly_Bill_10.2[Feb_Monthly_Bill]) -> 0 | S42: =SUMIF(Data_10.2[[Meter_Size]:[Meter_Size]],$P42, Monthly_Bill_10.2[Mar_Monthly_Bill]) -> 0 | T42: =SUMIF(Data_10.2[[Meter_Size]:[Meter_Size]],$P42, Monthly_Bill_10.2[Apr_Monthly_Bill]) -> 0 | U42: =SUMIF(Data_10.2[[Meter_Size]:[Meter_Size]],$P42, Monthly_Bill_10.2[May_Monthly_Bill]) -> 0 | V42: =SUMIF(Data_10.2[[Meter_Size]:[Meter_Size]],$P42, Monthly_Bill_10.2[Jun_Monthly_Bill]) -> 0 | W42: =SUMIF(Data_10.2[[Meter_Size]:[Meter_Size]],$P42, Monthly_Bill_10.2[Jul_Monthly_Bill]) -> 0 | X42: =SUMIF(Data_10.2[[Meter_Size]:[Meter_Size]],$P42, Monthly_Bill_10.2[Aug_Monthly_Bill]) -> 0 | Y42: =SUMIF(Data_10.2[[Meter_Size]:[Meter_Size]],$P42, Monthly_Bill_10.2[Sep_Monthly_Bill]) -> 0 | Z42: =SUMIF(Data_10.2[[Meter_Size]:[Meter_Size]],$P42, Monthly_Bill_10.2[Oct_Monthly_Bill]) -> 0 | AA42: =SUMIF(Data_10.2[[Meter_Size]:[Meter_Size]],$P42, Monthly_Bill_10.2[Nov_Monthly_Bill]) -> 0 | AB42: =SUMIF(Data_10.2[[Meter_Size]:[Meter_Size]],$P42, Monthly_Bill_10.2[Dec_Monthly_Bill]) -> 0 | AC42: 0 | AD42: 0 | AF42: =IF($AA16=0,0,AVERAGE(RevenueMeterSize_10.1[[#This Row],[Jan]:[Apr]],RevenueMeterSize_10.1[[#This Row],[Nov]:[Dec]])/$AA16) -> 0 | AG42: =IF($AA16=0,0,AVERAGE(RevenueMeterSize_10.1[[#This Row],[May]:[Oct]])/$AA16) -> 0 | AH42: =IF($AA16=0,0,AVERAGE(RevenueMeterSize_10.1[[#This Row],[Jan]:[Dec]])/$AA16) -> 0
P43: 6 | Q43: =SUMIF(Data_10.2[[Meter_Size]:[Meter_Size]],$P43, Monthly_Bill_10.2[Jan_Monthly_Bill]) -> 0 | R43: =SUMIF(Data_10.2[[Meter_Size]:[Meter_Size]],$P43, Monthly_Bill_10.2[Feb_Monthly_Bill]) -> 0 | S43: =SUMIF(Data_10.2[[Meter_Size]:[Meter_Size]],$P43, Monthly_Bill_10.2[Mar_Monthly_Bill]) -> 0 | T43: =SUMIF(Data_10.2[[Meter_Size]:[Meter_Size]],$P43, Monthly_Bill_10.2[Apr_Monthly_Bill]) -> 0 | U43: =SUMIF(Data_10.2[[Meter_Size]:[Meter_Size]],$P43, Monthly_Bill_10.2[May_Monthly_Bill]) -> 0 | V43: =SUMIF(Data_10.2[[Meter_Size]:[Meter_Size]],$P43, Monthly_Bill_10.2[Jun_Monthly_Bill]) -> 0 | W43: =SUMIF(Data_10.2[[Meter_Size]:[Meter_Size]],$P43, Monthly_Bill_10.2[Jul_Monthly_Bill]) -> 0 | X43: =SUMIF(Data_10.2[[Meter_Size]:[Meter_Size]],$P43, Monthly_Bill_10.2[Aug_Monthly_Bill]) -> 0 | Y43: =SUMIF(Data_10.2[[Meter_Size]:[Meter_Size]],$P43, Monthly_Bill_10.2[Sep_Monthly_Bill]) -> 0 | Z43: =SUMIF(Data_10.2[[Meter_Size]:[Meter_Size]],$P43, Monthly_Bill_10.2[Oct_Monthly_Bill]) -> 0 | AA43: =SUMIF(Data_10.2[[Meter_Size]:[Meter_Size]],$P43, Monthly_Bill_10.2[Nov_Monthly_Bill]) -> 0 | AB43: =SUMIF(Data_10.2[[Meter_Size]:[Meter_Size]],$P43, Monthly_Bill_10.2[Dec_Monthly_Bill]) -> 0 | AC43: 0 | AD43: 0 | AF43: =IF($AA17=0,0,AVERAGE(RevenueMeterSize_10.1[[#This Row],[Jan]:[Apr]],RevenueMeterSize_10.1[[#This Row],[Nov]:[Dec]])/$AA17) -> 0 | AG43: =IF($AA17=0,0,AVERAGE(RevenueMeterSize_10.1[[#This Row],[May]:[Oct]])/$AA17) -> 0 | AH43: =IF($AA17=0,0,AVERAGE(RevenueMeterSize_10.1[[#This Row],[Jan]:[Dec]])/$AA17) -> 0
P44: Total | Q44: =SUM(Q36:Q43) -> 4390.550833 | R44: 4356.050833 | S44: 4564.583333 | T44: 5288.128333 | U44: 7910.42 | V44: 8892.03 | W44: 9897.121667 | X44: 9562.835 | Y44: 7997.3 | Z44: 5790.530833 | AA44: 4852.888333 | AB44: 4765.355833 | AC44: 78267.795 | AD44: 1 | AF44: =AVERAGEIF(AF36:AF43, ">0") -> 98.47997377 | AG44: =AVERAGEIF(AG36:AG43, ">0") -> 140.3465324 | AH44: =AVERAGEIF(AH36:AH43, ">0") -> 119.4132531
P45: % | Q45: =Q44/$AC$44 -> 0.0560965188 | R45: 0.05565572447 | S45: 0.05832007064 | T45: 0.0675645498 | U45: 0.1010686452 | V45: 0.1136103298 | W45: 0.1264520313 | X45: 0.1221809686 | Y45: 0.1021786803 | Z45: 0.07398356927 | AA45: 0.0620036419 | AB45: 0.06088527003 | AC45: =SUM(Q45:AB45) -> 1 | AD45: =+AC44+AC25 -> 78267.795 | AF45: =AF44/(AF44+AG44) -> 0.4123494303 | AG45: =AG44/(AF44+AG44) -> 0.5876505697
P48: Usage (Meter Size) | AE48: Averages (Per Meter)
P49: Meter Size | Q49: Jan | R49: Feb | S49: Mar | T49: Apr | U49: May | V49: Jun | W49: Jul | X49: Aug | Y49: Sep | Z49: Oct | AA49: Nov | AB49: Dec | AC49: Total | AD49: % | AF49: Winter | AG49: Summer | AH49: Annual
P50: 0.625 | Q50: =SUMIF(Data_10.2[[Meter_Size]:[Meter_Size]], $P50, Usage_10.2[Jan_Usage]) -> 0 | R50: =SUMIF(Data_10.2[[Meter_Size]:[Meter_Size]], $P50, Usage_10.2[Feb_Usage]) -> 0 | S50: =SUMIF(Data_10.2[[Meter_Size]:[Meter_Size]], $P50, Usage_10.2[Mar_Usage]) -> 0 | T50: =SUMIF(Data_10.2[[Meter_Size]:[Meter_Size]], $P50, Usage_10.2[Apr_Usage]) -> 0 | U50: =SUMIF(Data_10.2[[Meter_Size]:[Meter_Size]], $P50, Usage_10.2[May_Usage]) -> 0 | V50: =SUMIF(Data_10.2[[Meter_Size]:[Meter_Size]], $P50, Usage_10.2[Jun_Usage]) -> 0 | W50: =SUMIF(Data_10.2[[Meter_Size]:[Meter_Size]], $P50, Usage_10.2[Jul_Usage]) -> 0 | X50: =SUMIF(Data_10.2[[Meter_Size]:[Meter_Size]], $P50, Usage_10.2[Aug_Usage]) -> 0 | Y50: =SUMIF(Data_10.2[[Meter_Size]:[Meter_Size]], $P50, Usage_10.2[Sep_Usage]) -> 0 | Z50: =SUMIF(Data_10.2[[Meter_Size]:[Meter_Size]], $P50, Usage_10.2[Oct_Usage]) -> 0 | AA50: =SUMIF(Data_10.2[[Meter_Size]:[Meter_Size]], $P50, Usage_10.2[Nov_Usage]) -> 0 | AB50: =SUMIF(Data_10.2[[Meter_Size]:[Meter_Size]], $P50, Usage_10.2[Dec_Usage]) -> 0 | AC50: =SUM(Q50:AB50) -> 0 | AD50: =+AC50/$AC$58 -> 0 | AF50: =IF($AA10=0,0,SUM(UsageMeterSize_10.1[[#This Row],[Jan]:[Apr]],UsageMeterSize_10.1[[#This Row],[Nov]:[Dec]])/SUMIFS(Calculation_10.2[Count_Non-Zero_Winter],Data_10.2[Meter_Size],UsageMeterSize_10.1[[#This Row],[Meter Size]],Calculation_10.2[Count_Non-Zero_Winter],">0")) -> 0 | AG50: =IF($AA10=0,0,SUM(UsageMeterSize_10.1[[#This Row],[May]:[Oct]])/SUMIFS(Calculation_10.2[Count_Non-Zero_Summer],Data_10.2[Meter_Size],UsageMeterSize_10.1[[#This Row],[Meter Size]],Calculation_10.2[Count_Non-Zero_Summer],">0")) -> 0 | AH50: =IF($AA10=0,0,SUM(UsageMeterSize_10.1[[#This Row],[Jan]:[Dec]])/(SUMIFS(Calculation_10.2[Count_Non-Zero_Winter],Data_10.2[Meter_Size],UsageMeterSize_10.1[[#This Row],[Meter Size]],Calculation_10.2[Count_Non-Zero_Winter],">0")+SUMIFS(Calculation_10.2[Count_Non-Zero_Summer],Data_10.2[Meter_Size],UsageMeterSize_10.1[[#This Row],[Meter Size]],Calculation_10.2[Count_Non-Zero_Summer],">0"))) -> 0
P51: 0.75 | Q51: =SUMIF(Data_10.2[[Meter_Size]:[Meter_Size]], $P51, Usage_10.2[Jan_Usage]) -> 41900 | R51: =SUMIF(Data_10.2[[Meter_Size]:[Meter_Size]], $P51, Usage_10.2[Feb_Usage]) -> 40600 | S51: =SUMIF(Data_10.2[[Meter_Size]:[Meter_Size]], $P51, Usage_10.2[Mar_Usage]) -> 47000 | T51: =SUMIF(Data_10.2[[Meter_Size]:[Meter_Size]], $P51, Usage_10.2[Apr_Usage]) -> 74700 | U51: =SUMIF(Data_10.2[[Meter_Size]:[Meter_Size]], $P51, Usage_10.2[May_Usage]) -> 165800 | V51: =SUMIF(Data_10.2[[Meter_Size]:[Meter_Size]], $P51, Usage_10.2[Jun_Usage]) -> 195000 | W51: =SUMIF(Data_10.2[[Meter_Size]:[Meter_Size]], $P51, Usage_10.2[Jul_Usage]) -> 225600 | X51: =SUMIF(Data_10.2[[Meter_Size]:[Meter_Size]], $P51, Usage_10.2[Aug_Usage]) -> 215800 | Y51: =SUMIF(Data_10.2[[Meter_Size]:[Meter_Size]], $P51, Usage_10.2[Sep_Usage]) -> 164500 | Z51: =SUMIF(Data_10.2[[Meter_Size]:[Meter_Size]], $P51, Usage_10.2[Oct_Usage]) -> 89900 | AA51: =SUMIF(Data_10.2[[Meter_Size]:[Meter_Size]], $P51, Usage_10.2[Nov_Usage]) -> 55700 | AB51: =SUMIF(Data_10.2[[Meter_Size]:[Meter_Size]], $P51, Usage_10.2[Dec_Usage]) -> 53500 | AC51: 1370000 | AD51: 0.9810239885 | AF51: =IF($AA11=0,0,SUM(UsageMeterSize_10.1[[#This Row],[Jan]:[Apr]],UsageMeterSize_10.1[[#This Row],[Nov]:[Dec]])/SUMIFS(Calculation_10.2[Count_Non-Zero_Winter],Data_10.2[Meter_Size],UsageMeterSize_10.1[[#This Row],[Meter Size]],Calculation_10.2[Count_Non-Zero_Winter],">0")) -> 412.911726 | AG51: =IF($AA11=0,0,SUM(UsageMeterSize_10.1[[#This Row],[May]:[Oct]])/SUMIFS(Calculation_10.2[Count_Non-Zero_Summer],Data_10.2[Meter_Size],UsageMeterSize_10.1[[#This Row],[Meter Size]],Calculation_10.2[Count_Non-Zero_Summer],">0")) -> 1337.468354 | AH51: =IF($AA11=0,0,SUM(UsageMeterSize_10.1[[#This Row],[Jan]:[Dec]])/(SUMIFS(Calculation_10.2[Count_Non-Zero_Winter],Data_10.2[Meter_Size],UsageMeterSize_10.1[[#This Row],[Meter Size]],Calculation_10.2[Count_Non-Zero_Winter],">0")+SUMIFS(Calculation_10.2[Count_Non-Zero_Summer],Data_10.2[Meter_Size],UsageMeterSize_10.1[[#This Row],[Meter Size]],Calculation_10.2[Count_Non-Zero_Summer],">0"))) -> 884.4415752
P52: 1 | Q52: =SUMIF(Data_10.2[[Meter_Size]:[Meter_Size]], $P52, Usage_10.2[Jan_Usage]) -> 0 | R52: =SUMIF(Data_10.2[[Meter_Size]:[Meter_Size]], $P52, Usage_10.2[Feb_Usage]) -> 0 | S52: =SUMIF(Data_10.2[[Meter_Size]:[Meter_Size]], $P52, Usage_10.2[Mar_Usage]) -> 0 | T52: =SUMIF(Data_10.2[[Meter_Size]:[Meter_Size]], $P52, Usage_10.2[Apr_Usage]) -> 0 | U52: =SUMIF(Data_10.2[[Meter_Size]:[Meter_Size]], $P52, Usage_10.2[May_Usage]) -> 0 | V52: =SUMIF(Data_10.2[[Meter_Size]:[Meter_Size]], $P52, Usage_10.2[Jun_Usage]) -> 0 | W52: =SUMIF(Data_10.2[[Meter_Size]:[Meter_Size]], $P52, Usage_10.2[Jul_Usage]) -> 0 | X52: =SUMIF(Data_10.2[[Meter_Size]:[Meter_Size]], $P52, Usage_10.2[Aug_Usage]) -> 0 | Y52: =SUMIF(Data_10.2[[Meter_Size]:[Meter_Size]], $P52, Usage_10.2[Sep_Usage]) -> 0 | Z52: =SUMIF(Data_10.2[[Meter_Size]:[Meter_Size]], $P52, Usage_10.2[Oct_Usage]) -> 0 | AA52: =SUMIF(Data_10.2[[Meter_Size]:[Meter_Size]], $P52, Usage_10.2[Nov_Usage]) -> 0 | AB52: =SUMIF(Data_10.2[[Meter_Size]:[Meter_Size]], $P52, Usage_10.2[Dec_Usage]) -> 0 | AC52: 0 | AD52: 0 | AF52: =IF($AA12=0,0,SUM(UsageMeterSize_10.1[[#This Row],[Jan]:[Apr]],UsageMeterSize_10.1[[#This Row],[Nov]:[Dec]])/SUMIFS(Calculation_10.2[Count_Non-Zero_Winter],Data_10.2[Meter_Size],UsageMeterSize_10.1[[#This Row],[Meter Size]],Calculation_10.2[Count_Non-Zero_Winter],">0")) -> 0 | AG52: =IF($AA12=0,0,SUM(UsageMeterSize_10.1[[#This Row],[May]:[Oct]])/SUMIFS(Calculation_10.2[Count_Non-Zero_Summer],Data_10.2[Meter_Size],UsageMeterSize_10.1[[#This Row],[Meter Size]],Calculation_10.2[Count_Non-Zero_Summer],">0")) -> 0 | AH52: =IF($AA12=0,0,SUM(UsageMeterSize_10.1[[#This Row],[Jan]:[Dec]])/(SUMIFS(Calculation_10.2[Count_Non-Zero_Winter],Data_10.2[Meter_Size],UsageMeterSize_10.1[[#This Row],[Meter Size]],Calculation_10.2[Count_Non-Zero_Winter],">0")+SUMIFS(Calculation_10.2[Count_Non-Zero_Summer],Data_10.2[Meter_Size],UsageMeterSize_10.1[[#This Row],[Meter Size]],Calculation_10.2[Count_Non-Zero_Summer],">0"))) -> 0
P53: 1.5 | Q53: =SUMIF(Data_10.2[[Meter_Size]:[Meter_Size]], $P53, Usage_10.2[Jan_Usage]) -> 0 | R53: =SUMIF(Data_10.2[[Meter_Size]:[Meter_Size]], $P53, Usage_10.2[Feb_Usage]) -> 0 | S53: =SUMIF(Data_10.2[[Meter_Size]:[Meter_Size]], $P53, Usage_10.2[Mar_Usage]) -> 0 | T53: =SUMIF(Data_10.2[[Meter_Size]:[Meter_Size]], $P53, Usage_10.2[Apr_Usage]) -> 0 | U53: =SUMIF(Data_10.2[[Meter_Size]:[Meter_Size]], $P53, Usage_10.2[May_Usage]) -> 0 | V53: =SUMIF(Data_10.2[[Meter_Size]:[Meter_Size]], $P53, Usage_10.2[Jun_Usage]) -> 0 | W53: =SUMIF(Data_10.2[[Meter_Size]:[Meter_Size]], $P53, Usage_10.2[Jul_Usage]) -> 0 | X53: =SUMIF(Data_10.2[[Meter_Size]:[Meter_Size]], $P53, Usage_10.2[Aug_Usage]) -> 0 | Y53: =SUMIF(Data_10.2[[Meter_Size]:[Meter_Size]], $P53, Usage_10.2[Sep_Usage]) -> 0 | Z53: =SUMIF(Data_10.2[[Meter_Size]:[Meter_Size]], $P53, Usage_10.2[Oct_Usage]) -> 0 | AA53: =SUMIF(Data_10.2[[Meter_Size]:[Meter_Size]], $P53, Usage_10.2[Nov_Usage]) -> 0 | AB53: =SUMIF(Data_10.2[[Meter_Size]:[Meter_Size]], $P53, Usage_10.2[Dec_Usage]) -> 0 | AC53: 0 | AD53: 0 | AF53: =IF($AA13=0,0,SUM(UsageMeterSize_10.1[[#This Row],[Jan]:[Apr]],UsageMeterSize_10.1[[#This Row],[Nov]:[Dec]])/SUMIFS(Calculation_10.2[Count_Non-Zero_Winter],Data_10.2[Meter_Size],UsageMeterSize_10.1[[#This Row],[Meter Size]],Calculation_10.2[Count_Non-Zero_Winter],">0")) -> 0 | AG53: =IF($AA13=0,0,SUM(UsageMeterSize_10.1[[#This Row],[May]:[Oct]])/SUMIFS(Calculation_10.2[Count_Non-Zero_Summer],Data_10.2[Meter_Size],UsageMeterSize_10.1[[#This Row],[Meter Size]],Calculation_10.2[Count_Non-Zero_Summer],">0")) -> 0 | AH53: =IF($AA13=0,0,SUM(UsageMeterSize_10.1[[#This Row],[Jan]:[Dec]])/(SUMIFS(Calculation_10.2[Count_Non-Zero_Winter],Data_10.2[Meter_Size],UsageMeterSize_10.1[[#This Row],[Meter Size]],Calculation_10.2[Count_Non-Zero_Winter],">0")+SUMIFS(Calculation_10.2[Count_Non-Zero_Summer],Data_10.2[Meter_Size],UsageMeterSize_10.1[[#This Row],[Meter Size]],Calculation_10.2[Count_Non-Zero_Summer],">0"))) -> 0
P54: 2 | Q54: =SUMIF(Data_10.2[[Meter_Size]:[Meter_Size]], $P54, Usage_10.2[Jan_Usage]) -> 1000 | R54: =SUMIF(Data_10.2[[Meter_Size]:[Meter_Size]], $P54, Usage_10.2[Feb_Usage]) -> 500 | S54: =SUMIF(Data_10.2[[Meter_Size]:[Meter_Size]], $P54, Usage_10.2[Mar_Usage]) -> 700 | T54: =SUMIF(Data_10.2[[Meter_Size]:[Meter_Size]], $P54, Usage_10.2[Apr_Usage]) -> 1600 | U54: =SUMIF(Data_10.2[[Meter_Size]:[Meter_Size]], $P54, Usage_10.2[May_Usage]) -> 3200 | V54: =SUMIF(Data_10.2[[Meter_Size]:[Meter_Size]], $P54, Usage_10.2[Jun_Usage]) -> 3800 | W54: =SUMIF(Data_10.2[[Meter_Size]:[Meter_Size]], $P54, Usage_10.2[Jul_Usage]) -> 6300 | X54: =SUMIF(Data_10.2[[Meter_Size]:[Meter_Size]], $P54, Usage_10.2[Aug_Usage]) -> 4800 | Y54: =SUMIF(Data_10.2[[Meter_Size]:[Meter_Size]], $P54, Usage_10.2[Sep_Usage]) -> 2800 | Z54: =SUMIF(Data_10.2[[Meter_Size]:[Meter_Size]], $P54, Usage_10.2[Oct_Usage]) -> 800 | AA54: =SUMIF(Data_10.2[[Meter_Size]:[Meter_Size]], $P54, Usage_10.2[Nov_Usage]) -> 600 | AB54: =SUMIF(Data_10.2[[Meter_Size]:[Meter_Size]], $P54, Usage_10.2[Dec_Usage]) -> 400 | AC54: 26500 | AD54: 0.01897601146 | AF54: =IF($AA14=0,0,SUM(UsageMeterSize_10.1[[#This Row],[Jan]:[Apr]],UsageMeterSize_10.1[[#This Row],[Nov]:[Dec]])/SUMIFS(Calculation_10.2[Count_Non-Zero_Winter],Data_10.2[Meter_Size],UsageMeterSize_10.1[[#This Row],[Meter Size]],Calculation_10.2[Count_Non-Zero_Winter],">0")) -> 800 | AG54: =IF($AA14=0,0,SUM(UsageMeterSize_10.1[[#This Row],[May]:[Oct]])/SUMIFS(Calculation_10.2[Count_Non-Zero_Summer],Data_10.2[Meter_Size],UsageMeterSize_10.1[[#This Row],[Meter Size]],Calculation_10.2[Count_Non-Zero_Summer],">0")) -> 3616.666667 | AH54: =IF($AA14=0,0,SUM(UsageMeterSize_10.1[[#This Row],[Jan]:[Dec]])/(SUMIFS(Calculation_10.2[Count_Non-Zero_Winter],Data_10.2[Meter_Size],UsageMeterSize_10.1[[#This Row],[Meter Size]],Calculation_10.2[Count_Non-Zero_Winter],">0")+SUMIFS(Calculation_10.2[Count_Non-Zero_Summer],Data_10.2[Meter_Size],UsageMeterSize_10.1[[#This Row],[Meter Size]],Calculation_10.2[Count_Non-Zero_Summer],">0"))) -> 2208.333333
P55: 3 | Q55: =SUMIF(Data_10.2[[Meter_Size]:[Meter_Size]], $P55, Usage_10.2[Jan_Usage]) -> 0 | R55: =SUMIF(Data_10.2[[Meter_Size]:[Meter_Size]], $P55, Usage_10.2[Feb_Usage]) -> 0 | S55: =SUMIF(Data_10.2[[Meter_Size]:[Meter_Size]], $P55, Usage_10.2[Mar_Usage]) -> 0 | T55: =SUMIF(Data_10.2[[Meter_Size]:[Meter_Size]], $P55, Usage_10.2[Apr_Usage]) -> 0 | U55: =SUMIF(Data_10.2[[Meter_Size]:[Meter_Size]], $P55, Usage_10.2[May_Usage]) -> 0 | V55: =SUMIF(Data_10.2[[Meter_Size]:[Meter_Size]], $P55, Usage_10.2[Jun_Usage]) -> 0 | W55: =SUMIF(Data_10.2[[Meter_Size]:[Meter_Size]], $P55, Usage_10.2[Jul_Usage]) -> 0 | X55: =SUMIF(Data_10.2[[Meter_Size]:[Meter_Size]], $P55, Usage_10.2[Aug_Usage]) -> 0 | Y55: =SUMIF(Data_10.2[[Meter_Size]:[Meter_Size]], $P55, Usage_10.2[Sep_Usage]) -> 0 | Z55: =SUMIF(Data_10.2[[Meter_Size]:[Meter_Size]], $P55, Usage_10.2[Oct_Usage]) -> 0 | AA55: =SUMIF(Data_10.2[[Meter_Size]:[Meter_Size]], $P55, Usage_10.2[Nov_Usage]) -> 0 | AB55: =SUMIF(Data_10.2[[Meter_Size]:[Meter_Size]], $P55, Usage_10.2[Dec_Usage]) -> 0 | AC55: 0 | AD55: 0 | AF55: =IF($AA15=0,0,SUM(UsageMeterSize_10.1[[#This Row],[Jan]:[Apr]],UsageMeterSize_10.1[[#This Row],[Nov]:[Dec]])/SUMIFS(Calculation_10.2[Count_Non-Zero_Winter],Data_10.2[Meter_Size],UsageMeterSize_10.1[[#This Row],[Meter Size]],Calculation_10.2[Count_Non-Zero_Winter],">0")) -> 0 | AG55: =IF($AA15=0,0,SUM(UsageMeterSize_10.1[[#This Row],[May]:[Oct]])/SUMIFS(Calculation_10.2[Count_Non-Zero_Summer],Data_10.2[Meter_Size],UsageMeterSize_10.1[[#This Row],[Meter Size]],Calculation_10.2[Count_Non-Zero_Summer],">0")) -> 0 | AH55: =IF($AA15=0,0,SUM(UsageMeterSize_10.1[[#This Row],[Jan]:[Dec]])/(SUMIFS(Calculation_10.2[Count_Non-Zero_Winter],Data_10.2[Meter_Size],UsageMeterSize_10.1[[#This Row],[Meter Size]],Calculation_10.2[Count_Non-Zero_Winter],">0")+SUMIFS(Calculation_10.2[Count_Non-Zero_Summer],Data_10.2[Meter_Size],UsageMeterSize_10.1[[#This Row],[Meter Size]],Calculation_10.2[Count_Non-Zero_Summer],">0"))) -> 0
P56: 4 | Q56: =SUMIF(Data_10.2[[Meter_Size]:[Meter_Size]], $P56, Usage_10.2[Jan_Usage]) -> 0 | R56: =SUMIF(Data_10.2[[Meter_Size]:[Meter_Size]], $P56, Usage_10.2[Feb_Usage]) -> 0 | S56: =SUMIF(Data_10.2[[Meter_Size]:[Meter_Size]], $P56, Usage_10.2[Mar_Usage]) -> 0 | T56: =SUMIF(Data_10.2[[Meter_Size]:[Meter_Size]], $P56, Usage_10.2[Apr_Usage]) -> 0 | U56: =SUMIF(Data_10.2[[Meter_Size]:[Meter_Size]], $P56, Usage_10.2[May_Usage]) -> 0 | V56: =SUMIF(Data_10.2[[Meter_Size]:[Meter_Size]], $P56, Usage_10.2[Jun_Usage]) -> 0 | W56: =SUMIF(Data_10.2[[Meter_Size]:[Meter_Size]], $P56, Usage_10.2[Jul_Usage]) -> 0 | X56: =SUMIF(Data_10.2[[Meter_Size]:[Meter_Size]], $P56, Usage_10.2[Aug_Usage]) -> 0 | Y56: =SUMIF(Data_10.2[[Meter_Size]:[Meter_Size]], $P56, Usage_10.2[Sep_Usage]) -> 0 | Z56: =SUMIF(Data_10.2[[Meter_Size]:[Meter_Size]], $P56, Usage_10.2[Oct_Usage]) -> 0 | AA56: =SUMIF(Data_10.2[[Meter_Size]:[Meter_Size]], $P56, Usage_10.2[Nov_Usage]) -> 0 | AB56: =SUMIF(Data_10.2[[Meter_Size]:[Meter_Size]], $P56, Usage_10.2[Dec_Usage]) -> 0 | AC56: 0 | AD56: 0 | AF56: =IF($AA16=0,0,SUM(UsageMeterSize_10.1[[#This Row],[Jan]:[Apr]],UsageMeterSize_10.1[[#This Row],[Nov]:[Dec]])/SUMIFS(Calculation_10.2[Count_Non-Zero_Winter],Data_10.2[Meter_Size],UsageMeterSize_10.1[[#This Row],[Meter Size]],Calculation_10.2[Count_Non-Zero_Winter],">0")) -> 0 | AG56: =IF($AA16=0,0,SUM(UsageMeterSize_10.1[[#This Row],[May]:[Oct]])/SUMIFS(Calculation_10.2[Count_Non-Zero_Summer],Data_10.2[Meter_Size],UsageMeterSize_10.1[[#This Row],[Meter Size]],Calculation_10.2[Count_Non-Zero_Summer],">0")) -> 0 | AH56: =IF($AA16=0,0,SUM(UsageMeterSize_10.1[[#This Row],[Jan]:[Dec]])/(SUMIFS(Calculation_10.2[Count_Non-Zero_Winter],Data_10.2[Meter_Size],UsageMeterSize_10.1[[#This Row],[Meter Size]],Calculation_10.2[Count_Non-Zero_Winter],">0")+SUMIFS(Calculation_10.2[Count_Non-Zero_Summer],Data_10.2[Meter_Size],UsageMeterSize_10.1[[#This Row],[Meter Size]],Calculation_10.2[Count_Non-Zero_Summer],">0"))) -> 0
P57: 6 | Q57: =SUMIF(Data_10.2[[Meter_Size]:[Meter_Size]], $P57, Usage_10.2[Jan_Usage]) -> 0 | R57: =SUMIF(Data_10.2[[Meter_Size]:[Meter_Size]], $P57, Usage_10.2[Feb_Usage]) -> 0 | S57: =SUMIF(Data_10.2[[Meter_Size]:[Meter_Size]], $P57, Usage_10.2[Mar_Usage]) -> 0 | T57: =SUMIF(Data_10.2[[Meter_Size]:[Meter_Size]], $P57, Usage_10.2[Apr_Usage]) -> 0 | U57: =SUMIF(Data_10.2[[Meter_Size]:[Meter_Size]], $P57, Usage_10.2[May_Usage]) -> 0 | V57: =SUMIF(Data_10.2[[Meter_Size]:[Meter_Size]], $P57, Usage_10.2[Jun_Usage]) -> 0 | W57: =SUMIF(Data_10.2[[Meter_Size]:[Meter_Size]], $P57, Usage_10.2[Jul_Usage]) -> 0 | X57: =SUMIF(Data_10.2[[Meter_Size]:[Meter_Size]], $P57, Usage_10.2[Aug_Usage]) -> 0 | Y57: =SUMIF(Data_10.2[[Meter_Size]:[Meter_Size]], $P57, Usage_10.2[Sep_Usage]) -> 0 | Z57: =SUMIF(Data_10.2[[Meter_Size]:[Meter_Size]], $P57, Usage_10.2[Oct_Usage]) -> 0 | AA57: =SUMIF(Data_10.2[[Meter_Size]:[Meter_Size]], $P57, Usage_10.2[Nov_Usage]) -> 0 | AB57: =SUMIF(Data_10.2[[Meter_Size]:[Meter_Size]], $P57, Usage_10.2[Dec_Usage]) -> 0 | AC57: 0 | AD57: 0 | AF57: =IF($AA17=0,0,SUM(UsageMeterSize_10.1[[#This Row],[Jan]:[Apr]],UsageMeterSize_10.1[[#This Row],[Nov]:[Dec]])/SUMIFS(Calculation_10.2[Count_Non-Zero_Winter],Data_10.2[Meter_Size],UsageMeterSize_10.1[[#This Row],[Meter Size]],Calculation_10.2[Count_Non-Zero_Winter],">0")) -> 0 | AG57: =IF($AA17=0,0,SUM(UsageMeterSize_10.1[[#This Row],[May]:[Oct]])/SUMIFS(Calculation_10.2[Count_Non-Zero_Summer],Data_10.2[Meter_Size],UsageMeterSize_10.1[[#This Row],[Meter Size]],Calculation_10.2[Count_Non-Zero_Summer],">0")) -> 0 | AH57: =IF($AA17=0,0,SUM(UsageMeterSize_10.1[[#This Row],[Jan]:[Dec]])/(SUMIFS(Calculation_10.2[Count_Non-Zero_Winter],Data_10.2[Meter_Size],UsageMeterSize_10.1[[#This Row],[Meter Size]],Calculation_10.2[Count_Non-Zero_Winter],">0")+SUMIFS(Calculation_10.2[Count_Non-Zero_Summer],Data_10.2[Meter_Size],UsageMeterSize_10.1[[#This Row],[Meter Size]],Calculation_10.2[Count_Non-Zero_Summer],">0"))) -> 0
P58: Total | Q58: =SUM(Q50:Q57) -> 42900 | R58: 41100 | S58: 47700 | T58: 76300 | U58: 169000 | V58: 198800 | W58: 231900 | X58: 220600 | Y58: 167300 | Z58: 90700 | AA58: 56300 | AB58: 53900 | AC58: 1396500 | AD58: 1 | AF58: =AVERAGEIF(AF50:AF57, ">0") -> 606.455863 | AG58: =AVERAGEIF(AG50:AG57, ">0") -> 2477.067511 | AH58: =AVERAGEIF(AH50:AH57, ">0") -> 1546.387454
P59: % | Q59: =Q58/$AC$58 -> 0.03071965628 | R59: 0.02943071966 | S59: 0.03415682062 | T59: 0.05463659148 | U59: 0.1210168278 | V59: 0.1423558897 | W59: 0.1660580021 | X59: 0.1579663444 | Y59: 0.1197994987 | Z59: 0.0649480845 | AA59: 0.0403150734 | AB59: 0.03859649123 | AC59: =SUM(Q59:AB59) -> 1 | AF59: =AF58/(AF58+AG58) -> 0.1966762659 | AG59: =AG58/(AF58+AG58) -> 0.8033237341

Sheet Sheet1

Sheet Rate Data Calculations
B2: =Inputs!B6 -> Community Water Service of Dungeness Heights LLC
B3: ="UW-"&Inputs!B7 -> UW-
B4: =PFIS!B3 -> For Test Year Ended December 31, 2023
B5: Rate Design Calculated Data Sheet
I7: These columns for 10.1 calculations; Not for 10.2 calculations | M7: Jan | N7: Feb | O7: Mar | P7: Apr | Q7: May | R7: Jun | S7: Jul | T7: Aug | U7: Sep | V7: Oct | W7: Nov | X7: Dec | Y7: Jan | Z7: Feb | AA7: Mar | AB7: Apr | AC7: May | AD7: Jun | AE7: Jul | AF7: Aug | AG7: Sep | AH7: Oct | AI7: Nov | AJ7: Dec | AK7: Jan | AL7: Feb | AM7: Mar | AN7: Apr | AO7: May | AP7: Jun | AQ7: Jul | AR7: Aug | AS7: Sep | AT7: Oct | AU7: Nov | AV7: Dec | AW7: Jan | AX7: Feb | AY7: Mar | AZ7: Apr | BA7: May | BB7: Jun | BC7: Jul | BD7: Aug | BE7: Sep | BF7: Oct | BG7: Nov | BH7: Dec | BI7: Jan | BJ7: Feb | BK7: Mar | BL7: Apr | BM7: May | BN7: Jun | BO7: Jul | BP7: Aug | BQ7: Sep | BR7: Oct | BS7: Nov | BT7: Dec | BU7: Jan | BV7: Feb | BW7: Mar | BX7: Apr | BY7: May | BZ7: Jun | CA7: Jul | CB7: Aug | CC7: Sep | CD7: Oct | CE7: Nov | CF7: Dec | CG7: Jan | CH7: Feb | CI7: Mar | CJ7: Apr | CK7: May | CL7: Jun | CM7: Jul | CN7: Aug | CO7: Sep | CP7: Oct | CQ7: Nov | CR7: Dec | CS7: Jan | CT7: Feb | CU7: Mar | CV7: Apr | CW7: May | CX7: Jun | CY7: Jul | CZ7: Aug | DA7: Sep | DB7: Oct | DC7: Nov | DD7: Dec | DE7: Jan | DF7: Feb | DG7: Mar | DH7: Apr | DI7: May | DJ7: Jun | DK7: Jul | DL7: Aug | DM7: Sep | DN7: Oct | DO7: Nov | DP7: Dec | DQ7: Jan | DR7: Feb | DS7: Mar | DT7: Apr | DU7: May | DV7: Jun | DW7: Jul | DX7: Aug | DY7: Sep | DZ7: Oct | EA7: Nov | EB7: Dec | EC7: Jan | ED7: Feb | EE7: Mar | EF7: Apr | EG7: May | EH7: Jun | EI7: Jul | EJ7: Aug | EK7: Sep | EL7: Oct | EM7: Nov | EN7: Dec
B8: Meter_ID | C8: No. | D8: Meter_Size | E8: Total_$ | F8: Monthly_AVG_$ | G8: Total_Usage | H8: Monthly_AVG_Usage | I8: Winter_Use | J8: Summer_Use | K8: Count_Non-Zero_Winter | L8: Count_Non-Zero_Summer | M8: Jan_Usage | N8: Feb_Usage | O8: Mar_Usage | P8: Apr_Usage | Q8: May_Usage | R8: Jun_Usage | S8: Jul_Usage | T8: Aug_Usage | U8: Sep_Usage | V8: Oct_Usage | W8: Nov_Usage | X8: Dec_Usage | Y8: Jan_Monthly_Bill | Z8: Feb_Monthly_Bill | AA8: Mar_Monthly_Bill | AB8: Apr_Monthly_Bill | AC8: May_Monthly_Bill | AD8: Jun_Monthly_Bill | AE8: Jul_Monthly_Bill | AF8: Aug_Monthly_Bill | AG8: Sep_Monthly_Bill | AH8: Oct_Monthly_Bill | AI8: Nov_Monthly_Bill | AJ8: Dec_Monthly_Bill | AK8: Jan_Base | AL8: Feb_Base | AM8: Mar_Base | AN8: Apr_Base | AO8: May_Base | AP8: Jun_Base | AQ8: Jul_Base | AR8: Aug_Base | AS8: Sep_Base | AT8: Oct_Base | AU8: Nov_Base | AV8: Dec_Base | AW8: Jan_Blk_1_-_Usage | AX8: Feb_Blk_1_-_Usage | AY8: Mar_Blk_1_-_Usage | AZ8: Apr_Blk_1_-_Usage | BA8: May_Blk_1_-_Usage | BB8: Jun_Blk_1_-_Usage | BC8: Jul_Blk_1_-_Usage | BD8: Aug_Blk_1_-_Usage | BE8: Sep_Blk_1_-_Usage | BF8: Oct_Blk_1_-_Usage | BG8: Nov_Blk_1_-_Usage | BH8: Dec_Blk_1_-_Usage | BI8: Jan_Blk_1_-_Rate | BJ8: Feb_Blk_1_-_Rate | BK8: Mar_Blk_1_-_Rate | BL8: Apr_Blk_1_-_Rate | BM8: May_Blk_1_-_Rate | BN8: Jun_Blk_1_-_Rate | BO8: Jul_Blk_1_-_Rate | BP8: Aug_Blk_1_-_Rate | BQ8: Sep_Blk_1_-_Rate | BR8: Oct_Blk_1_-_Rate | BS8: Nov_Blk_1_-_Rate | BT8: Dec_Blk_1_-_Rate | BU8: Jan_Blk_2_-_Usage | BV8: Feb_Blk_2_-_Usage | BW8: Mar_Blk_2_-_Usage | BX8: Apr_Blk_2_-_Usage | BY8: May_Blk_2_-_Usage | BZ8: Jun_Blk_2_-_Usage | CA8: Jul_Blk_2_-_Usage | CB8: Aug_Blk_2_-_Usage | CC8: Sep_Blk_2_-_Usage | CD8: Oct_Blk_2_-_Usage | CE8: Nov_Blk_2_-_Usage | CF8: Dec_Blk_2_-_Usage | CG8: Jan_Blk_2_-_Rate | CH8: Feb_Blk_2_-_Rate | CI8: Mar_Blk_2_-_Rate | CJ8: Apr_Blk_2_-_Rate | CK8: May_Blk_2_-_Rate | CL8: Jun_Blk_2_-_Rate | CM8: Jul_Blk_2_-_Rate | CN8: Aug_Blk_2_-_Rate | CO8: Sep_Blk_2_-_Rate | CP8: Oct_Blk_2_-_Rate | CQ8: Nov_Blk_2_-_Rate | CR8: Dec_Blk_2_-_Rate | CS8: Jan_Blk_3_-_Usage | CT8: Feb_Blk_3_-_Usage | CU8: Mar_Blk_3_-_Usage | CV8: Apr_Blk_3_-_Usage | CW8: May_Blk_3_-_Usage | CX8: Jun_Blk_3_-_Usage | CY8: Jul_Blk_3_-_Usage | CZ8: Aug_Blk_3_-_Usage | DA8: Sep_Blk_3_-_Usage | DB8: Oct_Blk_3_-_Usage | DC8: Nov_Blk_3_-_Usage | DD8: Dec_Blk_3_-_Usage | DE8: Jan_Blk_3_-_Rate | DF8: Feb_Blk_3_-_Rate | DG8: Mar_Blk_3_-_Rate | DH8: Apr_Blk_3_-_Rate | DI8: May_Blk_3_-_Rate | DJ8: Jun_Blk_3_-_Rate | DK8: Jul_Blk_3_-_Rate | DL8: Aug_Blk_3_-_Rate | DM8: Sep_Blk_3_-_Rate | DN8: Oct_Blk_3_-_Rate | DO8: Nov_Blk_3_-_Rate | DP8: Dec_Blk_3_-_Rate | DQ8: Jan_Allow | DR8: Feb_Allow | DS8: Mar_Allow | DT8: Apr_Allow | DU8: May_Allow | DV8: Jun_Allow | DW8: Jul_Allow | DX8: Aug_Allow | DY8: Sep_Allow | DZ8: Oct_Allow | EA8: Nov_Allow | EB8: Dec_Allow | EC8: Jan_Avg._Bill | ED8: Feb_Avg._Bill | EE8: Mar_Avg._Bill | EF8: Apr_Avg._Bill | EG8: May_Avg._Bill | EH8: Jun_Avg._Bill | EI8: Jul_Avg._Bill | EJ8: Aug_Avg._Bill | EK8: Sep_Avg._Bill | EL8: Oct_Avg._Bill | EM8: Nov_Avg._Bill | EN8: Dec_Avg._Bill
M9: =SUMIF(M11:M2011, ">=0", M11:M2011) -> 42900 | N9: 41100 | O9: 47700 | P9: 76300 | Q9: 169000 | R9: 198800 | S9: 231900 | T9: 220600 | U9: 167300 | V9: 90700 | W9: 56300 | X9: 53900 | Y9: =SUMIF(M11:M2011, ">=-9999999999999", Y11:Y2011) -> 4390.550833 | Z9: 4356.050833 | AA9: 4564.583333 | AB9: 5288.128333 | AC9: 7910.42 | AD9: 8892.03 | AE9: 9897.121667 | AF9: 9562.835 | AG9: 7997.3 | AH9: 5790.530833 | AI9: 4852.888333 | AJ9: 4765.355833 | AK9: =SUMIF(M11:M2011, ">=-9999999999999", AK11:AK2011) -> 3621.333333 | AL9: 3621.333333 | AM9: 3705.333333 | AN9: 3733.333333 | AO9: 3761.333333 | AP9: 3845.333333 | AQ9: 3845.333333 | AR9: 3845.333333 | AS9: 3873.333333 | AT9: 3845.333333 | AU9: 3761.333333 | AV9: 3705.333333 | AW9: =SUMIF(M11:M2011, ">=-9999999999999", AW11:AW2011) -> 39800 | AX9: 38400 | AY9: 42800 | AZ9: 50500 | BA9: 61066.66667 | BB9: 62966.66667 | BC9: 64366.66667 | BD9: 63866.66667 | BE9: 61866.66667 | BF9: 53200 | BG9: 44400 | BH9: 41900 | BI9: =SUMIF(M11:M2011, ">=-9999999999999", BI11:BI2011) -> 696.5 | BJ9: 672 | BK9: 749 | BL9: 883.75 | BM9: 1068.666667 | BN9: 1101.916667 | BO9: 1126.416667 | BP9: 1117.666667 | BQ9: 1082.666667 | BR9: 931 | BS9: 777 | BT9: 733.25 | BU9: =SUMIF(M11:M2011, ">=-9999999999999", BU11:BU2011) -> 2800 | BV9: 2500 | BW9: 4900 | BX9: 16700 | BY9: 42533.33333 | BZ9: 46733.33333 | CA9: 51666.66667 | CB9: 49133.33333 | CC9: 38333.33333 | CD9: 20400 | CE9: 7200 | CF9: 6300 | CG9: =SUMIF(M11:M2011, ">=-9999999999999", CG11:CG2011) -> 63 | CH9: 56.25 | CI9: 110.25 | CJ9: 375.75 | CK9: 957 | CL9: 1051.5 | CM9: 1162.5 | CN9: 1105.5 | CO9: 862.5 | CP9: 459 | CQ9: 162 | CR9: 141.75 | CS9: =SUMIF(M11:M2011, ">=-9999999999999", CS11:CS2011) -> 299 | CT9: 199 | CU9: 0 | CV9: 9086 | CW9: 65336 | CX9: 89024 | CY9: 115780.6667 | CZ9: 107518 | DA9: 67040 | DB9: 17083 | DC9: 4694 | DD9: 5693 | DE9: =SUMIF(M11:M2011, ">=-9999999999999", DE11:DE2011) -> 9.7175 | DF9: 6.4675 | DG9: 0 | DH9: 295.295 | DI9: 2123.42 | DJ9: 2893.28 | DK9: 3762.871667 | DL9: 3494.335 | DM9: 2178.8 | DN9: 555.1975 | DO9: 152.555 | DP9: 185.0225 | DQ9: =SUMIF(M11:M2011, ">=-9999999999999", DQ11:DQ2011) -> 0 | DR9: 0 | DS9: 0 | DT9: 0 | DU9: 0 | DV9: 0 | DW9: 0 | DX9: 0 | DY9: 0 | DZ9: 0 | EA9: 0 | EB9: 0 | EC9: =IF('Rate Design'!$AA$20=0, 0, (AVERAGEIF(M11:M2011, ">=-9999999999999", Y11:Y2011))) -> 32.28346201 | ED9: =IF('Rate Design'!$AA$20=0, 0, (AVERAGEIF(N11:N2011, ">=-9999999999999", Z11:Z2011))) -> 32.02978554 | EE9: =IF('Rate Design'!$AA$20=0, 0, (AVERAGEIF(O11:O2011, ">=-9999999999999", AA11:AA2011))) -> 33.56311275 | EF9: =IF('Rate Design'!$AA$20=0, 0, (AVERAGEIF(P11:P2011, ">=-9999999999999", AB11:AB2011))) -> 38.88329657 | EG9: =IF('Rate Design'!$AA$20=0, 0, (AVERAGEIF(Q11:Q2011, ">=-9999999999999", AC11:AC2011))) -> 58.16485294 | EH9: =IF('Rate Design'!$AA$20=0, 0, (AVERAGEIF(R11:R2011, ">=-9999999999999", AD11:AD2011))) -> 65.38257353 | EI9: =IF('Rate Design'!$AA$20=0, 0, (AVERAGEIF(S11:S2011, ">=-9999999999999", AE11:AE2011))) -> 72.77295343 | EJ9: =IF('Rate Design'!$AA$20=0, 0, (AVERAGEIF(T11:T2011, ">=-9999999999999", AF11:AF2011))) -> 70.31496324 | EK9: =IF('Rate Design'!$AA$20=0, 0, (AVERAGEIF(U11:U2011, ">=-9999999999999", AG11:AG2011))) -> 58.80367647 | EL9: =IF('Rate Design'!$AA$20=0, 0, (AVERAGEIF(V11:V2011, ">=-9999999999999", AH11:AH2011))) -> 42.5774326 | EM9: =IF('Rate Design'!$AA$20=0, 0, (AVERAGEIF(W11:W2011, ">=-9999999999999", AI11:AI2011))) -> 35.68300245 | EN9: =IF('Rate Design'!$AA$20=0, 0, (AVERAGEIF(X11:X2011, ">=-9999999999999", AJ11:AJ2011))) -> 35.03938113
B11: =IF(Inputs!BA8<>"",Inputs!BA8,"") -> 331331BB | C11: =IF($B11<>"",1,"") -> 1 | D11: =IF($B11<>"",Inputs!AZ8,"") -> 0.75 | E11: =IF(Data_10.2[[#This Row],[Meter_ID]]<>"",IFERROR(SUM(Monthly_Bill_10.2[#This Row]),0),"") -> 603.1525 | F11: =IF(Data_10.2[[#This Row],[Meter_ID]]<>"",IFERROR(AVERAGEIF(Monthly_Bill_10.2[#This Row],"<>0"),0),"") -> 50.26270833 | G11: =IF(Data_10.2[[#This Row],[Meter_ID]]<>"",SUM(Usage_10.2[#This Row]),"") -> 12500 | H11: =IF(Data_10.2[[#This Row],[Meter_ID]]<>"",IFERROR(AVERAGEIF(Usage_10.2[#This Row],"<>0"),0),"") -> 1041.666667 | I11: =SUM(Usage_10.2[[#This Row],[Jan_Usage]:[Apr_Usage]])+SUM(Usage_10.2[[#This Row],[Nov_Usage]:[Dec_Usage]]) -> 5600 | J11: =SUM(Usage_10.2[[#This Row],[May_Usage]:[Oct_Usage]]) -> 6900 | K11: =COUNTIF(Usage_10.2[[#This Row],[Jan_Usage]:[Apr_Usage]],">0")+COUNTIF(Usage_10.2[[#This Row],[Nov_Usage]:[Dec_Usage]],">0") -> 6 | L11: =COUNTIF(Usage_10.2[[#This Row],[May_Usage]:[Oct_Usage]],">0") -> 6 | M11: =IF(Data_10.2[[#This Row],[Meter_ID]:[Meter_ID]]<>"",INDEX(Inputs!$BB8:$BM8,,MATCH('Rate Data Calculations'!M$7,Inputs!$BB$4:$BM$4,0)),"") -> 1300 | N11: =IF(Data_10.2[[#This Row],[Meter_ID]:[Meter_ID]]<>"",INDEX(Inputs!$BB8:$BM8,,MATCH('Rate Data Calculations'!N$7,Inputs!$BB$4:$BM$4,0)),"") -> 800 | O11: =IF(Data_10.2[[#This Row],[Meter_ID]:[Meter_ID]]<>"",INDEX(Inputs!$BB8:$BM8,,MATCH('Rate Data Calculations'!O$7,Inputs!$BB$4:$BM$4,0)),"") -> 1000 | P11: =IF(Data_10.2[[#This Row],[Meter_ID]:[Meter_ID]]<>"",INDEX(Inputs!$BB8:$BM8,,MATCH('Rate Data Calculations'!P$7,Inputs!$BB$4:$BM$4,0)),"") -> 800 | Q11: =IF(Data_10.2[[#This Row],[Meter_ID]:[Meter_ID]]<>"",INDEX(Inputs!$BB8:$BM8,,MATCH('Rate Data Calculations'!Q$7,Inputs!$BB$4:$BM$4,0)),"") -> 1000 | R11: =IF(Data_10.2[[#This Row],[Meter_ID]:[Meter_ID]]<>"",INDEX(Inputs!$BB8:$BM8,,MATCH('Rate Data Calculations'!R$7,Inputs!$BB$4:$BM$4,0)),"") -> 1000 | S11: =IF(Data_10.2[[#This Row],[Meter_ID]:[Meter_ID]]<>"",INDEX(Inputs!$BB8:$BM8,,MATCH('Rate Data Calculations'!S$7,Inputs!$BB$4:$BM$4,0)),"") -> 2200 | T11: =IF(Data_10.2[[#This Row],[Meter_ID]:[Meter_ID]]<>"",INDEX(Inputs!$BB8:$BM8,,MATCH('Rate Data Calculations'!T$7,Inputs!$BB$4:$BM$4,0)),"") -> 1100 | U11: =IF(Data_10.2[[#This Row],[Meter_ID]:[Meter_ID]]<>"",INDEX(Inputs!$BB8:$BM8,,MATCH('Rate Data Calculations'!U$7,Inputs!$BB$4:$BM$4,0)),"") -> 800 | V11: =IF(Data_10.2[[#This Row],[Meter_ID]:[Meter_ID]]<>"",INDEX(Inputs!$BB8:$BM8,,MATCH('Rate Data Calculations'!V$7,Inputs!$BB$4:$BM$4,0)),"") -> 800 | W11: =IF(Data_10.2[[#This Row],[Meter_ID]:[Meter_ID]]<>"",INDEX(Inputs!$BB8:$BM8,,MATCH('Rate Data Calculations'!W$7,Inputs!$BB$4:$BM$4,0)),"") -> 800 | X11: =IF(Data_10.2[[#This Row],[Meter_ID]:[Meter_ID]]<>"",INDEX(Inputs!$BB8:$BM8,,MATCH('Rate Data Calculations'!X$7,Inputs!$BB$4:$BM$4,0)),"") -> 900 | Y11: =IF(Data_10.2[[#This Row],[Meter_ID]:[Meter_ID]]<>"", BaseCharge_10.2[[#This Row],[Jan_Base]]+Block1Rate_10.2[[#This Row],[Jan_Blk_1_-_Rate]]+Block2Rate_10.2[[#This Row],[Jan_Blk_2_-_Rate]]+Block3Rate_10.2[[#This Row],[Jan_Blk_3_-_Rate]], "") -> 57.7175 | Z11: =IF(Data_10.2[[#This Row],[Meter_ID]:[Meter_ID]]<>"", BaseCharge_10.2[[#This Row],[Feb_Base]]+Block1Rate_10.2[[#This Row],[Feb_Blk_1_-_Rate]]+Block2Rate_10.2[[#This Row],[Feb_Blk_2_-_Rate]]+Block3Rate_10.2[[#This Row],[Feb_Blk_3_-_Rate]], "") -> 43.5 | AA11: =IF(Data_10.2[[#This Row],[Meter_ID]:[Meter_ID]]<>"", BaseCharge_10.2[[#This Row],[Mar_Base]]+Block1Rate_10.2[[#This Row],[Mar_Blk_1_-_Rate]]+Block2Rate_10.2[[#This Row],[Mar_Blk_2_-_Rate]]+Block3Rate_10.2[[#This Row],[Mar_Blk_3_-_Rate]], "") -> 48 | AB11: =IF(Data_10.2[[#This Row],[Meter_ID]:[Meter_ID]]<>"", BaseCharge_10.2[[#This Row],[Apr_Base]]+Block1Rate_10.2[[#This Row],[Apr_Blk_1_-_Rate]]+Block2Rate_10.2[[#This Row],[Apr_Blk_2_-_Rate]]+Block3Rate_10.2[[#This Row],[Apr_Blk_3_-_Rate]], "") -> 43.5 | AC11: =IF(Data_10.2[[#This Row],[Meter_ID]:[Meter_ID]]<>"", BaseCharge_10.2[[#This Row],[May_Base]]+Block1Rate_10.2[[#This Row],[May_Blk_1_-_Rate]]+Block2Rate_10.2[[#This Row],[May_Blk_2_-_Rate]]+Block3Rate_10.2[[#This Row],[May_Blk_3_-_Rate]], "") -> 48 | AD11: =IF(Data_10.2[[#This Row],[Meter_ID]:[Meter_ID]]<>"", BaseCharge_10.2[[#This Row],[Jun_Base]]+Block1Rate_10.2[[#This Row],[Jun_Blk_1_-_Rate]]+Block2Rate_10.2[[#This Row],[Jun_Blk_2_-_Rate]]+Block3Rate_10.2[[#This Row],[Jun_Blk_3_-_Rate]], "") -> 48 | AE11: =IF(Data_10.2[[#This Row],[Meter_ID]:[Meter_ID]]<>"", BaseCharge_10.2[[#This Row],[Jul_Base]]+Block1Rate_10.2[[#This Row],[Jul_Blk_1_-_Rate]]+Block2Rate_10.2[[#This Row],[Jul_Blk_2_-_Rate]]+Block3Rate_10.2[[#This Row],[Jul_Blk_3_-_Rate]], "") -> 86.9675 | AF11: =IF(Data_10.2[[#This Row],[Meter_ID]:[Meter_ID]]<>"", BaseCharge_10.2[[#This Row],[Aug_Base]]+Block1Rate_10.2[[#This Row],[Aug_Blk_1_-_Rate]]+Block2Rate_10.2[[#This Row],[Aug_Blk_2_-_Rate]]+Block3Rate_10.2[[#This Row],[Aug_Blk_3_-_Rate]], "") -> 51.2175 | AG11: =IF(Data_10.2[[#This Row],[Meter_ID]:[Meter_ID]]<>"", BaseCharge_10.2[[#This Row],[Sep_Base]]+Block1Rate_10.2[[#This Row],[Sep_Blk_1_-_Rate]]+Block2Rate_10.2[[#This Row],[Sep_Blk_2_-_Rate]]+Block3Rate_10.2[[#This Row],[Sep_Blk_3_-_Rate]], "") -> 43.5 | AH11: =IF(Data_10.2[[#This Row],[Meter_ID]:[Meter_ID]]<>"", BaseCharge_10.2[[#This Row],[Oct_Base]]+Block1Rate_10.2[[#This Row],[Oct_Blk_1_-_Rate]]+Block2Rate_10.2[[#This Row],[Oct_Blk_2_-_Rate]]+Block3Rate_10.2[[#This Row],[Oct_Blk_3_-_Rate]], "") -> 43.5 | AI11: =IF(Data_10.2[[#This Row],[Meter_ID]:[Meter_ID]]<>"", BaseCharge_10.2[[#This Row],[Nov_Base]]+Block1Rate_10.2[[#This Row],[Nov_Blk_1_-_Rate]]+Block2Rate_10.2[[#This Row],[Nov_Blk_2_-_Rate]]+Block3Rate_10.2[[#This Row],[Nov_Blk_3_-_Rate]], "") -> 43.5 | AJ11: =IF(Data_10.2[[#This Row],[Meter_ID]:[Meter_ID]]<>"", BaseCharge_10.2[[#This Row],[Dec_Base]]+Block1Rate_10.2[[#This Row],[Dec_Blk_1_-_Rate]]+Block2Rate_10.2[[#This Row],[Dec_Blk_2_-_Rate]]+Block3Rate_10.2[[#This Row],[Dec_Blk_3_-_Rate]], "") -> 45.75 | AK11: =IF(Data_10.2[[#This Row],[Meter_ID]:[Meter_ID]]<>"", IF(OR(Usage_10.2[[#This Row],[Jan_Usage]]="",Usage_10.2[[#This Row],[Jan_Usage]]=0), 0, INDEX(Base_10.1[[Rate]:[Rate]],MATCH(Data_10.2[[#This Row],[Meter_Size]:[Meter_Size]],Meter_10.1[[Size]:[Size]],0)) ), "") -> 28 | AL11: =IF(Data_10.2[[#This Row],[Meter_ID]:[Meter_ID]]<>"", IF(OR(Usage_10.2[[#This Row],[Feb_Usage]]="",Usage_10.2[[#This Row],[Feb_Usage]]=0), 0, INDEX(Base_10.1[[Rate]:[Rate]],MATCH(Data_10.2[[#This Row],[Meter_Size]:[Meter_Size]],Meter_10.1[[Size]:[Size]],0)) ), "") -> 28 | AM11: =IF(Data_10.2[[#This Row],[Meter_ID]:[Meter_ID]]<>"", IF(OR(Usage_10.2[[#This Row],[Mar_Usage]]="",Usage_10.2[[#This Row],[Mar_Usage]]=0), 0, INDEX(Base_10.1[[Rate]:[Rate]],MATCH(Data_10.2[[#This Row],[Meter_Size]:[Meter_Size]],Meter_10.1[[Size]:[Size]],0)) ), "") -> 28 | AN11: =IF(Data_10.2[[#This Row],[Meter_ID]:[Meter_ID]]<>"", IF(OR(Usage_10.2[[#This Row],[Apr_Usage]]="",Usage_10.2[[#This Row],[Apr_Usage]]=0), 0, INDEX(Base_10.1[[Rate]:[Rate]],MATCH(Data_10.2[[#This Row],[Meter_Size]:[Meter_Size]],Meter_10.1[[Size]:[Size]],0)) ), "") -> 28 | AO11: =IF(Data_10.2[[#This Row],[Meter_ID]:[Meter_ID]]<>"", IF(OR(Usage_10.2[[#This Row],[May_Usage]]="",Usage_10.2[[#This Row],[May_Usage]]=0), 0, INDEX(Base_10.1[[Rate]:[Rate]],MATCH(Data_10.2[[#This Row],[Meter_Size]:[Meter_Size]],Meter_10.1[[Size]:[Size]],0)) ), "") -> 28 | AP11: =IF(Data_10.2[[#This Row],[Meter_ID]:[Meter_ID]]<>"", IF(OR(Usage_10.2[[#This Row],[Jun_Usage]]="",Usage_10.2[[#This Row],[Jun_Usage]]=0), 0, INDEX(Base_10.1[[Rate]:[Rate]],MATCH(Data_10.2[[#This Row],[Meter_Size]:[Meter_Size]],Meter_10.1[[Size]:[Size]],0)) ), "") -> 28 | AQ11: =IF(Data_10.2[[#This Row],[Meter_ID]:[Meter_ID]]<>"", IF(OR(Usage_10.2[[#This Row],[Jul_Usage]]="",Usage_10.2[[#This Row],[Jul_Usage]]=0), 0, INDEX(Base_10.1[[Rate]:[Rate]],MATCH(Data_10.2[[#This Row],[Meter_Size]:[Meter_Size]],Meter_10.1[[Size]:[Size]],0)) ), "") -> 28 | AR11: =IF(Data_10.2[[#This Row],[Meter_ID]:[Meter_ID]]<>"", IF(OR(Usage_10.2[[#This Row],[Aug_Usage]]="",Usage_10.2[[#This Row],[Aug_Usage]]=0), 0, INDEX(Base_10.1[[Rate]:[Rate]],MATCH(Data_10.2[[#This Row],[Meter_Size]:[Meter_Size]],Meter_10.1[[Size]:[Size]],0)) ), "") -> 28 | AS11: =IF(Data_10.2[[#This Row],[Meter_ID]:[Meter_ID]]<>"", IF(OR(Usage_10.2[[#This Row],[Sep_Usage]]="",Usage_10.2[[#This Row],[Sep_Usage]]=0), 0, INDEX(Base_10.1[[Rate]:[Rate]],MATCH(Data_10.2[[#This Row],[Meter_Size]:[Meter_Size]],Meter_10.1[[Size]:[Size]],0)) ), "") -> 28 | AT11: =IF(Data_10.2[[#This Row],[Meter_ID]:[Meter_ID]]<>"", IF(OR(Usage_10.2[[#This Row],[Oct_Usage]]="",Usage_10.2[[#This Row],[Oct_Usage]]=0), 0, INDEX(Base_10.1[[Rate]:[Rate]],MATCH(Data_10.2[[#This Row],[Meter_Size]:[Meter_Size]],Meter_10.1[[Size]:[Size]],0)) ), "") -> 28 | AU11: =IF(Data_10.2[[#This Row],[Meter_ID]:[Meter_ID]]<>"", IF(OR(Usage_10.2[[#This Row],[Nov_Usage]]="",Usage_10.2[[#This Row],[Nov_Usage]]=0), 0, INDEX(Base_10.1[[Rate]:[Rate]],MATCH(Data_10.2[[#This Row],[Meter_Size]:[Meter_Size]],Meter_10.1[[Size]:[Size]],0)) ), "") -> 28 | AV11: =IF(Data_10.2[[#This Row],[Meter_ID]:[Meter_ID]]<>"", IF(OR(Usage_10.2[[#This Row],[Dec_Usage]]="",Usage_10.2[[#This Row],[Dec_Usage]]=0), 0, INDEX(Base_10.1[[Rate]:[Rate]],MATCH(Data_10.2[[#This Row],[Meter_Size]:[Meter_Size]],Meter_10.1[[Size]:[Size]],0)) ), "") -> 28 | AW11: =IF(Data_10.2[[#This Row],[Meter_ID]:[Meter_ID]]<>"", IF(OR(Usage_10.2[[#This Row],[Jan_Usage]]="",Usage_10.2[[#This Row],[Jan_Usage]]=0), 0, +IF(Usage_10.2[[#This Row],[Jan_Usage]]>+INDEX(Base_10.1[[Allowance]:[Allowance]],MATCH(Data_10.2[[#This Row],[Meter_Size]:[Meter_Size]],Meter_10.1[[Size]:[Size]],0)), IF(Usage_10.2[[#This Row],[Jan_Usage]]>+INDEX(Block1_10.1[[Usage_Max]:[Usage_Max]],MATCH(Data_10.2[[#This Row],[Meter_Size]:[Meter_Size]],Meter_10.1[[Size]:[Size]],0)), +INDEX(Block1_10.1[[Usage_Max]:[Usage_Max]],MATCH(Data_10.2[[#This Row],[Meter_Size]:[Meter_Size]],Meter_10.1[Size],0))-INDEX(Base_10.1[[Allowance]:[Allowance]],MATCH(Data_10.2[[#This Row],[Meter_Size]:[Meter_Size]],Meter_10.1[[Size]:[Size]],0)), Usage_10.2[[#This Row],[Jan_Usage]]-INDEX(Base_10.1[[Allowance]:[Allowance]],MATCH(Data_10.2[[#This Row],[Meter_Size]:[Meter_Size]],Meter_10.1[[Size]:[Size]],0)) ), 0) ), "") -> 500 | AX11: =IF(Data_10.2[[#This Row],[Meter_ID]:[Meter_ID]]<>"", IF(OR(Usage_10.2[[#This Row],[Feb_Usage]]="",Usage_10.2[[#This Row],[Feb_Usage]]=0), 0, +IF(Usage_10.2[[#This Row],[Feb_Usage]]>+INDEX(Base_10.1[[Allowance]:[Allowance]],MATCH(Data_10.2[[#This Row],[Meter_Size]:[Meter_Size]],Meter_10.1[[Size]:[Size]],0)), IF(Usage_10.2[[#This Row],[Feb_Usage]]>+INDEX(Block1_10.1[[Usage_Max]:[Usage_Max]],MATCH(Data_10.2[[#This Row],[Meter_Size]:[Meter_Size]],Meter_10.1[[Size]:[Size]],0)), +INDEX(Block1_10.1[[Usage_Max]:[Usage_Max]],MATCH(Data_10.2[[#This Row],[Meter_Size]:[Meter_Size]],Meter_10.1[Size],0))-INDEX(Base_10.1[[Allowance]:[Allowance]],MATCH(Data_10.2[[#This Row],[Meter_Size]:[Meter_Size]],Meter_10.1[[Size]:[Size]],0)), Usage_10.2[[#This Row],[Feb_Usage]]-INDEX(Base_10.1[[Allowance]:[Allowance]],MATCH(Data_10.2[[#This Row],[Meter_Size]:[Meter_Size]],Meter_10.1[[Size]:[Size]],0)) ), 0) ), "") -> 500 | AY11: =IF(Data_10.2[[#This Row],[Meter_ID]:[Meter_ID]]<>"", IF(OR(Usage_10.2[[#This Row],[Mar_Usage]]="",Usage_10.2[[#This Row],[Mar_Usage]]=0), 0, +IF(Usage_10.2[[#This Row],[Mar_Usage]]>+INDEX(Base_10.1[[Allowance]:[Allowance]],MATCH(Data_10.2[[#This Row],[Meter_Size]:[Meter_Size]],Meter_10.1[[Size]:[Size]],0)), IF(Usage_10.2[[#This Row],[Mar_Usage]]>+INDEX(Block1_10.1[[Usage_Max]:[Usage_Max]],MATCH(Data_10.2[[#This Row],[Meter_Size]:[Meter_Size]],Meter_10.1[[Size]:[Size]],0)), +INDEX(Block1_10.1[[Usage_Max]:[Usage_Max]],MATCH(Data_10.2[[#This Row],[Meter_Size]:[Meter_Size]],Meter_10.1[Size],0))-INDEX(Base_10.1[[Allowance]:[Allowance]],MATCH(Data_10.2[[#This Row],[Meter_Size]:[Meter_Size]],Meter_10.1[[Size]:[Size]],0)), Usage_10.2[[#This Row],[Mar_Usage]]-INDEX(Base_10.1[[Allowance]:[Allowance]],MATCH(Data_10.2[[#This Row],[Meter_Size]:[Meter_Size]],Meter_10.1[[Size]:[Size]],0)) ), 0) ), "") -> 500 | AZ11: =IF(Data_10.2[[#This Row],[Meter_ID]:[Meter_ID]]<>"", IF(OR(Usage_10.2[[#This Row],[Apr_Usage]]="",Usage_10.2[[#This Row],[Apr_Usage]]=0), 0, +IF(Usage_10.2[[#This Row],[Apr_Usage]]>+INDEX(Base_10.1[[Allowance]:[Allowance]],MATCH(Data_10.2[[#This Row],[Meter_Size]:[Meter_Size]],Meter_10.1[[Size]:[Size]],0)), IF(Usage_10.2[[#This Row],[Apr_Usage]]>+INDEX(Block1_10.1[[Usage_Max]:[Usage_Max]],MATCH(Data_10.2[[#This Row],[Meter_Size]:[Meter_Size]],Meter_10.1[[Size]:[Size]],0)), +INDEX(Block1_10.1[[Usage_Max]:[Usage_Max]],MATCH(Data_10.2[[#This Row],[Meter_Size]:[Meter_Size]],Meter_10.1[Size],0))-INDEX(Base_10.1[[Allowance]:[Allowance]],MATCH(Data_10.2[[#This Row],[Meter_Size]:[Meter_Size]],Meter_10.1[[Size]:[Size]],0)), Usage_10.2[[#This Row],[Apr_Usage]]-INDEX(Base_10.1[[Allowance]:[Allowance]],MATCH(Data_10.2[[#This Row],[Meter_Size]:[Meter_Size]],Meter_10.1[[Size]:[Size]],0)) ), 0) ), "") -> 500 | BA11: =IF(Data_10.2[[#This Row],[Meter_ID]:[Meter_ID]]<>"", IF(OR(Usage_10.2[[#This Row],[May_Usage]]="",Usage_10.2[[#This Row],[May_Usage]]=0), 0, +IF(Usage_10.2[[#This Row],[May_Usage]]>+INDEX(Base_10.1[[Allowance]:[Allowance]],MATCH(Data_10.2[[#This Row],[Meter_Size]:[Meter_Size]],Meter_10.1[[Size]:[Size]],0)), IF(Usage_10.2[[#This Row],[May_Usage]]>+INDEX(Block1_10.1[[Usage_Max]:[Usage_Max]],MATCH(Data_10.2[[#This Row],[Meter_Size]:[Meter_Size]],Meter_10.1[[Size]:[Size]],0)), +INDEX(Block1_10.1[[Usage_Max]:[Usage_Max]],MATCH(Data_10.2[[#This Row],[Meter_Size]:[Meter_Size]],Meter_10.1[Size],0))-INDEX(Base_10.1[[Allowance]:[Allowance]],MATCH(Data_10.2[[#This Row],[Meter_Size]:[Meter_Size]],Meter_10.1[[Size]:[Size]],0)), Usage_10.2[[#This Row],[May_Usage]]-INDEX(Base_10.1[[Allowance]:[Allowance]],MATCH(Data_10.2[[#This Row],[Meter_Size]:[Meter_Size]],Meter_10.1[[Size]:[Size]],0)) ), 0) ), "") -> 500 | BB11: =IF(Data_10.2[[#This Row],[Meter_ID]:[Meter_ID]]<>"", IF(OR(Usage_10.2[[#This Row],[Jun_Usage]]="",Usage_10.2[[#This Row],[Jun_Usage]]=0), 0, +IF(Usage_10.2[[#This Row],[Jun_Usage]]>+INDEX(Base_10.1[[Allowance]:[Allowance]],MATCH(Data_10.2[[#This Row],[Meter_Size]:[Meter_Size]],Meter_10.1[[Size]:[Size]],0)), IF(Usage_10.2[[#This Row],[Jun_Usage]]>+INDEX(Block1_10.1[[Usage_Max]:[Usage_Max]],MATCH(Data_10.2[[#This Row],[Meter_Size]:[Meter_Size]],Meter_10.1[[Size]:[Size]],0)), +INDEX(Block1_10.1[[Usage_Max]:[Usage_Max]],MATCH(Data_10.2[[#This Row],[Meter_Size]:[Meter_Size]],Meter_10.1[Size],0))-INDEX(Base_10.1[[Allowance]:[Allowance]],MATCH(Data_10.2[[#This Row],[Meter_Size]:[Meter_Size]],Meter_10.1[[Size]:[Size]],0)), Usage_10.2[[#This Row],[Jun_Usage]]-INDEX(Base_10.1[[Allowance]:[Allowance]],MATCH(Data_10.2[[#This Row],[Meter_Size]:[Meter_Size]],Meter_10.1[[Size]:[Size]],0)) ), 0) ), "") -> 500 | BC11: =IF(Data_10.2[[#This Row],[Meter_ID]:[Meter_ID]]<>"", IF(OR(Usage_10.2[[#This Row],[Jul_Usage]]="",Usage_10.2[[#This Row],[Jul_Usage]]=0), 0, +IF(Usage_10.2[[#This Row],[Jul_Usage]]>+INDEX(Base_10.1[[Allowance]:[Allowance]],MATCH(Data_10.2[[#This Row],[Meter_Size]:[Meter_Size]],Meter_10.1[[Size]:[Size]],0)), IF(Usage_10.2[[#This Row],[Jul_Usage]]>+INDEX(Block1_10.1[[Usage_Max]:[Usage_Max]],MATCH(Data_10.2[[#This Row],[Meter_Size]:[Meter_Size]],Meter_10.1[[Size]:[Size]],0)), +INDEX(Block1_10.1[[Usage_Max]:[Usage_Max]],MATCH(Data_10.2[[#This Row],[Meter_Size]:[Meter_Size]],Meter_10.1[Size],0))-INDEX(Base_10.1[[Allowance]:[Allowance]],MATCH(Data_10.2[[#This Row],[Meter_Size]:[Meter_Size]],Meter_10.1[[Size]:[Size]],0)), Usage_10.2[[#This Row],[Jul_Usage]]-INDEX(Base_10.1[[Allowance]:[Allowance]],MATCH(Data_10.2[[#This Row],[Meter_Size]:[Meter_Size]],Meter_10.1[[Size]:[Size]],0)) ), 0) ), "") -> 500 | BD11: =IF(Data_10.2[[#This Row],[Meter_ID]:[Meter_ID]]<>"", IF(OR(Usage_10.2[[#This Row],[Aug_Usage]]="",Usage_10.2[[#This Row],[Aug_Usage]]=0), 0, +IF(Usage_10.2[[#This Row],[Aug_Usage]]>+INDEX(Base_10.1[[Allowance]:[Allowance]],MATCH(Data_10.2[[#This Row],[Meter_Size]:[Meter_Size]],Meter_10.1[[Size]:[Size]],0)), IF(Usage_10.2[[#This Row],[Aug_Usage]]>+INDEX(Block1_10.1[[Usage_Max]:[Usage_Max]],MATCH(Data_10.2[[#This Row],[Meter_Size]:[Meter_Size]],Meter_10.1[[Size]:[Size]],0)), +INDEX(Block1_10.1[[Usage_Max]:[Usage_Max]],MATCH(Data_10.2[[#This Row],[Meter_Size]:[Meter_Size]],Meter_10.1[Size],0))-INDEX(Base_10.1[[Allowance]:[Allowance]],MATCH(Data_10.2[[#This Row],[Meter_Size]:[Meter_Size]],Meter_10.1[[Size]:[Size]],0)), Usage_10.2[[#This Row],[Aug_Usage]]-INDEX(Base_10.1[[Allowance]:[Allowance]],MATCH(Data_10.2[[#This Row],[Meter_Size]:[Meter_Size]],Meter_10.1[[Size]:[Size]],0)) ), 0) ), "") -> 500 | BE11: =IF(Data_10.2[[#This Row],[Meter_ID]:[Meter_ID]]<>"", IF(OR(Usage_10.2[[#This Row],[Sep_Usage]]="",Usage_10.2[[#This Row],[Sep_Usage]]=0), 0, +IF(Usage_10.2[[#This Row],[Sep_Usage]]>+INDEX(Base_10.1[[Allowance]:[Allowance]],MATCH(Data_10.2[[#This Row],[Meter_Size]:[Meter_Size]],Meter_10.1[[Size]:[Size]],0)), IF(Usage_10.2[[#This Row],[Sep_Usage]]>+INDEX(Block1_10.1[[Usage_Max]:[Usage_Max]],MATCH(Data_10.2[[#This Row],[Meter_Size]:[Meter_Size]],Meter_10.1[[Size]:[Size]],0)), +INDEX(Block1_10.1[[Usage_Max]:[Usage_Max]],MATCH(Data_10.2[[#This Row],[Meter_Size]:[Meter_Size]],Meter_10.1[Size],0))-INDEX(Base_10.1[[Allowance]:[Allowance]],MATCH(Data_10.2[[#This Row],[Meter_Size]:[Meter_Size]],Meter_10.1[[Size]:[Size]],0)), Usage_10.2[[#This Row],[Sep_Usage]]-INDEX(Base_10.1[[Allowance]:[Allowance]],MATCH(Data_10.2[[#This Row],[Meter_Size]:[Meter_Size]],Meter_10.1[[Size]:[Size]],0)) ), 0) ), "") -> 500 | BF11: =IF(Data_10.2[[#This Row],[Meter_ID]:[Meter_ID]]<>"", IF(OR(Usage_10.2[[#This Row],[Oct_Usage]]="",Usage_10.2[[#This Row],[Oct_Usage]]=0), 0, +IF(Usage_10.2[[#This Row],[Oct_Usage]]>+INDEX(Base_10.1[[Allowance]:[Allowance]],MATCH(Data_10.2[[#This Row],[Meter_Size]:[Meter_Size]],Meter_10.1[[Size]:[Size]],0)), IF(Usage_10.2[[#This Row],[Oct_Usage]]>+INDEX(Block1_10.1[[Usage_Max]:[Usage_Max]],MATCH(Data_10.2[[#This Row],[Meter_Size]:[Meter_Size]],Meter_10.1[[Size]:[Size]],0)), +INDEX(Block1_10.1[[Usage_Max]:[Usage_Max]],MATCH(Data_10.2[[#This Row],[Meter_Size]:[Meter_Size]],Meter_10.1[Size],0))-INDEX(Base_10.1[[Allowance]:[Allowance]],MATCH(Data_10.2[[#This Row],[Meter_Size]:[Meter_Size]],Meter_10.1[[Size]:[Size]],0)), Usage_10.2[[#This Row],[Oct_Usage]]-INDEX(Base_10.1[[Allowance]:[Allowance]],MATCH(Data_10.2[[#This Row],[Meter_Size]:[Meter_Size]],Meter_10.1[[Size]:[Size]],0)) ), 0) ), "") -> 500 | BG11: =IF(Data_10.2[[#This Row],[Meter_ID]:[Meter_ID]]<>"", IF(OR(Usage_10.2[[#This Row],[Nov_Usage]]="",Usage_10.2[[#This Row],[Nov_Usage]]=0), 0, +IF(Usage_10.2[[#This Row],[Nov_Usage]]>+INDEX(Base_10.1[[Allowance]:[Allowance]],MATCH(Data_10.2[[#This Row],[Meter_Size]:[Meter_Size]],Meter_10.1[[Size]:[Size]],0)), IF(Usage_10.2[[#This Row],[Nov_Usage]]>+INDEX(Block1_10.1[[Usage_Max]:[Usage_Max]],MATCH(Data_10.2[[#This Row],[Meter_Size]:[Meter_Size]],Meter_10.1[[Size]:[Size]],0)), +INDEX(Block1_10.1[[Usage_Max]:[Usage_Max]],MATCH(Data_10.2[[#This Row],[Meter_Size]:[Meter_Size]],Meter_10.1[Size],0))-INDEX(Base_10.1[[Allowance]:[Allowance]],MATCH(Data_10.2[[#This Row],[Meter_Size]:[Meter_Size]],Meter_10.1[[Size]:[Size]],0)), Usage_10.2[[#This Row],[Nov_Usage]]-INDEX(Base_10.1[[Allowance]:[Allowance]],MATCH(Data_10.2[[#This Row],[Meter_Size]:[Meter_Size]],Meter_10.1[[Size]:[Size]],0)) ), 0) ), "") -> 500 | BH11: =IF(Data_10.2[[#This Row],[Meter_ID]:[Meter_ID]]<>"", IF(OR(Usage_10.2[[#This Row],[Dec_Usage]]="",Usage_10.2[[#This Row],[Dec_Usage]]=0), 0, +IF(Usage_10.2[[#This Row],[Dec_Usage]]>+INDEX(Base_10.1[[Allowance]:[Allowance]],MATCH(Data_10.2[[#This Row],[Meter_Size]:[Meter_Size]],Meter_10.1[[Size]:[Size]],0)), IF(Usage_10.2[[#This Row],[Dec_Usage]]>+INDEX(Block1_10.1[[Usage_Max]:[Usage_Max]],MATCH(Data_10.2[[#This Row],[Meter_Size]:[Meter_Size]],Meter_10.1[[Size]:[Size]],0)), +INDEX(Block1_10.1[[Usage_Max]:[Usage_Max]],MATCH(Data_10.2[[#This Row],[Meter_Size]:[Meter_Size]],Meter_10.1[Size],0))-INDEX(Base_10.1[[Allowance]:[Allowance]],MATCH(Data_10.2[[#This Row],[Meter_Size]:[Meter_Size]],Meter_10.1[[Size]:[Size]],0)), Usage_10.2[[#This Row],[Dec_Usage]]-INDEX(Base_10.1[[Allowance]:[Allowance]],MATCH(Data_10.2[[#This Row],[Meter_Size]:[Meter_Size]],Meter_10.1[[Size]:[Size]],0)) ), 0) ), "") -> 500 | BI11: =IF(Data_10.2[[#This Row],[Meter_ID]:[Meter_ID]]<>"", IF(OR(Usage_10.2[[#This Row],[Jan_Usage]]="",Usage_10.2[[#This Row],[Jan_Usage]]=0), 0, Block1Usage_10.2[[#This Row],[Jan_Blk_1_-_Usage]]/Usage_Unit_10.1*INDEX(Block1_10.1[[Rate]:[Rate]],MATCH(Data_10.2[[#This Row],[Meter_Size]:[Meter_Size]],Meter_10.1[[Size]:[Size]],0)) ), "") -> 8.75 | BJ11: =IF(Data_10.2[[#This Row],[Meter_ID]:[Meter_ID]]<>"", IF(OR(Usage_10.2[[#This Row],[Feb_Usage]]="",Usage_10.2[[#This Row],[Feb_Usage]]=0), 0, Block1Usage_10.2[[#This Row],[Feb_Blk_1_-_Usage]]/Usage_Unit_10.1*INDEX(Block1_10.1[[Rate]:[Rate]],MATCH(Data_10.2[[#This Row],[Meter_Size]:[Meter_Size]],Meter_10.1[[Size]:[Size]],0)) ), "") -> 8.75 | BK11: =IF(Data_10.2[[#This Row],[Meter_ID]:[Meter_ID]]<>"", IF(OR(Usage_10.2[[#This Row],[Mar_Usage]]="",Usage_10.2[[#This Row],[Mar_Usage]]=0), 0, Block1Usage_10.2[[#This Row],[Mar_Blk_1_-_Usage]]/Usage_Unit_10.1*INDEX(Block1_10.1[[Rate]:[Rate]],MATCH(Data_10.2[[#This Row],[Meter_Size]:[Meter_Size]],Meter_10.1[[Size]:[Size]],0)) ), "") -> 8.75 | BL11: =IF(Data_10.2[[#This Row],[Meter_ID]:[Meter_ID]]<>"", IF(OR(Usage_10.2[[#This Row],[Apr_Usage]]="",Usage_10.2[[#This Row],[Apr_Usage]]=0), 0, Block1Usage_10.2[[#This Row],[Apr_Blk_1_-_Usage]]/Usage_Unit_10.1*INDEX(Block1_10.1[[Rate]:[Rate]],MATCH(Data_10.2[[#This Row],[Meter_Size]:[Meter_Size]],Meter_10.1[[Size]:[Size]],0)) ), "") -> 8.75 | BM11: =IF(Data_10.2[[#This Row],[Meter_ID]:[Meter_ID]]<>"", IF(OR(Usage_10.2[[#This Row],[May_Usage]]="",Usage_10.2[[#This Row],[May_Usage]]=0), 0, Block1Usage_10.2[[#This Row],[May_Blk_1_-_Usage]]/Usage_Unit_10.1*INDEX(Block1_10.1[[Rate]:[Rate]],MATCH(Data_10.2[[#This Row],[Meter_Size]:[Meter_Size]],Meter_10.1[[Size]:[Size]],0)) ), "") -> 8.75 | BN11: =IF(Data_10.2[[#This Row],[Meter_ID]:[Meter_ID]]<>"", IF(OR(Usage_10.2[[#This Row],[Jun_Usage]]="",Usage_10.2[[#This Row],[Jun_Usage]]=0), 0, Block1Usage_10.2[[#This Row],[Jun_Blk_1_-_Usage]]/Usage_Unit_10.1*INDEX(Block1_10.1[[Rate]:[Rate]],MATCH(Data_10.2[[#This Row],[Meter_Size]:[Meter_Size]],Meter_10.1[[Size]:[Size]],0)) ), "") -> 8.75 | BO11: =IF(Data_10.2[[#This Row],[Meter_ID]:[Meter_ID]]<>"", IF(OR(Usage_10.2[[#This Row],[Jul_Usage]]="",Usage_10.2[[#This Row],[Jul_Usage]]=0), 0, Block1Usage_10.2[[#This Row],[Jul_Blk_1_-_Usage]]/Usage_Unit_10.1*INDEX(Block1_10.1[[Rate]:[Rate]],MATCH(Data_10.2[[#This Row],[Meter_Size]:[Meter_Size]],Meter_10.1[[Size]:[Size]],0)) ), "") -> 8.75 | BP11: =IF(Data_10.2[[#This Row],[Meter_ID]:[Meter_ID]]<>"", IF(OR(Usage_10.2[[#This Row],[Aug_Usage]]="",Usage_10.2[[#This Row],[Aug_Usage]]=0), 0, Block1Usage_10.2[[#This Row],[Aug_Blk_1_-_Usage]]/Usage_Unit_10.1*INDEX(Block1_10.1[[Rate]:[Rate]],MATCH(Data_10.2[[#This Row],[Meter_Size]:[Meter_Size]],Meter_10.1[[Size]:[Size]],0)) ), "") -> 8.75 | BQ11: =IF(Data_10.2[[#This Row],[Meter_ID]:[Meter_ID]]<>"", IF(OR(Usage_10.2[[#This Row],[Sep_Usage]]="",Usage_10.2[[#This Row],[Sep_Usage]]=0), 0, Block1Usage_10.2[[#This Row],[Sep_Blk_1_-_Usage]]/Usage_Unit_10.1*INDEX(Block1_10.1[[Rate]:[Rate]],MATCH(Data_10.2[[#This Row],[Meter_Size]:[Meter_Size]],Meter_10.1[[Size]:[Size]],0)) ), "") -> 8.75 | BR11: =IF(Data_10.2[[#This Row],[Meter_ID]:[Meter_ID]]<>"", IF(OR(Usage_10.2[[#This Row],[Oct_Usage]]="",Usage_10.2[[#This Row],[Oct_Usage]]=0), 0, Block1Usage_10.2[[#This Row],[Oct_Blk_1_-_Usage]]/Usage_Unit_10.1*INDEX(Block1_10.1[[Rate]:[Rate]],MATCH(Data_10.2[[#This Row],[Meter_Size]:[Meter_Size]],Meter_10.1[[Size]:[Size]],0)) ), "") -> 8.75 | BS11: =IF(Data_10.2[[#This Row],[Meter_ID]:[Meter_ID]]<>"", IF(OR(Usage_10.2[[#This Row],[Nov_Usage]]="",Usage_10.2[[#This Row],[Nov_Usage]]=0), 0, Block1Usage_10.2[[#This Row],[Nov_Blk_1_-_Usage]]/Usage_Unit_10.1*INDEX(Block1_10.1[[Rate]:[Rate]],MATCH(Data_10.2[[#This Row],[Meter_Size]:[Meter_Size]],Meter_10.1[[Size]:[Size]],0)) ), "") -> 8.75 | BT11: =IF(Data_10.2[[#This Row],[Meter_ID]:[Meter_ID]]<>"", IF(OR(Usage_10.2[[#This Row],[Dec_Usage]]="",Usage_10.2[[#This Row],[Dec_Usage]]=0), 0, Block1Usage_10.2[[#This Row],[Dec_Blk_1_-_Usage]]/Usage_Unit_10.1*INDEX(Block1_10.1[[Rate]:[Rate]],MATCH(Data_10.2[[#This Row],[Meter_Size]:[Meter_Size]],Meter_10.1[[Size]:[Size]],0)) ), "") -> 8.75 | BU11: =IF(Data_10.2[[#This Row],[Meter_ID]:[Meter_ID]]<>"", IF(OR(Usage_10.2[[#This Row],[Jan_Usage]]="",Usage_10.2[[#This Row],[Jan_Usage]]=0), 0, +IF(Usage_10.2[[#This Row],[Jan_Usage]]>+INDEX(Block1_10.1[[Usage_Max]:[Usage_Max]],MATCH(Data_10.2[[#This Row],[Meter_Size]:[Meter_Size]],Meter_10.1[[Size]:[Size]],0)), IF(Usage_10.2[[#This Row],[Jan_Usage]]>+INDEX(Block2_10.1[[Usage_Max]:[Usage_Max]],MATCH(Data_10.2[[#This Row],[Meter_Size]:[Meter_Size]],Meter_10.1[[Size]:[Size]],0)), +INDEX(Block2_10.1[[Usage_Max]:[Usage_Max]],MATCH(Data_10.2[[#This Row],[Meter_Size]:[Meter_Size]],Meter_10.1[Size],0))-INDEX(Block1_10.1[[Usage_Max]:[Usage_Max]],MATCH(Data_10.2[[#This Row],[Meter_Size]:[Meter_Size]],Meter_10.1[[Size]:[Size]],0)), Usage_10.2[[#This Row],[Jan_Usage]]-INDEX(Block1_10.1[[Usage_Max]:[Usage_Max]],MATCH(Data_10.2[[#This Row],[Meter_Size]:[Meter_Size]],Meter_10.1[[Size]:[Size]],0)) ), 0) ), "") -> 500 | BV11: =IF(Data_10.2[[#This Row],[Meter_ID]:[Meter_ID]]<>"", IF(OR(Usage_10.2[[#This Row],[Feb_Usage]]="",Usage_10.2[[#This Row],[Feb_Usage]]=0), 0, +IF(Usage_10.2[[#This Row],[Feb_Usage]]>+INDEX(Block1_10.1[[Usage_Max]:[Usage_Max]],MATCH(Data_10.2[[#This Row],[Meter_Size]:[Meter_Size]],Meter_10.1[[Size]:[Size]],0)), IF(Usage_10.2[[#This Row],[Feb_Usage]]>+INDEX(Block2_10.1[[Usage_Max]:[Usage_Max]],MATCH(Data_10.2[[#This Row],[Meter_Size]:[Meter_Size]],Meter_10.1[[Size]:[Size]],0)), +INDEX(Block2_10.1[[Usage_Max]:[Usage_Max]],MATCH(Data_10.2[[#This Row],[Meter_Size]:[Meter_Size]],Meter_10.1[Size],0))-INDEX(Block1_10.1[[Usage_Max]:[Usage_Max]],MATCH(Data_10.2[[#This Row],[Meter_Size]:[Meter_Size]],Meter_10.1[[Size]:[Size]],0)), Usage_10.2[[#This Row],[Feb_Usage]]-INDEX(Block1_10.1[[Usage_Max]:[Usage_Max]],MATCH(Data_10.2[[#This Row],[Meter_Size]:[Meter_Size]],Meter_10.1[[Size]:[Size]],0)) ), 0) ), "") -> 300 | BW11: =IF(Data_10.2[[#This Row],[Meter_ID]:[Meter_ID]]<>"", IF(OR(Usage_10.2[[#This Row],[Mar_Usage]]="",Usage_10.2[[#This Row],[Mar_Usage]]=0), 0, +IF(Usage_10.2[[#This Row],[Mar_Usage]]>+INDEX(Block1_10.1[[Usage_Max]:[Usage_Max]],MATCH(Data_10.2[[#This Row],[Meter_Size]:[Meter_Size]],Meter_10.1[[Size]:[Size]],0)), IF(Usage_10.2[[#This Row],[Mar_Usage]]>+INDEX(Block2_10.1[[Usage_Max]:[Usage_Max]],MATCH(Data_10.2[[#This Row],[Meter_Size]:[Meter_Size]],Meter_10.1[[Size]:[Size]],0)), +INDEX(Block2_10.1[[Usage_Max]:[Usage_Max]],MATCH(Data_10.2[[#This Row],[Meter_Size]:[Meter_Size]],Meter_10.1[Size],0))-INDEX(Block1_10.1[[Usage_Max]:[Usage_Max]],MATCH(Data_10.2[[#This Row],[Meter_Size]:[Meter_Size]],Meter_10.1[[Size]:[Size]],0)), Usage_10.2[[#This Row],[Mar_Usage]]-INDEX(Block1_10.1[[Usage_Max]:[Usage_Max]],MATCH(Data_10.2[[#This Row],[Meter_Size]:[Meter_Size]],Meter_10.1[[Size]:[Size]],0)) ), 0) ), "") -> 500 | BX11: =IF(Data_10.2[[#This Row],[Meter_ID]:[Meter_ID]]<>"", IF(OR(Usage_10.2[[#This Row],[Apr_Usage]]="",Usage_10.2[[#This Row],[Apr_Usage]]=0), 0, +IF(Usage_10.2[[#This Row],[Apr_Usage]]>+INDEX(Block1_10.1[[Usage_Max]:[Usage_Max]],MATCH(Data_10.2[[#This Row],[Meter_Size]:[Meter_Size]],Meter_10.1[[Size]:[Size]],0)), IF(Usage_10.2[[#This Row],[Apr_Usage]]>+INDEX(Block2_10.1[[Usage_Max]:[Usage_Max]],MATCH(Data_10.2[[#This Row],[Meter_Size]:[Meter_Size]],Meter_10.1[[Size]:[Size]],0)), +INDEX(Block2_10.1[[Usage_Max]:[Usage_Max]],MATCH(Data_10.2[[#This Row],[Meter_Size]:[Meter_Size]],Meter_10.1[Size],0))-INDEX(Block1_10.1[[Usage_Max]:[Usage_Max]],MATCH(Data_10.2[[#This Row],[Meter_Size]:[Meter_Size]],Meter_10.1[[Size]:[Size]],0)), Usage_10.2[[#This Row],[Apr_Usage]]-INDEX(Block1_10.1[[Usage_Max]:[Usage_Max]],MATCH(Data_10.2[[#This Row],[Meter_Size]:[Meter_Size]],Meter_10.1[[Size]:[Size]],0)) ), 0) ), "") -> 300 | BY11: =IF(Data_10.2[[#This Row],[Meter_ID]:[Meter_ID]]<>"", IF(OR(Usage_10.2[[#This Row],[May_Usage]]="",Usage_10.2[[#This Row],[May_Usage]]=0), 0, +IF(Usage_10.2[[#This Row],[May_Usage]]>+INDEX(Block1_10.1[[Usage_Max]:[Usage_Max]],MATCH(Data_10.2[[#This Row],[Meter_Size]:[Meter_Size]],Meter_10.1[[Size]:[Size]],0)), IF(Usage_10.2[[#This Row],[May_Usage]]>+INDEX(Block2_10.1[[Usage_Max]:[Usage_Max]],MATCH(Data_10.2[[#This Row],[Meter_Size]:[Meter_Size]],Meter_10.1[[Size]:[Size]],0)), +INDEX(Block2_10.1[[Usage_Max]:[Usage_Max]],MATCH(Data_10.2[[#This Row],[Meter_Size]:[Meter_Size]],Meter_10.1[Size],0))-INDEX(Block1_10.1[[Usage_Max]:[Usage_Max]],MATCH(Data_10.2[[#This Row],[Meter_Size]:[Meter_Size]],Meter_10.1[[Size]:[Size]],0)), Usage_10.2[[#This Row],[May_Usage]]-INDEX(Block1_10.1[[Usage_Max]:[Usage_Max]],MATCH(Data_10.2[[#This Row],[Meter_Size]:[Meter_Size]],Meter_10.1[[Size]:[Size]],0)) ), 0) ), "") -> 500 | BZ11: =IF(Data_10.2[[#This Row],[Meter_ID]:[Meter_ID]]<>"", IF(OR(Usage_10.2[[#This Row],[Jun_Usage]]="",Usage_10.2[[#This Row],[Jun_Usage]]=0), 0, +IF(Usage_10.2[[#This Row],[Jun_Usage]]>+INDEX(Block1_10.1[[Usage_Max]:[Usage_Max]],MATCH(Data_10.2[[#This Row],[Meter_Size]:[Meter_Size]],Meter_10.1[[Size]:[Size]],0)), IF(Usage_10.2[[#This Row],[Jun_Usage]]>+INDEX(Block2_10.1[[Usage_Max]:[Usage_Max]],MATCH(Data_10.2[[#This Row],[Meter_Size]:[Meter_Size]],Meter_10.1[[Size]:[Size]],0)), +INDEX(Block2_10.1[[Usage_Max]:[Usage_Max]],MATCH(Data_10.2[[#This Row],[Meter_Size]:[Meter_Size]],Meter_10.1[Size],0))-INDEX(Block1_10.1[[Usage_Max]:[Usage_Max]],MATCH(Data_10.2[[#This Row],[Meter_Size]:[Meter_Size]],Meter_10.1[[Size]:[Size]],0)), Usage_10.2[[#This Row],[Jun_Usage]]-INDEX(Block1_10.1[[Usage_Max]:[Usage_Max]],MATCH(Data_10.2[[#This Row],[Meter_Size]:[Meter_Size]],Meter_10.1[[Size]:[Size]],0)) ), 0) ), "") -> 500 | CA11: =IF(Data_10.2[[#This Row],[Meter_ID]:[Meter_ID]]<>"", IF(OR(Usage_10.2[[#This Row],[Jul_Usage]]="",Usage_10.2[[#This Row],[Jul_Usage]]=0), 0, +IF(Usage_10.2[[#This Row],[Jul_Usage]]>+INDEX(Block1_10.1[[Usage_Max]:[Usage_Max]],MATCH(Data_10.2[[#This Row],[Meter_Size]:[Meter_Size]],Meter_10.1[[Size]:[Size]],0)), IF(Usage_10.2[[#This Row],[Jul_Usage]]>+INDEX(Block2_10.1[[Usage_Max]:[Usage_Max]],MATCH(Data_10.2[[#This Row],[Meter_Size]:[Meter_Size]],Meter_10.1[[Size]:[Size]],0)), +INDEX(Block2_10.1[[Usage_Max]:[Usage_Max]],MATCH(Data_10.2[[#This Row],[Meter_Size]:[Meter_Size]],Meter_10.1[Size],0))-INDEX(Block1_10.1[[Usage_Max]:[Usage_Max]],MATCH(Data_10.2[[#This Row],[Meter_Size]:[Meter_Size]],Meter_10.1[[Size]:[Size]],0)), Usage_10.2[[#This Row],[Jul_Usage]]-INDEX(Block1_10.1[[Usage_Max]:[Usage_Max]],MATCH(Data_10.2[[#This Row],[Meter_Size]:[Meter_Size]],Meter_10.1[[Size]:[Size]],0)) ), 0) ), "") -> 500 | CB11: =IF(Data_10.2[[#This Row],[Meter_ID]:[Meter_ID]]<>"", IF(OR(Usage_10.2[[#This Row],[Aug_Usage]]="",Usage_10.2[[#This Row],[Aug_Usage]]=0), 0, +IF(Usage_10.2[[#This Row],[Aug_Usage]]>+INDEX(Block1_10.1[[Usage_Max]:[Usage_Max]],MATCH(Data_10.2[[#This Row],[Meter_Size]:[Meter_Size]],Meter_10.1[[Size]:[Size]],0)), IF(Usage_10.2[[#This Row],[Aug_Usage]]>+INDEX(Block2_10.1[[Usage_Max]:[Usage_Max]],MATCH(Data_10.2[[#This Row],[Meter_Size]:[Meter_Size]],Meter_10.1[[Size]:[Size]],0)), +INDEX(Block2_10.1[[Usage_Max]:[Usage_Max]],MATCH(Data_10.2[[#This Row],[Meter_Size]:[Meter_Size]],Meter_10.1[Size],0))-INDEX(Block1_10.1[[Usage_Max]:[Usage_Max]],MATCH(Data_10.2[[#This Row],[Meter_Size]:[Meter_Size]],Meter_10.1[[Size]:[Size]],0)), Usage_10.2[[#This Row],[Aug_Usage]]-INDEX(Block1_10.1[[Usage_Max]:[Usage_Max]],MATCH(Data_10.2[[#This Row],[Meter_Size]:[Meter_Size]],Meter_10.1[[Size]:[Size]],0)) ), 0) ), "") -> 500 | CC11: =IF(Data_10.2[[#This Row],[Meter_ID]:[Meter_ID]]<>"", IF(OR(Usage_10.2[[#This Row],[Sep_Usage]]="",Usage_10.2[[#This Row],[Sep_Usage]]=0), 0, +IF(Usage_10.2[[#This Row],[Sep_Usage]]>+INDEX(Block1_10.1[[Usage_Max]:[Usage_Max]],MATCH(Data_10.2[[#This Row],[Meter_Size]:[Meter_Size]],Meter_10.1[[Size]:[Size]],0)), IF(Usage_10.2[[#This Row],[Sep_Usage]]>+INDEX(Block2_10.1[[Usage_Max]:[Usage_Max]],MATCH(Data_10.2[[#This Row],[Meter_Size]:[Meter_Size]],Meter_10.1[[Size]:[Size]],0)), +INDEX(Block2_10.1[[Usage_Max]:[Usage_Max]],MATCH(Data_10.2[[#This Row],[Meter_Size]:[Meter_Size]],Meter_10.1[Size],0))-INDEX(Block1_10.1[[Usage_Max]:[Usage_Max]],MATCH(Data_10.2[[#This Row],[Meter_Size]:[Meter_Size]],Meter_10.1[[Size]:[Size]],0)), Usage_10.2[[#This Row],[Sep_Usage]]-INDEX(Block1_10.1[[Usage_Max]:[Usage_Max]],MATCH(Data_10.2[[#This Row],[Meter_Size]:[Meter_Size]],Meter_10.1[[Size]:[Size]],0)) ), 0) ), "") -> 300 | CD11: =IF(Data_10.2[[#This Row],[Meter_ID]:[Meter_ID]]<>"", IF(OR(Usage_10.2[[#This Row],[Oct_Usage]]="",Usage_10.2[[#This Row],[Oct_Usage]]=0), 0, +IF(Usage_10.2[[#This Row],[Oct_Usage]]>+INDEX(Block1_10.1[[Usage_Max]:[Usage_Max]],MATCH(Data_10.2[[#This Row],[Meter_Size]:[Meter_Size]],Meter_10.1[[Size]:[Size]],0)), IF(Usage_10.2[[#This Row],[Oct_Usage]]>+INDEX(Block2_10.1[[Usage_Max]:[Usage_Max]],MATCH(Data_10.2[[#This Row],[Meter_Size]:[Meter_Size]],Meter_10.1[[Size]:[Size]],0)), +INDEX(Block2_10.1[[Usage_Max]:[Usage_Max]],MATCH(Data_10.2[[#This Row],[Meter_Size]:[Meter_Size]],Meter_10.1[Size],0))-INDEX(Block1_10.1[[Usage_Max]:[Usage_Max]],MATCH(Data_10.2[[#This Row],[Meter_Size]:[Meter_Size]],Meter_10.1[[Size]:[Size]],0)), Usage_10.2[[#This Row],[Oct_Usage]]-INDEX(Block1_10.1[[Usage_Max]:[Usage_Max]],MATCH(Data_10.2[[#This Row],[Meter_Size]:[Meter_Size]],Meter_10.1[[Size]:[Size]],0)) ), 0) ), "") -> 300 | CE11: =IF(Data_10.2[[#This Row],[Meter_ID]:[Meter_ID]]<>"", IF(OR(Usage_10.2[[#This Row],[Nov_Usage]]="",Usage_10.2[[#This Row],[Nov_Usage]]=0), 0, +IF(Usage_10.2[[#This Row],[Nov_Usage]]>+INDEX(Block1_10.1[[Usage_Max]:[Usage_Max]],MATCH(Data_10.2[[#This Row],[Meter_Size]:[Meter_Size]],Meter_10.1[[Size]:[Size]],0)), IF(Usage_10.2[[#This Row],[Nov_Usage]]>+INDEX(Block2_10.1[[Usage_Max]:[Usage_Max]],MATCH(Data_10.2[[#This Row],[Meter_Size]:[Meter_Size]],Meter_10.1[[Size]:[Size]],0)), +INDEX(Block2_10.1[[Usage_Max]:[Usage_Max]],MATCH(Data_10.2[[#This Row],[Meter_Size]:[Meter_Size]],Meter_10.1[Size],0))-INDEX(Block1_10.1[[Usage_Max]:[Usage_Max]],MATCH(Data_10.2[[#This Row],[Meter_Size]:[Meter_Size]],Meter_10.1[[Size]:[Size]],0)), Usage_10.2[[#This Row],[Nov_Usage]]-INDEX(Block1_10.1[[Usage_Max]:[Usage_Max]],MATCH(Data_10.2[[#This Row],[Meter_Size]:[Meter_Size]],Meter_10.1[[Size]:[Size]],0)) ), 0) ), "") -> 300 | CF11: =IF(Data_10.2[[#This Row],[Meter_ID]:[Meter_ID]]<>"", IF(OR(Usage_10.2[[#This Row],[Dec_Usage]]="",Usage_10.2[[#This Row],[Dec_Usage]]=0), 0, +IF(Usage_10.2[[#This Row],[Dec_Usage]]>+INDEX(Block1_10.1[[Usage_Max]:[Usage_Max]],MATCH(Data_10.2[[#This Row],[Meter_Size]:[Meter_Size]],Meter_10.1[[Size]:[Size]],0)), IF(Usage_10.2[[#This Row],[Dec_Usage]]>+INDEX(Block2_10.1[[Usage_Max]:[Usage_Max]],MATCH(Data_10.2[[#This Row],[Meter_Size]:[Meter_Size]],Meter_10.1[[Size]:[Size]],0)), +INDEX(Block2_10.1[[Usage_Max]:[Usage_Max]],MATCH(Data_10.2[[#This Row],[Meter_Size]:[Meter_Size]],Meter_10.1[Size],0))-INDEX(Block1_10.1[[Usage_Max]:[Usage_Max]],MATCH(Data_10.2[[#This Row],[Meter_Size]:[Meter_Size]],Meter_10.1[[Size]:[Size]],0)), Usage_10.2[[#This Row],[Dec_Usage]]-INDEX(Block1_10.1[[Usage_Max]:[Usage_Max]],MATCH(Data_10.2[[#This Row],[Meter_Size]:[Meter_Size]],Meter_10.1[[Size]:[Size]],0)) ), 0) ), "") -> 400 | CG11: =IF(Data_10.2[[#This Row],[Meter_ID]:[Meter_ID]]<>"", IF(OR(Usage_10.2[[#This Row],[Jan_Usage]]="",Usage_10.2[[#This Row],[Jan_Usage]]=0), 0, Block2Usage_10.2[[#This Row],[Jan_Blk_2_-_Usage]]/Usage_Unit_10.1*INDEX(Block2_10.1[[Rate]:[Rate]],MATCH(Data_10.2[[#This Row],[Meter_Size]:[Meter_Size]],Meter_10.1[[Size]:[Size]],0)) ), "") -> 11.25 | CH11: =IF(Data_10.2[[#This Row],[Meter_ID]:[Meter_ID]]<>"", IF(OR(Usage_10.2[[#This Row],[Feb_Usage]]="",Usage_10.2[[#This Row],[Feb_Usage]]=0), 0, Block2Usage_10.2[[#This Row],[Feb_Blk_2_-_Usage]]/Usage_Unit_10.1*INDEX(Block2_10.1[[Rate]:[Rate]],MATCH(Data_10.2[[#This Row],[Meter_Size]:[Meter_Size]],Meter_10.1[[Size]:[Size]],0)) ), "") -> 6.75 | CI11: =IF(Data_10.2[[#This Row],[Meter_ID]:[Meter_ID]]<>"", IF(OR(Usage_10.2[[#This Row],[Mar_Usage]]="",Usage_10.2[[#This Row],[Mar_Usage]]=0), 0, Block2Usage_10.2[[#This Row],[Mar_Blk_2_-_Usage]]/Usage_Unit_10.1*INDEX(Block2_10.1[[Rate]:[Rate]],MATCH(Data_10.2[[#This Row],[Meter_Size]:[Meter_Size]],Meter_10.1[[Size]:[Size]],0)) ), "") -> 11.25 | CJ11: =IF(Data_10.2[[#This Row],[Meter_ID]:[Meter_ID]]<>"", IF(OR(Usage_10.2[[#This Row],[Apr_Usage]]="",Usage_10.2[[#This Row],[Apr_Usage]]=0), 0, Block2Usage_10.2[[#This Row],[Apr_Blk_2_-_Usage]]/Usage_Unit_10.1*INDEX(Block2_10.1[[Rate]:[Rate]],MATCH(Data_10.2[[#This Row],[Meter_Size]:[Meter_Size]],Meter_10.1[[Size]:[Size]],0)) ), "") -> 6.75 | CK11: =IF(Data_10.2[[#This Row],[Meter_ID]:[Meter_ID]]<>"", IF(OR(Usage_10.2[[#This Row],[May_Usage]]="",Usage_10.2[[#This Row],[May_Usage]]=0), 0, Block2Usage_10.2[[#This Row],[May_Blk_2_-_Usage]]/Usage_Unit_10.1*INDEX(Block2_10.1[[Rate]:[Rate]],MATCH(Data_10.2[[#This Row],[Meter_Size]:[Meter_Size]],Meter_10.1[[Size]:[Size]],0)) ), "") -> 11.25 | CL11: =IF(Data_10.2[[#This Row],[Meter_ID]:[Meter_ID]]<>"", IF(OR(Usage_10.2[[#This Row],[Jun_Usage]]="",Usage_10.2[[#This Row],[Jun_Usage]]=0), 0, Block2Usage_10.2[[#This Row],[Jun_Blk_2_-_Usage]]/Usage_Unit_10.1*INDEX(Block2_10.1[[Rate]:[Rate]],MATCH(Data_10.2[[#This Row],[Meter_Size]:[Meter_Size]],Meter_10.1[[Size]:[Size]],0)) ), "") -> 11.25 | CM11: =IF(Data_10.2[[#This Row],[Meter_ID]:[Meter_ID]]<>"", IF(OR(Usage_10.2[[#This Row],[Jul_Usage]]="",Usage_10.2[[#This Row],[Jul_Usage]]=0), 0, Block2Usage_10.2[[#This Row],[Jul_Blk_2_-_Usage]]/Usage_Unit_10.1*INDEX(Block2_10.1[[Rate]:[Rate]],MATCH(Data_10.2[[#This Row],[Meter_Size]:[Meter_Size]],Meter_10.1[[Size]:[Size]],0)) ), "") -> 11.25 | CN11: =IF(Data_10.2[[#This Row],[Meter_ID]:[Meter_ID]]<>"", IF(OR(Usage_10.2[[#This Row],[Aug_Usage]]="",Usage_10.2[[#This Row],[Aug_Usage]]=0), 0, Block2Usage_10.2[[#This Row],[Aug_Blk_2_-_Usage]]/Usage_Unit_10.1*INDEX(Block2_10.1[[Rate]:[Rate]],MATCH(Data_10.2[[#This Row],[Meter_Size]:[Meter_Size]],Meter_10.1[[Size]:[Size]],0)) ), "") -> 11.25 | CO11: =IF(Data_10.2[[#This Row],[Meter_ID]:[Meter_ID]]<>"", IF(OR(Usage_10.2[[#This Row],[Sep_Usage]]="",Usage_10.2[[#This Row],[Sep_Usage]]=0), 0, Block2Usage_10.2[[#This Row],[Sep_Blk_2_-_Usage]]/Usage_Unit_10.1*INDEX(Block2_10.1[[Rate]:[Rate]],MATCH(Data_10.2[[#This Row],[Meter_Size]:[Meter_Size]],Meter_10.1[[Size]:[Size]],0)) ), "") -> 6.75 | CP11: =IF(Data_10.2[[#This Row],[Meter_ID]:[Meter_ID]]<>"", IF(OR(Usage_10.2[[#This Row],[Oct_Usage]]="",Usage_10.2[[#This Row],[Oct_Usage]]=0), 0, Block2Usage_10.2[[#This Row],[Oct_Blk_2_-_Usage]]/Usage_Unit_10.1*INDEX(Block2_10.1[[Rate]:[Rate]],MATCH(Data_10.2[[#This Row],[Meter_Size]:[Meter_Size]],Meter_10.1[[Size]:[Size]],0)) ), "") -> 6.75 | CQ11: =IF(Data_10.2[[#This Row],[Meter_ID]:[Meter_ID]]<>"", IF(OR(Usage_10.2[[#This Row],[Nov_Usage]]="",Usage_10.2[[#This Row],[Nov_Usage]]=0), 0, Block2Usage_10.2[[#This Row],[Nov_Blk_2_-_Usage]]/Usage_Unit_10.1*INDEX(Block2_10.1[[Rate]:[Rate]],MATCH(Data_10.2[[#This Row],[Meter_Size]:[Meter_Size]],Meter_10.1[[Size]:[Size]],0)) ), "") -> 6.75 | CR11: =IF(Data_10.2[[#This Row],[Meter_ID]:[Meter_ID]]<>"", IF(OR(Usage_10.2[[#This Row],[Dec_Usage]]="",Usage_10.2[[#This Row],[Dec_Usage]]=0), 0, Block2Usage_10.2[[#This Row],[Dec_Blk_2_-_Usage]]/Usage_Unit_10.1*INDEX(Block2_10.1[[Rate]:[Rate]],MATCH(Data_10.2[[#This Row],[Meter_Size]:[Meter_Size]],Meter_10.1[[Size]:[Size]],0)) ), "") -> 9 | CS11: =IF(Data_10.2[[#This Row],[Meter_ID]:[Meter_ID]]<>"", IF(OR(Usage_10.2[[#This Row],[Jan_Usage]]="",Usage_10.2[[#This Row],[Jan_Usage]]=0), 0, IF(Usage_10.2[[#This Row],[Jan_Usage]]>INDEX(Block3_10.1[[Usage_Min]:[Usage_Min]],MATCH(Data_10.2[[#This Row],[Meter_Size]:[Meter_Size]],Meter_10.1[[Size]:[Size]],0)), Usage_10.2[[#This Row],[Jan_Usage]]-INDEX(Block3_10.1[[Usage_Min]:[Usage_Min]],MATCH(Data_10.2[[#This Row],[Meter_Size]:[Meter_Size]],Meter_10.1[[Size]:[Size]],0)), 0)), "") -> 299 | CT11: =IF(Data_10.2[[#This Row],[Meter_ID]:[Meter_ID]]<>"", IF(OR(Usage_10.2[[#This Row],[Feb_Usage]]="",Usage_10.2[[#This Row],[Feb_Usage]]=0), 0, IF(Usage_10.2[[#This Row],[Feb_Usage]]>INDEX(Block3_10.1[[Usage_Min]:[Usage_Min]],MATCH(Data_10.2[[#This Row],[Meter_Size]:[Meter_Size]],Meter_10.1[[Size]:[Size]],0)), Usage_10.2[[#This Row],[Feb_Usage]]-INDEX(Block3_10.1[[Usage_Min]:[Usage_Min]],MATCH(Data_10.2[[#This Row],[Meter_Size]:[Meter_Size]],Meter_10.1[[Size]:[Size]],0)), 0)), "") -> 0 | CU11: =IF(Data_10.2[[#This Row],[Meter_ID]:[Meter_ID]]<>"", IF(OR(Usage_10.2[[#This Row],[Mar_Usage]]="",Usage_10.2[[#This Row],[Mar_Usage]]=0), 0, IF(Usage_10.2[[#This Row],[Mar_Usage]]>INDEX(Block3_10.1[[Usage_Min]:[Usage_Min]],MATCH(Data_10.2[[#This Row],[Meter_Size]:[Meter_Size]],Meter_10.1[[Size]:[Size]],0)), Usage_10.2[[#This Row],[Mar_Usage]]-INDEX(Block3_10.1[[Usage_Min]:[Usage_Min]],MATCH(Data_10.2[[#This Row],[Meter_Size]:[Meter_Size]],Meter_10.1[[Size]:[Size]],0)), 0)), "") -> 0 | CV11: =IF(Data_10.2[[#This Row],[Meter_ID]:[Meter_ID]]<>"", IF(OR(Usage_10.2[[#This Row],[Apr_Usage]]="",Usage_10.2[[#This Row],[Apr_Usage]]=0), 0, IF(Usage_10.2[[#This Row],[Apr_Usage]]>INDEX(Block3_10.1[[Usage_Min]:[Usage_Min]],MATCH(Data_10.2[[#This Row],[Meter_Size]:[Meter_Size]],Meter_10.1[[Size]:[Size]],0)), Usage_10.2[[#This Row],[Apr_Usage]]-INDEX(Block3_10.1[[Usage_Min]:[Usage_Min]],MATCH(Data_10.2[[#This Row],[Meter_Size]:[Meter_Size]],Meter_10.1[[Size]:[Size]],0)), 0)), "") -> 0 | CW11: =IF(Data_10.2[[#This Row],[Meter_ID]:[Meter_ID]]<>"", IF(OR(Usage_10.2[[#This Row],[May_Usage]]="",Usage_10.2[[#This Row],[May_Usage]]=0), 0, IF(Usage_10.2[[#This Row],[May_Usage]]>INDEX(Block3_10.1[[Usage_Min]:[Usage_Min]],MATCH(Data_10.2[[#This Row],[Meter_Size]:[Meter_Size]],Meter_10.1[[Size]:[Size]],0)), Usage_10.2[[#This Row],[May_Usage]]-INDEX(Block3_10.1[[Usage_Min]:[Usage_Min]],MATCH(Data_10.2[[#This Row],[Meter_Size]:[Meter_Size]],Meter_10.1[[Size]:[Size]],0)), 0)), "") -> 0 | CX11: =IF(Data_10.2[[#This Row],[Meter_ID]:[Meter_ID]]<>"", IF(OR(Usage_10.2[[#This Row],[Jun_Usage]]="",Usage_10.2[[#This Row],[Jun_Usage]]=0), 0, IF(Usage_10.2[[#This Row],[Jun_Usage]]>INDEX(Block3_10.1[[Usage_Min]:[Usage_Min]],MATCH(Data_10.2[[#This Row],[Meter_Size]:[Meter_Size]],Meter_10.1[[Size]:[Size]],0)), Usage_10.2[[#This Row],[Jun_Usage]]-INDEX(Block3_10.1[[Usage_Min]:[Usage_Min]],MATCH(Data_10.2[[#This Row],[Meter_Size]:[Meter_Size]],Meter_10.1[[Size]:[Size]],0)), 0)), "") -> 0 | CY11: =IF(Data_10.2[[#This Row],[Meter_ID]:[Meter_ID]]<>"", IF(OR(Usage_10.2[[#This Row],[Jul_Usage]]="",Usage_10.2[[#This Row],[Jul_Usage]]=0), 0, IF(Usage_10.2[[#This Row],[Jul_Usage]]>INDEX(Block3_10.1[[Usage_Min]:[Usage_Min]],MATCH(Data_10.2[[#This Row],[Meter_Size]:[Meter_Size]],Meter_10.1[[Size]:[Size]],0)), Usage_10.2[[#This Row],[Jul_Usage]]-INDEX(Block3_10.1[[Usage_Min]:[Usage_Min]],MATCH(Data_10.2[[#This Row],[Meter_Size]:[Meter_Size]],Meter_10.1[[Size]:[Size]],0)), 0)), "") -> 1199 | CZ11: =IF(Data_10.2[[#This Row],[Meter_ID]:[Meter_ID]]<>"", IF(OR(Usage_10.2[[#This Row],[Aug_Usage]]="",Usage_10.2[[#This Row],[Aug_Usage]]=0), 0, IF(Usage_10.2[[#This Row],[Aug_Usage]]>INDEX(Block3_10.1[[Usage_Min]:[Usage_Min]],MATCH(Data_10.2[[#This Row],[Meter_Size]:[Meter_Size]],Meter_10.1[[Size]:[Size]],0)), Usage_10.2[[#This Row],[Aug_Usage]]-INDEX(Block3_10.1[[Usage_Min]:[Usage_Min]],MATCH(Data_10.2[[#This Row],[Meter_Size]:[Meter_Size]],Meter_10.1[[Size]:[Size]],0)), 0)), "") -> 99 | DA11: =IF(Data_10.2[[#This Row],[Meter_ID]:[Meter_ID]]<>"", IF(OR(Usage_10.2[[#This Row],[Sep_Usage]]="",Usage_10.2[[#This Row],[Sep_Usage]]=0), 0, IF(Usage_10.2[[#This Row],[Sep_Usage]]>INDEX(Block3_10.1[[Usage_Min]:[Usage_Min]],MATCH(Data_10.2[[#This Row],[Meter_Size]:[Meter_Size]],Meter_10.1[[Size]:[Size]],0)), Usage_10.2[[#This Row],[Sep_Usage]]-INDEX(Block3_10.1[[Usage_Min]:[Usage_Min]],MATCH(Data_10.2[[#This Row],[Meter_Size]:[Meter_Size]],Meter_10.1[[Size]:[Size]],0)), 0)), "") -> 0 | DB11: =IF(Data_10.2[[#This Row],[Meter_ID]:[Meter_ID]]<>"", IF(OR(Usage_10.2[[#This Row],[Oct_Usage]]="",Usage_10.2[[#This Row],[Oct_Usage]]=0), 0, IF(Usage_10.2[[#This Row],[Oct_Usage]]>INDEX(Block3_10.1[[Usage_Min]:[Usage_Min]],MATCH(Data_10.2[[#This Row],[Meter_Size]:[Meter_Size]],Meter_10.1[[Size]:[Size]],0)), Usage_10.2[[#This Row],[Oct_Usage]]-INDEX(Block3_10.1[[Usage_Min]:[Usage_Min]],MATCH(Data_10.2[[#This Row],[Meter_Size]:[Meter_Size]],Meter_10.1[[Size]:[Size]],0)), 0)), "") -> 0 | DC11: =IF(Data_10.2[[#This Row],[Meter_ID]:[Meter_ID]]<>"", IF(OR(Usage_10.2[[#This Row],[Nov_Usage]]="",Usage_10.2[[#This Row],[Nov_Usage]]=0), 0, IF(Usage_10.2[[#This Row],[Nov_Usage]]>INDEX(Block3_10.1[[Usage_Min]:[Usage_Min]],MATCH(Data_10.2[[#This Row],[Meter_Size]:[Meter_Size]],Meter_10.1[[Size]:[Size]],0)), Usage_10.2[[#This Row],[Nov_Usage]]-INDEX(Block3_10.1[[Usage_Min]:[Usage_Min]],MATCH(Data_10.2[[#This Row],[Meter_Size]:[Meter_Size]],Meter_10.1[[Size]:[Size]],0)), 0)), "") -> 0 | DD11: =IF(Data_10.2[[#This Row],[Meter_ID]:[Meter_ID]]<>"", IF(OR(Usage_10.2[[#This Row],[Dec_Usage]]="",Usage_10.2[[#This Row],[Dec_Usage]]=0), 0, IF(Usage_10.2[[#This Row],[Dec_Usage]]>INDEX(Block3_10.1[[Usage_Min]:[Usage_Min]],MATCH(Data_10.2[[#This Row],[Meter_Size]:[Meter_Size]],Meter_10.1[[Size]:[Size]],0)), Usage_10.2[[#This Row],[Dec_Usage]]-INDEX(Block3_10.1[[Usage_Min]:[Usage_Min]],MATCH(Data_10.2[[#This Row],[Meter_Size]:[Meter_Size]],Meter_10.1[[Size]:[Size]],0)), 0)), "") -> 0 | DE11: =IF(Data_10.2[[#This Row],[Meter_ID]:[Meter_ID]]<>"", IF(OR(Usage_10.2[[#This Row],[Jan_Usage]]="",Usage_10.2[[#This Row],[Jan_Usage]]=0), 0, Block3Usage_10.2[[#This Row],[Jan_Blk_3_-_Usage]]/Usage_Unit_10.1*INDEX(Block3_10.1[[Rate]:[Rate]],MATCH(Data_10.2[[#This Row],[Meter_Size]:[Meter_Size]],Meter_10.1[[Size]:[Size]],0)) ), "") -> 9.7175 | DF11: =IF(Data_10.2[[#This Row],[Meter_ID]:[Meter_ID]]<>"", IF(OR(Usage_10.2[[#This Row],[Feb_Usage]]="",Usage_10.2[[#This Row],[Feb_Usage]]=0), 0, Block3Usage_10.2[[#This Row],[Feb_Blk_3_-_Usage]]/Usage_Unit_10.1*INDEX(Block3_10.1[[Rate]:[Rate]],MATCH(Data_10.2[[#This Row],[Meter_Size]:[Meter_Size]],Meter_10.1[[Size]:[Size]],0)) ), "") -> 0 | DG11: =IF(Data_10.2[[#This Row],[Meter_ID]:[Meter_ID]]<>"", IF(OR(Usage_10.2[[#This Row],[Mar_Usage]]="",Usage_10.2[[#This Row],[Mar_Usage]]=0), 0, Block3Usage_10.2[[#This Row],[Mar_Blk_3_-_Usage]]/Usage_Unit_10.1*INDEX(Block3_10.1[[Rate]:[Rate]],MATCH(Data_10.2[[#This Row],[Meter_Size]:[Meter_Size]],Meter_10.1[[Size]:[Size]],0)) ), "") -> 0 | DH11: =IF(Data_10.2[[#This Row],[Meter_ID]:[Meter_ID]]<>"", IF(OR(Usage_10.2[[#This Row],[Apr_Usage]]="",Usage_10.2[[#This Row],[Apr_Usage]]=0), 0, Block3Usage_10.2[[#This Row],[Apr_Blk_3_-_Usage]]/Usage_Unit_10.1*INDEX(Block3_10.1[[Rate]:[Rate]],MATCH(Data_10.2[[#This Row],[Meter_Size]:[Meter_Size]],Meter_10.1[[Size]:[Size]],0)) ), "") -> 0 | DI11: =IF(Data_10.2[[#This Row],[Meter_ID]:[Meter_ID]]<>"", IF(OR(Usage_10.2[[#This Row],[May_Usage]]="",Usage_10.2[[#This Row],[May_Usage]]=0), 0, Block3Usage_10.2[[#This Row],[May_Blk_3_-_Usage]]/Usage_Unit_10.1*INDEX(Block3_10.1[[Rate]:[Rate]],MATCH(Data_10.2[[#This Row],[Meter_Size]:[Meter_Size]],Meter_10.1[[Size]:[Size]],0)) ), "") -> 0 | DJ11: =IF(Data_10.2[[#This Row],[Meter_ID]:[Meter_ID]]<>"", IF(OR(Usage_10.2[[#This Row],[Jun_Usage]]="",Usage_10.2[[#This Row],[Jun_Usage]]=0), 0, Block3Usage_10.2[[#This Row],[Jun_Blk_3_-_Usage]]/Usage_Unit_10.1*INDEX(Block3_10.1[[Rate]:[Rate]],MATCH(Data_10.2[[#This Row],[Meter_Size]:[Meter_Size]],Meter_10.1[[Size]:[Size]],0)) ), "") -> 0 | DK11: =IF(Data_10.2[[#This Row],[Meter_ID]:[Meter_ID]]<>"", IF(OR(Usage_10.2[[#This Row],[Jul_Usage]]="",Usage_10.2[[#This Row],[Jul_Usage]]=0), 0, Block3Usage_10.2[[#This Row],[Jul_Blk_3_-_Usage]]/Usage_Unit_10.1*INDEX(Block3_10.1[[Rate]:[Rate]],MATCH(Data_10.2[[#This Row],[Meter_Size]:[Meter_Size]],Meter_10.1[[Size]:[Size]],0)) ), "") -> 38.9675 | DL11: =IF(Data_10.2[[#This Row],[Meter_ID]:[Meter_ID]]<>"", IF(OR(Usage_10.2[[#This Row],[Aug_Usage]]="",Usage_10.2[[#This Row],[Aug_Usage]]=0), 0, Block3Usage_10.2[[#This Row],[Aug_Blk_3_-_Usage]]/Usage_Unit_10.1*INDEX(Block3_10.1[[Rate]:[Rate]],MATCH(Data_10.2[[#This Row],[Meter_Size]:[Meter_Size]],Meter_10.1[[Size]:[Size]],0)) ), "") -> 3.2175 | DM11: =IF(Data_10.2[[#This Row],[Meter_ID]:[Meter_ID]]<>"", IF(OR(Usage_10.2[[#This Row],[Sep_Usage]]="",Usage_10.2[[#This Row],[Sep_Usage]]=0), 0, Block3Usage_10.2[[#This Row],[Sep_Blk_3_-_Usage]]/Usage_Unit_10.1*INDEX(Block3_10.1[[Rate]:[Rate]],MATCH(Data_10.2[[#This Row],[Meter_Size]:[Meter_Size]],Meter_10.1[[Size]:[Size]],0)) ), "") -> 0 | DN11: =IF(Data_10.2[[#This Row],[Meter_ID]:[Meter_ID]]<>"", IF(OR(Usage_10.2[[#This Row],[Oct_Usage]]="",Usage_10.2[[#This Row],[Oct_Usage]]=0), 0, Block3Usage_10.2[[#This Row],[Oct_Blk_3_-_Usage]]/Usage_Unit_10.1*INDEX(Block3_10.1[[Rate]:[Rate]],MATCH(Data_10.2[[#This Row],[Meter_Size]:[Meter_Size]],Meter_10.1[[Size]:[Size]],0)) ), "") -> 0 | DO11: =IF(Data_10.2[[#This Row],[Meter_ID]:[Meter_ID]]<>"", IF(OR(Usage_10.2[[#This Row],[Nov_Usage]]="",Usage_10.2[[#This Row],[Nov_Usage]]=0), 0, Block3Usage_10.2[[#This Row],[Nov_Blk_3_-_Usage]]/Usage_Unit_10.1*INDEX(Block3_10.1[[Rate]:[Rate]],MATCH(Data_10.2[[#This Row],[Meter_Size]:[Meter_Size]],Meter_10.1[[Size]:[Size]],0)) ), "") -> 0 | DP11: =IF(Data_10.2[[#This Row],[Meter_ID]:[Meter_ID]]<>"", IF(OR(Usage_10.2[[#This Row],[Dec_Usage]]="",Usage_10.2[[#This Row],[Dec_Usage]]=0), 0, Block3Usage_10.2[[#This Row],[Dec_Blk_3_-_Usage]]/Usage_Unit_10.1*INDEX(Block3_10.1[[Rate]:[Rate]],MATCH(Data_10.2[[#This Row],[Meter_Size]:[Meter_Size]],Meter_10.1[[Size]:[Size]],0)) ), "") -> 0 | DQ11: =IF(Data_10.2[[#This Row],[Meter_ID]:[Meter_ID]]<>"", IF(OR(Usage_10.2[[#This Row],[Jan_Usage]]="",Usage_10.2[[#This Row],[Jan_Usage]]=0), 0, INDEX(Base_10.1[[Allowance]:[Allowance]],MATCH(Data_10.2[[#This Row],[Meter_Size]:[Meter_Size]],Meter_10.1[[Size]:[Size]],0)) ), "") -> 0 | DR11: =IF(Data_10.2[[#This Row],[Meter_ID]:[Meter_ID]]<>"", IF(OR(Usage_10.2[[#This Row],[Feb_Usage]]="",Usage_10.2[[#This Row],[Feb_Usage]]=0), 0, INDEX(Base_10.1[[Allowance]:[Allowance]],MATCH(Data_10.2[[#This Row],[Meter_Size]:[Meter_Size]],Meter_10.1[[Size]:[Size]],0)) ), "") -> 0 | DS11: =IF(Data_10.2[[#This Row],[Meter_ID]:[Meter_ID]]<>"", IF(OR(Usage_10.2[[#This Row],[Mar_Usage]]="",Usage_10.2[[#This Row],[Mar_Usage]]=0), 0, INDEX(Base_10.1[[Allowance]:[Allowance]],MATCH(Data_10.2[[#This Row],[Meter_Size]:[Meter_Size]],Meter_10.1[[Size]:[Size]],0)) ), "") -> 0 | DT11: =IF(Data_10.2[[#This Row],[Meter_ID]:[Meter_ID]]<>"", IF(OR(Usage_10.2[[#This Row],[Apr_Usage]]="",Usage_10.2[[#This Row],[Apr_Usage]]=0), 0, INDEX(Base_10.1[[Allowance]:[Allowance]],MATCH(Data_10.2[[#This Row],[Meter_Size]:[Meter_Size]],Meter_10.1[[Size]:[Size]],0)) ), "") -> 0 | DU11: =IF(Data_10.2[[#This Row],[Meter_ID]:[Meter_ID]]<>"", IF(OR(Usage_10.2[[#This Row],[May_Usage]]="",Usage_10.2[[#This Row],[May_Usage]]=0), 0, INDEX(Base_10.1[[Allowance]:[Allowance]],MATCH(Data_10.2[[#This Row],[Meter_Size]:[Meter_Size]],Meter_10.1[[Size]:[Size]],0)) ), "") -> 0 | DV11: =IF(Data_10.2[[#This Row],[Meter_ID]:[Meter_ID]]<>"", IF(OR(Usage_10.2[[#This Row],[Jun_Usage]]="",Usage_10.2[[#This Row],[Jun_Usage]]=0), 0, INDEX(Base_10.1[[Allowance]:[Allowance]],MATCH(Data_10.2[[#This Row],[Meter_Size]:[Meter_Size]],Meter_10.1[[Size]:[Size]],0)) ), "") -> 0 | DW11: =IF(Data_10.2[[#This Row],[Meter_ID]:[Meter_ID]]<>"", IF(OR(Usage_10.2[[#This Row],[Jul_Usage]]="",Usage_10.2[[#This Row],[Jul_Usage]]=0), 0, INDEX(Base_10.1[[Allowance]:[Allowance]],MATCH(Data_10.2[[#This Row],[Meter_Size]:[Meter_Size]],Meter_10.1[[Size]:[Size]],0)) ), "") -> 0 | DX11: =IF(Data_10.2[[#This Row],[Meter_ID]:[Meter_ID]]<>"", IF(OR(Usage_10.2[[#This Row],[Aug_Usage]]="",Usage_10.2[[#This Row],[Aug_Usage]]=0), 0, INDEX(Base_10.1[[Allowance]:[Allowance]],MATCH(Data_10.2[[#This Row],[Meter_Size]:[Meter_Size]],Meter_10.1[[Size]:[Size]],0)) ), "") -> 0 | DY11: =IF(Data_10.2[[#This Row],[Meter_ID]:[Meter_ID]]<>"", IF(OR(Usage_10.2[[#This Row],[Sep_Usage]]="",Usage_10.2[[#This Row],[Sep_Usage]]=0), 0, INDEX(Base_10.1[[Allowance]:[Allowance]],MATCH(Data_10.2[[#This Row],[Meter_Size]:[Meter_Size]],Meter_10.1[[Size]:[Size]],0)) ), "") -> 0 | DZ11: =IF(Data_10.2[[#This Row],[Meter_ID]:[Meter_ID]]<>"", IF(OR(Usage_10.2[[#This Row],[Oct_Usage]]="",Usage_10.2[[#This Row],[Oct_Usage]]=0), 0, INDEX(Base_10.1[[Allowance]:[Allowance]],MATCH(Data_10.2[[#This Row],[Meter_Size]:[Meter_Size]],Meter_10.1[[Size]:[Size]],0)) ), "") -> 0 | EA11: =IF(Data_10.2[[#This Row],[Meter_ID]:[Meter_ID]]<>"", IF(OR(Usage_10.2[[#This Row],[Nov_Usage]]="",Usage_10.2[[#This Row],[Nov_Usage]]=0), 0, INDEX(Base_10.1[[Allowance]:[Allowance]],MATCH(Data_10.2[[#This Row],[Meter_Size]:[Meter_Size]],Meter_10.1[[Size]:[Size]],0)) ), "") -> 0 | EB11: =IF(Data_10.2[[#This Row],[Meter_ID]:[Meter_ID]]<>"", IF(OR(Usage_10.2[[#This Row],[Dec_Usage]]="",Usage_10.2[[#This Row],[Dec_Usage]]=0), 0, INDEX(Base_10.1[[Allowance]:[Allowance]],MATCH(Data_10.2[[#This Row],[Meter_Size]:[Meter_Size]],Meter_10.1[[Size]:[Size]],0)) ), "") -> 0
B12: =IF(Inputs!BA9<>"",Inputs!BA9,"") -> 353353BB | C12: =IF($B12<>"",C11+1,"") -> 2 | D12: =IF($B12<>"",Inputs!AZ9,"") -> 0.75 | E12: =IF(Data_10.2[[#This Row],[Meter_ID]]<>"",IFERROR(SUM(Monthly_Bill_10.2[#This Row]),0),"") -> 814.305 | F12: =IF(Data_10.2[[#This Row],[Meter_ID]]<>"",IFERROR(AVERAGEIF(Monthly_Bill_10.2[#This Row],"<>0"),0),"") -> 67.85875 | G12: =IF(Data_10.2[[#This Row],[Meter_ID]]<>"",SUM(Usage_10.2[#This Row]),"") -> 19000 | H12: =IF(Data_10.2[[#This Row],[Meter_ID]]<>"",IFERROR(AVERAGEIF(Usage_10.2[#This Row],"<>0"),0),"") -> 1583.333333 | I12: =SUM(Usage_10.2[[#This Row],[Jan_Usage]:[Apr_Usage]])+SUM(Usage_10.2[[#This Row],[Nov_Usage]:[Dec_Usage]]) -> 5400 | J12: =SUM(Usage_10.2[[#This Row],[May_Usage]:[Oct_Usage]]) -> 13600 | K12: =COUNTIF(Usage_10.2[[#This Row],[Jan_Usage]:[Apr_Usage]],">0")+COUNTIF(Usage_10.2[[#This Row],[Nov_Usage]:[Dec_Usage]],">0") -> 6 | L12: =COUNTIF(Usage_10.2[[#This Row],[May_Usage]:[Oct_Usage]],">0") -> 6 | M12: =IF(Data_10.2[[#This Row],[Meter_ID]:[Meter_ID]]<>"",INDEX(Inputs!$BB9:$BM9,,MATCH('Rate Data Calculations'!M$7,Inputs!$BB$4:$BM$4,0)),"") -> 700 | N12: =IF(Data_10.2[[#This Row],[Meter_ID]:[Meter_ID]]<>"",INDEX(Inputs!$BB9:$BM9,,MATCH('Rate Data Calculations'!N$7,Inputs!$BB$4:$BM$4,0)),"") -> 700 | O12: =IF(Data_10.2[[#This Row],[Meter_ID]:[Meter_ID]]<>"",INDEX(Inputs!$BB9:$BM9,,MATCH('Rate Data Calculations'!O$7,Inputs!$BB$4:$BM$4,0)),"") -> 1000 | P12: =IF(Data_10.2[[#This Row],[Meter_ID]:[Meter_ID]]<>"",INDEX(Inputs!$BB9:$BM9,,MATCH('Rate Data Calculations'!P$7,Inputs!$BB$4:$BM$4,0)),"") -> 1300 | Q12: =IF(Data_10.2[[#This Row],[Meter_ID]:[Meter_ID]]<>"",INDEX(Inputs!$BB9:$BM9,,MATCH('Rate Data Calculations'!Q$7,Inputs!$BB$4:$BM$4,0)),"") -> 2900 | R12: =IF(Data_10.2[[#This Row],[Meter_ID]:[Meter_ID]]<>"",INDEX(Inputs!$BB9:$BM9,,MATCH('Rate Data Calculations'!R$7,Inputs!$BB$4:$BM$4,0)),"") -> 1900 | S12: =IF(Data_10.2[[#This Row],[Meter_ID]:[Meter_ID]]<>"",INDEX(Inputs!$BB9:$BM9,,MATCH('Rate Data Calculations'!S$7,Inputs!$BB$4:$BM$4,0)),"") -> 3300 | T12: =IF(Data_10.2[[#This Row],[Meter_ID]:[Meter_ID]]<>"",INDEX(Inputs!$BB9:$BM9,,MATCH('Rate Data Calculations'!T$7,Inputs!$BB$4:$BM$4,0)),"") -> 3100 | U12: =IF(Data_10.2[[#This Row],[Meter_ID]:[Meter_ID]]<>"",INDEX(Inputs!$BB9:$BM9,,MATCH('Rate Data Calculations'!U$7,Inputs!$BB$4:$BM$4,0)),"") -> 1600 | V12: =IF(Data_10.2[[#This Row],[Meter_ID]:[Meter_ID]]<>"",INDEX(Inputs!$BB9:$BM9,,MATCH('Rate Data Calculations'!V$7,Inputs!$BB$4:$BM$4,0)),"") -> 800 | W12: =IF(Data_10.2[[#This Row],[Meter_ID]:[Meter_ID]]<>"",INDEX(Inputs!$BB9:$BM9,,MATCH('Rate Data Calculations'!W$7,Inputs!$BB$4:$BM$4,0)),"") -> 900 | X12: =IF(Data_10.2[[#This Row],[Meter_ID]:[Meter_ID]]<>"",INDEX(Inputs!$BB9:$BM9,,MATCH('Rate Data Calculations'!X$7,Inputs!$BB$4:$BM$4,0)),"") -> 800 | Y12: =IF(Data_10.2[[#This Row],[Meter_ID]:[Meter_ID]]<>"", BaseCharge_10.2[[#This Row],[Jan_Base]]+Block1Rate_10.2[[#This Row],[Jan_Blk_1_-_Rate]]+Block2Rate_10.2[[#This Row],[Jan_Blk_2_-_Rate]]+Block3Rate_10.2[[#This Row],[Jan_Blk_3_-_Rate]], "") -> 41.25 | Z12: =IF(Data_10.2[[#This Row],[Meter_ID]:[Meter_ID]]<>"", BaseCharge_10.2[[#This Row],[Feb_Base]]+Block1Rate_10.2[[#This Row],[Feb_Blk_1_-_Rate]]+Block2Rate_10.2[[#This Row],[Feb_Blk_2_-_Rate]]+Block3Rate_10.2[[#This Row],[Feb_Blk_3_-_Rate]], "") -> 41.25 | AA12: =IF(Data_10.2[[#This Row],[Meter_ID]:[Meter_ID]]<>"", BaseCharge_10.2[[#This Row],[Mar_Base]]+Block1Rate_10.2[[#This Row],[Mar_Blk_1_-_Rate]]+Block2Rate_10.2[[#This Row],[Mar_Blk_2_-_Rate]]+Block3Rate_10.2[[#This Row],[Mar_Blk_3_-_Rate]], "") -> 48 | AB12: =IF(Data_10.2[[#This Row],[Meter_ID]:[Meter_ID]]<>"", BaseCharge_10.2[[#This Row],[Apr_Base]]+Block1Rate_10.2[[#This Row],[Apr_Blk_1_-_Rate]]+Block2Rate_10.2[[#This Row],[Apr_Blk_2_-_Rate]]+Block3Rate_10.2[[#This Row],[Apr_Blk_3_-_Rate]], "") -> 57.7175 | AC12: =IF(Data_10.2[[#This Row],[Meter_ID]:[Meter_ID]]<>"", BaseCharge_10.2[[#This Row],[May_Base]]+Block1Rate_10.2[[#This Row],[May_Blk_1_-_Rate]]+Block2Rate_10.2[[#This Row],[May_Blk_2_-_Rate]]+Block3Rate_10.2[[#This Row],[May_Blk_3_-_Rate]], "") -> 109.7175 | AD12: =IF(Data_10.2[[#This Row],[Meter_ID]:[Meter_ID]]<>"", BaseCharge_10.2[[#This Row],[Jun_Base]]+Block1Rate_10.2[[#This Row],[Jun_Blk_1_-_Rate]]+Block2Rate_10.2[[#This Row],[Jun_Blk_2_-_Rate]]+Block3Rate_10.2[[#This Row],[Jun_Blk_3_-_Rate]], "") -> 77.2175 | AE12: =IF(Data_10.2[[#This Row],[Meter_ID]:[Meter_ID]]<>"", BaseCharge_10.2[[#This Row],[Jul_Base]]+Block1Rate_10.2[[#This Row],[Jul_Blk_1_-_Rate]]+Block2Rate_10.2[[#This Row],[Jul_Blk_2_-_Rate]]+Block3Rate_10.2[[#This Row],[Jul_Blk_3_-_Rate]], "") -> 122.7175 | AF12: =IF(Data_10.2[[#This Row],[Meter_ID]:[Meter_ID]]<>"", BaseCharge_10.2[[#This Row],[Aug_Base]]+Block1Rate_10.2[[#This Row],[Aug_Blk_1_-_Rate]]+Block2Rate_10.2[[#This Row],[Aug_Blk_2_-_Rate]]+Block3Rate_10.2[[#This Row],[Aug_Blk_3_-_Rate]], "") -> 116.2175 | AG12: =IF(Data_10.2[[#This Row],[Meter_ID]:[Meter_ID]]<>"", BaseCharge_10.2[[#This Row],[Sep_Base]]+Block1Rate_10.2[[#This Row],[Sep_Blk_1_-_Rate]]+Block2Rate_10.2[[#This Row],[Sep_Blk_2_-_Rate]]+Block3Rate_10.2[[#This Row],[Sep_Blk_3_-_Rate]], "") -> 67.4675 | AH12: =IF(Data_10.2[[#This Row],[Meter_ID]:[Meter_ID]]<>"", BaseCharge_10.2[[#This Row],[Oct_Base]]+Block1Rate_10.2[[#This Row],[Oct_Blk_1_-_Rate]]+Block2Rate_10.2[[#This Row],[Oct_Blk_2_-_Rate]]+Block3Rate_10.2[[#This Row],[Oct_Blk_3_-_Rate]], "") -> 43.5 | AI12: =IF(Data_10.2[[#This Row],[Meter_ID]:[Meter_ID]]<>"", BaseCharge_10.2[[#This Row],[Nov_Base]]+Block1Rate_10.2[[#This Row],[Nov_Blk_1_-_Rate]]+Block2Rate_10.2[[#This Row],[Nov_Blk_2_-_Rate]]+Block3Rate_10.2[[#This Row],[Nov_Blk_3_-_Rate]], "") -> 45.75 | AJ12: =IF(Data_10.2[[#This Row],[Meter_ID]:[Meter_ID]]<>"", BaseCharge_10.2[[#This Row],[Dec_Base]]+Block1Rate_10.2[[#This Row],[Dec_Blk_1_-_Rate]]+Block2Rate_10.2[[#This Row],[Dec_Blk_2_-_Rate]]+Block3Rate_10.2[[#This Row],[Dec_Blk_3_-_Rate]], "") -> 43.5 | AK12: =IF(Data_10.2[[#This Row],[Meter_ID]]<>"",IF(OR(Usage_10.2[[#This Row],[Jan_Usage]]="",Usage_10.2[[#This Row],[Jan_Usage]]=0), 0,INDEX(Base_10.1[Rate],MATCH(Data_10.2[[#This Row],[Meter_Size]],Meter_10.1[Size],0))),"") -> 28 | AL12: =IF(Data_10.2[[#This Row],[Meter_ID]]<>"",IF(OR(Usage_10.2[[#This Row],[Feb_Usage]]="",Usage_10.2[[#This Row],[Feb_Usage]]=0), 0,INDEX(Base_10.1[Rate],MATCH(Data_10.2[[#This Row],[Meter_Size]],Meter_10.1[Size],0))),"") -> 28 | AM12: =IF(Data_10.2[[#This Row],[Meter_ID]]<>"",IF(OR(Usage_10.2[[#This Row],[Mar_Usage]]="",Usage_10.2[[#This Row],[Mar_Usage]]=0), 0,INDEX(Base_10.1[Rate],MATCH(Data_10.2[[#This Row],[Meter_Size]],Meter_10.1[Size],0))),"") -> 28 | AN12: =IF(Data_10.2[[#This Row],[Meter_ID]]<>"",IF(OR(Usage_10.2[[#This Row],[Apr_Usage]]="",Usage_10.2[[#This Row],[Apr_Usage]]=0), 0,INDEX(Base_10.1[Rate],MATCH(Data_10.2[[#This Row],[Meter_Size]],Meter_10.1[Size],0))),"") -> 28 | AO12: =IF(Data_10.2[[#This Row],[Meter_ID]]<>"",IF(OR(Usage_10.2[[#This Row],[May_Usage]]="",Usage_10.2[[#This Row],[May_Usage]]=0), 0,INDEX(Base_10.1[Rate],MATCH(Data_10.2[[#This Row],[Meter_Size]],Meter_10.1[Size],0))),"") -> 28 | AP12: =IF(Data_10.2[[#This Row],[Meter_ID]]<>"",IF(OR(Usage_10.2[[#This Row],[Jun_Usage]]="",Usage_10.2[[#This Row],[Jun_Usage]]=0), 0,INDEX(Base_10.1[Rate],MATCH(Data_10.2[[#This Row],[Meter_Size]],Meter_10.1[Size],0))),"") -> 28 | AQ12: =IF(Data_10.2[[#This Row],[Meter_ID]]<>"",IF(OR(Usage_10.2[[#This Row],[Jul_Usage]]="",Usage_10.2[[#This Row],[Jul_Usage]]=0), 0,INDEX(Base_10.1[Rate],MATCH(Data_10.2[[#This Row],[Meter_Size]],Meter_10.1[Size],0))),"") -> 28 | AR12: =IF(Data_10.2[[#This Row],[Meter_ID]]<>"",IF(OR(Usage_10.2[[#This Row],[Aug_Usage]]="",Usage_10.2[[#This Row],[Aug_Usage]]=0), 0,INDEX(Base_10.1[Rate],MATCH(Data_10.2[[#This Row],[Meter_Size]],Meter_10.1[Size],0))),"") -> 28 | AS12: =IF(Data_10.2[[#This Row],[Meter_ID]]<>"",IF(OR(Usage_10.2[[#This Row],[Sep_Usage]]="",Usage_10.2[[#This Row],[Sep_Usage]]=0), 0,INDEX(Base_10.1[Rate],MATCH(Data_10.2[[#This Row],[Meter_Size]],Meter_10.1[Size],0))),"") -> 28 | AT12: =IF(Data_10.2[[#This Row],[Meter_ID]]<>"",IF(OR(Usage_10.2[[#This Row],[Oct_Usage]]="",Usage_10.2[[#This Row],[Oct_Usage]]=0), 0,INDEX(Base_10.1[Rate],MATCH(Data_10.2[[#This Row],[Meter_Size]],Meter_10.1[Size],0))),"") -> 28 | AU12: =IF(Data_10.2[[#This Row],[Meter_ID]]<>"",IF(OR(Usage_10.2[[#This Row],[Nov_Usage]]="",Usage_10.2[[#This Row],[Nov_Usage]]=0), 0,INDEX(Base_10.1[Rate],MATCH(Data_10.2[[#This Row],[Meter_Size]],Meter_10.1[Size],0))),"") -> 28 | AV12: =IF(Data_10.2[[#This Row],[Meter_ID]]<>"",IF(OR(Usage_10.2[[#This Row],[Dec_Usage]]="",Usage_10.2[[#This Row],[Dec_Usage]]=0), 0,INDEX(Base_10.1[Rate],MATCH(Data_10.2[[#This Row],[Meter_Size]],Meter_10.1[Size],0))),"") -> 28 | AW12: =IF(Data_10.2[[#This Row],[Meter_ID]:[Meter_ID]]<>"", IF(OR(Usage_10.2[[#This Row],[Jan_Usage]]="",Usage_10.2[[#This Row],[Jan_Usage]]=0), 0, +IF(Usage_10.2[[#This Row],[Jan_Usage]]>+INDEX(Base_10.1[[Allowance]:[Allowance]],MATCH(Data_10.2[[#This Row],[Meter_Size]:[Meter_Size]],Meter_10.1[[Size]:[Size]],0)), IF(Usage_10.2[[#This Row],[Jan_Usage]]>+INDEX(Block1_10.1[[Usage_Max]:[Usage_Max]],MATCH(Data_10.2[[#This Row],[Meter_Size]:[Meter_Size]],Meter_10.1[[Size]:[Size]],0)), +INDEX(Block1_10.1[[Usage_Max]:[Usage_Max]],MATCH(Data_10.2[[#This Row],[Meter_Size]:[Meter_Size]],Meter_10.1[Size],0))-INDEX(Base_10.1[[Allowance]:[Allowance]],MATCH(Data_10.2[[#This Row],[Meter_Size]:[Meter_Size]],Meter_10.1[[Size]:[Size]],0)), Usage_10.2[[#This Row],[Jan_Usage]]-INDEX(Base_10.1[[Allowance]:[Allowance]],MATCH(Data_10.2[[#This Row],[Meter_Size]:[Meter_Size]],Meter_10.1[[Size]:[Size]],0)) ), 0) ), "") -> 500 | AX12: =IF(Data_10.2[[#This Row],[Meter_ID]:[Meter_ID]]<>"", IF(OR(Usage_10.2[[#This Row],[Feb_Usage]]="",Usage_10.2[[#This Row],[Feb_Usage]]=0), 0, +IF(Usage_10.2[[#This Row],[Feb_Usage]]>+INDEX(Base_10.1[[Allowance]:[Allowance]],MATCH(Data_10.2[[#This Row],[Meter_Size]:[Meter_Size]],Meter_10.1[[Size]:[Size]],0)), IF(Usage_10.2[[#This Row],[Feb_Usage]]>+INDEX(Block1_10.1[[Usage_Max]:[Usage_Max]],MATCH(Data_10.2[[#This Row],[Meter_Size]:[Meter_Size]],Meter_10.1[[Size]:[Size]],0)), +INDEX(Block1_10.1[[Usage_Max]:[Usage_Max]],MATCH(Data_10.2[[#This Row],[Meter_Size]:[Meter_Size]],Meter_10.1[Size],0))-INDEX(Base_10.1[[Allowance]:[Allowance]],MATCH(Data_10.2[[#This Row],[Meter_Size]:[Meter_Size]],Meter_10.1[[Size]:[Size]],0)), Usage_10.2[[#This Row],[Feb_Usage]]-INDEX(Base_10.1[[Allowance]:[Allowance]],MATCH(Data_10.2[[#This Row],[Meter_Size]:[Meter_Size]],Meter_10.1[[Size]:[Size]],0)) ), 0) ), "") -> 500 | AY12: =IF(Data_10.2[[#This Row],[Meter_ID]:[Meter_ID]]<>"", IF(OR(Usage_10.2[[#This Row],[Mar_Usage]]="",Usage_10.2[[#This Row],[Mar_Usage]]=0), 0, +IF(Usage_10.2[[#This Row],[Mar_Usage]]>+INDEX(Base_10.1[[Allowance]:[Allowance]],MATCH(Data_10.2[[#This Row],[Meter_Size]:[Meter_Size]],Meter_10.1[[Size]:[Size]],0)), IF(Usage_10.2[[#This Row],[Mar_Usage]]>+INDEX(Block1_10.1[[Usage_Max]:[Usage_Max]],MATCH(Data_10.2[[#This Row],[Meter_Size]:[Meter_Size]],Meter_10.1[[Size]:[Size]],0)), +INDEX(Block1_10.1[[Usage_Max]:[Usage_Max]],MATCH(Data_10.2[[#This Row],[Meter_Size]:[Meter_Size]],Meter_10.1[Size],0))-INDEX(Base_10.1[[Allowance]:[Allowance]],MATCH(Data_10.2[[#This Row],[Meter_Size]:[Meter_Size]],Meter_10.1[[Size]:[Size]],0)), Usage_10.2[[#This Row],[Mar_Usage]]-INDEX(Base_10.1[[Allowance]:[Allowance]],MATCH(Data_10.2[[#This Row],[Meter_Size]:[Meter_Size]],Meter_10.1[[Size]:[Size]],0)) ), 0) ), "") -> 500 | AZ12: =IF(Data_10.2[[#This Row],[Meter_ID]:[Meter_ID]]<>"", IF(OR(Usage_10.2[[#This Row],[Apr_Usage]]="",Usage_10.2[[#This Row],[Apr_Usage]]=0), 0, +IF(Usage_10.2[[#This Row],[Apr_Usage]]>+INDEX(Base_10.1[[Allowance]:[Allowance]],MATCH(Data_10.2[[#This Row],[Meter_Size]:[Meter_Size]],Meter_10.1[[Size]:[Size]],0)), IF(Usage_10.2[[#This Row],[Apr_Usage]]>+INDEX(Block1_10.1[[Usage_Max]:[Usage_Max]],MATCH(Data_10.2[[#This Row],[Meter_Size]:[Meter_Size]],Meter_10.1[[Size]:[Size]],0)), +INDEX(Block1_10.1[[Usage_Max]:[Usage_Max]],MATCH(Data_10.2[[#This Row],[Meter_Size]:[Meter_Size]],Meter_10.1[Size],0))-INDEX(Base_10.1[[Allowance]:[Allowance]],MATCH(Data_10.2[[#This Row],[Meter_Size]:[Meter_Size]],Meter_10.1[[Size]:[Size]],0)), Usage_10.2[[#This Row],[Apr_Usage]]-INDEX(Base_10.1[[Allowance]:[Allowance]],MATCH(Data_10.2[[#This Row],[Meter_Size]:[Meter_Size]],Meter_10.1[[Size]:[Size]],0)) ), 0) ), "") -> 500 | BA12: =IF(Data_10.2[[#This Row],[Meter_ID]:[Meter_ID]]<>"", IF(OR(Usage_10.2[[#This Row],[May_Usage]]="",Usage_10.2[[#This Row],[May_Usage]]=0), 0, +IF(Usage_10.2[[#This Row],[May_Usage]]>+INDEX(Base_10.1[[Allowance]:[Allowance]],MATCH(Data_10.2[[#This Row],[Meter_Size]:[Meter_Size]],Meter_10.1[[Size]:[Size]],0)), IF(Usage_10.2[[#This Row],[May_Usage]]>+INDEX(Block1_10.1[[Usage_Max]:[Usage_Max]],MATCH(Data_10.2[[#This Row],[Meter_Size]:[Meter_Size]],Meter_10.1[[Size]:[Size]],0)), +INDEX(Block1_10.1[[Usage_Max]:[Usage_Max]],MATCH(Data_10.2[[#This Row],[Meter_Size]:[Meter_Size]],Meter_10.1[Size],0))-INDEX(Base_10.1[[Allowance]:[Allowance]],MATCH(Data_10.2[[#This Row],[Meter_Size]:[Meter_Size]],Meter_10.1[[Size]:[Size]],0)), Usage_10.2[[#This Row],[May_Usage]]-INDEX(Base_10.1[[Allowance]:[Allowance]],MATCH(Data_10.2[[#This Row],[Meter_Size]:[Meter_Size]],Meter_10.1[[Size]:[Size]],0)) ), 0) ), "") -> 500 | BB12: =IF(Data_10.2[[#This Row],[Meter_ID]:[Meter_ID]]<>"", IF(OR(Usage_10.2[[#This Row],[Jun_Usage]]="",Usage_10.2[[#This Row],[Jun_Usage]]=0), 0, +IF(Usage_10.2[[#This Row],[Jun_Usage]]>+INDEX(Base_10.1[[Allowance]:[Allowance]],MATCH(Data_10.2[[#This Row],[Meter_Size]:[Meter_Size]],Meter_10.1[[Size]:[Size]],0)), IF(Usage_10.2[[#This Row],[Jun_Usage]]>+INDEX(Block1_10.1[[Usage_Max]:[Usage_Max]],MATCH(Data_10.2[[#This Row],[Meter_Size]:[Meter_Size]],Meter_10.1[[Size]:[Size]],0)), +INDEX(Block1_10.1[[Usage_Max]:[Usage_Max]],MATCH(Data_10.2[[#This Row],[Meter_Size]:[Meter_Size]],Meter_10.1[Size],0))-INDEX(Base_10.1[[Allowance]:[Allowance]],MATCH(Data_10.2[[#This Row],[Meter_Size]:[Meter_Size]],Meter_10.1[[Size]:[Size]],0)), Usage_10.2[[#This Row],[Jun_Usage]]-INDEX(Base_10.1[[Allowance]:[Allowance]],MATCH(Data_10.2[[#This Row],[Meter_Size]:[Meter_Size]],Meter_10.1[[Size]:[Size]],0)) ), 0) ), "") -> 500 | BC12: =IF(Data_10.2[[#This Row],[Meter_ID]:[Meter_ID]]<>"", IF(OR(Usage_10.2[[#This Row],[Jul_Usage]]="",Usage_10.2[[#This Row],[Jul_Usage]]=0), 0, +IF(Usage_10.2[[#This Row],[Jul_Usage]]>+INDEX(Base_10.1[[Allowance]:[Allowance]],MATCH(Data_10.2[[#This Row],[Meter_Size]:[Meter_Size]],Meter_10.1[[Size]:[Size]],0)), IF(Usage_10.2[[#This Row],[Jul_Usage]]>+INDEX(Block1_10.1[[Usage_Max]:[Usage_Max]],MATCH(Data_10.2[[#This Row],[Meter_Size]:[Meter_Size]],Meter_10.1[[Size]:[Size]],0)), +INDEX(Block1_10.1[[Usage_Max]:[Usage_Max]],MATCH(Data_10.2[[#This Row],[Meter_Size]:[Meter_Size]],Meter_10.1[Size],0))-INDEX(Base_10.1[[Allowance]:[Allowance]],MATCH(Data_10.2[[#This Row],[Meter_Size]:[Meter_Size]],Meter_10.1[[Size]:[Size]],0)), Usage_10.2[[#This Row],[Jul_Usage]]-INDEX(Base_10.1[[Allowance]:[Allowance]],MATCH(Data_10.2[[#This Row],[Meter_Size]:[Meter_Size]],Meter_10.1[[Size]:[Size]],0)) ), 0) ), "") -> 500 | BD12: =IF(Data_10.2[[#This Row],[Meter_ID]:[Meter_ID]]<>"", IF(OR(Usage_10.2[[#This Row],[Aug_Usage]]="",Usage_10.2[[#This Row],[Aug_Usage]]=0), 0, +IF(Usage_10.2[[#This Row],[Aug_Usage]]>+INDEX(Base_10.1[[Allowance]:[Allowance]],MATCH(Data_10.2[[#This Row],[Meter_Size]:[Meter_Size]],Meter_10.1[[Size]:[Size]],0)), IF(Usage_10.2[[#This Row],[Aug_Usage]]>+INDEX(Block1_10.1[[Usage_Max]:[Usage_Max]],MATCH(Data_10.2[[#This Row],[Meter_Size]:[Meter_Size]],Meter_10.1[[Size]:[Size]],0)), +INDEX(Block1_10.1[[Usage_Max]:[Usage_Max]],MATCH(Data_10.2[[#This Row],[Meter_Size]:[Meter_Size]],Meter_10.1[Size],0))-INDEX(Base_10.1[[Allowance]:[Allowance]],MATCH(Data_10.2[[#This Row],[Meter_Size]:[Meter_Size]],Meter_10.1[[Size]:[Size]],0)), Usage_10.2[[#This Row],[Aug_Usage]]-INDEX(Base_10.1[[Allowance]:[Allowance]],MATCH(Data_10.2[[#This Row],[Meter_Size]:[Meter_Size]],Meter_10.1[[Size]:[Size]],0)) ), 0) ), "") -> 500 | BE12: =IF(Data_10.2[[#This Row],[Meter_ID]:[Meter_ID]]<>"", IF(OR(Usage_10.2[[#This Row],[Sep_Usage]]="",Usage_10.2[[#This Row],[Sep_Usage]]=0), 0, +IF(Usage_10.2[[#This Row],[Sep_Usage]]>+INDEX(Base_10.1[[Allowance]:[Allowance]],MATCH(Data_10.2[[#This Row],[Meter_Size]:[Meter_Size]],Meter_10.1[[Size]:[Size]],0)), IF(Usage_10.2[[#This Row],[Sep_Usage]]>+INDEX(Block1_10.1[[Usage_Max]:[Usage_Max]],MATCH(Data_10.2[[#This Row],[Meter_Size]:[Meter_Size]],Meter_10.1[[Size]:[Size]],0)), +INDEX(Block1_10.1[[Usage_Max]:[Usage_Max]],MATCH(Data_10.2[[#This Row],[Meter_Size]:[Meter_Size]],Meter_10.1[Size],0))-INDEX(Base_10.1[[Allowance]:[Allowance]],MATCH(Data_10.2[[#This Row],[Meter_Size]:[Meter_Size]],Meter_10.1[[Size]:[Size]],0)), Usage_10.2[[#This Row],[Sep_Usage]]-INDEX(Base_10.1[[Allowance]:[Allowance]],MATCH(Data_10.2[[#This Row],[Meter_Size]:[Meter_Size]],Meter_10.1[[Size]:[Size]],0)) ), 0) ), "") -> 500 | BF12: =IF(Data_10.2[[#This Row],[Meter_ID]:[Meter_ID]]<>"", IF(OR(Usage_10.2[[#This Row],[Oct_Usage]]="",Usage_10.2[[#This Row],[Oct_Usage]]=0), 0, +IF(Usage_10.2[[#This Row],[Oct_Usage]]>+INDEX(Base_10.1[[Allowance]:[Allowance]],MATCH(Data_10.2[[#This Row],[Meter_Size]:[Meter_Size]],Meter_10.1[[Size]:[Size]],0)), IF(Usage_10.2[[#This Row],[Oct_Usage]]>+INDEX(Block1_10.1[[Usage_Max]:[Usage_Max]],MATCH(Data_10.2[[#This Row],[Meter_Size]:[Meter_Size]],Meter_10.1[[Size]:[Size]],0)), +INDEX(Block1_10.1[[Usage_Max]:[Usage_Max]],MATCH(Data_10.2[[#This Row],[Meter_Size]:[Meter_Size]],Meter_10.1[Size],0))-INDEX(Base_10.1[[Allowance]:[Allowance]],MATCH(Data_10.2[[#This Row],[Meter_Size]:[Meter_Size]],Meter_10.1[[Size]:[Size]],0)), Usage_10.2[[#This Row],[Oct_Usage]]-INDEX(Base_10.1[[Allowance]:[Allowance]],MATCH(Data_10.2[[#This Row],[Meter_Size]:[Meter_Size]],Meter_10.1[[Size]:[Size]],0)) ), 0) ), "") -> 500 | BG12: =IF(Data_10.2[[#This Row],[Meter_ID]:[Meter_ID]]<>"", IF(OR(Usage_10.2[[#This Row],[Nov_Usage]]="",Usage_10.2[[#This Row],[Nov_Usage]]=0), 0, +IF(Usage_10.2[[#This Row],[Nov_Usage]]>+INDEX(Base_10.1[[Allowance]:[Allowance]],MATCH(Data_10.2[[#This Row],[Meter_Size]:[Meter_Size]],Meter_10.1[[Size]:[Size]],0)), IF(Usage_10.2[[#This Row],[Nov_Usage]]>+INDEX(Block1_10.1[[Usage_Max]:[Usage_Max]],MATCH(Data_10.2[[#This Row],[Meter_Size]:[Meter_Size]],Meter_10.1[[Size]:[Size]],0)), +INDEX(Block1_10.1[[Usage_Max]:[Usage_Max]],MATCH(Data_10.2[[#This Row],[Meter_Size]:[Meter_Size]],Meter_10.1[Size],0))-INDEX(Base_10.1[[Allowance]:[Allowance]],MATCH(Data_10.2[[#This Row],[Meter_Size]:[Meter_Size]],Meter_10.1[[Size]:[Size]],0)), Usage_10.2[[#This Row],[Nov_Usage]]-INDEX(Base_10.1[[Allowance]:[Allowance]],MATCH(Data_10.2[[#This Row],[Meter_Size]:[Meter_Size]],Meter_10.1[[Size]:[Size]],0)) ), 0) ), "") -> 500 | BH12: =IF(Data_10.2[[#This Row],[Meter_ID]:[Meter_ID]]<>"", IF(OR(Usage_10.2[[#This Row],[Dec_Usage]]="",Usage_10.2[[#This Row],[Dec_Usage]]=0), 0, +IF(Usage_10.2[[#This Row],[Dec_Usage]]>+INDEX(Base_10.1[[Allowance]:[Allowance]],MATCH(Data_10.2[[#This Row],[Meter_Size]:[Meter_Size]],Meter_10.1[[Size]:[Size]],0)), IF(Usage_10.2[[#This Row],[Dec_Usage]]>+INDEX(Block1_10.1[[Usage_Max]:[Usage_Max]],MATCH(Data_10.2[[#This Row],[Meter_Size]:[Meter_Size]],Meter_10.1[[Size]:[Size]],0)), +INDEX(Block1_10.1[[Usage_Max]:[Usage_Max]],MATCH(Data_10.2[[#This Row],[Meter_Size]:[Meter_Size]],Meter_10.1[Size],0))-INDEX(Base_10.1[[Allowance]:[Allowance]],MATCH(Data_10.2[[#This Row],[Meter_Size]:[Meter_Size]],Meter_10.1[[Size]:[Size]],0)), Usage_10.2[[#This Row],[Dec_Usage]]-INDEX(Base_10.1[[Allowance]:[Allowance]],MATCH(Data_10.2[[#This Row],[Meter_Size]:[Meter_Size]],Meter_10.1[[Size]:[Size]],0)) ), 0) ), "") -> 500 | BI12: =IF(Data_10.2[[#This Row],[Meter_ID]:[Meter_ID]]<>"", IF(OR(Usage_10.2[[#This Row],[Jan_Usage]]="",Usage_10.2[[#This Row],[Jan_Usage]]=0), 0, Block1Usage_10.2[[#This Row],[Jan_Blk_1_-_Usage]]/Usage_Unit_10.1*INDEX(Block1_10.1[[Rate]:[Rate]],MATCH(Data_10.2[[#This Row],[Meter_Size]:[Meter_Size]],Meter_10.1[[Size]:[Size]],0)) ), "") -> 8.75 | BJ12: =IF(Data_10.2[[#This Row],[Meter_ID]:[Meter_ID]]<>"", IF(OR(Usage_10.2[[#This Row],[Feb_Usage]]="",Usage_10.2[[#This Row],[Feb_Usage]]=0), 0, Block1Usage_10.2[[#This Row],[Feb_Blk_1_-_Usage]]/Usage_Unit_10.1*INDEX(Block1_10.1[[Rate]:[Rate]],MATCH(Data_10.2[[#This Row],[Meter_Size]:[Meter_Size]],Meter_10.1[[Size]:[Size]],0)) ), "") -> 8.75 | BK12: =IF(Data_10.2[[#This Row],[Meter_ID]:[Meter_ID]]<>"", IF(OR(Usage_10.2[[#This Row],[Mar_Usage]]="",Usage_10.2[[#This Row],[Mar_Usage]]=0), 0, Block1Usage_10.2[[#This Row],[Mar_Blk_1_-_Usage]]/Usage_Unit_10.1*INDEX(Block1_10.1[[Rate]:[Rate]],MATCH(Data_10.2[[#This Row],[Meter_Size]:[Meter_Size]],Meter_10.1[[Size]:[Size]],0)) ), "") -> 8.75 | BL12: =IF(Data_10.2[[#This Row],[Meter_ID]:[Meter_ID]]<>"", IF(OR(Usage_10.2[[#This Row],[Apr_Usage]]="",Usage_10.2[[#This Row],[Apr_Usage]]=0), 0, Block1Usage_10.2[[#This Row],[Apr_Blk_1_-_Usage]]/Usage_Unit_10.1*INDEX(Block1_10.1[[Rate]:[Rate]],MATCH(Data_10.2[[#This Row],[Meter_Size]:[Meter_Size]],Meter_10.1[[Size]:[Size]],0)) ), "") -> 8.75 | BM12: =IF(Data_10.2[[#This Row],[Meter_ID]:[Meter_ID]]<>"", IF(OR(Usage_10.2[[#This Row],[May_Usage]]="",Usage_10.2[[#This Row],[May_Usage]]=0), 0, Block1Usage_10.2[[#This Row],[May_Blk_1_-_Usage]]/Usage_Unit_10.1*INDEX(Block1_10.1[[Rate]:[Rate]],MATCH(Data_10.2[[#This Row],[Meter_Size]:[Meter_Size]],Meter_10.1[[Size]:[Size]],0)) ), "") -> 8.75 | BN12: =IF(Data_10.2[[#This Row],[Meter_ID]:[Meter_ID]]<>"", IF(OR(Usage_10.2[[#This Row],[Jun_Usage]]="",Usage_10.2[[#This Row],[Jun_Usage]]=0), 0, Block1Usage_10.2[[#This Row],[Jun_Blk_1_-_Usage]]/Usage_Unit_10.1*INDEX(Block1_10.1[[Rate]:[Rate]],MATCH(Data_10.2[[#This Row],[Meter_Size]:[Meter_Size]],Meter_10.1[[Size]:[Size]],0)) ), "") -> 8.75 | BO12: =IF(Data_10.2[[#This Row],[Meter_ID]:[Meter_ID]]<>"", IF(OR(Usage_10.2[[#This Row],[Jul_Usage]]="",Usage_10.2[[#This Row],[Jul_Usage]]=0), 0, Block1Usage_10.2[[#This Row],[Jul_Blk_1_-_Usage]]/Usage_Unit_10.1*INDEX(Block1_10.1[[Rate]:[Rate]],MATCH(Data_10.2[[#This Row],[Meter_Size]:[Meter_Size]],Meter_10.1[[Size]:[Size]],0)) ), "") -> 8.75 | BP12: =IF(Data_10.2[[#This Row],[Meter_ID]:[Meter_ID]]<>"", IF(OR(Usage_10.2[[#This Row],[Aug_Usage]]="",Usage_10.2[[#This Row],[Aug_Usage]]=0), 0, Block1Usage_10.2[[#This Row],[Aug_Blk_1_-_Usage]]/Usage_Unit_10.1*INDEX(Block1_10.1[[Rate]:[Rate]],MATCH(Data_10.2[[#This Row],[Meter_Size]:[Meter_Size]],Meter_10.1[[Size]:[Size]],0)) ), "") -> 8.75 | BQ12: =IF(Data_10.2[[#This Row],[Meter_ID]:[Meter_ID]]<>"", IF(OR(Usage_10.2[[#This Row],[Sep_Usage]]="",Usage_10.2[[#This Row],[Sep_Usage]]=0), 0, Block1Usage_10.2[[#This Row],[Sep_Blk_1_-_Usage]]/Usage_Unit_10.1*INDEX(Block1_10.1[[Rate]:[Rate]],MATCH(Data_10.2[[#This Row],[Meter_Size]:[Meter_Size]],Meter_10.1[[Size]:[Size]],0)) ), "") -> 8.75 | BR12: =IF(Data_10.2[[#This Row],[Meter_ID]:[Meter_ID]]<>"", IF(OR(Usage_10.2[[#This Row],[Oct_Usage]]="",Usage_10.2[[#This Row],[Oct_Usage]]=0), 0, Block1Usage_10.2[[#This Row],[Oct_Blk_1_-_Usage]]/Usage_Unit_10.1*INDEX(Block1_10.1[[Rate]:[Rate]],MATCH(Data_10.2[[#This Row],[Meter_Size]:[Meter_Size]],Meter_10.1[[Size]:[Size]],0)) ), "") -> 8.75 | BS12: =IF(Data_10.2[[#This Row],[Meter_ID]:[Meter_ID]]<>"", IF(OR(Usage_10.2[[#This Row],[Nov_Usage]]="",Usage_10.2[[#This Row],[Nov_Usage]]=0), 0, Block1Usage_10.2[[#This Row],[Nov_Blk_1_-_Usage]]/Usage_Unit_10.1*INDEX(Block1_10.1[[Rate]:[Rate]],MATCH(Data_10.2[[#This Row],[Meter_Size]:[Meter_Size]],Meter_10.1[[Size]:[Size]],0)) ), "") -> 8.75 | BT12: =IF(Data_10.2[[#This Row],[Meter_ID]:[Meter_ID]]<>"", IF(OR(Usage_10.2[[#This Row],[Dec_Usage]]="",Usage_10.2[[#This Row],[Dec_Usage]]=0), 0, Block1Usage_10.2[[#This Row],[Dec_Blk_1_-_Usage]]/Usage_Unit_10.1*INDEX(Block1_10.1[[Rate]:[Rate]],MATCH(Data_10.2[[#This Row],[Meter_Size]:[Meter_Size]],Meter_10.1[[Size]:[Size]],0)) ), "") -> 8.75 | BU12: =IF(Data_10.2[[#This Row],[Meter_ID]:[Meter_ID]]<>"", IF(OR(Usage_10.2[[#This Row],[Jan_Usage]]="",Usage_10.2[[#This Row],[Jan_Usage]]=0), 0, +IF(Usage_10.2[[#This Row],[Jan_Usage]]>+INDEX(Block1_10.1[[Usage_Max]:[Usage_Max]],MATCH(Data_10.2[[#This Row],[Meter_Size]:[Meter_Size]],Meter_10.1[[Size]:[Size]],0)), IF(Usage_10.2[[#This Row],[Jan_Usage]]>+INDEX(Block2_10.1[[Usage_Max]:[Usage_Max]],MATCH(Data_10.2[[#This Row],[Meter_Size]:[Meter_Size]],Meter_10.1[[Size]:[Size]],0)), +INDEX(Block2_10.1[[Usage_Max]:[Usage_Max]],MATCH(Data_10.2[[#This Row],[Meter_Size]:[Meter_Size]],Meter_10.1[Size],0))-INDEX(Block1_10.1[[Usage_Max]:[Usage_Max]],MATCH(Data_10.2[[#This Row],[Meter_Size]:[Meter_Size]],Meter_10.1[[Size]:[Size]],0)), Usage_10.2[[#This Row],[Jan_Usage]]-INDEX(Block1_10.1[[Usage_Max]:[Usage_Max]],MATCH(Data_10.2[[#This Row],[Meter_Size]:[Meter_Size]],Meter_10.1[[Size]:[Size]],0)) ), 0) ), "") -> 200 | BV12: =IF(Data_10.2[[#This Row],[Meter_ID]:[Meter_ID]]<>"", IF(OR(Usage_10.2[[#This Row],[Feb_Usage]]="",Usage_10.2[[#This Row],[Feb_Usage]]=0), 0, +IF(Usage_10.2[[#This Row],[Feb_Usage]]>+INDEX(Block1_10.1[[Usage_Max]:[Usage_Max]],MATCH(Data_10.2[[#This Row],[Meter_Size]:[Meter_Size]],Meter_10.1[[Size]:[Size]],0)), IF(Usage_10.2[[#This Row],[Feb_Usage]]>+INDEX(Block2_10.1[[Usage_Max]:[Usage_Max]],MATCH(Data_10.2[[#This Row],[Meter_Size]:[Meter_Size]],Meter_10.1[[Size]:[Size]],0)), +INDEX(Block2_10.1[[Usage_Max]:[Usage_Max]],MATCH(Data_10.2[[#This Row],[Meter_Size]:[Meter_Size]],Meter_10.1[Size],0))-INDEX(Block1_10.1[[Usage_Max]:[Usage_Max]],MATCH(Data_10.2[[#This Row],[Meter_Size]:[Meter_Size]],Meter_10.1[[Size]:[Size]],0)), Usage_10.2[[#This Row],[Feb_Usage]]-INDEX(Block1_10.1[[Usage_Max]:[Usage_Max]],MATCH(Data_10.2[[#This Row],[Meter_Size]:[Meter_Size]],Meter_10.1[[Size]:[Size]],0)) ), 0) ), "") -> 200 | BW12: =IF(Data_10.2[[#This Row],[Meter_ID]:[Meter_ID]]<>"", IF(OR(Usage_10.2[[#This Row],[Mar_Usage]]="",Usage_10.2[[#This Row],[Mar_Usage]]=0), 0, +IF(Usage_10.2[[#This Row],[Mar_Usage]]>+INDEX(Block1_10.1[[Usage_Max]:[Usage_Max]],MATCH(Data_10.2[[#This Row],[Meter_Size]:[Meter_Size]],Meter_10.1[[Size]:[Size]],0)), IF(Usage_10.2[[#This Row],[Mar_Usage]]>+INDEX(Block2_10.1[[Usage_Max]:[Usage_Max]],MATCH(Data_10.2[[#This Row],[Meter_Size]:[Meter_Size]],Meter_10.1[[Size]:[Size]],0)), +INDEX(Block2_10.1[[Usage_Max]:[Usage_Max]],MATCH(Data_10.2[[#This Row],[Meter_Size]:[Meter_Size]],Meter_10.1[Size],0))-INDEX(Block1_10.1[[Usage_Max]:[Usage_Max]],MATCH(Data_10.2[[#This Row],[Meter_Size]:[Meter_Size]],Meter_10.1[[Size]:[Size]],0)), Usage_10.2[[#This Row],[Mar_Usage]]-INDEX(Block1_10.1[[Usage_Max]:[Usage_Max]],MATCH(Data_10.2[[#This Row],[Meter_Size]:[Meter_Size]],Meter_10.1[[Size]:[Size]],0)) ), 0) ), "") -> 500 | BX12: =IF(Data_10.2[[#This Row],[Meter_ID]:[Meter_ID]]<>"", IF(OR(Usage_10.2[[#This Row],[Apr_Usage]]="",Usage_10.2[[#This Row],[Apr_Usage]]=0), 0, +IF(Usage_10.2[[#This Row],[Apr_Usage]]>+INDEX(Block1_10.1[[Usage_Max]:[Usage_Max]],MATCH(Data_10.2[[#This Row],[Meter_Size]:[Meter_Size]],Meter_10.1[[Size]:[Size]],0)), IF(Usage_10.2[[#This Row],[Apr_Usage]]>+INDEX(Block2_10.1[[Usage_Max]:[Usage_Max]],MATCH(Data_10.2[[#This Row],[Meter_Size]:[Meter_Size]],Meter_10.1[[Size]:[Size]],0)), +INDEX(Block2_10.1[[Usage_Max]:[Usage_Max]],MATCH(Data_10.2[[#This Row],[Meter_Size]:[Meter_Size]],Meter_10.1[Size],0))-INDEX(Block1_10.1[[Usage_Max]:[Usage_Max]],MATCH(Data_10.2[[#This Row],[Meter_Size]:[Meter_Size]],Meter_10.1[[Size]:[Size]],0)), Usage_10.2[[#This Row],[Apr_Usage]]-INDEX(Block1_10.1[[Usage_Max]:[Usage_Max]],MATCH(Data_10.2[[#This Row],[Meter_Size]:[Meter_Size]],Meter_10.1[[Size]:[Size]],0)) ), 0) ), "") -> 500 | BY12: =IF(Data_10.2[[#This Row],[Meter_ID]:[Meter_ID]]<>"", IF(OR(Usage_10.2[[#This Row],[May_Usage]]="",Usage_10.2[[#This Row],[May_Usage]]=0), 0, +IF(Usage_10.2[[#This Row],[May_Usage]]>+INDEX(Block1_10.1[[Usage_Max]:[Usage_Max]],MATCH(Data_10.2[[#This Row],[Meter_Size]:[Meter_Size]],Meter_10.1[[Size]:[Size]],0)), IF(Usage_10.2[[#This Row],[May_Usage]]>+INDEX(Block2_10.1[[Usage_Max]:[Usage_Max]],MATCH(Data_10.2[[#This Row],[Meter_Size]:[Meter_Size]],Meter_10.1[[Size]:[Size]],0)), +INDEX(Block2_10.1[[Usage_Max]:[Usage_Max]],MATCH(Data_10.2[[#This Row],[Meter_Size]:[Meter_Size]],Meter_10.1[Size],0))-INDEX(Block1_10.1[[Usage_Max]:[Usage_Max]],MATCH(Data_10.2[[#This Row],[Meter_Size]:[Meter_Size]],Meter_10.1[[Size]:[Size]],0)), Usage_10.2[[#This Row],[May_Usage]]-INDEX(Block1_10.1[[Usage_Max]:[Usage_Max]],MATCH(Data_10.2[[#This Row],[Meter_Size]:[Meter_Size]],Meter_10.1[[Size]:[Size]],0)) ), 0) ), "") -> 500 | BZ12: =IF(Data_10.2[[#This Row],[Meter_ID]:[Meter_ID]]<>"", IF(OR(Usage_10.2[[#This Row],[Jun_Usage]]="",Usage_10.2[[#This Row],[Jun_Usage]]=0), 0, +IF(Usage_10.2[[#This Row],[Jun_Usage]]>+INDEX(Block1_10.1[[Usage_Max]:[Usage_Max]],MATCH(Data_10.2[[#This Row],[Meter_Size]:[Meter_Size]],Meter_10.1[[Size]:[Size]],0)), IF(Usage_10.2[[#This Row],[Jun_Usage]]>+INDEX(Block2_10.1[[Usage_Max]:[Usage_Max]],MATCH(Data_10.2[[#This Row],[Meter_Size]:[Meter_Size]],Meter_10.1[[Size]:[Size]],0)), +INDEX(Block2_10.1[[Usage_Max]:[Usage_Max]],MATCH(Data_10.2[[#This Row],[Meter_Size]:[Meter_Size]],Meter_10.1[Size],0))-INDEX(Block1_10.1[[Usage_Max]:[Usage_Max]],MATCH(Data_10.2[[#This Row],[Meter_Size]:[Meter_Size]],Meter_10.1[[Size]:[Size]],0)), Usage_10.2[[#This Row],[Jun_Usage]]-INDEX(Block1_10.1[[Usage_Max]:[Usage_Max]],MATCH(Data_10.2[[#This Row],[Meter_Size]:[Meter_Size]],Meter_10.1[[Size]:[Size]],0)) ), 0) ), "") -> 500 | CA12: =IF(Data_10.2[[#This Row],[Meter_ID]:[Meter_ID]]<>"", IF(OR(Usage_10.2[[#This Row],[Jul_Usage]]="",Usage_10.2[[#This Row],[Jul_Usage]]=0), 0, +IF(Usage_10.2[[#This Row],[Jul_Usage]]>+INDEX(Block1_10.1[[Usage_Max]:[Usage_Max]],MATCH(Data_10.2[[#This Row],[Meter_Size]:[Meter_Size]],Meter_10.1[[Size]:[Size]],0)), IF(Usage_10.2[[#This Row],[Jul_Usage]]>+INDEX(Block2_10.1[[Usage_Max]:[Usage_Max]],MATCH(Data_10.2[[#This Row],[Meter_Size]:[Meter_Size]],Meter_10.1[[Size]:[Size]],0)), +INDEX(Block2_10.1[[Usage_Max]:[Usage_Max]],MATCH(Data_10.2[[#This Row],[Meter_Size]:[Meter_Size]],Meter_10.1[Size],0))-INDEX(Block1_10.1[[Usage_Max]:[Usage_Max]],MATCH(Data_10.2[[#This Row],[Meter_Size]:[Meter_Size]],Meter_10.1[[Size]:[Size]],0)), Usage_10.2[[#This Row],[Jul_Usage]]-INDEX(Block1_10.1[[Usage_Max]:[Usage_Max]],MATCH(Data_10.2[[#This Row],[Meter_Size]:[Meter_Size]],Meter_10.1[[Size]:[Size]],0)) ), 0) ), "") -> 500 | CB12: =IF(Data_10.2[[#This Row],[Meter_ID]:[Meter_ID]]<>"", IF(OR(Usage_10.2[[#This Row],[Aug_Usage]]="",Usage_10.2[[#This Row],[Aug_Usage]]=0), 0, +IF(Usage_10.2[[#This Row],[Aug_Usage]]>+INDEX(Block1_10.1[[Usage_Max]:[Usage_Max]],MATCH(Data_10.2[[#This Row],[Meter_Size]:[Meter_Size]],Meter_10.1[[Size]:[Size]],0)), IF(Usage_10.2[[#This Row],[Aug_Usage]]>+INDEX(Block2_10.1[[Usage_Max]:[Usage_Max]],MATCH(Data_10.2[[#This Row],[Meter_Size]:[Meter_Size]],Meter_10.1[[Size]:[Size]],0)), +INDEX(Block2_10.1[[Usage_Max]:[Usage_Max]],MATCH(Data_10.2[[#This Row],[Meter_Size]:[Meter_Size]],Meter_10.1[Size],0))-INDEX(Block1_10.1[[Usage_Max]:[Usage_Max]],MATCH(Data_10.2[[#This Row],[Meter_Size]:[Meter_Size]],Meter_10.1[[Size]:[Size]],0)), Usage_10.2[[#This Row],[Aug_Usage]]-INDEX(Block1_10.1[[Usage_Max]:[Usage_Max]],MATCH(Data_10.2[[#This Row],[Meter_Size]:[Meter_Size]],Meter_10.1[[Size]:[Size]],0)) ), 0) ), "") -> 500 | CC12: =IF(Data_10.2[[#This Row],[Meter_ID]:[Meter_ID]]<>"", IF(OR(Usage_10.2[[#This Row],[Sep_Usage]]="",Usage_10.2[[#This Row],[Sep_Usage]]=0), 0, +IF(Usage_10.2[[#This Row],[Sep_Usage]]>+INDEX(Block1_10.1[[Usage_Max]:[Usage_Max]],MATCH(Data_10.2[[#This Row],[Meter_Size]:[Meter_Size]],Meter_10.1[[Size]:[Size]],0)), IF(Usage_10.2[[#This Row],[Sep_Usage]]>+INDEX(Block2_10.1[[Usage_Max]:[Usage_Max]],MATCH(Data_10.2[[#This Row],[Meter_Size]:[Meter_Size]],Meter_10.1[[Size]:[Size]],0)), +INDEX(Block2_10.1[[Usage_Max]:[Usage_Max]],MATCH(Data_10.2[[#This Row],[Meter_Size]:[Meter_Size]],Meter_10.1[Size],0))-INDEX(Block1_10.1[[Usage_Max]:[Usage_Max]],MATCH(Data_10.2[[#This Row],[Meter_Size]:[Meter_Size]],Meter_10.1[[Size]:[Size]],0)), Usage_10.2[[#This Row],[Sep_Usage]]-INDEX(Block1_10.1[[Usage_Max]:[Usage_Max]],MATCH(Data_10.2[[#This Row],[Meter_Size]:[Meter_Size]],Meter_10.1[[Size]:[Size]],0)) ), 0) ), "") -> 500 | CD12: =IF(Data_10.2[[#This Row],[Meter_ID]:[Meter_ID]]<>"", IF(OR(Usage_10.2[[#This Row],[Oct_Usage]]="",Usage_10.2[[#This Row],[Oct_Usage]]=0), 0, +IF(Usage_10.2[[#This Row],[Oct_Usage]]>+INDEX(Block1_10.1[[Usage_Max]:[Usage_Max]],MATCH(Data_10.2[[#This Row],[Meter_Size]:[Meter_Size]],Meter_10.1[[Size]:[Size]],0)), IF(Usage_10.2[[#This Row],[Oct_Usage]]>+INDEX(Block2_10.1[[Usage_Max]:[Usage_Max]],MATCH(Data_10.2[[#This Row],[Meter_Size]:[Meter_Size]],Meter_10.1[[Size]:[Size]],0)), +INDEX(Block2_10.1[[Usage_Max]:[Usage_Max]],MATCH(Data_10.2[[#This Row],[Meter_Size]:[Meter_Size]],Meter_10.1[Size],0))-INDEX(Block1_10.1[[Usage_Max]:[Usage_Max]],MATCH(Data_10.2[[#This Row],[Meter_Size]:[Meter_Size]],Meter_10.1[[Size]:[Size]],0)), Usage_10.2[[#This Row],[Oct_Usage]]-INDEX(Block1_10.1[[Usage_Max]:[Usage_Max]],MATCH(Data_10.2[[#This Row],[Meter_Size]:[Meter_Size]],Meter_10.1[[Size]:[Size]],0)) ), 0) ), "") -> 300 | CE12: =IF(Data_10.2[[#This Row],[Meter_ID]:[Meter_ID]]<>"", IF(OR(Usage_10.2[[#This Row],[Nov_Usage]]="",Usage_10.2[[#This Row],[Nov_Usage]]=0), 0, +IF(Usage_10.2[[#This Row],[Nov_Usage]]>+INDEX(Block1_10.1[[Usage_Max]:[Usage_Max]],MATCH(Data_10.2[[#This Row],[Meter_Size]:[Meter_Size]],Meter_10.1[[Size]:[Size]],0)), IF(Usage_10.2[[#This Row],[Nov_Usage]]>+INDEX(Block2_10.1[[Usage_Max]:[Usage_Max]],MATCH(Data_10.2[[#This Row],[Meter_Size]:[Meter_Size]],Meter_10.1[[Size]:[Size]],0)), +INDEX(Block2_10.1[[Usage_Max]:[Usage_Max]],MATCH(Data_10.2[[#This Row],[Meter_Size]:[Meter_Size]],Meter_10.1[Size],0))-INDEX(Block1_10.1[[Usage_Max]:[Usage_Max]],MATCH(Data_10.2[[#This Row],[Meter_Size]:[Meter_Size]],Meter_10.1[[Size]:[Size]],0)), Usage_10.2[[#This Row],[Nov_Usage]]-INDEX(Block1_10.1[[Usage_Max]:[Usage_Max]],MATCH(Data_10.2[[#This Row],[Meter_Size]:[Meter_Size]],Meter_10.1[[Size]:[Size]],0)) ), 0) ), "") -> 400 | CF12: =IF(Data_10.2[[#This Row],[Meter_ID]:[Meter_ID]]<>"", IF(OR(Usage_10.2[[#This Row],[Dec_Usage]]="",Usage_10.2[[#This Row],[Dec_Usage]]=0), 0, +IF(Usage_10.2[[#This Row],[Dec_Usage]]>+INDEX(Block1_10.1[[Usage_Max]:[Usage_Max]],MATCH(Data_10.2[[#This Row],[Meter_Size]:[Meter_Size]],Meter_10.1[[Size]:[Size]],0)), IF(Usage_10.2[[#This Row],[Dec_Usage]]>+INDEX(Block2_10.1[[Usage_Max]:[Usage_Max]],MATCH(Data_10.2[[#This Row],[Meter_Size]:[Meter_Size]],Meter_10.1[[Size]:[Size]],0)), +INDEX(Block2_10.1[[Usage_Max]:[Usage_Max]],MATCH(Data_10.2[[#This Row],[Meter_Size]:[Meter_Size]],Meter_10.1[Size],0))-INDEX(Block1_10.1[[Usage_Max]:[Usage_Max]],MATCH(Data_10.2[[#This Row],[Meter_Size]:[Meter_Size]],Meter_10.1[[Size]:[Size]],0)), Usage_10.2[[#This Row],[Dec_Usage]]-INDEX(Block1_10.1[[Usage_Max]:[Usage_Max]],MATCH(Data_10.2[[#This Row],[Meter_Size]:[Meter_Size]],Meter_10.1[[Size]:[Size]],0)) ), 0) ), "") -> 300 | CG12: =IF(Data_10.2[[#This Row],[Meter_ID]:[Meter_ID]]<>"", IF(OR(Usage_10.2[[#This Row],[Jan_Usage]]="",Usage_10.2[[#This Row],[Jan_Usage]]=0), 0, Block2Usage_10.2[[#This Row],[Jan_Blk_2_-_Usage]]/Usage_Unit_10.1*INDEX(Block2_10.1[[Rate]:[Rate]],MATCH(Data_10.2[[#This Row],[Meter_Size]:[Meter_Size]],Meter_10.1[[Size]:[Size]],0)) ), "") -> 4.5 | CH12: =IF(Data_10.2[[#This Row],[Meter_ID]:[Meter_ID]]<>"", IF(OR(Usage_10.2[[#This Row],[Feb_Usage]]="",Usage_10.2[[#This Row],[Feb_Usage]]=0), 0, Block2Usage_10.2[[#This Row],[Feb_Blk_2_-_Usage]]/Usage_Unit_10.1*INDEX(Block2_10.1[[Rate]:[Rate]],MATCH(Data_10.2[[#This Row],[Meter_Size]:[Meter_Size]],Meter_10.1[[Size]:[Size]],0)) ), "") -> 4.5 | CI12: =IF(Data_10.2[[#This Row],[Meter_ID]:[Meter_ID]]<>"", IF(OR(Usage_10.2[[#This Row],[Mar_Usage]]="",Usage_10.2[[#This Row],[Mar_Usage]]=0), 0, Block2Usage_10.2[[#This Row],[Mar_Blk_2_-_Usage]]/Usage_Unit_10.1*INDEX(Block2_10.1[[Rate]:[Rate]],MATCH(Data_10.2[[#This Row],[Meter_Size]:[Meter_Size]],Meter_10.1[[Size]:[Size]],0)) ), "") -> 11.25 | CJ12: =IF(Data_10.2[[#This Row],[Meter_ID]:[Meter_ID]]<>"", IF(OR(Usage_10.2[[#This Row],[Apr_Usage]]="",Usage_10.2[[#This Row],[Apr_Usage]]=0), 0, Block2Usage_10.2[[#This Row],[Apr_Blk_2_-_Usage]]/Usage_Unit_10.1*INDEX(Block2_10.1[[Rate]:[Rate]],MATCH(Data_10.2[[#This Row],[Meter_Size]:[Meter_Size]],Meter_10.1[[Size]:[Size]],0)) ), "") -> 11.25 | CK12: =IF(Data_10.2[[#This Row],[Meter_ID]:[Meter_ID]]<>"", IF(OR(Usage_10.2[[#This Row],[May_Usage]]="",Usage_10.2[[#This Row],[May_Usage]]=0), 0, Block2Usage_10.2[[#This Row],[May_Blk_2_-_Usage]]/Usage_Unit_10.1*INDEX(Block2_10.1[[Rate]:[Rate]],MATCH(Data_10.2[[#This Row],[Meter_Size]:[Meter_Size]],Meter_10.1[[Size]:[Size]],0)) ), "") -> 11.25 | CL12: =IF(Data_10.2[[#This Row],[Meter_ID]:[Meter_ID]]<>"", IF(OR(Usage_10.2[[#This Row],[Jun_Usage]]="",Usage_10.2[[#This Row],[Jun_Usage]]=0), 0, Block2Usage_10.2[[#This Row],[Jun_Blk_2_-_Usage]]/Usage_Unit_10.1*INDEX(Block2_10.1[[Rate]:[Rate]],MATCH(Data_10.2[[#This Row],[Meter_Size]:[Meter_Size]],Meter_10.1[[Size]:[Size]],0)) ), "") -> 11.25 | CM12: =IF(Data_10.2[[#This Row],[Meter_ID]:[Meter_ID]]<>"", IF(OR(Usage_10.2[[#This Row],[Jul_Usage]]="",Usage_10.2[[#This Row],[Jul_Usage]]=0), 0, Block2Usage_10.2[[#This Row],[Jul_Blk_2_-_Usage]]/Usage_Unit_10.1*INDEX(Block2_10.1[[Rate]:[Rate]],MATCH(Data_10.2[[#This Row],[Meter_Size]:[Meter_Size]],Meter_10.1[[Size]:[Size]],0)) ), "") -> 11.25 | CN12: =IF(Data_10.2[[#This Row],[Meter_ID]:[Meter_ID]]<>"", IF(OR(Usage_10.2[[#This Row],[Aug_Usage]]="",Usage_10.2[[#This Row],[Aug_Usage]]=0), 0, Block2Usage_10.2[[#This Row],[Aug_Blk_2_-_Usage]]/Usage_Unit_10.1*INDEX(Block2_10.1[[Rate]:[Rate]],MATCH(Data_10.2[[#This Row],[Meter_Size]:[Meter_Size]],Meter_10.1[[Size]:[Size]],0)) ), "") -> 11.25 | CO12: =IF(Data_10.2[[#This Row],[Meter_ID]:[Meter_ID]]<>"", IF(OR(Usage_10.2[[#This Row],[Sep_Usage]]="",Usage_10.2[[#This Row],[Sep_Usage]]=0), 0, Block2Usage_10.2[[#This Row],[Sep_Blk_2_-_Usage]]/Usage_Unit_10.1*INDEX(Block2_10.1[[Rate]:[Rate]],MATCH(Data_10.2[[#This Row],[Meter_Size]:[Meter_Size]],Meter_10.1[[Size]:[Size]],0)) ), "") -> 11.25 | CP12: =IF(Data_10.2[[#This Row],[Meter_ID]:[Meter_ID]]<>"", IF(OR(Usage_10.2[[#This Row],[Oct_Usage]]="",Usage_10.2[[#This Row],[Oct_Usage]]=0), 0, Block2Usage_10.2[[#This Row],[Oct_Blk_2_-_Usage]]/Usage_Unit_10.1*INDEX(Block2_10.1[[Rate]:[Rate]],MATCH(Data_10.2[[#This Row],[Meter_Size]:[Meter_Size]],Meter_10.1[[Size]:[Size]],0)) ), "") -> 6.75 | CQ12: =IF(Data_10.2[[#This Row],[Meter_ID]:[Meter_ID]]<>"", IF(OR(Usage_10.2[[#This Row],[Nov_Usage]]="",Usage_10.2[[#This Row],[Nov_Usage]]=0), 0, Block2Usage_10.2[[#This Row],[Nov_Blk_2_-_Usage]]/Usage_Unit_10.1*INDEX(Block2_10.1[[Rate]:[Rate]],MATCH(Data_10.2[[#This Row],[Meter_Size]:[Meter_Size]],Meter_10.1[[Size]:[Size]],0)) ), "") -> 9 | CR12: =IF(Data_10.2[[#This Row],[Meter_ID]:[Meter_ID]]<>"", IF(OR(Usage_10.2[[#This Row],[Dec_Usage]]="",Usage_10.2[[#This Row],[Dec_Usage]]=0), 0, Block2Usage_10.2[[#This Row],[Dec_Blk_2_-_Usage]]/Usage_Unit_10.1*INDEX(Block2_10.1[[Rate]:[Rate]],MATCH(Data_10.2[[#This Row],[Meter_Size]:[Meter_Size]],Meter_10.1[[Size]:[Size]],0)) ), "") -> 6.75 | CS12: =IF(Data_10.2[[#This Row],[Meter_ID]:[Meter_ID]]<>"", IF(OR(Usage_10.2[[#This Row],[Jan_Usage]]="",Usage_10.2[[#This Row],[Jan_Usage]]=0), 0, IF(Usage_10.2[[#This Row],[Jan_Usage]]>INDEX(Block3_10.1[[Usage_Min]:[Usage_Min]],MATCH(Data_10.2[[#This Row],[Meter_Size]:[Meter_Size]],Meter_10.1[[Size]:[Size]],0)), Usage_10.2[[#This Row],[Jan_Usage]]-INDEX(Block3_10.1[[Usage_Min]:[Usage_Min]],MATCH(Data_10.2[[#This Row],[Meter_Size]:[Meter_Size]],Meter_10.1[[Size]:[Size]],0)), 0)), "") -> 0 | CT12: =IF(Data_10.2[[#This Row],[Meter_ID]:[Meter_ID]]<>"", IF(OR(Usage_10.2[[#This Row],[Feb_Usage]]="",Usage_10.2[[#This Row],[Feb_Usage]]=0), 0, IF(Usage_10.2[[#This Row],[Feb_Usage]]>INDEX(Block3_10.1[[Usage_Min]:[Usage_Min]],MATCH(Data_10.2[[#This Row],[Meter_Size]:[Meter_Size]],Meter_10.1[[Size]:[Size]],0)), Usage_10.2[[#This Row],[Feb_Usage]]-INDEX(Block3_10.1[[Usage_Min]:[Usage_Min]],MATCH(Data_10.2[[#This Row],[Meter_Size]:[Meter_Size]],Meter_10.1[[Size]:[Size]],0)), 0)), "") -> 0 | CU12: =IF(Data_10.2[[#This Row],[Meter_ID]:[Meter_ID]]<>"", IF(OR(Usage_10.2[[#This Row],[Mar_Usage]]="",Usage_10.2[[#This Row],[Mar_Usage]]=0), 0, IF(Usage_10.2[[#This Row],[Mar_Usage]]>INDEX(Block3_10.1[[Usage_Min]:[Usage_Min]],MATCH(Data_10.2[[#This Row],[Meter_Size]:[Meter_Size]],Meter_10.1[[Size]:[Size]],0)), Usage_10.2[[#This Row],[Mar_Usage]]-INDEX(Block3_10.1[[Usage_Min]:[Usage_Min]],MATCH(Data_10.2[[#This Row],[Meter_Size]:[Meter_Size]],Meter_10.1[[Size]:[Size]],0)), 0)), "") -> 0 | CV12: =IF(Data_10.2[[#This Row],[Meter_ID]:[Meter_ID]]<>"", IF(OR(Usage_10.2[[#This Row],[Apr_Usage]]="",Usage_10.2[[#This Row],[Apr_Usage]]=0), 0, IF(Usage_10.2[[#This Row],[Apr_Usage]]>INDEX(Block3_10.1[[Usage_Min]:[Usage_Min]],MATCH(Data_10.2[[#This Row],[Meter_Size]:[Meter_Size]],Meter_10.1[[Size]:[Size]],0)), Usage_10.2[[#This Row],[Apr_Usage]]-INDEX(Block3_10.1[[Usage_Min]:[Usage_Min]],MATCH(Data_10.2[[#This Row],[Meter_Size]:[Meter_Size]],Meter_10.1[[Size]:[Size]],0)), 0)), "") -> 299 | CW12: =IF(Data_10.2[[#This Row],[Meter_ID]:[Meter_ID]]<>"", IF(OR(Usage_10.2[[#This Row],[May_Usage]]="",Usage_10.2[[#This Row],[May_Usage]]=0), 0, IF(Usage_10.2[[#This Row],[May_Usage]]>INDEX(Block3_10.1[[Usage_Min]:[Usage_Min]],MATCH(Data_10.2[[#This Row],[Meter_Size]:[Meter_Size]],Meter_10.1[[Size]:[Size]],0)), Usage_10.2[[#This Row],[May_Usage]]-INDEX(Block3_10.1[[Usage_Min]:[Usage_Min]],MATCH(Data_10.2[[#This Row],[Meter_Size]:[Meter_Size]],Meter_10.1[[Size]:[Size]],0)), 0)), "") -> 1899 | CX12: =IF(Data_10.2[[#This Row],[Meter_ID]:[Meter_ID]]<>"", IF(OR(Usage_10.2[[#This Row],[Jun_Usage]]="",Usage_10.2[[#This Row],[Jun_Usage]]=0), 0, IF(Usage_10.2[[#This Row],[Jun_Usage]]>INDEX(Block3_10.1[[Usage_Min]:[Usage_Min]],MATCH(Data_10.2[[#This Row],[Meter_Size]:[Meter_Size]],Meter_10.1[[Size]:[Size]],0)), Usage_10.2[[#This Row],[Jun_Usage]]-INDEX(Block3_10.1[[Usage_Min]:[Usage_Min]],MATCH(Data_10.2[[#This Row],[Meter_Size]:[Meter_Size]],Meter_10.1[[Size]:[Size]],0)), 0)), "") -> 899 | CY12: =IF(Data_10.2[[#This Row],[Meter_ID]:[Meter_ID]]<>"", IF(OR(Usage_10.2[[#This Row],[Jul_Usage]]="",Usage_10.2[[#This Row],[Jul_Usage]]=0), 0, IF(Usage_10.2[[#This Row],[Jul_Usage]]>INDEX(Block3_10.1[[Usage_Min]:[Usage_Min]],MATCH(Data_10.2[[#This Row],[Meter_Size]:[Meter_Size]],Meter_10.1[[Size]:[Size]],0)), Usage_10.2[[#This Row],[Jul_Usage]]-INDEX(Block3_10.1[[Usage_Min]:[Usage_Min]],MATCH(Data_10.2[[#This Row],[Meter_Size]:[Meter_Size]],Meter_10.1[[Size]:[Size]],0)), 0)), "") -> 2299 | CZ12: =IF(Data_10.2[[#This Row],[Meter_ID]:[Meter_ID]]<>"", IF(OR(Usage_10.2[[#This Row],[Aug_Usage]]="",Usage_10.2[[#This Row],[Aug_Usage]]=0), 0, IF(Usage_10.2[[#This Row],[Aug_Usage]]>INDEX(Block3_10.1[[Usage_Min]:[Usage_Min]],MATCH(Data_10.2[[#This Row],[Meter_Size]:[Meter_Size]],Meter_10.1[[Size]:[Size]],0)), Usage_10.2[[#This Row],[Aug_Usage]]-INDEX(Block3_10.1[[Usage_Min]:[Usage_Min]],MATCH(Data_10.2[[#This Row],[Meter_Size]:[Meter_Size]],Meter_10.1[[Size]:[Size]],0)), 0)), "") -> 2099 | DA12: =IF(Data_10.2[[#This Row],[Meter_ID]:[Meter_ID]]<>"", IF(OR(Usage_10.2[[#This Row],[Sep_Usage]]="",Usage_10.2[[#This Row],[Sep_Usage]]=0), 0, IF(Usage_10.2[[#This Row],[Sep_Usage]]>INDEX(Block3_10.1[[Usage_Min]:[Usage_Min]],MATCH(Data_10.2[[#This Row],[Meter_Size]:[Meter_Size]],Meter_10.1[[Size]:[Size]],0)), Usage_10.2[[#This Row],[Sep_Usage]]-INDEX(Block3_10.1[[Usage_Min]:[Usage_Min]],MATCH(Data_10.2[[#This Row],[Meter_Size]:[Meter_Size]],Meter_10.1[[Size]:[Size]],0)), 0)), "") -> 599 | DB12: =IF(Data_10.2[[#This Row],[Meter_ID]:[Meter_ID]]<>"", IF(OR(Usage_10.2[[#This Row],[Oct_Usage]]="",Usage_10.2[[#This Row],[Oct_Usage]]=0), 0, IF(Usage_10.2[[#This Row],[Oct_Usage]]>INDEX(Block3_10.1[[Usage_Min]:[Usage_Min]],MATCH(Data_10.2[[#This Row],[Meter_Size]:[Meter_Size]],Meter_10.1[[Size]:[Size]],0)), Usage_10.2[[#This Row],[Oct_Usage]]-INDEX(Block3_10.1[[Usage_Min]:[Usage_Min]],MATCH(Data_10.2[[#This Row],[Meter_Size]:[Meter_Size]],Meter_10.1[[Size]:[Size]],0)), 0)), "") -> 0 | DC12: =IF(Data_10.2[[#This Row],[Meter_ID]:[Meter_ID]]<>"", IF(OR(Usage_10.2[[#This Row],[Nov_Usage]]="",Usage_10.2[[#This Row],[Nov_Usage]]=0), 0, IF(Usage_10.2[[#This Row],[Nov_Usage]]>INDEX(Block3_10.1[[Usage_Min]:[Usage_Min]],MATCH(Data_10.2[[#This Row],[Meter_Size]:[Meter_Size]],Meter_10.1[[Size]:[Size]],0)), Usage_10.2[[#This Row],[Nov_Usage]]-INDEX(Block3_10.1[[Usage_Min]:[Usage_Min]],MATCH(Data_10.2[[#This Row],[Meter_Size]:[Meter_Size]],Meter_10.1[[Size]:[Size]],0)), 0)), "") -> 0 | DD12: =IF(Data_10.2[[#This Row],[Meter_ID]:[Meter_ID]]<>"", IF(OR(Usage_10.2[[#This Row],[Dec_Usage]]="",Usage_10.2[[#This Row],[Dec_Usage]]=0), 0, IF(Usage_10.2[[#This Row],[Dec_Usage]]>INDEX(Block3_10.1[[Usage_Min]:[Usage_Min]],MATCH(Data_10.2[[#This Row],[Meter_Size]:[Meter_Size]],Meter_10.1[[Size]:[Size]],0)), Usage_10.2[[#This Row],[Dec_Usage]]-INDEX(Block3_10.1[[Usage_Min]:[Usage_Min]],MATCH(Data_10.2[[#This Row],[Meter_Size]:[Meter_Size]],Meter_10.1[[Size]:[Size]],0)), 0)), "") -> 0 | DE12: =IF(Data_10.2[[#This Row],[Meter_ID]:[Meter_ID]]<>"", IF(OR(Usage_10.2[[#This Row],[Jan_Usage]]="",Usage_10.2[[#This Row],[Jan_Usage]]=0), 0, Block3Usage_10.2[[#This Row],[Jan_Blk_3_-_Usage]]/Usage_Unit_10.1*INDEX(Block3_10.1[[Rate]:[Rate]],MATCH(Data_10.2[[#This Row],[Meter_Size]:[Meter_Size]],Meter_10.1[[Size]:[Size]],0)) ), "") -> 0 | DF12: =IF(Data_10.2[[#This Row],[Meter_ID]:[Meter_ID]]<>"", IF(OR(Usage_10.2[[#This Row],[Feb_Usage]]="",Usage_10.2[[#This Row],[Feb_Usage]]=0), 0, Block3Usage_10.2[[#This Row],[Feb_Blk_3_-_Usage]]/Usage_Unit_10.1*INDEX(Block3_10.1[[Rate]:[Rate]],MATCH(Data_10.2[[#This Row],[Meter_Size]:[Meter_Size]],Meter_10.1[[Size]:[Size]],0)) ), "") -> 0 | DG12: =IF(Data_10.2[[#This Row],[Meter_ID]:[Meter_ID]]<>"", IF(OR(Usage_10.2[[#This Row],[Mar_Usage]]="",Usage_10.2[[#This Row],[Mar_Usage]]=0), 0, Block3Usage_10.2[[#This Row],[Mar_Blk_3_-_Usage]]/Usage_Unit_10.1*INDEX(Block3_10.1[[Rate]:[Rate]],MATCH(Data_10.2[[#This Row],[Meter_Size]:[Meter_Size]],Meter_10.1[[Size]:[Size]],0)) ), "") -> 0 | DH12: =IF(Data_10.2[[#This Row],[Meter_ID]:[Meter_ID]]<>"", IF(OR(Usage_10.2[[#This Row],[Apr_Usage]]="",Usage_10.2[[#This Row],[Apr_Usage]]=0), 0, Block3Usage_10.2[[#This Row],[Apr_Blk_3_-_Usage]]/Usage_Unit_10.1*INDEX(Block3_10.1[[Rate]:[Rate]],MATCH(Data_10.2[[#This Row],[Meter_Size]:[Meter_Size]],Meter_10.1[[Size]:[Size]],0)) ), "") -> 9.7175 | DI12: =IF(Data_10.2[[#This Row],[Meter_ID]:[Meter_ID]]<>"", IF(OR(Usage_10.2[[#This Row],[May_Usage]]="",Usage_10.2[[#This Row],[May_Usage]]=0), 0, Block3Usage_10.2[[#This Row],[May_Blk_3_-_Usage]]/Usage_Unit_10.1*INDEX(Block3_10.1[[Rate]:[Rate]],MATCH(Data_10.2[[#This Row],[Meter_Size]:[Meter_Size]],Meter_10.1[[Size]:[Size]],0)) ), "") -> 61.7175 | DJ12: =IF(Data_10.2[[#This Row],[Meter_ID]:[Meter_ID]]<>"", IF(OR(Usage_10.2[[#This Row],[Jun_Usage]]="",Usage_10.2[[#This Row],[Jun_Usage]]=0), 0, Block3Usage_10.2[[#This Row],[Jun_Blk_3_-_Usage]]/Usage_Unit_10.1*INDEX(Block3_10.1[[Rate]:[Rate]],MATCH(Data_10.2[[#This Row],[Meter_Size]:[Meter_Size]],Meter_10.1[[Size]:[Size]],0)) ), "") -> 29.2175 | DK12: =IF(Data_10.2[[#This Row],[Meter_ID]:[Meter_ID]]<>"", IF(OR(Usage_10.2[[#This Row],[Jul_Usage]]="",Usage_10.2[[#This Row],[Jul_Usage]]=0), 0, Block3Usage_10.2[[#This Row],[Jul_Blk_3_-_Usage]]/Usage_Unit_10.1*INDEX(Block3_10.1[[Rate]:[Rate]],MATCH(Data_10.2[[#This Row],[Meter_Size]:[Meter_Size]],Meter_10.1[[Size]:[Size]],0)) ), "") -> 74.7175 | DL12: =IF(Data_10.2[[#This Row],[Meter_ID]:[Meter_ID]]<>"", IF(OR(Usage_10.2[[#This Row],[Aug_Usage]]="",Usage_10.2[[#This Row],[Aug_Usage]]=0), 0, Block3Usage_10.2[[#This Row],[Aug_Blk_3_-_Usage]]/Usage_Unit_10.1*INDEX(Block3_10.1[[Rate]:[Rate]],MATCH(Data_10.2[[#This Row],[Meter_Size]:[Meter_Size]],Meter_10.1[[Size]:[Size]],0)) ), "") -> 68.2175 | DM12: =IF(Data_10.2[[#This Row],[Meter_ID]:[Meter_ID]]<>"", IF(OR(Usage_10.2[[#This Row],[Sep_Usage]]="",Usage_10.2[[#This Row],[Sep_Usage]]=0), 0, Block3Usage_10.2[[#This Row],[Sep_Blk_3_-_Usage]]/Usage_Unit_10.1*INDEX(Block3_10.1[[Rate]:[Rate]],MATCH(Data_10.2[[#This Row],[Meter_Size]:[Meter_Size]],Meter_10.1[[Size]:[Size]],0)) ), "") -> 19.4675 | DN12: =IF(Data_10.2[[#This Row],[Meter_ID]:[Meter_ID]]<>"", IF(OR(Usage_10.2[[#This Row],[Oct_Usage]]="",Usage_10.2[[#This Row],[Oct_Usage]]=0), 0, Block3Usage_10.2[[#This Row],[Oct_Blk_3_-_Usage]]/Usage_Unit_10.1*INDEX(Block3_10.1[[Rate]:[Rate]],MATCH(Data_10.2[[#This Row],[Meter_Size]:[Meter_Size]],Meter_10.1[[Size]:[Size]],0)) ), "") -> 0 | DO12: =IF(Data_10.2[[#This Row],[Meter_ID]:[Meter_ID]]<>"", IF(OR(Usage_10.2[[#This Row],[Nov_Usage]]="",Usage_10.2[[#This Row],[Nov_Usage]]=0), 0, Block3Usage_10.2[[#This Row],[Nov_Blk_3_-_Usage]]/Usage_Unit_10.1*INDEX(Block3_10.1[[Rate]:[Rate]],MATCH(Data_10.2[[#This Row],[Meter_Size]:[Meter_Size]],Meter_10.1[[Size]:[Size]],0)) ), "") -> 0 | DP12: =IF(Data_10.2[[#This Row],[Meter_ID]:[Meter_ID]]<>"", IF(OR(Usage_10.2[[#This Row],[Dec_Usage]]="",Usage_10.2[[#This Row],[Dec_Usage]]=0), 0, Block3Usage_10.2[[#This Row],[Dec_Blk_3_-_Usage]]/Usage_Unit_10.1*INDEX(Block3_10.1[[Rate]:[Rate]],MATCH(Data_10.2[[#This Row],[Meter_Size]:[Meter_Size]],Meter_10.1[[Size]:[Size]],0)) ), "") -> 0 | DQ12: =IF(Data_10.2[[#This Row],[Meter_ID]:[Meter_ID]]<>"", IF(OR(Usage_10.2[[#This Row],[Jan_Usage]]="",Usage_10.2[[#This Row],[Jan_Usage]]=0), 0, INDEX(Base_10.1[[Allowance]:[Allowance]],MATCH(Data_10.2[[#This Row],[Meter_Size]:[Meter_Size]],Meter_10.1[[Size]:[Size]],0)) ), "") -> 0 | DR12: =IF(Data_10.2[[#This Row],[Meter_ID]:[Meter_ID]]<>"", IF(OR(Usage_10.2[[#This Row],[Feb_Usage]]="",Usage_10.2[[#This Row],[Feb_Usage]]=0), 0, INDEX(Base_10.1[[Allowance]:[Allowance]],MATCH(Data_10.2[[#This Row],[Meter_Size]:[Meter_Size]],Meter_10.1[[Size]:[Size]],0)) ), "") -> 0 | DS12: =IF(Data_10.2[[#This Row],[Meter_ID]:[Meter_ID]]<>"", IF(OR(Usage_10.2[[#This Row],[Mar_Usage]]="",Usage_10.2[[#This Row],[Mar_Usage]]=0), 0, INDEX(Base_10.1[[Allowance]:[Allowance]],MATCH(Data_10.2[[#This Row],[Meter_Size]:[Meter_Size]],Meter_10.1[[Size]:[Size]],0)) ), "") -> 0 | DT12: =IF(Data_10.2[[#This Row],[Meter_ID]:[Meter_ID]]<>"", IF(OR(Usage_10.2[[#This Row],[Apr_Usage]]="",Usage_10.2[[#This Row],[Apr_Usage]]=0), 0, INDEX(Base_10.1[[Allowance]:[Allowance]],MATCH(Data_10.2[[#This Row],[Meter_Size]:[Meter_Size]],Meter_10.1[[Size]:[Size]],0)) ), "") -> 0 | DU12: =IF(Data_10.2[[#This Row],[Meter_ID]:[Meter_ID]]<>"", IF(OR(Usage_10.2[[#This Row],[May_Usage]]="",Usage_10.2[[#This Row],[May_Usage]]=0), 0, INDEX(Base_10.1[[Allowance]:[Allowance]],MATCH(Data_10.2[[#This Row],[Meter_Size]:[Meter_Size]],Meter_10.1[[Size]:[Size]],0)) ), "") -> 0 | DV12: =IF(Data_10.2[[#This Row],[Meter_ID]:[Meter_ID]]<>"", IF(OR(Usage_10.2[[#This Row],[Jun_Usage]]="",Usage_10.2[[#This Row],[Jun_Usage]]=0), 0, INDEX(Base_10.1[[Allowance]:[Allowance]],MATCH(Data_10.2[[#This Row],[Meter_Size]:[Meter_Size]],Meter_10.1[[Size]:[Size]],0)) ), "") -> 0 | DW12: =IF(Data_10.2[[#This Row],[Meter_ID]:[Meter_ID]]<>"", IF(OR(Usage_10.2[[#This Row],[Jul_Usage]]="",Usage_10.2[[#This Row],[Jul_Usage]]=0), 0, INDEX(Base_10.1[[Allowance]:[Allowance]],MATCH(Data_10.2[[#This Row],[Meter_Size]:[Meter_Size]],Meter_10.1[[Size]:[Size]],0)) ), "") -> 0 | DX12: =IF(Data_10.2[[#This Row],[Meter_ID]:[Meter_ID]]<>"", IF(OR(Usage_10.2[[#This Row],[Aug_Usage]]="",Usage_10.2[[#This Row],[Aug_Usage]]=0), 0, INDEX(Base_10.1[[Allowance]:[Allowance]],MATCH(Data_10.2[[#This Row],[Meter_Size]:[Meter_Size]],Meter_10.1[[Size]:[Size]],0)) ), "") -> 0 | DY12: =IF(Data_10.2[[#This Row],[Meter_ID]:[Meter_ID]]<>"", IF(OR(Usage_10.2[[#This Row],[Sep_Usage]]="",Usage_10.2[[#This Row],[Sep_Usage]]=0), 0, INDEX(Base_10.1[[Allowance]:[Allowance]],MATCH(Data_10.2[[#This Row],[Meter_Size]:[Meter_Size]],Meter_10.1[[Size]:[Size]],0)) ), "") -> 0 | DZ12: =IF(Data_10.2[[#This Row],[Meter_ID]:[Meter_ID]]<>"", IF(OR(Usage_10.2[[#This Row],[Oct_Usage]]="",Usage_10.2[[#This Row],[Oct_Usage]]=0), 0, INDEX(Base_10.1[[Allowance]:[Allowance]],MATCH(Data_10.2[[#This Row],[Meter_Size]:[Meter_Size]],Meter_10.1[[Size]:[Size]],0)) ), "") -> 0 | EA12: =IF(Data_10.2[[#This Row],[Meter_ID]:[Meter_ID]]<>"", IF(OR(Usage_10.2[[#This Row],[Nov_Usage]]="",Usage_10.2[[#This Row],[Nov_Usage]]=0), 0, INDEX(Base_10.1[[Allowance]:[Allowance]],MATCH(Data_10.2[[#This Row],[Meter_Size]:[Meter_Size]],Meter_10.1[[Size]:[Size]],0)) ), "") -> 0 | EB12: =IF(Data_10.2[[#This Row],[Meter_ID]:[Meter_ID]]<>"", IF(OR(Usage_10.2[[#This Row],[Dec_Usage]]="",Usage_10.2[[#This Row],[Dec_Usage]]=0), 0, INDEX(Base_10.1[[Allowance]:[Allowance]],MATCH(Data_10.2[[#This Row],[Meter_Size]:[Meter_Size]],Meter_10.1[[Size]:[Size]],0)) ), "") -> 0
